Workbook

Sheet Admin
B4: Process Year
B5: 2024 | C5: I1
B7: First True Up Month
B8: =B5*100+1 -> 202401 | C8: I2 | D8: I3
B10: Second True Up Month
B11: =B8+1 -> 202402 | C11: I4 | D11: I5
B13: Third True Up Month
B14: =B11+1 -> 202403 | C14: I6 | D14: I7
B16: Fourth True Up Month
B17: =B14+1 -> 202404 | C17: I8 | D17: I9
B19: Fifth True Up Month
B20: =B17+1 -> 202405 | C20: I10 | D20: I11
B22: Sixth True Up Month
B23: =B20+1 -> 202406 | C23: I12 | D23: I13
B25: Seventh True Up Month
B26: =B23+1 -> 202407 | C26: I14 | D26: I15
B28: Eighth True Up Month
B29: =B26+1 -> 202408 | C29: I16 | D29: I17
B31: Ninth True Up Month
B32: =B29+1 -> 202409 | C32: I18 | D32: I19
B34: Tenth True Up Month
B35: =B32+1 -> 202410 | C35: I20 | D35: I21
B37: Eleventh True Up Month
B38: =B35+1 -> 202411 | C38: I22 | D38: I23
B40: Twelveth True Up Month
B41: =B38+1 -> 202412 | C41: I24 | D41: I25

Sheet IESO Submission
A1: =Admin!B5 -> 2024 | C1: Payments to | F1: Payments from | I1: Number of
C2: IESO | F2: IESO | I2: Customers:
A3: Regulated Price Plan - Conventional | C3: Box 1 | F3: Box 2 | I3: Box 3
A5: First Tier as defined by the SSS Code | B5: $ | C5: =PaymentToIESO('I1 Reconciliation'!$AA$6) -> 0 | E5: $ | F5: =PaymentFromIESO('I1 Reconciliation'!$AA$6) -> 24986.8957
B6: kWh | C6: =PaymentToIESOkWh('I1 Reconciliation'!K6,'I1 Reconciliation'!K19) -> 0 | E6: kWh | F6: =PaymentfromIESOkWh('I1 Reconciliation'!$K$6,'I1 Reconciliation'!$K$19) -> 673138.2391
H7: # | I7: 0
A8: Second Tier as defined by the SSS Code | B8: $ | C8: =PaymentToIESO('I1 Reconciliation'!$AA$7) -> 4759.2049 | E8: $ | F8: =PaymentFromIESO('I1 Reconciliation'!$AA$7) -> 0
B9: kWh | C9: =PaymentToIESOkWh('I1 Reconciliation'!K7,'I1 Reconciliation'!K20) -> 174872.016 | E9: kWh | F9: =PaymentfromIESOkWh('I1 Reconciliation'!$K$7,'I1 Reconciliation'!$K$20) -> 0
A11: Regulated Price Plan - Smart Meters
A13: Off Peak - TOU | B13: $ | C13: =PaymentToIESO('I1 Reconciliation'!$AA$8) -> 1092178.101 | E13: $ | F13: =PaymentFromIESO('I1 Reconciliation'!$AA$8) -> 0
B14: kWh | C14: =PaymentToIESOkWh('I1 Reconciliation'!K8,'I1 Reconciliation'!K21) -> 1456857.54 | E14: kWh | F14: =PaymentfromIESOkWh('I1 Reconciliation'!$K$8,'I1 Reconciliation'!$K$21) -> 0
H15: # | I15: 0
A16: Mid Peak - TOU | B16: $ | C16: =PaymentToIESO('I1 Reconciliation'!$AA$9) -> 0 | E16: $ | F16: =PaymentFromIESO('I1 Reconciliation'!$AA$9) -> 1455147.943
B17: kWh | C17: =PaymentToIESOkWh('I1 Reconciliation'!K9,'I1 Reconciliation'!K22) -> 0 | E17: kWh | F17: =PaymentfromIESOkWh('I1 Reconciliation'!$K$9,'I1 Reconciliation'!$K$22) -> 4514634.437
A19: On Peak - TOU | B19: $ | C19: =PaymentToIESO('I1 Reconciliation'!$AA$10) -> 257919.0694 | E19: $ | F19: =PaymentFromIESO('I1 Reconciliation'!$AA$10) -> 0
B20: kWh | C20: =PaymentToIESOkWh('I1 Reconciliation'!K10,'I1 Reconciliation'!K23) -> 1478775.084 | E20: kWh | F20: =PaymentfromIESOkWh('I1 Reconciliation'!$K$10,'I1 Reconciliation'!$K$23) -> 0
A22: SubTotal RPP For Settlement | B22: $ | C22: =SUM(C5,C8,C13,C16,C19) -> 1354856.375 | E22: $ | F22: =SUM(F5,F8,F13,F16,F19) -> 1480134.839
A24: Total RPP For Settlement | E24: $ | F24: =C22-F22 -> -125278.463
A27: SubTotal RPP kWh For Settlement Reported | B27: kWh | C27: =SUM(C6,C9,C14,C17,C20) -> 3110504.64 | E27: kWh | F27: =SUM(F6,F9,F14,F17,F20) -> 5187772.677
A29: Total RPP kWh For Settlement Reported | E29: kWh | F29: =C27+F27 -> 8298277.317

Sheet I1 Reconciliation
C2: =Admin!$B$8 -> 202401 | D2: =Admin!$B$8 -> 202401 | E2: =C2+1 -> 202402 | F2: =D2+1 -> 202402 | G2: =E2+1 -> 202403 | H2: 202403 | I2: 202404 | J2: 202404 | K2: 202405 | L2: 202405 | M2: 202406 | N2: 202406 | O2: 202407 | P2: 202407 | Q2: 202408 | R2: 202408 | S2: 202409 | T2: 202409 | U2: 202410 | V2: 202410 | W2: 202411 | X2: 202411 | Y2: 202412 | Z2: 202412 | AA2: =Admin!B5 -> 2024 | AB2: All
C3: =A4 & "Input "& C2 & " Trueup Sett" -> Input 202401 Trueup Sett | D3: =D4 & " Input Rev " & D2 & " Init" -> I3 Input Rev 202401 Init | E3: =C4 & "Input "& E2 & " Trueup Sett" -> I2Input 202402 Trueup Sett | F3: =F4 & " Input Rev " & F2 & " Init" -> I5 Input Rev 202402 Init | G3: =E4 & "Input "& G2 & " Trueup Sett" -> I4Input 202403 Trueup Sett | H3: =H4 & " Input Rev " & H2 & " Init" -> I7 Input Rev 202403 Init | I3: =G4 & "Input "& I2 & " Trueup Sett" -> I6Input 202404 Trueup Sett | J3: =J4 & " Input Rev " & J2 & " Init" -> I9 Input Rev 202404 Init | K3: =I4 & "Input "& K2 & " Trueup Sett" -> I8Input 202405 Trueup Sett | L3: =L4 & " Input Rev " & L2 & " Init" -> I11 Input Rev 202405 Init | M3: =K4 & "Input "& M2 & " Trueup Sett" -> I10Input 202406 Trueup Sett | N3: =N4 & " Input Rev " & N2 & " Init" -> I13 Input Rev 202406 Init | O3: =M4 & "Input "& O2 & " Trueup Sett" -> I12Input 202407 Trueup Sett | P3: =P4 & " Input Rev " & P2 & " Init" -> I15 Input Rev 202407 Init | Q3: =O4 & "Input "& Q2 & " Trueup Sett" -> I14Input 202408 Trueup Sett | R3: =R4 & " Input Rev " & R2 & " Init" -> I17 Input Rev 202408 Init | S3: =Q4 & "Input "& S2 & " Trueup Sett" -> I16Input 202409 Trueup Sett | T3: =T4 & " Input Rev " & T2 & " Init" -> I19 Input Rev 202409 Init | U3: =S4 & "Input "& U2 & " Trueup Sett" -> I18Input 202410 Trueup Sett | V3: =V4 & " Input Rev " & V2 & " Init" -> I21 Input Rev 202410 Init | W3: =U4 & "Input "& W2 & " Trueup Sett" -> I20Input 202411 Trueup Sett | X3: =X4 & " Input Rev " & X2 & " Init" -> I23 Input Rev 202411 Init | Y3: =W4 & "Input "& Y2 & " Trueup Sett" -> I22Input 202412 Trueup Sett | Z3: =Z4 & " Input Rev " & Z2 & " Init" -> I25 Input Rev 202412 Init | AA3: Total IESO Settlement | AB3: Total IESO Settlement
C4: I2 | D4: I3 | E4: I4 | F4: I5 | G4: I6 | H4: I7 | I4: I8 | J4: I9 | K4: I10 | L4: I11 | M4: I12 | N4: I13 | O4: I14 | P4: I15 | Q4: I16 | R4: I17 | S4: I18 | T4: I19 | U4: I20 | V4: I21 | W4: I22 | X4: I23 | Y4: I24 | Z4: I25
B5: RPP Revenue Prices
B6: RPPT1 | C6: ='I2 Input 01 Trueup Sett '!Z6 -> 13381.59461 | D6: ='I3 Input Rev 01 Init'!C7 -> -5158.02 | E6: ='I4 Input 02 Trueup Sett'!Z6 -> 7354.16688 | F6: ='I5 Input Rev 02 Init'!C7 -> -12689.04 | G6: ='I6 Input 03 Trueup Sett'!Z6 -> -6977.861914 | H6: ='I7 Input Rev 03 Init'!C7 -> -9898.92 | I6: ='I8 Input 04 Trueup Sett'!Z6 -> -200.5069737 | J6: ='I9 Input Rev 04 Init'!C7 -> 22288.19 | K6: ='I10 Input 05 Trueup Sett'!Z6 -> -2107.456663 | L6: ='I11 Input Rev 05 Init'!C7 -> -6554.3 | M6: ='I12 Input 06 Trueup Sett'!Z6 -> -4848.726637 | N6: ='I13 Input Rev 06 Init'!C7 -> -720.16 | O6: ='I14 Input 07 Trueup Sett'!Z6 -> 613.4404268 | P6: ='I15 Input Rev 07 Init'!C7 -> -201.57 | Q6: ='I16 Input 08 Trueup Sett'!Z6 -> 187.2660295 | R6: ='I17 Input Rev 08 Init'!C7 -> -3874.84 | S6: ='I18 Input 09 Trueup Sett'!Z6 -> -5424.348662 | T6: ='I19 Input Rev 09 Init'!C7 -> 19328.57 | U6: ='I20 Input 10 Trueup Sett'!Z6 -> -4175.597308 | V6: ='I21 Input Rev 10 Init'!C7 -> -10504.3 | W6: ='I22 Input 11 Trueup Sett'!Z6 -> -22856.5845 | X6: ='I23 Input Rev 11 Init'!C7 -> 17405.72 | Y6: ='I24 Input 12 Trueup Sett'!Z6 -> -8611.461029 | Z6: ='I25 Input Rev 12 Init'!C7 -> -742.15 | AA6: =SUM(C6:Z6) -> -24986.89575 | AB6: =SUM(AA6:AA6) -> -24986.89575
B7: RPPT2 | C7: ='I2 Input 01 Trueup Sett '!Z7 -> 14159.82816 | D7: ='I3 Input Rev 01 Init'!C8 -> -7484.74 | E7: ='I4 Input 02 Trueup Sett'!Z7 -> 9137.644541 | F7: ='I5 Input Rev 02 Init'!C8 -> -13414.5 | G7: ='I6 Input 03 Trueup Sett'!Z7 -> 3697.152653 | H7: ='I7 Input Rev 03 Init'!C8 -> -12872.25 | I7: ='I8 Input 04 Trueup Sett'!Z7 -> 4123.430185 | J7: ='I9 Input Rev 04 Init'!C8 -> 3053.34 | K7: ='I10 Input 05 Trueup Sett'!Z7 -> 3299.83867 | L7: ='I11 Input Rev 05 Init'!C8 -> -5041.91 | M7: ='I12 Input 06 Trueup Sett'!Z7 -> 2667.767826 | N7: ='I13 Input Rev 06 Init'!C8 -> 2542.66 | O7: ='I14 Input 07 Trueup Sett'!Z7 -> 6476.988827 | P7: ='I15 Input Rev 07 Init'!C8 -> -12712.37 | Q7: ='I16 Input 08 Trueup Sett'!Z7 -> 4878.518666 | R7: ='I17 Input Rev 08 Init'!C8 -> -488.35 | S7: ='I18 Input 09 Trueup Sett'!Z7 -> 2094.423402 | T7: ='I19 Input Rev 09 Init'!C8 -> 5341.3 | U7: ='I20 Input 10 Trueup Sett'!Z7 -> 5283.009784 | V7: ='I21 Input Rev 10 Init'!C8 -> -5148.5 | W7: ='I22 Input 11 Trueup Sett'!Z7 -> -2964.454902 | X7: ='I23 Input Rev 11 Init'!C8 -> -1044.38 | Y7: ='I24 Input 12 Trueup Sett'!Z7 -> 3898.977074 | Z7: ='I25 Input Rev 12 Init'!C8 -> -4724.22 | AA7: =SUM(C7:Z7) -> 4759.204889 | AB7: 4759.204889
B8: RPPTOUMID | C8: ='I2 Input 01 Trueup Sett '!Z8 -> 65357.93811 | D8: ='I3 Input Rev 01 Init'!C9 -> -38510.45 | E8: ='I4 Input 02 Trueup Sett'!Z8 -> 44273.08274 | F8: ='I5 Input Rev 02 Init'!C9 -> -59871.81 | G8: ='I6 Input 03 Trueup Sett'!Z8 -> 16834.25708 | H8: ='I7 Input Rev 03 Init'!C9 -> 13199.85 | I8: ='I8 Input 04 Trueup Sett'!Z8 -> 30682.39058 | J8: ='I9 Input Rev 04 Init'!C9 -> 223837.41 | K8: ='I10 Input 05 Trueup Sett'!Z8 -> 22859.26497 | L8: ='I11 Input Rev 05 Init'!C9 -> 66856.58 | M8: ='I12 Input 06 Trueup Sett'!Z8 -> 17884.09207 | N8: ='I13 Input Rev 06 Init'!C9 -> -50161.97 | O8: ='I14 Input 07 Trueup Sett'!Z8 -> 38718.59918 | P8: ='I15 Input Rev 07 Init'!C9 -> 78661 | Q8: ='I16 Input 08 Trueup Sett'!Z8 -> 31647.13351 | R8: ='I17 Input Rev 08 Init'!C9 -> 70800 | S8: ='I18 Input 09 Trueup Sett'!Z8 -> 14587.46274 | T8: ='I19 Input Rev 09 Init'!C9 -> 223888.65 | U8: ='I20 Input 10 Trueup Sett'!Z8 -> 19654.51473 | V8: ='I21 Input Rev 10 Init'!C9 -> -33494.25 | W8: ='I22 Input 11 Trueup Sett'!Z8 -> 3289.330932 | X8: ='I23 Input Rev 11 Init'!C9 -> 177252.32 | Y8: ='I24 Input 12 Trueup Sett'!Z8 -> 37474.61457 | Z8: ='I25 Input Rev 12 Init'!C9 -> 76458.09 | AA8: 1092178.101 | AB8: 1092178.101
B9: RPPTOUOFF | C9: ='I2 Input 01 Trueup Sett '!Z9 -> -16572.26954 | D9: ='I3 Input Rev 01 Init'!C10 -> 67232.44 | E9: ='I4 Input 02 Trueup Sett'!Z9 -> -49293.57837 | F9: ='I5 Input Rev 02 Init'!C10 -> 24580.81 | G9: ='I6 Input 03 Trueup Sett'!Z9 -> -142354.3539 | H9: ='I7 Input Rev 03 Init'!C10 -> -50200.59 | I9: ='I8 Input 04 Trueup Sett'!Z9 -> -98047.47127 | J9: ='I9 Input Rev 04 Init'!C10 -> 8292.8 | K9: ='I10 Input 05 Trueup Sett'!Z9 -> -87177.72916 | L9: ='I11 Input Rev 05 Init'!C10 -> -41831.52 | M9: ='I12 Input 06 Trueup Sett'!Z9 -> -121606.3232 | N9: ='I13 Input Rev 06 Init'!C10 -> 7988.34 | O9: ='I14 Input 07 Trueup Sett'!Z9 -> -95817.23634 | P9: ='I15 Input Rev 07 Init'!C10 -> -22973.61 | Q9: ='I16 Input 08 Trueup Sett'!Z9 -> -98272.32484 | R9: ='I17 Input Rev 08 Init'!C10 -> -42999.13 | S9: ='I18 Input 09 Trueup Sett'!Z9 -> -121845.2242 | T9: ='I19 Input Rev 09 Init'!C10 -> 20107.83 | U9: ='I20 Input 10 Trueup Sett'!Z9 -> -102313.7073 | V9: ='I21 Input Rev 10 Init'!C10 -> -43798.43 | W9: ='I22 Input 11 Trueup Sett'!Z9 -> -224466.1864 | X9: ='I23 Input Rev 11 Init'!C10 -> 13351.56 | Y9: ='I24 Input 12 Trueup Sett'!Z9 -> -177546.7783 | Z9: ='I25 Input Rev 12 Init'!C10 -> -59585.26 | AA9: -1455147.943 | AB9: -1455147.943
B10: RPPTOUON | C10: ='I2 Input 01 Trueup Sett '!Z10 -> 189027.5972 | D10: ='I3 Input Rev 01 Init'!C11 -> -137735.17 | E10: ='I4 Input 02 Trueup Sett'!Z10 -> 149247.2442 | F10: ='I5 Input Rev 02 Init'!C11 -> -177470.81 | G10: ='I6 Input 03 Trueup Sett'!Z10 -> 110912.228 | H10: ='I7 Input Rev 03 Init'!C11 -> -152748.31 | I10: ='I8 Input 04 Trueup Sett'!Z10 -> 132272.6151 | J10: ='I9 Input Rev 04 Init'!C11 -> -77265.7 | K10: ='I10 Input 05 Trueup Sett'!Z10 -> 111928.2342 | L10: ='I11 Input Rev 05 Init'!C11 -> -147731.06 | M10: ='I12 Input 06 Trueup Sett'!Z10 -> 121318.4653 | N10: ='I13 Input Rev 06 Init'!C11 -> 31415.66 | O10: ='I14 Input 07 Trueup Sett'!Z10 -> 180227.5571 | P10: ='I15 Input Rev 07 Init'!C11 -> -123468.39 | Q10: ='I16 Input 08 Trueup Sett'!Z10 -> 149637.2557 | R10: ='I17 Input Rev 08 Init'!C11 -> -181458.07 | S10: ='I18 Input 09 Trueup Sett'!Z10 -> 108073.1013 | T10: ='I19 Input Rev 09 Init'!C11 -> -47624.53 | U10: ='I20 Input 10 Trueup Sett'!Z10 -> 107878.8581 | V10: ='I21 Input Rev 10 Init'!C11 -> -110059.74 | W10: ='I22 Input 11 Trueup Sett'!Z10 -> 60873.18994 | X10: ='I23 Input Rev 11 Init'!C11 -> -53381.81 | Y10: ='I24 Input 12 Trueup Sett'!Z10 -> 104578.1733 | Z10: ='I25 Input Rev 12 Init'!C11 -> -90527.52 | AA10: 257919.0694 | AB10: 257919.0694
B11: RPPULOMID | C11: ='I2 Input 01 Trueup Sett '!Z11 -> 55.40135936 | E11: ='I4 Input 02 Trueup Sett'!Z11 -> 40.70098196 | G11: ='I6 Input 03 Trueup Sett'!Z11 -> 15.20669119 | H11: ='I7 Input Rev 03 Init'!C12 -> 1.17 | I11: ='I8 Input 04 Trueup Sett'!Z11 -> 27.8780413 | J11: ='I9 Input Rev 04 Init'!C12 -> 53.79 | K11: ='I10 Input 05 Trueup Sett'!Z11 -> 22.95050813 | L11: ='I11 Input Rev 05 Init'!C12 -> 14.33 | M11: ='I12 Input 06 Trueup Sett'!Z11 -> 26.22751959 | N11: ='I13 Input Rev 06 Init'!C12 -> 3.97 | O11: ='I14 Input 07 Trueup Sett'!Z11 -> 55.50605213 | P11: ='I15 Input Rev 07 Init'!C12 -> 31.87 | Q11: ='I16 Input 08 Trueup Sett'!Z11 -> 47.3232183 | R11: ='I17 Input Rev 08 Init'!C12 -> 36.79 | S11: ='I18 Input 09 Trueup Sett'!Z11 -> 23.19708293 | T11: ='I19 Input Rev 09 Init'!C12 -> 71.34 | U11: ='I20 Input 10 Trueup Sett'!Z11 -> 24.73846223 | V11: ='I21 Input Rev 10 Init'!C12 -> -7.25 | W11: ='I22 Input 11 Trueup Sett'!Z11 -> 5.604094641 | X11: ='I23 Input Rev 11 Init'!C12 -> 55.21 | Y11: ='I24 Input 12 Trueup Sett'!Z11 -> 66.3276501 | Z11: ='I25 Input Rev 12 Init'!C12 -> 59.56 | AA11: 731.8416619 | AB11: 731.8416619
B12: RPPULOOFF | C12: ='I2 Input 01 Trueup Sett '!Z12 -> -4.10204701 | E12: ='I4 Input 02 Trueup Sett'!Z12 -> -9.952166599 | G12: ='I6 Input 03 Trueup Sett'!Z12 -> -32.98808105 | H12: ='I7 Input Rev 03 Init'!C13 -> -386.38 | I12: ='I8 Input 04 Trueup Sett'!Z12 -> -18.44086486 | J12: ='I9 Input Rev 04 Init'!C13 -> -130.29 | K12: ='I10 Input 05 Trueup Sett'!Z12 -> -23.04927334 | L12: ='I11 Input Rev 05 Init'!C13 -> -141.34 | M12: ='I12 Input 06 Trueup Sett'!Z12 -> -41.35179546 | N12: ='I13 Input Rev 06 Init'!C13 -> -30.72 | O12: ='I14 Input 07 Trueup Sett'!Z12 -> -30.64435542 | P12: ='I15 Input Rev 07 Init'!C13 -> -46.65 | Q12: ='I16 Input 08 Trueup Sett'!Z12 -> -34.92427868 | R12: ='I17 Input Rev 08 Init'!C13 -> -429.83 | S12: ='I18 Input 09 Trueup Sett'!Z12 -> -47.68446949 | T12: ='I19 Input Rev 09 Init'!C13 -> -134.97 | U12: ='I20 Input 10 Trueup Sett'!Z12 -> -33.36419386 | V12: ='I21 Input Rev 10 Init'!C13 -> -165.42 | W12: ='I22 Input 11 Trueup Sett'!Z12 -> -109.514332 | X12: ='I23 Input Rev 11 Init'!C13 -> -91.01 | Y12: ='I24 Input 12 Trueup Sett'!Z12 -> -76.89011146 | Z12: ='I25 Input Rev 12 Init'!C13 -> -270.38 | AA12: -2289.895969 | AB12: -2289.895969
B13: RPPULOON | C13: ='I2 Input 01 Trueup Sett '!Z13 -> 216.5412501 | E13: ='I4 Input 02 Trueup Sett'!Z13 -> 180.2745812 | G13: ='I6 Input 03 Trueup Sett'!Z13 -> 127.2845621 | H13: ='I7 Input Rev 03 Init'!C14 -> -120.92 | I13: ='I8 Input 04 Trueup Sett'!Z13 -> 142.0824598 | J13: ='I9 Input Rev 04 Init'!C14 -> 8.33 | K13: ='I10 Input 05 Trueup Sett'!Z13 -> 146.0926453 | L13: ='I11 Input Rev 05 Init'!C14 -> -27.4 | M13: ='I12 Input 06 Trueup Sett'!Z13 -> 220.0926027 | N13: ='I13 Input Rev 06 Init'!C14 -> -4.18 | O13: ='I14 Input 07 Trueup Sett'!Z13 -> 313.3157739 | P13: ='I15 Input Rev 07 Init'!C14 -> -248.14 | Q13: ='I16 Input 08 Trueup Sett'!Z13 -> 279.2108647 | R13: ='I17 Input Rev 08 Init'!C14 -> -77.81 | S13: ='I18 Input 09 Trueup Sett'!Z13 -> 208.9755911 | T13: ='I19 Input Rev 09 Init'!C14 -> 34.57 | U13: ='I20 Input 10 Trueup Sett'!Z13 -> 175.8678016 | V13: ='I21 Input Rev 10 Init'!C14 -> -69.34 | W13: ='I22 Input 11 Trueup Sett'!Z13 -> 206.1113143 | X13: ='I23 Input Rev 11 Init'!C14 -> 26.04 | Y13: ='I24 Input 12 Trueup Sett'!Z13 -> 273.632671 | Z13: ='I25 Input Rev 12 Init'!C14 -> -100.64 | AA13: 1909.992118 | AB13: 1909.992118
B14: RPPULOOVN | C14: ='I2 Input 01 Trueup Sett '!Z14 -> -464.057138 | E14: ='I4 Input 02 Trueup Sett'!Z14 -> -446.2336956 | G14: ='I6 Input 03 Trueup Sett'!Z14 -> -546.0470535 | H14: ='I7 Input Rev 03 Init'!C15 -> 964.7 | I14: ='I8 Input 04 Trueup Sett'!Z14 -> -509.5812163 | J14: ='I9 Input Rev 04 Init'!C15 -> 683.66 | K14: ='I10 Input 05 Trueup Sett'!Z14 -> -439.1925781 | L14: ='I11 Input Rev 05 Init'!C15 -> 450.18 | M14: ='I12 Input 06 Trueup Sett'!Z14 -> -637.8425116 | N14: ='I13 Input Rev 06 Init'!C15 -> 50.86 | O14: ='I14 Input 07 Trueup Sett'!Z14 -> -515.178574 | P14: ='I15 Input Rev 07 Init'!C15 -> 535.4 | Q14: ='I16 Input 08 Trueup Sett'!Z14 -> -559.4210259 | R14: ='I17 Input Rev 08 Init'!C15 -> 469.12 | S14: ='I18 Input 09 Trueup Sett'!Z14 -> -574.1347657 | T14: ='I19 Input Rev 09 Init'!C15 -> 686.17 | U14: ='I20 Input 10 Trueup Sett'!Z14 -> -636.7831199 | V14: ='I21 Input Rev 10 Init'!C15 -> 296.67 | W14: ='I22 Input 11 Trueup Sett'!Z14 -> -754.1945073 | X14: ='I23 Input Rev 11 Init'!C15 -> 729.14 | Y14: ='I24 Input 12 Trueup Sett'!Z14 -> -749.3496959 | Z14: ='I25 Input Rev 12 Init'!C15 -> 421.19 | AA14: -1544.925882 | AB14: -1544.925882
B15: Total RPP For Settlement | C15: =SUM(C6:C14) -> 265158.472 | D15: =SUM(D6:D14) -> -121655.94 | E15: 160483.3497 | F15: -238865.35 | G15: -18325.12196 | H15: -212061.65 | I15: 68472.39609 | J15: 180821.53 | K15: 48508.95327 | L15: -134006.44 | M15: 14982.40119 | N15: -8915.54 | O15: 130042.3481 | P15: -80422.46 | Q15: 87810.03783 | R15: -158022.12 | S15: -2904.232052 | T15: 221698.93 | U15: 25857.53696 | V15: -202950.56 | W15: -186776.6984 | X15: 154302.79 | Y15: -40692.75386 | Z15: -79011.33 | AA15: -126471.4511 | AB15: =SUM(AB6:AB14) -> -126471.4511
D16: =C15+D15 -> 143502.532 | F16: =E15+F15 -> -78382.00029 | H16: =G15+H15 -> -230386.772 | J16: =I15+J15 -> 249293.9261 | L16: =K15+L15 -> -85497.48673 | N16: =M15+N15 -> 6066.861187 | P16: =O15+P15 -> 49619.8881 | R16: =Q15+R15 -> -70212.08217 | T16: =S15+T15 -> 218794.6979 | V16: =U15+V15 -> -177093.023 | X16: =W15+X15 -> -32473.90837 | Z16: =Y15+Z15 -> -119704.0839
B18: Total RPP kWh For Settlement Reported
B19: Tier 1 | C19: ='I2 Input 01 Trueup Sett '!V6 -> 987079.0419 | D19: =-'I3 Input Rev 01 Init'!B7 -> -960386.99 | E19: ='I4 Input 02 Trueup Sett'!V6 -> 889626.7276 | F19: =-'I5 Input Rev 02 Init'!B7 -> -974523.47 | G19: ='I6 Input 03 Trueup Sett'!V6 -> 896826.2329 | H19: =-'I7 Input Rev 03 Init'!B7 -> -868184.75 | I19: ='I8 Input 04 Trueup Sett'!V6 -> 863049.8441 | J19: =-'I9 Input Rev 04 Init'!B7 -> -923981.693 | K19: ='I10 Input 05 Trueup Sett'!V6 -> 673138.2391 | L19: =-'I11 Input Rev 05 Init'!B7 -> -935479.57 | M19: ='I12 Input 06 Trueup Sett'!V6 -> 668497.2754 | N19: =-'I13 Input Rev 06 Init'!B7 -> -540087.38 | O19: ='I14 Input 07 Trueup Sett'!V6 -> 766307.8532 | P19: =-'I15 Input Rev 07 Init'!B7 -> -382514.84 | Q19: ='I16 Input 08 Trueup Sett'!V6 -> 729268.2172 | R19: =-'I17 Input Rev 08 Init'!B7 -> -581336.19 | S19: ='I18 Input 09 Trueup Sett'!V6 -> 632833.921 | T19: =-'I19 Input Rev 09 Init'!B7 -> -510931.885 | U19: ='I20 Input 10 Trueup Sett'!V6 -> 678415.1564 | V19: =-'I21 Input Rev 10 Init'!B7 -> -483705.55 | W19: ='I22 Input 11 Trueup Sett'!V6 -> 847940.8551 | X19: =-'I23 Input Rev 11 Init'!B7 -> -545313.58 | Y19: ='I24 Input 12 Trueup Sett'!V6 -> 1011669.004 | Z19: =-'I25 Input Rev 12 Init'!B7 -> -800037.25 | AA19: =SUM(C19:Z19) -> 1138169.22 | AB19: =SUM(AA19:AA19) -> 1138169.22
B20: Tier 2 | C20: ='I2 Input 01 Trueup Sett '!V7 -> 398231.4016 | D20: =-'I3 Input Rev 01 Init'!B8 -> -273374.35 | E20: ='I4 Input 02 Trueup Sett'!V7 -> 301894.6403 | F20: =-'I5 Input Rev 02 Init'!B8 -> -383046.7 | G20: ='I6 Input 03 Trueup Sett'!V7 -> 259988.1274 | H20: =-'I7 Input Rev 03 Init'!B8 -> -397347.14 | I20: ='I8 Input 04 Trueup Sett'!V7 -> 189424.1423 | J20: =-'I9 Input Rev 04 Init'!B8 -> -281537.385 | K20: ='I10 Input 05 Trueup Sett'!V7 -> 174872.016 | L20: =-'I11 Input Rev 05 Init'!B8 -> -220028.27 | M20: ='I12 Input 06 Trueup Sett'!V7 -> 180883.8147 | N20: =-'I13 Input Rev 06 Init'!B8 -> -142703.68 | O20: ='I14 Input 07 Trueup Sett'!V7 -> 284054.7693 | P20: =-'I15 Input Rev 07 Init'!B8 -> -400513.52 | Q20: ='I16 Input 08 Trueup Sett'!V7 -> 219178.5044 | R20: =-'I17 Input Rev 08 Init'!B8 -> -215996.21 | S20: ='I18 Input 09 Trueup Sett'!V7 -> 155943.989 | T20: =-'I19 Input Rev 09 Init'!B8 -> -153570.707 | U20: ='I20 Input 10 Trueup Sett'!V7 -> 333402.3126 | V20: =-'I21 Input Rev 10 Init'!B8 -> -119259.99 | W20: ='I22 Input 11 Trueup Sett'!V7 -> 297788.5807 | X20: =-'I23 Input Rev 11 Init'!B8 -> -267990.49 | Y20: ='I24 Input 12 Trueup Sett'!V7 -> 459394.7693 | Z20: =-'I25 Input Rev 12 Init'!B8 -> -280965.3 | AA20: =SUM(C20:Z20) -> 118723.3256 | AB20: 118723.3256
B21: TOU Off-peak | C21: ='I2 Input 01 Trueup Sett '!V8 -> 2012731.212 | D21: =-'I3 Input Rev 01 Init'!B9 -> -1607169.2 | E21: ='I4 Input 02 Trueup Sett'!V8 -> 1627664.691 | F21: =-'I5 Input Rev 02 Init'!B9 -> -1920185 | G21: ='I6 Input 03 Trueup Sett'!V8 -> 1493373.111 | H21: =-'I7 Input Rev 03 Init'!B9 -> -4881500.02 | I21: ='I8 Input 04 Trueup Sett'!V8 -> 1643262.64 | J21: =-'I9 Input Rev 04 Init'!B9 -> -5436992.958 | K21: ='I10 Input 05 Trueup Sett'!V8 -> 1456857.54 | L21: =-'I11 Input Rev 05 Init'!B9 -> -4931851.087 | M21: ='I12 Input 06 Trueup Sett'!V8 -> 1563092.319 | N21: =-'I13 Input Rev 06 Init'!B9 -> -3303080.18 | O21: ='I14 Input 07 Trueup Sett'!V8 -> 1987822.643 | P21: =-'I15 Input Rev 07 Init'!B9 -> -4270477.033 | Q21: ='I16 Input 08 Trueup Sett'!V8 -> 1700916.408 | R21: =-'I17 Input Rev 08 Init'!B9 -> -4673226.625 | S21: ='I18 Input 09 Trueup Sett'!V8 -> 1412553.33 | T21: =-'I19 Input Rev 09 Init'!B9 -> -4175010.456 | U21: ='I20 Input 10 Trueup Sett'!V8 -> 1500228.144 | V21: =-'I21 Input Rev 10 Init'!B9 -> -3754092.09 | W21: ='I22 Input 11 Trueup Sett'!V8 -> 1525013.359 | X21: =-'I23 Input Rev 11 Init'!B9 -> -3742319.34 | Y21: ='I24 Input 12 Trueup Sett'!V8 -> 1834868.526 | Z21: =-'I25 Input Rev 12 Init'!B9 -> -4813209.47 | AA21: -27750729.54 | AB21: -27750729.54
B22: TOU Mid-peak | C22: ='I2 Input 01 Trueup Sett '!V9 -> 6555777.624 | D22: =-'I3 Input Rev 01 Init'!B10 -> -6090790.1 | E22: ='I4 Input 02 Trueup Sett'!V9 -> 5877715.926 | F22: =-'I5 Input Rev 02 Init'!B10 -> -6435672.94 | G22: ='I6 Input 03 Trueup Sett'!V9 -> 5854770.469 | H22: =-'I7 Input Rev 03 Init'!B10 -> -1584910.99 | I22: ='I8 Input 04 Trueup Sett'!V9 -> 5189403.318 | J22: =-'I9 Input Rev 04 Init'!B10 -> -1420716 | K22: ='I10 Input 05 Trueup Sett'!V9 -> 4514634.437 | L22: =-'I11 Input Rev 05 Init'!B10 -> -1610069.62 | M22: ='I12 Input 06 Trueup Sett'!V9 -> 5161803.021 | N22: =-'I13 Input Rev 06 Init'!B10 -> -1082041.213 | O22: ='I14 Input 07 Trueup Sett'!V9 -> 6172972.132 | P22: =-'I15 Input Rev 07 Init'!B10 -> -1309658.18 | Q22: ='I16 Input 08 Trueup Sett'!V9 -> 5994393.937 | R22: =-'I17 Input Rev 08 Init'!B10 -> -1504704.65 | S22: ='I18 Input 09 Trueup Sett'!V9 -> 4938174.848 | T22: =-'I19 Input Rev 09 Init'!B10 -> -1184270.329 | U22: ='I20 Input 10 Trueup Sett'!V9 -> 4670292.446 | V22: =-'I21 Input Rev 10 Init'!B10 -> -1072945.57 | W22: ='I22 Input 11 Trueup Sett'!V9 -> 5120469.656 | X22: =-'I23 Input Rev 11 Init'!B10 -> -1202568.82 | Y22: ='I24 Input 12 Trueup Sett'!V9 -> 6941914.906 | Z22: =-'I25 Input Rev 12 Init'!B10 -> -1434009.29 | AA22: 41059965.02 | AB22: 41059965.02
B23: TOU On-peak | C23: ='I2 Input 01 Trueup Sett '!V10 -> 2044174.85 | D23: =-'I3 Input Rev 01 Init'!B11 -> -1640470.66 | E23: ='I4 Input 02 Trueup Sett'!V10 -> 1711532.217 | F23: =-'I5 Input Rev 02 Init'!B11 -> -1946400.9 | G23: ='I6 Input 03 Trueup Sett'!V10 -> 1556155.611 | H23: =-'I7 Input Rev 03 Init'!B11 -> -1668838.02 | I23: ='I8 Input 04 Trueup Sett'!V10 -> 1681363.548 | J23: =-'I9 Input Rev 04 Init'!B11 -> -1462568.02 | K23: ='I10 Input 05 Trueup Sett'!V10 -> 1478775.084 | L23: =-'I11 Input Rev 05 Init'!B11 -> -1625403.91 | M23: ='I12 Input 06 Trueup Sett'!V10 -> 1698149.507 | N23: =-'I13 Input Rev 06 Init'!B11 -> -1117694.683 | O23: ='I14 Input 07 Trueup Sett'!V10 -> 2267636.765 | P23: =-'I15 Input Rev 07 Init'!B11 -> -1440704.41 | Q23: ='I16 Input 08 Trueup Sett'!V10 -> 1903641.987 | R23: =-'I17 Input Rev 08 Init'!B11 -> -1716433.19 | S23: ='I18 Input 09 Trueup Sett'!V10 -> 1536763.359 | T23: =-'I19 Input Rev 09 Init'!B11 -> -1325394.94 | U23: ='I20 Input 10 Trueup Sett'!V10 -> 1476088.433 | V23: =-'I21 Input Rev 10 Init'!B11 -> -1167082.23 | W23: ='I22 Input 11 Trueup Sett'!V10 -> 1594721.891 | X23: =-'I23 Input Rev 11 Init'!B11 -> -1183144.01 | Y23: ='I24 Input 12 Trueup Sett'!V10 -> 1853411.455 | Z23: =-'I25 Input Rev 12 Init'!B11 -> -1499632.74 | AA23: 3008646.993 | AB23: 3008646.993
C24: ='I2 Input 01 Trueup Sett '!V11 -> 1706.607736 | E24: ='I4 Input 02 Trueup Sett'!V11 -> 1495.039617 | G24: ='I6 Input 03 Trueup Sett'!V11 -> 1347.347831 | H24: =-'I7 Input Rev 03 Init'!B12 -> -3186.876 | I24: ='I8 Input 04 Trueup Sett'!V11 -> 1492.207791 | J24: =-'I9 Input Rev 04 Init'!B12 -> -845.608 | K24: ='I10 Input 05 Trueup Sett'!V11 -> 1462.853369 | L24: =-'I11 Input Rev 05 Init'!B12 -> -731.448 | M24: ='I12 Input 06 Trueup Sett'!V11 -> 2292.109442 | N24: =-'I13 Input Rev 06 Init'!B12 -> -657.545 | O24: ='I14 Input 07 Trueup Sett'!V11 -> 2850.330617 | P24: =-'I15 Input Rev 07 Init'!B12 -> -1182.541 | Q24: ='I16 Input 08 Trueup Sett'!V11 -> 2543.851838 | R24: =-'I17 Input Rev 08 Init'!B12 -> -1498.207 | S24: ='I18 Input 09 Trueup Sett'!V11 -> 2244.932496 | T24: =-'I19 Input Rev 09 Init'!B12 -> -1492.382 | U24: ='I20 Input 10 Trueup Sett'!V11 -> 1887.580186 | V24: =-'I21 Input Rev 10 Init'!B12 -> -1478.35 | W24: ='I22 Input 11 Trueup Sett'!V11 -> 2589.610468 | X24: =-'I23 Input Rev 11 Init'!B12 -> -1224.58 | Y24: ='I24 Input 12 Trueup Sett'!V11 -> 3248.52181 | Z24: =-'I25 Input Rev 12 Init'!B12 -> -2357.01 | AA24: 10506.4462 | AB24: 10506.4462
C25: ='I2 Input 01 Trueup Sett '!V12 -> 1600.991523 | E25: ='I4 Input 02 Trueup Sett'!V12 -> 1279.688184 | G25: ='I6 Input 03 Trueup Sett'!V12 -> 1391.042186 | H25: =-'I7 Input Rev 03 Init'!B13 -> -1931.39 | I25: ='I8 Input 04 Trueup Sett'!V12 -> 1129.979087 | J25: =-'I9 Input Rev 04 Init'!B13 -> -341.91 | K25: ='I10 Input 05 Trueup Sett'!V12 -> 1193.420357 | L25: =-'I11 Input Rev 05 Init'!B13 -> -401.44 | M25: ='I12 Input 06 Trueup Sett'!V12 -> 1755.171914 | N25: =-'I13 Input Rev 06 Init'!B13 -> -337.81 | O25: ='I14 Input 07 Trueup Sett'!V12 -> 1972.546175 | P25: =-'I15 Input Rev 07 Init'!B13 -> -1417.61 | Q25: ='I16 Input 08 Trueup Sett'!V12 -> 2129.950874 | R25: =-'I17 Input Rev 08 Init'!B13 -> -1297.04 | S25: ='I18 Input 09 Trueup Sett'!V12 -> 1933.085681 | T25: =-'I19 Input Rev 09 Init'!B13 -> -1071.41 | U25: ='I20 Input 10 Trueup Sett'!V12 -> 1523.484537 | V25: =-'I21 Input Rev 10 Init'!B13 -> -916.74 | W25: ='I22 Input 11 Trueup Sett'!V12 -> 2498.14033 | X25: =-'I23 Input Rev 11 Init'!B13 -> -798.25 | Y25: ='I24 Input 12 Trueup Sett'!V12 -> 3005.64249 | Z25: =-'I25 Input Rev 12 Init'!B13 -> -1184.58 | AA25: 11714.96334 | AB25: 11714.96334
C26: ='I2 Input 01 Trueup Sett '!V13 -> 1102.26226 | E26: ='I4 Input 02 Trueup Sett'!V13 -> 942.7903905 | G26: ='I6 Input 03 Trueup Sett'!V13 -> 726.1941141 | H26: =-'I7 Input Rev 03 Init'!B14 -> -3530.29 | I26: ='I8 Input 04 Trueup Sett'!V13 -> 777.6772194 | J26: =-'I9 Input Rev 04 Init'!B14 -> -761.13 | K26: ='I10 Input 05 Trueup Sett'!V13 -> 813.0115918 | L26: =-'I11 Input Rev 05 Init'!B14 -> -850.86 | M26: ='I12 Input 06 Trueup Sett'!V13 -> 1254.478468 | N26: =-'I13 Input Rev 06 Init'!B14 -> -654.95 | O26: ='I14 Input 07 Trueup Sett'!V13 -> 1707.683807 | P26: =-'I15 Input Rev 07 Init'!B14 -> -725.61 | Q26: ='I16 Input 08 Trueup Sett'!V13 -> 1529.135248 | R26: =-'I17 Input Rev 08 Init'!B14 -> -2164.91 | S26: ='I18 Input 09 Trueup Sett'!V13 -> 1198.720107 | T26: =-'I19 Input Rev 09 Init'!B14 -> -1782.388 | U26: ='I20 Input 10 Trueup Sett'!V13 -> 993.0902024 | V26: =-'I21 Input Rev 10 Init'!B14 -> -1716.84 | W26: ='I22 Input 11 Trueup Sett'!V13 -> 1255.508698 | X26: =-'I23 Input Rev 11 Init'!B14 -> -1517.25 | Y26: ='I24 Input 12 Trueup Sett'!V13 -> 1499.991258 | Z26: =-'I25 Input Rev 12 Init'!B14 -> -2443.31 | AA26: -2346.994635 | AB26: -2346.994635
C27: ='I2 Input 01 Trueup Sett '!V14 -> 7539.267131 | E27: ='I4 Input 02 Trueup Sett'!V14 -> 6680.967722 | G27: ='I6 Input 03 Trueup Sett'!V14 -> 6600.398856 | H27: =-'I7 Input Rev 03 Init'!B15 -> -16062.874 | I27: ='I8 Input 04 Trueup Sett'!V14 -> 6765.564191 | J27: =-'I9 Input Rev 04 Init'!B15 -> -4435.804 | K27: ='I10 Input 05 Trueup Sett'!V14 -> 5608.533501 | L27: =-'I11 Input Rev 05 Init'!B15 -> -4531.565 | M27: ='I12 Input 06 Trueup Sett'!V14 -> 7726.471004 | N27: =-'I13 Input Rev 06 Init'!B15 -> -3485.67 | O27: ='I14 Input 07 Trueup Sett'!V14 -> 6912.402576 | P27: =-'I15 Input Rev 07 Init'!B15 -> -4942.512 | Q27: ='I16 Input 08 Trueup Sett'!V14 -> 7419.655694 | R27: =-'I17 Input Rev 08 Init'!B15 -> -5250.175 | S27: ='I18 Input 09 Trueup Sett'!V14 -> 6862.552493 | T27: =-'I19 Input Rev 09 Init'!B15 -> -5198.693 | U27: ='I20 Input 10 Trueup Sett'!V14 -> 7871.724488 | V27: =-'I21 Input Rev 10 Init'!B15 -> -5248.217 | W27: ='I22 Input 11 Trueup Sett'!V14 -> 8212.249133 | X27: =-'I23 Input Rev 11 Init'!B15 -> -6327.33 | Y27: ='I24 Input 12 Trueup Sett'!V14 -> 10184.05171 | Z27: =-'I25 Input Rev 12 Init'!B15 -> -7748.31 | AA27: 25152.6885 | AB27: 25152.6885
B28: Total RPP For Settlement | C28: =SUM(C19:C27) -> 12009943.26 | D28: -10572191.3 | E28: 10418832.69 | F28: -11659829.01 | G28: 10071178.53 | H28: -9425492.35 | I28: 9576668.921 | J28: -9532180.508 | K28: 8307355.136 | L28: -9329347.77 | M28: 9285454.168 | N28: -6190743.111 | O28: 11492237.13 | P28: -7812136.256 | Q28: 10561021.65 | R28: -8701907.197 | S28: 8688508.738 | T28: -7358723.19 | U28: 8670702.371 | V28: -6606445.577 | W28: =SUM(W19:W27) -> 9400489.851 | X28: =SUM(X19:X27) -> -6951203.65 | Y28: =SUM(Y19:Y27) -> 12119196.87 | Z28: =SUM(Z19:Z27) -> -8841587.26 | AA28: =SUM(AA19:AA27) -> 17619802.13 | AB28: 17619802.13
D29: =C28+D28 -> 1437751.958 | F29: =E28+F28 -> -1240996.322 | H29: =G28+H28 -> 645686.1842 | J29: =I28+J28 -> 44488.41276 | L29: =K28+L28 -> -1021992.634 | N29: =M28+N28 -> 3094711.057 | P29: =O28+P28 -> 3680100.87 | R29: =Q28+R28 -> 1859114.45 | T29: =S28+T28 -> 1329785.548 | V29: =U28+V28 -> 2064256.794 | X29: =W28+X28 -> 2449286.201 | Z29: =Y28+Z28 -> 3277609.609

Sheet GL Reconciliation
B2: 1588 Principal | C2: 1588 Interest | D2: 1589 Class B GA Principal | E2: 1589 Class B GA Interest | F2: 1589 Class A GA Principal
A4: Per GL 2023 Closing Balance | B4: 171775.06 | C4: 11623.06 | D4: -1217914.83 | E4: -151981.52 | F4: 0
A6: Per OEB I&E Review | B6: 576786 | C6: 46208 | D6: 174683 | E6: -75727 | F6: 0
B8: =B4-B6 -> -405010.94 | C8: =C4-C6 -> -34584.94 | D8: -1392597.83 | E8: -76254.52 | F8: 0

Sheet I1a ER Summary
B4: kWh Volumes | C4: $ RPP Revenue | D4: $ RPP Energy | E4: $ GA | F4: $ RPP Settlement | G4: Rev RPP Settlement | H4: Net RPP Sett | J4: IESO Energy kWh | K4: IESO Energy Cost | L4: FIT/mFIT kWh | M4: FIT/mFIT kWh | N4: Total Energy kWh | O4: Total Energy Cost | Q4: CT 148 | S4: Wholesale kWh | T4: Retail kWh | U4: Diff kWh | V4: Diff % | X4: RPP kWh | Y4: COP kWh | Z4: Diff kWh | AA4: Diff % | AC4: RPP/WHSL | AE4: Energy Purchases | AF4: Energy Revenue | AG4: RPP Revenue | AH4: Non RPP Revenue | AJ4: RPP kWh | AK4: Non RPP kWh | AL4: Total kWh | AN4: Class A kWh | AP4: Non RPP Class B | AT4: RPP kWh Billed | AU4: RPP kWh Settled | AV4: kWh Diff | AW4: % Diff | AY4: RPP Amt Billed | AZ4: RPP Amt Settled | BA4: Amt Diff | BB4: % Diff | BE4: Actual GA | BF4: Paid GA | BG4: Difference
A5: =Admin!B8 -> 202401 | B5: ='I2 Input 01 Trueup Sett '!V15 -> 12009943.26 | C5: ='I2 Input 01 Trueup Sett '!W15 -> 1340260.145 | D5: ='I2 Input 01 Trueup Sett '!X15 -> 523849.5484 | E5: ='I2 Input 01 Trueup Sett '!Y15 -> 551252.1243 | F5: ='I2 Input 01 Trueup Sett '!Z15 -> 265158.472 | G5: ='I3 Input Rev 01 Init'!C12 -> -121655.94 | H5: =F5+G5 -> 143502.532 | J5: ='I2 Input 01 Trueup Sett '!C10 -> 22682396.57 | K5: ='I2 Input 01 Trueup Sett '!D10 -> 997395.03 | L5: =N5-J5 -> 142270.93 | M5: =O5-K5 -> 6332.29 | N5: ='I2 Input 01 Trueup Sett '!C11 -> 22824667.5 | O5: ='I2 Input 01 Trueup Sett '!D11 -> 1003727.32 | Q5: ='I2 Input 01 Trueup Sett '!B78 -> 857975.93 | S5: ='I2 Input 01 Trueup Sett '!$C$11 -> 22824667.5 | T5: ='I2 Input 01 Trueup Sett '!$C$35 -> 22536847.88 | U5: =S5-T5 -> 287819.6178 | V5: =T5/S5-1 -> -0.01261002456 | X5: =SUM('I2 Input 01 Trueup Sett '!C20:C30) -> 11825018.28 | Y5: ='I2 Input 01 Trueup Sett '!C47 -> 11848115.04 | Z5: =X5-Y5 -> -23096.75296 | AA5: =Y5/X5-1 -> 0.00195321076 | AC5: =X5/S5 -> 0.5180806373 | AE5: ='I2 Input 01 Trueup Sett '!D11 -> 1003727.32 | AF5: ='I2 Input 01 Trueup Sett '!D35 -> 1795209.557 | AG5: =C5 -> 1340260.145 | AH5: =AF5-AG5 -> 454949.4122 | AJ5: =B5 -> 12009943.26 | AK5: =T5-X5 -> 10711829.6 | AL5: =SUM(AJ5:AK5) -> 22721772.86 | AN5: ='I2 Input 01 Trueup Sett '!B70 -> 4132236.61 | AP5: =AK5-AN5 -> 6579592.988 | AQ5: 6575300.71 | AR5: =AP5-AQ5 -> 4292.277623 | AT5: =X5 -> 11825018.28 | AU5: ='I2 Input 01 Trueup Sett '!V15 -> 12009943.26 | AV5: =AU5-AT5 -> 184924.973 | AW5: =AU5/AT5-1 -> 0.01563845134 | AY5: ='I2 Input 01 Trueup Sett '!Z32 -> 261075.6531 | AZ5: ='I2 Input 01 Trueup Sett '!Z15 -> 265158.472 | BA5: =AZ5-AY5 -> 4082.818897 | BB5: =AZ5/AY5-1 -> 0.01563845134 | BE5: ='I2 Input 01 Trueup Sett '!$L$32 -> 0.04587999821 | BF5: ='I2 Input 01 Trueup Sett '!$L$33 -> 0.04589964436 | BG5: =BE5-BF5 -> -1.96461489e-05
A6: =A5+1 -> 202402 | B6: ='I4 Input 02 Trueup Sett'!V15 -> 10418832.69 | C6: ='I4 Input 02 Trueup Sett'!W15 -> 1148099.695 | D6: ='I4 Input 02 Trueup Sett'!X15 -> 296463.1188 | E6: ='I4 Input 02 Trueup Sett'!Y15 -> 691153.2268 | F6: ='I4 Input 02 Trueup Sett'!Z15 -> 160483.3497 | G6: ='I5 Input Rev 02 Init'!C12 -> -238865.35 | H6: =F6+G6 -> -78382.00029 | J6: ='I4 Input 02 Trueup Sett'!C10 -> 19786258.54 | K6: ='I4 Input 02 Trueup Sett'!D10 -> 563195.17 | L6: =N6-J6 -> 415182.11 | M6: =O6-K6 -> 10824.57 | N6: ='I4 Input 02 Trueup Sett'!C11 -> 20201440.65 | O6: ='I4 Input 02 Trueup Sett'!D11 -> 574019.74 | Q6: ='I4 Input 02 Trueup Sett'!B78 -> 1093924.51 | S6: ='I4 Input 02 Trueup Sett'!C11 -> 20201440.65 | T6: ='I4 Input 02 Trueup Sett'!C35 -> 20028272.16 | U6: =S6-T6 -> 173168.4883 | V6: =T6/S6-1 -> -0.008572086088 | X6: =SUM('I4 Input 02 Trueup Sett'!C20:C30) -> 10309422.98 | Y6: ='I4 Input 02 Trueup Sett'!C47 -> 10276024.97 | Z6: =X6-Y6 -> 33398.00865 | AA6: =Y6/X6-1 -> -0.00323956139 | AC6: =X6/S6 -> 0.5103310779 | AE6: ='I4 Input 02 Trueup Sett'!D11 -> 574019.74 | AF6: ='I4 Input 02 Trueup Sett'!D35 -> 1411659.421 | AG6: 1148099.695 | AH6: =AF6-AG6 -> 263559.7261 | AJ6: =B6 -> 10418832.69 | AK6: =T6-X6 -> 9718849.18 | AL6: =SUM(AJ6:AK6) -> 20137681.87 | AN6: ='I4 Input 02 Trueup Sett'!B70 -> 3711006.98 | AP6: =AK6-AN6 -> 6007842.2 | AQ6: 6006124.587 | AR6: 1717.613484 | AT6: 10309422.98 | AU6: ='I4 Input 02 Trueup Sett'!V15 -> 10418832.69 | AV6: =AU6-AT6 -> 109409.7064 | AW6: 0.01061259264 | AY6: ='I4 Input 02 Trueup Sett'!Z32 -> 158798.0903 | AZ6: ='I4 Input 02 Trueup Sett'!Z15 -> 160483.3497 | BA6: =AZ6-AY6 -> 1685.259444 | BB6: =AZ6/AY6-1 -> 0.01061259264 | BE6: ='I4 Input 02 Trueup Sett'!L32 -> 0.06631999969 | BF6: ='I4 Input 02 Trueup Sett'!L33 -> 0.06633691581 | BG6: =BE6-BF6 -> -1.691611292e-05
A7: =A6+1 -> 202403 | B7: ='I6 Input 03 Trueup Sett'!V15 -> 10071178.53 | C7: ='I6 Input 03 Trueup Sett'!W15 -> 1096885.566 | D7: ='I6 Input 03 Trueup Sett'!X15 -> 292294.7378 | E7: ='I6 Input 03 Trueup Sett'!Y15 -> 822915.9504 | F7: ='I6 Input 03 Trueup Sett'!Z15 -> -18325.12196 | G7: ='I7 Input Rev 03 Init'!C16 -> -212061.65 | H7: =F7+G7 -> -230386.772 | J7: ='I6 Input 03 Trueup Sett'!C10 -> 19932293.12 | K7: ='I6 Input 03 Trueup Sett'!D10 -> 573567.97 | L7: 593810.27 | M7: 15542.01 | N7: ='I6 Input 03 Trueup Sett'!C11 -> 20526103.39 | O7: ='I6 Input 03 Trueup Sett'!D11 -> 589109.98 | Q7: ='I6 Input 03 Trueup Sett'!B78 -> 1332977.96 | S7: ='I6 Input 03 Trueup Sett'!C11 -> 20526103.39 | T7: ='I6 Input 03 Trueup Sett'!C35 -> 20348892.24 | U7: 177211.1537 | V7: -0.008633453235 | X7: =SUM('I6 Input 03 Trueup Sett'!C20:C30) -> 9961838.307 | Y7: ='I6 Input 03 Trueup Sett'!C47 -> 10017881.36 | Z7: -56043.05731 | AA7: 0.00562577464 | AC7: 0.4853253498 | AE7: ='I6 Input 03 Trueup Sett'!D11 -> 589109.98 | AF7: ='I6 Input 03 Trueup Sett'!D35 -> 1382291.765 | AG7: 1096885.566 | AH7: 285406.1989 | AJ7: 10071178.53 | AK7: 10387053.93 | AL7: 20458232.46 | AN7: ='I6 Input 03 Trueup Sett'!B70 -> 4203426.83 | AP7: 6183627.1 | AQ7: 6102316.878 | AR7: 81310.22107 | AT7: 9961838.307 | AU7: ='I6 Input 03 Trueup Sett'!V15 -> 10071178.53 | AV7: 109340.2274 | AW7: 0.01097590867 | AY7: ='I6 Input 03 Trueup Sett'!Z32 -> -18126.17076 | AZ7: ='I6 Input 03 Trueup Sett'!Z15 -> -18325.12196 | BA7: -198.9511948 | BB7: 0.01097590867 | BE7: ='I6 Input 03 Trueup Sett'!L32 -> 0.08170999527 | BF7: ='I6 Input 03 Trueup Sett'!L33 -> 0.08166417775 | BG7: 4.581751681e-05
A8: 202404 | B8: ='I8 Input 04 Trueup Sett'!V15 -> 9576668.921 | C8: ='I8 Input 04 Trueup Sett'!W15 -> 1057898.762 | D8: ='I8 Input 04 Trueup Sett'!X15 -> 278167.1608 | E8: ='I8 Input 04 Trueup Sett'!Y15 -> 711259.2051 | F8: ='I8 Input 04 Trueup Sett'!Z15 -> 68472.39609 | G8: ='I9 Input Rev 04 Init'!C16 -> 180821.53 | H8: 249293.9261 | J8: ='I8 Input 04 Trueup Sett'!C10 -> 18684142.71 | K8: ='I8 Input 04 Trueup Sett'!D10 -> 549955.76 | L8: 617512.79 | M8: 14425.49 | N8: ='I8 Input 04 Trueup Sett'!C11 -> 19301655.5 | O8: ='I8 Input 04 Trueup Sett'!D11 -> 564381.25 | Q8: ='I8 Input 04 Trueup Sett'!B78 -> 1105649.29 | S8: ='I8 Input 04 Trueup Sett'!C11 -> 19301655.5 | T8: ='I8 Input 04 Trueup Sett'!C35 -> 18406311.26 | U8: 895344.2382 | V8: -0.04638691423 | X8: =SUM('I8 Input 04 Trueup Sett'!C20:C30) -> 9000879.386 | Y8: ='I8 Input 04 Trueup Sett'!C47 -> 8777853.194 | Z8: 223026.1915 | AA8: -0.02477826687 | AC8: 0.4663268073 | AE8: ='I8 Input 04 Trueup Sett'!D11 -> 564381.25 | AF8: ='I8 Input 04 Trueup Sett'!D35 -> 1271979.176 | AG8: 1057898.762 | AH8: 214080.4138 | AJ8: 9576668.921 | AK8: 9405431.876 | AL8: 18982100.8 | AN8: ='I8 Input 04 Trueup Sett'!B70 -> 4410076.52 | AP8: 4995355.356 | AQ8: 5902438.75 | AR8: -907083.3938 | AT8: 9000879.386 | AU8: ='I8 Input 04 Trueup Sett'!V15 -> 9576668.921 | AV8: 575789.5352 | AW8: 0.06397036451 | AY8: ='I8 Input 04 Trueup Sett'!Z32 -> 64355.54821 | AZ8: ='I8 Input 04 Trueup Sett'!Z15 -> 68472.39609 | BA8: 4116.847877 | BB8: 0.06397036451 | BE8: ='I8 Input 04 Trueup Sett'!L32 -> 0.07427000046 | BF8: ='I8 Input 04 Trueup Sett'!L33 -> 0.07424661223 | BG8: 2.338822914e-05
A9: 202405 | B9: ='I10 Input 05 Trueup Sett'!V15 -> 8307355.136 | C9: ='I10 Input 05 Trueup Sett'!W15 -> 931512.1341 | D9: ='I10 Input 05 Trueup Sett'!X15 -> 238103.2007 | E9: ='I10 Input 05 Trueup Sett'!Y15 -> 644899.9801 | F9: ='I10 Input 05 Trueup Sett'!Z15 -> 48508.95327 | G9: ='I11 Input Rev 05 Init'!C16 -> -134006.44 | H9: -85497.48673 | J9: ='I10 Input 05 Trueup Sett'!C10 -> 18084156.15 | K9: ='I10 Input 05 Trueup Sett'!D10 -> 512964.14 | L9: 829732.23 | M9: 25929.14 | N9: ='I10 Input 05 Trueup Sett'!C11 -> 18913888.38 | O9: ='I10 Input 05 Trueup Sett'!D11 -> 538893.28 | Q9: ='I10 Input 05 Trueup Sett'!B78 -> 1121530.65 | S9: ='I10 Input 05 Trueup Sett'!C11 -> 18913888.38 | T9: ='I10 Input 05 Trueup Sett'!C35 -> 18721778.17 | U9: 192110.205 | V9: -0.01015709732 | X9: =SUM('I10 Input 05 Trueup Sett'!C20:C30) -> 8196882.077 | Y9: ='I10 Input 05 Trueup Sett'!C47 -> 8201225.722 | Z9: -4343.645602 | AA9: 0.00052991437 | AC9: 0.4333790023 | AE9: ='I10 Input 05 Trueup Sett'!D11 -> 538893.28 | AF9: ='I10 Input 05 Trueup Sett'!D35 -> 1217117.467 | AG9: 931512.1341 | AH9: 285605.3325 | AJ9: 8307355.136 | AK9: 10524896.1 | AL9: 18832251.23 | AN9: ='I10 Input 05 Trueup Sett'!B70 -> 4467581.64 | AP9: 6057314.458 | AQ9: 6050116.533 | AR9: 7197.925521 | AT9: 8196882.077 | AU9: ='I10 Input 05 Trueup Sett'!V15 -> 8307355.136 | AV9: 110473.0591 | AW9: 0.01347744887 | AY9: ='I10 Input 05 Trueup Sett'!Z32 -> 47863.8704 | AZ9: ='I10 Input 05 Trueup Sett'!Z15 -> 48508.95327 | BA9: 645.0828661 | BB9: 0.01347744887 | BE9: ='I10 Input 05 Trueup Sett'!L32 -> 0.07763000011 | BF9: ='I10 Input 05 Trueup Sett'!L33 -> 0.07763442035 | BG9: -4.420238453e-06
A10: 202406 | B10: ='I12 Input 06 Trueup Sett'!V15 -> 9285454.168 | C10: ='I12 Input 06 Trueup Sett'!W15 -> 1041312.604 | D10: ='I12 Input 06 Trueup Sett'!X15 -> 298350.5819 | E10: ='I12 Input 06 Trueup Sett'!Y15 -> 727979.621 | F10: ='I12 Input 06 Trueup Sett'!Z15 -> 14982.40119 | G10: ='I13 Input Rev 06 Init'!C16 -> -8915.54 | H10: 6066.861187 | J10: ='I12 Input 06 Trueup Sett'!C10 -> 19164697.81 | K10: ='I12 Input 06 Trueup Sett'!D10 -> 608566.83 | L10: 801624.47 | M10: 27896.17 | N10: ='I12 Input 06 Trueup Sett'!C11 -> 19966322.28 | O10: ='I12 Input 06 Trueup Sett'!D11 -> 636463 | Q10: ='I12 Input 06 Trueup Sett'!B78 -> 1234849.01 | S10: ='I12 Input 06 Trueup Sett'!C11 -> 19966322.28 | T10: ='I12 Input 06 Trueup Sett'!C35 -> 19795123.07 | U10: 171199.2108 | V10: -0.008574398848 | X10: =SUM('I12 Input 06 Trueup Sett'!C20:C30) -> 9184504.255 | Y10: ='I12 Input 06 Trueup Sett'!C47 -> 9202922.787 | Z10: -18418.53222 | AA10: 0.002005392094 | AC10: 0.4599998 | AE10: ='I12 Input 06 Trueup Sett'!D11 -> 636463 | AF10: ='I12 Input 06 Trueup Sett'!D35 -> 1364420.938 | AG10: 1041312.604 | AH10: 323108.3344 | AJ10: 9285454.168 | AK10: 10610618.81 | AL10: 19896072.98 | AN10: ='I12 Input 06 Trueup Sett'!B70 -> 4219281.34 | AP10: 6391337.475 | AQ10: 6356731.801 | AR10: 34605.67411 | AT10: 9184504.255 | AU10: ='I12 Input 06 Trueup Sett'!V15 -> 9285454.168 | AV10: 100949.9138 | AW10: 0.01099132963 | AY10: ='I12 Input 06 Trueup Sett'!Z32 -> 14819.51501 | AZ10: ='I12 Input 06 Trueup Sett'!Z15 -> 14982.40119 | BA10: 162.8861745 | BB10: 0.01099132963 | BE10: ='I12 Input 06 Trueup Sett'!L32 -> 0.07840000153 | BF10: ='I12 Input 06 Trueup Sett'!L33 -> 0.07841784464 | BG10: -1.784311586e-05
A11: 202407 | B11: ='I14 Input 07 Trueup Sett'!V15 -> 11492237.13 | C11: ='I14 Input 07 Trueup Sett'!W15 -> 1307912.331 | D11: ='I14 Input 07 Trueup Sett'!X15 -> 445699.5771 | E11: ='I14 Input 07 Trueup Sett'!Y15 -> 732170.4058 | F11: ='I14 Input 07 Trueup Sett'!Z15 -> 130042.3481 | G11: ='I15 Input Rev 07 Init'!C16 -> -80422.46 | H11: 49619.8881 | J11: ='I14 Input 07 Trueup Sett'!C10 -> 22113864.78 | K11: ='I14 Input 07 Trueup Sett'!D10 -> 841945.01 | L11: 902808.96 | M11: 34765.32 | N11: ='I14 Input 07 Trueup Sett'!C11 -> 23016673.74 | O11: ='I14 Input 07 Trueup Sett'!D11 -> 876710.33 | Q11: ='I14 Input 07 Trueup Sett'!B78 -> 1191614.66 | S11: ='I14 Input 07 Trueup Sett'!C11 -> 23016673.74 | T11: ='I14 Input 07 Trueup Sett'!C35 -> 22893617.49 | U11: 123056.2536 | V11: -0.005346396051 | X11: =SUM('I14 Input 07 Trueup Sett'!C20:C30) -> 11416636.65 | Y11: ='I14 Input 07 Trueup Sett'!C47 -> 11416784.77 | Z11: -148.117291 | AA11: 1.297381142e-05 | AC11: 0.4960159222 | AE11: ='I14 Input 07 Trueup Sett'!D11 -> 876710.33 | AF11: ='I14 Input 07 Trueup Sett'!D35 -> 1724724.681 | AG11: 1307912.331 | AH11: 416812.35 | AJ11: 11492237.13 | AK11: 11476980.83 | AL11: 22969217.96 | AN11: ='I14 Input 07 Trueup Sett'!B70 -> 4310552.25 | AP11: 7166428.584 | AQ11: 7107431.149 | AR11: 58997.43509 | AT11: 11416636.65 | AU11: ='I14 Input 07 Trueup Sett'!V15 -> 11492237.13 | AV11: 75600.47371 | AW11: 0.006621956713 | AY11: ='I14 Input 07 Trueup Sett'!Z32 -> 129186.8782 | AZ11: ='I14 Input 07 Trueup Sett'!Z15 -> 130042.3481 | BA11: 855.4699151 | BB11: 0.006621956713 | BE11: ='I14 Input 07 Trueup Sett'!L32 -> 0.06370999813 | BF11: ='I14 Input 07 Trueup Sett'!L33 -> 0.06370185614 | BG11: 8.141995788e-06
A12: 202408 | B12: ='I16 Input 08 Trueup Sett'!V15 -> 10561021.65 | C12: ='I16 Input 08 Trueup Sett'!W15 -> 1179140.464 | D12: ='I16 Input 08 Trueup Sett'!X15 -> 423557.0327 | E12: ='I16 Input 08 Trueup Sett'!Y15 -> 667773.3939 | F12: ='I16 Input 08 Trueup Sett'!Z15 -> 87810.03783 | G12: ='I17 Input Rev 08 Init'!C16 -> -158022.12 | H12: -70212.08217 | J12: ='I16 Input 08 Trueup Sett'!C10 -> 20922163.18 | K12: ='I16 Input 08 Trueup Sett'!D10 -> 807260.37 | L12: 740534.22 | M12: 31377.6 | N12: ='I16 Input 08 Trueup Sett'!C11 -> 21662697.4 | O12: ='I16 Input 08 Trueup Sett'!D11 -> 838637.97 | Q12: ='I16 Input 08 Trueup Sett'!B78 -> 1108616.17 | S12: ='I16 Input 08 Trueup Sett'!C11 -> 21662697.4 | T12: ='I16 Input 08 Trueup Sett'!C35 -> 21736057.06 | U12: -73359.66286 | V12: 0.003386450981 | X12: =SUM('I16 Input 08 Trueup Sett'!C20:C30) -> 10605394.47 | Y12: ='I16 Input 08 Trueup Sett'!C47 -> 10704338.53 | Z12: -98944.05803 | AA12: 0.009329597149 | AC12: 0.4895694325 | AE12: ='I16 Input 08 Trueup Sett'!D11 -> 838637.97 | AF12: ='I16 Input 08 Trueup Sett'!D35 -> 1594366.373 | AG12: 1179140.464 | AH12: 415225.9084 | AJ12: 10561021.65 | AK12: 11130662.59 | AL12: 21691684.24 | AN12: ='I16 Input 08 Trueup Sett'!B70 -> 4202619.37 | AP12: 6928043.221 | AQ12: 6610333.251 | AR12: 317709.9698 | AT12: 10605394.47 | AU12: ='I16 Input 08 Trueup Sett'!V15 -> 10561021.65 | AV12: -44372.82503 | AW12: -0.004183986287 | AY12: ='I16 Input 08 Trueup Sett'!Z32 -> 88178.97746 | AZ12: ='I16 Input 08 Trueup Sett'!Z15 -> 87810.03783 | BA12: -368.9396325 | BB12: -0.004183986287 | BE12: ='I16 Input 08 Trueup Sett'!L32 -> 0.06322999954 | BF12: ='I16 Input 08 Trueup Sett'!L33 -> 0.06349434224 | BG12: -0.0002643426993
A13: 202409 | B13: ='I18 Input 09 Trueup Sett'!V15 -> 8688508.738 | C13: ='I18 Input 09 Trueup Sett'!W15 -> 967290.5235 | D13: ='I18 Input 09 Trueup Sett'!X15 -> 281369.7851 | E13: ='I18 Input 09 Trueup Sett'!Y15 -> 688824.9704 | F13: ='I18 Input 09 Trueup Sett'!Z15 -> -2904.232052 | G13: ='I19 Input Rev 09 Init'!C16 -> 221698.93 | H13: 218794.6979 | J13: ='I18 Input 09 Trueup Sett'!C10 -> 18835595.33 | K13: ='I18 Input 09 Trueup Sett'!D10 -> 604221.58 | L13: 656353.97 | M13: 21601.82 | N13: ='I18 Input 09 Trueup Sett'!C11 -> 19491949.3 | O13: ='I18 Input 09 Trueup Sett'!D11 -> 625823.4 | Q13: ='I18 Input 09 Trueup Sett'!B78 -> 1199869.99 | S13: ='I18 Input 09 Trueup Sett'!C11 -> 19491949.3 | T13: ='I18 Input 09 Trueup Sett'!C35 -> 19710358.39 | U13: -218409.0886 | V13: 0.01120509218 | X13: =SUM('I18 Input 09 Trueup Sett'!C20:C30) -> 8813973.496 | Y13: ='I18 Input 09 Trueup Sett'!C47 -> 8933629.91 | Z13: -119656.4138 | AA13: 0.01357576284 | AC13: 0.4521853284 | AE13: ='I18 Input 09 Trueup Sett'!D11 -> 625823.4 | AF13: ='I18 Input 09 Trueup Sett'!D35 -> 1326652.555 | AG13: 967290.5235 | AH13: 359362.0311 | AJ13: 8688508.738 | AK13: 10896384.89 | AL13: 19584893.63 | AN13: ='I18 Input 09 Trueup Sett'!B70 -> 4366990.74 | AP13: 6529394.152 | AQ13: 6054907.361 | AR13: 474486.791 | AT13: 8813973.496 | AU13: ='I18 Input 09 Trueup Sett'!V15 -> 8688508.738 | AV13: -125464.7586 | AW13: -0.0142347556 | AY13: ='I18 Input 09 Trueup Sett'!Z32 -> -2946.170063 | AZ13: ='I18 Input 09 Trueup Sett'!Z15 -> -2904.232052 | BA13: 41.93801081 | BB13: -0.0142347556 | BE13: ='I18 Input 09 Trueup Sett'!L32 -> 0.07927999973 | BF13: ='I18 Input 09 Trueup Sett'!L33 -> 0.07933046463 | BG13: -5.046489212e-05
A14: 202410 | B14: ='I20 Input 10 Trueup Sett'!V15 -> 8670702.371 | C14: ='I20 Input 10 Trueup Sett'!W15 -> 970343.8961 | D14: ='I20 Input 10 Trueup Sett'!X15 -> 295570.9758 | E14: ='I20 Input 10 Trueup Sett'!Y15 -> 648915.3833 | F14: ='I20 Input 10 Trueup Sett'!Z15 -> 25857.53696 | G14: ='I21 Input Rev 10 Init'!C16 -> -202950.56 | H14: -177093.023 | J14: ='I20 Input 10 Trueup Sett'!C10 -> 18686502.37 | K14: ='I20 Input 10 Trueup Sett'!D10 -> 636684.34 | L14: 545185.44 | M14: 18413.66 | N14: ='I20 Input 10 Trueup Sett'!C11 -> 19231687.81 | O14: ='I20 Input 10 Trueup Sett'!D11 -> 655098 | Q14: ='I20 Input 10 Trueup Sett'!B78 -> 1102798.09 | S14: ='I20 Input 10 Trueup Sett'!C11 -> 19231687.81 | T14: ='I20 Input 10 Trueup Sett'!C35 -> 19067979.11 | U14: 163708.7048 | V14: -0.008512446041 | X14: =SUM('I20 Input 10 Trueup Sett'!C20:C30) -> 8574833.921 | Y14: ='I20 Input 10 Trueup Sett'!C47 -> 8591249.2 | Z14: -16415.27895 | AA14: 0.001914355321 | AC14: 0.4458700664 | AE14: ='I20 Input 10 Trueup Sett'!D11 -> 655098 | AF14: ='I20 Input 10 Trueup Sett'!D35 -> 1316823.569 | AG14: 970343.8961 | AH14: 346479.6733 | AJ14: 8670702.371 | AK14: 10493145.18 | AL14: 19163847.55 | AN14: ='I20 Input 10 Trueup Sett'!B70 -> 4425258.13 | AP14: 6067887.054 | AQ14: 6059959.448 | AR14: 7927.605938 | AT14: 8574833.921 | AU14: ='I20 Input 10 Trueup Sett'!V15 -> 8670702.371 | AV14: 95868.4494 | AW14: 0.01118021063 | AY14: ='I20 Input 10 Trueup Sett'!Z32 -> 25571.64063 | AZ14: ='I20 Input 10 Trueup Sett'!Z15 -> 25857.53696 | BA14: 285.8963285 | BB14: 0.01118021063 | BE14: ='I20 Input 10 Trueup Sett'!L32 -> 0.07484000206 | BF14: ='I20 Input 10 Trueup Sett'!L33 -> 0.07448102708 | BG14: 0.0003589749768
A15: 202411 | B15: ='I22 Input 11 Trueup Sett'!V15 -> 9400489.851 | C15: ='I22 Input 11 Trueup Sett'!W15 -> 939933.4308 | D15: ='I22 Input 11 Trueup Sett'!X15 -> 289690.4863 | E15: ='I22 Input 11 Trueup Sett'!Y15 -> 837019.6428 | F15: ='I22 Input 11 Trueup Sett'!Z15 -> -186776.6984 | G15: ='I23 Input Rev 11 Init'!C16 -> 154302.79 | H15: -32473.90837 | J15: ='I22 Input 11 Trueup Sett'!C10 -> 19327515.93 | K15: ='I22 Input 11 Trueup Sett'!D10 -> 591718.79 | L15: 270815.85 | M15: 8683.49 | N15: ='I22 Input 11 Trueup Sett'!C11 -> 19598331.78 | O15: ='I22 Input 11 Trueup Sett'!D11 -> 600402.28 | Q15: ='I22 Input 11 Trueup Sett'!B78 -> 1378061.68 | S15: ='I22 Input 11 Trueup Sett'!C11 -> 19598331.78 | T15: ='I22 Input 11 Trueup Sett'!C35 -> 19361374.5 | U15: 236957.2757 | V15: -0.012090686 | X15: =SUM('I22 Input 11 Trueup Sett'!C20:C30) -> 9256591.712 | Y15: ='I22 Input 11 Trueup Sett'!C47 -> 9272809.441 | Z15: -16217.72865 | AA15: 0.001752019442 | AC15: 0.4723152877 | AE15: ='I22 Input 11 Trueup Sett'!D11 -> 600402.28 | AF15: ='I22 Input 11 Trueup Sett'!D35 -> 1233006.988 | AG15: 939933.4308 | AH15: 293073.5577 | AJ15: 9400489.851 | AK15: 10104782.79 | AL15: 19505272.64 | AN15: ='I22 Input 11 Trueup Sett'!B70 -> 4118531.33 | AP15: 5986251.462 | AQ15: 5990798.811 | AR15: -4547.348802 | AT15: 9256591.712 | AU15: ='I22 Input 11 Trueup Sett'!V15 -> 9400489.851 | AV15: 143898.1382 | AW15: 0.01554547751 | AY15: ='I22 Input 11 Trueup Sett'!Z32 -> -183917.6113 | AZ15: ='I22 Input 11 Trueup Sett'!Z15 -> -186776.6984 | BA15: -2859.087089 | BB15: 0.01554547751 | BE15: ='I22 Input 11 Trueup Sett'!L32 -> 0.08904000282 | BF15: ='I22 Input 11 Trueup Sett'!L33 -> 0.08902321993 | BG15: 1.678288854e-05
A16: 202412 | B16: ='I24 Input 12 Trueup Sett'!V15 -> 12119196.87 | C16: ='I24 Input 12 Trueup Sett'!W15 -> 1190237.785 | D16: ='I24 Input 12 Trueup Sett'!X15 -> 482327.7425 | E16: ='I24 Input 12 Trueup Sett'!Y15 -> 748602.7961 | F16: ='I24 Input 12 Trueup Sett'!Z15 -> -40692.75386 | G16: ='I25 Input Rev 12 Init'!C16 -> -79011.33 | H16: -119704.0839 | J16: ='I24 Input 12 Trueup Sett'!C10 -> 21295318.38 | K16: ='I24 Input 12 Trueup Sett'!D10 -> 844612.18 | L16: 143085.49 | M16: 5947.21 | N16: ='I24 Input 12 Trueup Sett'!C11 -> 21438403.87 | O16: ='I24 Input 12 Trueup Sett'!D11 -> 850559.39 | Q16: ='I24 Input 12 Trueup Sett'!B78 -> 1141701.37 | S16: ='I24 Input 12 Trueup Sett'!C11 -> 21438403.87 | T16: ='I24 Input 12 Trueup Sett'!C35 -> 21046380.45 | U16: 392023.422 | V16: -0.01828603586 | X16: =SUM('I24 Input 12 Trueup Sett'!C20:C30) -> 11862258.26 | Y16: ='I24 Input 12 Trueup Sett'!C47 -> 11861992.46 | Z16: 265.8024127 | AA16: -2.240740396e-05 | AC16: 0.5533181637 | AE16: ='I24 Input 12 Trueup Sett'!D11 -> 850559.39 | AF16: ='I24 Input 12 Trueup Sett'!D35 -> 1527205.688 | AG16: 1190237.785 | AH16: 336967.9035 | AJ16: 12119196.87 | AK16: 9184122.186 | AL16: 21303319.05 | AN16: ='I24 Input 12 Trueup Sett'!B70 -> 2947570.22 | AP16: 6236551.966 | AQ16: 6243140.219 | AR16: -6588.252864 | AT16: 11862258.26 | AU16: ='I24 Input 12 Trueup Sett'!V15 -> 12119196.87 | AV16: 256938.6063 | AW16: 0.02166017639 | AY16: ='I24 Input 12 Trueup Sett'!Z32 -> -39830.02842 | AZ16: ='I24 Input 12 Trueup Sett'!Z15 -> -40692.75386 | BA16: -862.725441 | BB16: 0.02166017639 | BE16: ='I24 Input 12 Trueup Sett'!L32 -> 0.06177000046 | BF16: ='I24 Input 12 Trueup Sett'!L33 -> 0.06174418047 | BG16: 2.581998378e-05
B17: =SUM(B5:B16) -> 120601589.3 | C17: 13170827.34 | D17: 4145443.948 | E17: 8472766.7 | F17: =SUM(F5:F16) -> 552616.6889 | G17: =SUM(G5:G16) -> -679088.14 | H17: =SUM(H5:H16) -> -126471.4511 | J17: 239514904.9 | K17: 8132087.17 | L17: 6658916.73 | M17: 221738.77 | N17: 246173821.6 | O17: 8353825.94 | Q17: 13869569.31 | S17: =SUM(S5:S16) -> 246173821.6 | T17: 243652991.8 | U17: 2520829.818 | V17: =T17/S17-1 -> -0.01024004016 | X17: =SUM(X5:X16) -> 119008233.8 | Y17: 119104827.4 | Z17: -96593.58231 | AA17: =Y17/X17-1 -> 0.000811654616 | AC17: 0.4834317192 | AE17: =SUM(AE5:AE16) -> 8353825.94 | AF17: 17165458.18 | AG17: 13170827.34 | AH17: 3994630.842 | AJ17: =SUM(AJ5:AJ16) -> 120601589.3 | AK17: 124644758 | AL17: 245246347.3 | AN17: 49515131.96 | AP17: =SUM(AP5:AP16) -> 75129626.02 | AQ17: =SUM(AQ5:AQ16) -> 75059599.5 | AR17: 70026.51828 | AT17: =SUM(AT5:AT16) -> 119008233.8 | AU17: =SUM(AU5:AU16) -> 120601589.3 | AV17: 1593355.499 | AW17: 0.01338861563 | AY17: =SUM(AY5:AY16) -> 545030.1927 | AZ17: =SUM(AZ5:AZ16) -> 552616.6889 | BA17: 7586.496155 | BB17: =AZ17/AY17-1 -> 0.0139194053
G18: Should be Zero | H18: ='I1 Reconciliation'!AA15-H17 -> -4.511093721e-10 | N18: TRUE | O18: TRUE | Q18: TRUE
A20: 4705 GA | B20: ='Rec1 1588 Commodity'!F23 -> 0
A22: 4707 GA | B22: ='Rec2 1589 Class B'!J23 -> 0
A24: Should Be $0 | B24: =SUM(B20:B23) -> 0
A26: (Owed To)/Owed From IESO | B26: =-H17 -> 126471.4511
A28: (Owed To)/Owed From Power Consumer | B28: ='Rec1 1588 Commodity'!L20 -> 213751.15
A30: (Owed To)/Owed From Class B | B30: ='Rec2 1589 Class B'!K20 -> 400455.68
A32: (Owed To)/Owed From | B32: =SUM(B26:B31) -> 740678.2811
A35: Unresolved Difference as % of Expected GA Payments to IESO | B35: ='Rev3 GA Analysis '!D67 -> 0.004705106686
A37: Account 1588 as % of Account 4705 | B37: ='Rev3 GA Analysis '!G99 -> 0.0122992448

Sheet I2 Input 01 Trueup Sett (hidden)
A1: Date: | B1: =Admin!B8 -> 202401 | C1: Trueup | K1: ="Data for 1st True up of RPP Settlement based on Actual IESO Invoice" -> Data for 1st True up of RPP Settlement based on Actual IESO Invoice | P1: For Reconciliation
A3: Wholesale Electricty | B3: Year | C3: 2024 | E3: Rate | P3: Estimated RPP Revenue and GA
A4: Redshift Wholesale Report.xlsm | B4: dateref | C4: 202401 | K4: Wholesale Volume data per IESO Power Bill: | L4: GA RPP/non-RPP Ratios | M4: GA Volumes | N4: Energy Volumes | P4: =B1 -> 202401
K5: AQEW | M5: =C10 -> 22682396.57 | N5: =+M5 -> 22682396.57 | P5: RPP Revenue Prices | Q5: RPP Rate | R5: Estimated RPP Energy Price | S5: GA actual IESO billed | T5: Total Commodity | U5: Difference | V5: kWh Volumes | W5: $ Estimated RPP Revenue | X5: $ Estimated RPP Energy | Y5: $ Estimated GA | Z5: $ Estimated RPP Settlement
B6: Wholesale | K6: Embedded Generation | M6: =SUM(C8:C9) -> 142270.93 | N6: =+M6 -> 142270.93 | P6: RPPT1 | Q6: =E20 -> 0.1029999913 | R6: =E44 -> 0.04354358599 | S6: =$L$33 -> 0.04589964436 | T6: =R6+S6 -> 0.08944323035 | U6: =+Q6-T6 -> 0.01355676095 | V6: =M18 -> 987079.0419 | W6: =Q6*V6 -> 101669.1327 | X6: =R6*V6 -> 42980.96114 | Y6: =+V6*S6 -> 45306.57697 | Z6: =W6-X6-Y6 -> 13381.59461
B7: Source | C7: kWh | D7: Total Cost | K7: Class A customer Volumes for GA (TLF included) | M7: =-B70 -> -4132236.61 | P7: RPPT2 | Q7: =E21 -> 0.1250000149 | R7: =R6 -> 0.04354358599 | S7: =$L$33 -> 0.04589964436 | T7: =R7+S7 -> 0.08944323035 | U7: =+Q7-T7 -> 0.03555678459 | V7: =M19 -> 398231.4016 | W7: =Q7*V7 -> 49778.93114 | X7: =R7*V7 -> 17340.42328 | Y7: =+V7*S7 -> 18278.6797 | Z7: =W7-X7-Y7 -> 14159.82816
B8: FIT | C8: 134774.04 | D8: 5999.48 | E8: =D8/C8 -> 0.04451510098 | M8: =+M5+M6+M7 -> 18692430.89 | N8: =+N5+N6+N7 -> 22824667.5 | P8: RPPTOUMID | Q8: =E23 -> 0.1219995647 | R8: =E45 -> 0.04362765688 | S8: 0.04589964436 | T8: 0.08952730123 | U8: 0.03247226342 | V8: 2012731.212 | W8: 245552.3316 | X8: 87810.74669 | Y8: 92383.64681 | Z8: 65357.93811
B9: microFIT | C9: 7496.89 | D9: 332.81 | E9: =D9/C9 -> 0.044393075 | P9: RPPTOUOFF | Q9: =E24 -> 0.08699941354 | R9: =R8 -> 0.04362765688 | S9: 0.04589964436 | T9: 0.08952730123 | U9: -0.002527887688 | V9: 6555777.624 | W9: 570348.8086 | X9: 286013.2167 | Y9: 300907.8614 | Z9: -16572.26954
B10: WHOLESALE | C10: 22682396.57 | D10: 997395.03 | E10: =D10/C10 -> 0.04397220668 | K10: Estimated Retail Volume Revenue Data (TLF Included) | L10: RPP/non-RPP Ratios | M10: GA Volumes | N10: Energy Volumes | P10: RPPTOUON | Q10: 0.181998646 | R10: =R9 -> 0.04362765688 | S10: 0.04589964436 | T10: 0.08952730123 | U10: 0.09247134472 | V10: 2044174.85 | W10: 372037.0547 | X10: 89182.55894 | Y10: 93826.8986 | Z10: 189027.5972
B11: Grand Total | C11: 22824667.5 | D11: 1003727.32 | K11: Estimated Retail Revenue Data (Net of Retail Billed/Unbilled) | M11: =+M15 -> 18692430.89 | N11: =+N15 -> 22824667.5 | P11: RPPULOMID | Q11: =E27 -> 0.1220177003 | R11: =E46 -> 0.04365520102 | S11: 0.04589964436 | T11: 0.08955484537 | U11: 0.03246285493 | V11: 1706.607736 | W11: 208.2363513 | X11: 74.50230378 | Y11: 78.33268815 | Z11: 55.40135936
P12: RPPULOOFF | Q12: =E28 -> 0.08699265379 | R12: =R11 -> 0.04365520102 | S12: 0.04589964436 | T12: 0.08955484537 | U12: -0.002562191586 | V12: 1600.991523 | W12: 139.2745013 | X12: 69.89160677 | Y12: 73.48494154 | Z12: -4.10204701
K13: Estimated RPP Sales Quantities | L13: =SUM(C20:C30)/(C35-B70) -> 0.6425030178 | M13: =M8*L13 -> 12009943.26 | N13: =M13 -> 12009943.26 | P13: RPPULOON | Q13: 0.2860065048 | R13: =R12 -> 0.04365520102 | S13: 0.04589964436 | T13: 0.08955484537 | U13: 0.1964516594 | V13: 1102.26226 | W13: 315.2541764 | X13: 48.11948055 | Y13: 50.59344574 | Z13: 216.5412501
A14: RPP Revenue Volume and Price Data | K14: Estimated non-RPP Sales Quantities | L14: =1-L13 -> 0.3574969822 | M14: =M8*L14 -> 6682487.632 | N14: =N8-N13 -> 10814724.24 | P14: RPPULOOVN | Q14: 0.02800282315 | R14: 0.04365520102 | S14: 0.04589964436 | T14: 0.08955484537 | U14: -0.06155202222 | V14: 7539.267131 | W14: 211.1207641 | X14: 329.1282221 | Y14: 346.04968 | Z14: -464.057138
A15: ER Summary.xlsm | B15: bill_year | C15: 2024 | K15: Estimated Retail Revenue kWh Volumes | L15: =+L13+L14 -> 1 | M15: =+M13+M14 -> 18692430.89 | N15: =+N13+N14 -> 22824667.5 | V15: =SUM(V6:V14) -> 12009943.26 | W15: =SUM(W6:W14) -> 1340260.145 | X15: =SUM(X6:X14) -> 523849.5484 | Y15: =SUM(Y6:Y14) -> 551252.1243 | Z15: =SUM(Z6:Z14) -> 265158.472
B16: bill_month | C16: 1 | Z16: =W15-X15-Y15-Z15 -> 0
K17: Estimated RPP Revenue Volume and Price Data | L17: Actual % | M17: kWh Volumes
B18: Row Labels | C18: usagebilled | D18: amountbilled | E18: Rate | K18: RPPT1 | L18: =C20/SUM($C$20:$C$30) -> 0.08218848505 | M18: =$M$13*L18 -> 987079.0419
B19: RPPTIER | K19: RPPT2 | L19: =C21/SUM($C$20:$C$30) -> 0.03315847486 | M19: =$M$13*L19 -> 398231.4016
B20: RPPT1 | C20: 971880.3385 | D20: 100103.6664 | E20: =D20/C20 -> 0.1029999913 | K20: RPPTOUMID | L20: =C23/SUM($C$20:$C$30) -> 0.1675887362 | M20: 2012731.212 | P20: Actual RPP Revenue and GA
B21: RPPT2 | C21: 392099.5715 | D21: 49012.45229 | E21: =D21/C21 -> 0.1250000149 | K21: RPPTOUOFF | L21: =C24/SUM($C$20:$C$30) -> 0.5458624977 | M21: 6555777.624 | P21: =P4 -> 202401
B22: RPPTOU | K22: RPPTOUON | L22: 0.1702068699 | M22: 2044174.85 | P22: RPP Revenue Prices | Q22: RPP Rate | R22: Estimated RPP Energy Price | S22: GA actual IESO billed | T22: Total Commodity | U22: Difference | V22: kWh Volumes | W22: $ Estimated RPP Revenue | X22: $ Estimated RPP Energy | Y22: $ Estimated GA | Z22: $ Estimated RPP Settlement
B23: RPPTOUMID | C23: 1981739.869 | D23: 241771.4013 | E23: 0.1219995647 | K23: RPPULOMID | L23: =C27/SUM($C$20:$C$30) -> 0.000142099567 | M23: 1706.607736 | P23: =P6 -> RPPT1 | Q23: =Q6 -> 0.1029999913 | R23: =R6 -> 0.04354358599 | S23: 0.04589964436 | T23: =R23+S23 -> 0.08944323035 | U23: =+Q23-T23 -> 0.01355676095 | V23: =C20 -> 971880.3385 | W23: =Q23*V23 -> 100103.6664 | X23: =R23*V23 -> 42319.15509 | Y23: =+V23*S23 -> 44608.96189 | Z23: =W23-X23-Y23 -> 13175.54942
B24: RPPTOUOFF | C24: 6454834.016 | D24: 561566.7739 | E24: 0.08699941354 | K24: RPPULOOFF | L24: =C28/SUM($C$20:$C$30) -> 0.0001333055027 | M24: 1600.991523 | P24: =P7 -> RPPT2 | Q24: 0.1250000149 | R24: =R7 -> 0.04354358599 | S24: 0.04589964436 | T24: =R24+S24 -> 0.08944323035 | U24: =+Q24-T24 -> 0.03555678459 | V24: =C21 -> 392099.5715 | W24: =Q24*V24 -> 49012.45229 | X24: =R24*V24 -> 17073.42141 | Y24: =+V24*S24 -> 17997.23088 | Z24: =W24-X24-Y24 -> 13941.8
B25: RPPTOUON | C25: 2012699.349 | D25: 366308.5562 | E25: 0.181998646 | K25: RPPULOON | L25: 9.177913973e-05 | M25: 1102.26226 | P25: RPPTOUMID | Q25: 0.1219995647 | R25: =R8 -> 0.04362765688 | S25: 0.04589964436 | T25: 0.08952730123 | U25: 0.03247226342 | V25: =C23 -> 1981739.869 | W25: 241771.4013 | X25: 86458.66703 | Y25: 90961.15521 | Z25: 64351.57907
B26: RPPULO | K26: RPPULOOVN | L26: 0.0006277521025 | M26: 7539.267131 | P26: RPPTOUOFF | Q26: 0.08699941354 | R26: =R9 -> 0.04362765688 | S26: 0.04589964436 | T26: 0.08952730123 | U26: -0.002527887688 | V26: =C24 -> 6454834.016 | W26: 561566.7739 | X26: 281609.2836 | Y26: 296274.5857 | Z26: -16317.09544
B27: RPPULOMID | C27: 1680.329978 | D27: 205.0299996 | E27: 0.1220177003 | L27: =SUM(L18:L26) -> 1 | M27: =SUM(M18:M26) -> 12009943.26 | P27: RPPTOUON | Q27: 0.181998646 | R27: =R10 -> 0.04362765688 | S27: 0.04589964436 | T27: 0.08952730123 | U27: 0.09247134472 | V27: 2012699.349 | W27: 366308.5562 | X27: 87809.35659 | Y27: 92382.18431 | Z27: 186117.0153
B28: RPPULOOFF | C28: 1576.340007 | D28: 137.1300005 | E28: 0.08699265379 | P28: RPPULOMID | Q28: 0.1220177003 | R28: =R11 -> 0.04365520102 | S28: 0.04589964436 | T28: 0.08955484537 | U28: 0.03246285493 | V28: =C27 -> 1680.329978 | W28: 205.0299996 | X28: 73.35514295 | Y28: 77.12654838 | Z28: 54.54830829
B29: RPPULOON | C29: 1085.290005 | D29: 310.4000011 | E29: 0.2860065048 | P29: RPPULOOFF | Q29: 0.08699265379 | R29: =R12 -> 0.04365520102 | S29: 0.04589964436 | T29: 0.08955484537 | U29: -0.002562191586 | V29: =C28 -> 1576.340007 | W29: 137.1300005 | X29: 68.81543987 | Y29: 72.3534457 | Z29: -4.038885102
B30: RPPULOOVN | C30: 7423.180091 | D30: 207.8699993 | E30: 0.02800282315 | P30: RPPULOON | Q30: 0.2860065048 | R30: =R13 -> 0.04365520102 | S30: 0.04589964436 | T30: 0.08955484537 | U30: 0.1964516594 | V30: 1085.290005 | W30: 310.4000011 | X30: 47.37855335 | Y30: 49.81442527 | Z30: 213.2070225
B31: RETAIL | K31: Global Adjustment | L31: per kWh | P31: RPPULOOVN | Q31: 0.02800282315 | R31: =R14 -> 0.04365520102 | S31: 0.04589964436 | T31: 0.08955484537 | U31: -0.06155202222 | V31: 7423.180091 | W31: 207.8699993 | X31: 324.060419 | Y31: 340.7213262 | Z31: -456.9117459
B32: NSLS | C32: 3395576.703 | D32: 148747.0064 | E32: 0.04380610994 | K32: Class B - GA actual8 | L32: =B62/100 -> 0.04587999821 | N32: GA Posted Price | V32: =SUM(V23:V31) -> 11825018.28 | W32: =SUM(W23:W31) -> 1319623.28 | X32: =SUM(X23:X31) -> 515783.4933 | Y32: =SUM(Y23:Y31) -> 542764.1338 | Z32: =SUM(Z23:Z31) -> 261075.6531
B33: INTERVAL | K33: Class B - GA actual IESO billed | L33: =+M33/M8 -> 0.04589964436 | M33: =B78 -> 857975.93 | N33: GA Billed by IESO CT 148 | Z33: =W32-X32-Y32-Z32 -> 0
B34: HOEP | C34: 7316252.895 | D34: 326839.2703 | E34: 0.04467304165
B35: Grand Total | C35: 22536847.88 | D35: 1795209.557 | M35: =$M$8*L32 -> 857608.6957 | V35: =V15-V32 -> 184924.973 | W35: 20636.86445 | X35: 8066.055063 | Y35: 8487.990495 | Z35: =Z15-Z32 -> 4082.818897
M36: =$M$8*L33 -> 857975.93
B37: UFE | C37: =C35-C11 -> -287819.6178 | D37: =C35/C11-1 -> -0.01261002456 | M37: =M35-M36 -> -367.2342806
A39: RPP COP Volume and Price Data
A40: ER COP Summary.xlsm | B40: bill_year | C40: 2024
B41: bill_month | C41: 1
B43: Row Labels | C43: usagebilled | D43: amountbilled | E43: Rate
B44: RPPTIERED | C44: 1363915.942 | D44: 59389.79112 | E44: =D44/C44 -> 0.04354358599
B45: RPPTOU | C45: 10472433.95 | D45: 456887.7548 | E45: 0.04362765688
B46: RPPULO | C46: 11765.15008 | D46: 513.6099919 | E46: 0.04365520102
B47: Grand Total | C47: 11848115.04 | D47: 516791.1559
B50: RPPTIERED | C50: =SUM(C20:C21)-C44 -> 63.96763781 | D50: =C50/SUM(C20:C21) -> 4.689778591e-05
B51: RPPTOU | C51: =SUM(C23:C25)-C45 -> -23160.71059 | D51: =C51/SUM(C23:C25) -> -0.002216490092
B52: RPPULO | C52: =SUM(C27:C30)-C46 -> -0.010003035 | D52: =C52/SUM(C27:C30) -> -8.502265958e-07
A58: Global Adjustment - Actual
A59: IESO GA Reconciliation.xlsm
A60: ga_actual | B60: year
A61: month | B61: 2024
A62: 202401 | B62: 4.587999821
A64: Class A kWh
A65: Redshift Class A Report.xlsm
A66: Year | B66: 2024
A68: Class A | B68: Value
A69: kWh
A70: 202401 | B70: 4132236.61
A72: IESO Class B
A73: IESO Invoice Reconciliation.xlsm
A74: chargetype | B74: 148
A76: Sum of chargeamount | B76: year
A77: month | B77: 2024
A78: 202401 | B78: 857975.93

Sheet I3 Input Rev 01 Init (hidden)
A1: Reverse IESO Posted
A2: Reverse Previously submitted CT142 By Date Ref.xlsx
A5: =Admin!B8 -> 202401
A6: RPP Revenue Prices | B6: kWh Volumes | C6: $ RPP Settlement
A7: RPPTiered_1 | B7: 960386.99 | C7: -5158.02
A8: RPPTiered_2 | B8: 273374.35 | C8: -7484.74
A9: RPPTOU_MID | B9: 1607169.2 | C9: -38510.45
A10: RPPTOU_OFF | B10: 6090790.1 | C10: 67232.44
A11: RPPTOU_ON | B11: 1640470.66 | C11: -137735.17
A12: Grand Total | B12: 10572191.3 | C12: -121655.94

Sheet I4 Input 02 Trueup Sett (hidden)
A1: Date: | B1: =Admin!B8+1 -> 202402 | C1: Trueup | K1: ="Data for 1st True up of RPP Settlement based on Actual IESO Invoice" -> Data for 1st True up of RPP Settlement based on Actual IESO Invoice | P1: For Reconciliation
A3: Wholesale Electricty | B3: Year | C3: 2024 | E3: Rate | P3: Actual RPP Revenue and GA
A4: Redshift Wholesale Report.xlsm | B4: dateref | C4: 202402 | K4: Wholesale Volume data per IESO Power Bill: | L4: GA RPP/non-RPP Ratios | M4: GA Volumes | N4: Energy Volumes | P4: =B1 -> 202402
K5: AQEW | M5: =C10 -> 19786258.54 | N5: =+M5 -> 19786258.54 | P5: RPP Revenue Prices | Q5: RPP Rate | R5: Estimated RPP Energy Price | S5: GA actual IESO billed | T5: Total Commodity | U5: Difference | V5: kWh Volumes | W5: $ Estimated RPP Revenue | X5: $ Estimated RPP Energy | Y5: $ Estimated GA | Z5: $ Estimated RPP Settlement
B6: Wholesale | K6: Embedded Generation | M6: =SUM(C8:C9) -> 415182.11 | N6: =+M6 -> 415182.11 | P6: RPPT1 | Q6: =E20 -> 0.103000262 | R6: =E44 -> 0.0283967703 | S6: =$L$33 -> 0.06633691581 | T6: =R6+S6 -> 0.0947336861 | U6: =+Q6-T6 -> 0.008266575916 | V6: =M18 -> 889626.7276 | W6: =Q6*V6 -> 91631.78604 | X6: =R6*V6 -> 25262.52583 | Y6: =+V6*S6 -> 59015.09333 | Z6: =W6-X6-Y6 -> 7354.16688
B7: Source | C7: kWh | D7: Total Cost | K7: Class A customer Volumes for GA (TLF included) | M7: =-B70 -> -3711006.98 | P7: RPPT2 | Q7: =E21 -> 0.1250013468 | R7: =R6 -> 0.0283967703 | S7: =$L$33 -> 0.06633691581 | T7: =R7+S7 -> 0.0947336861 | U7: =+Q7-T7 -> 0.03026766071 | V7: =M19 -> 301894.6403 | W7: =Q7*V7 -> 37737.23663 | X7: =R7*V7 -> 8572.832754 | Y7: =+V7*S7 -> 20026.75933 | Z7: =W7-X7-Y7 -> 9137.644541
B8: FIT | C8: 390941.27 | D8: 10190.98 | E8: =D8/C8 -> 0.02606780297 | M8: =+M5+M6+M7 -> 16490433.67 | N8: =+N5+N6+N7 -> 20201440.65 | P8: RPPTOUMID | Q8: =E23 -> 0.1219992993 | R8: =E45 -> 0.02846201298 | S8: 0.06633691581 | T8: 0.09479892879 | U8: 0.02720037056 | V8: 1627664.691 | W8: 198573.9519 | X8: 46326.61356 | Y8: 107974.2556 | Z8: 44273.08274
B9: microFIT | C9: 24240.84 | D9: 633.59 | E9: =D9/C9 -> 0.02613729557 | P9: RPPTOUOFF | Q9: =E24 -> 0.08641240943 | R9: =R8 -> 0.02846201298 | S9: 0.06633691581 | T9: 0.09479892879 | U9: -0.008386519354 | V9: 5877715.926 | W9: 507907.5951 | X9: 167291.627 | Y9: 389909.5465 | Z9: -49293.57837
B10: WHOLESALE | C10: 19786258.54 | D10: 563195.17 | E10: =D10/C10 -> 0.02846395486 | K10: Estimated Retail Volume Revenue Data (TLF Included) | L10: RPP/non-RPP Ratios | M10: GA Volumes | N10: Energy Volumes | P10: RPPTOUON | Q10: 0.181999884 | R10: =R9 -> 0.02846201298 | S10: 0.06633691581 | T10: 0.09479892879 | U10: 0.08720095522 | V10: 1711532.217 | W10: 311498.665 | X10: 48713.65218 | Y10: 113537.7686 | Z10: 149247.2442
B11: Grand Total | C11: 20201440.65 | D11: 574019.74 | K11: Estimated Retail Revenue Data (Net of Retail Billed/Unbilled) | M11: =+M15 -> 16490433.67 | N11: =+N15 -> 20201440.65 | P11: RPPULOMID | Q11: =E27 -> 0.1220138735 | R11: =E46 -> 0.028452942 | S11: 0.06633691581 | T11: 0.09478985781 | U11: 0.02722401567 | V11: 1495.039617 | W11: 182.4155746 | X11: 42.5382755 | Y11: 99.17631717 | Z11: 40.70098196
P12: RPPULOOFF | Q12: =E28 -> 0.08701283312 | R12: =R11 -> 0.028452942 | S12: 0.06633691581 | T12: 0.09478985781 | U12: -0.007777024688 | V12: 1279.688184 | W12: 111.3492944 | X12: 36.41089367 | Y12: 84.89056731 | Z12: -9.952166599
K13: Estimated RPP Sales Quantities | L13: =SUM(C20:C30)/(C35-B70) -> 0.631810715 | M13: =M8*L13 -> 10418832.69 | N13: =M13 -> 10418832.69 | P13: RPPULOON | Q13: 0.2860037088 | R13: =R12 -> 0.028452942 | S13: 0.06633691581 | T13: 0.09478985781 | U13: 0.191213851 | V13: 942.7903905 | W13: 269.6415483 | X13: 26.8251603 | Y13: 62.54180676 | Z13: 180.2745812
A14: RPP Revenue Volume and Price Data | K14: Estimated non-RPP Sales Quantities | L14: =1-L13 -> 0.368189285 | M14: =M8*L14 -> 6071600.982 | N14: =N8-N13 -> 9782607.962 | P14: RPPULOOVN | Q14: 0.0279980824 | R14: 0.028452942 | S14: 0.06633691581 | T14: 0.09478985781 | U14: -0.06679177541 | V14: 6680.967722 | W14: 187.0542848 | X14: 190.0931871 | Y14: 443.1947933 | Z14: -446.2336956
B15: bill_year | C15: 2024 | K15: Estimated Retail Revenue kWh Volumes | L15: =+L13+L14 -> 1 | M15: =+M13+M14 -> 16490433.67 | N15: =+N13+N14 -> 20201440.65 | V15: =SUM(V6:V14) -> 10418832.69 | W15: =SUM(W6:W14) -> 1148099.695 | X15: =SUM(X6:X14) -> 296463.1188 | Y15: =SUM(Y6:Y14) -> 691153.2268 | Z15: =SUM(Z6:Z14) -> 160483.3497
B16: bill_month | C16: 2 | Z16: =W15-X15-Y15-Z15 -> 0
K17: Estimated RPP Revenue Volume and Price Data | L17: Actual % | M17: kWh Volumes
B18: Row Labels | C18: usagebilled | D18: amountbilled | E18: Rate | K18: RPPT1 | L18: =C20/SUM($C$20:$C$30) -> 0.08538641076 | M18: =$M$13*L18 -> 889626.7276
B19: RPPTIER | K19: RPPT2 | L19: =C21/SUM($C$20:$C$30) -> 0.02897586028 | M19: =$M$13*L19 -> 301894.6403
B20: RPPT1 | C20: 880284.6254 | D20: 90669.54707 | E20: =D20/C20 -> 0.103000262 | K20: RPPTOUMID | L20: =C23/SUM($C$20:$C$30) -> 0.1562233256 | M20: 1627664.691 | P20: Actual RPP Revenue and GA
B21: RPPT2 | C21: 298724.3999 | D21: 37340.95231 | E21: =D21/C21 -> 0.1250013468 | K21: RPPTOUOFF | L21: =C24/SUM($C$20:$C$30) -> 0.564143422 | M21: 5877715.926 | P21: =P4 -> 202402
B22: RPPTOU | K22: RPPTOUON | L22: 0.1642729342 | M22: 1711532.217 | P22: RPP Revenue Prices | Q22: RPP Rate | R22: Estimated RPP Energy Price | S22: GA actual IESO billed | T22: Total Commodity | U22: Difference | V22: kWh Volumes | W22: $ Estimated RPP Revenue | X22: $ Estimated RPP Energy | Y22: $ Estimated GA | Z22: $ Estimated RPP Settlement
B23: RPPTOUMID | C23: 1610572.343 | D23: 196488.6974 | E23: 0.1219992993 | K23: RPPULOMID | L23: =C27/SUM($C$20:$C$30) -> 0.0001434939653 | M23: 1495.039617 | P23: =P6 -> RPPT1 | Q23: =Q6 -> 0.103000262 | R23: =R6 -> 0.0283967703 | S23: 0.06633691581 | T23: =R23+S23 -> 0.0947336861 | U23: =+Q23-T23 -> 0.008266575916 | V23: =C20 -> 880284.6254 | W23: =Q23*V23 -> 90669.54707 | X23: =R23*V23 -> 24997.2403 | Y23: =+V23*S23 -> 58395.36708 | Z23: =W23-X23-Y23 -> 7276.939684
B24: RPPTOUOFF | C24: 5815993.16 | D24: 502573.9822 | E24: 0.08641240943 | K24: RPPULOOFF | L24: =C28/SUM($C$20:$C$30) -> 0.0001228245258 | M24: 1279.688184 | P24: =P7 -> RPPT2 | Q24: 0.1250013468 | R24: 0.0283967703 | S24: 0.06633691581 | T24: =R24+S24 -> 0.0947336861 | U24: =+Q24-T24 -> 0.03026766071 | V24: =C21 -> 298724.3999 | W24: =Q24*V24 -> 37340.95231 | X24: =R24*V24 -> 8482.808166 | Y24: =+V24*S24 -> 19816.45537 | Z24: =W24-X24-Y24 -> 9041.688782
B25: RPPTOUON | C25: 1693559.164 | D25: 308227.5713 | E25: 0.181999884 | K25: RPPULOON | L25: 9.048906137e-05 | M25: 942.7903905 | P25: RPPTOUMID | Q25: 0.1219992993 | R25: 0.02846201298 | S25: 0.06633691581 | T25: 0.09479892879 | U25: 0.02720037056 | V25: =C23 -> 1610572.343 | W25: 196488.6974 | X25: 45840.13093 | Y25: 106840.4019 | Z25: 43808.16454
B26: RPPULO | K26: RPPULOOVN | L26: 0.0006412395632 | M26: 6680.967722 | P26: RPPTOUOFF | Q26: 0.08641240943 | R26: 0.02846201298 | S26: 0.06633691581 | T26: 0.09479892879 | U26: -0.008386519354 | V26: =C24 -> 5815993.16 | W26: 502573.9822 | X26: 165534.8728 | Y26: 385815.0486 | Z26: -48775.9392
B27: RPPULOMID | C27: 1479.339984 | D27: 180.5000016 | E27: 0.1220138735 | L27: =SUM(L18:L26) -> 1 | M27: =SUM(M18:M26) -> 10418832.69 | P27: RPPTOUON | Q27: 0.181999884 | R27: 0.02846201298 | S27: 0.06633691581 | T27: 0.09479892879 | U27: 0.08720095522 | V27: 1693559.164 | W27: 308227.5713 | X27: 48202.1029 | Y27: 112345.4917 | Z27: 147679.9768
B28: RPPULOOFF | C28: 1266.249989 | D28: 110.1799989 | E28: 0.08701283312 | P28: RPPULOMID | Q28: 0.1220138735 | R28: 0.028452942 | S28: 0.06633691581 | T28: 0.09478985781 | U28: 0.02722401567 | V28: =C27 -> 1479.339984 | W28: 180.5000016 | X28: 42.09157476 | Y28: 98.13485197 | Z28: 40.27357491
B29: RPPULOON | C29: 932.8900088 | D29: 266.8100024 | E29: 0.2860037088 | P29: RPPULOOFF | Q29: 0.08701283312 | R29: 0.028452942 | S29: 0.06633691581 | T29: 0.09478985781 | U29: -0.007777024688 | V29: =C28 -> 1266.249989 | W29: 110.1799989 | X29: 36.02853748 | Y29: 83.99911888 | Z29: -9.847657422
B30: RPPULOOVN | C30: 6610.80989 | D30: 185.09 | E30: 0.0279980824 | P30: RPPULOON | Q30: 0.2860037088 | R30: 0.028452942 | S30: 0.06633691581 | T30: 0.09478985781 | U30: 0.191213851 | V30: 932.8900088 | W30: 266.8100024 | X30: 26.54346531 | Y30: 61.88504597 | Z30: 178.3814911
B31: RETAIL | K31: Global Adjustment | L31: per kWh | P31: RPPULOOVN | Q31: 0.0279980824 | R31: 0.028452942 | S31: 0.06633691581 | T31: 0.09478985781 | U31: -0.06679177541 | V31: 6610.80989 | W31: 185.09 | X31: 188.0969904 | Y31: 438.5407391 | Z31: -441.5477294
B32: NSLS | C32: 3140398.805 | D32: 88987.85294 | E32: 0.0283364816 | K32: Class B - GA actual8 | L32: =B62/100 -> 0.06631999969 | N32: GA Posted Price | V32: =SUM(V23:V31) -> 10309422.98 | W32: =SUM(W23:W31) -> 1136043.33 | X32: =SUM(X23:X31) -> 293349.9157 | Y32: =SUM(Y23:Y31) -> 683895.3243 | Z32: =SUM(Z23:Z31) -> 158798.0903
B33: INTERVAL | K33: Class B - GA actual IESO billed | L33: =+M33/M8 -> 0.06633691581 | M33: =B78 -> 1093924.51 | N33: GA Billed by IESO CT 148 | Z33: =W32-X32-Y32-Z32 -> 4.947651178e-10
B34: HOEP | C34: 6578450.376 | D34: 186628.2382 | E34: 0.02836963534
B35: Grand Total | C35: 20028272.16 | D35: 1411659.421 | M35: =$M$8*L32 -> 1093645.556 | Z35: =Z15-Z32 -> 1685.259444
M36: =$M$8*L33 -> 1093924.51
B37: UFE | C37: =C35-C11 -> -173168.4883 | D37: =C35/C11-1 -> -0.008572086088 | M37: =M35-M36 -> -278.9540381
A39: RPP COP Volume and Price Data
A40: ER COP Summary.xlsm | B40: bill_year | C40: 2024
B41: bill_month | C41: 2
B43: Row Labels | C43: usagebilled | D43: amountbilled | E43: Rate
B44: RPPTIERED | C44: 1182330.923 | D44: 33574.37964 | E44: =D44/C44 -> 0.0283967703
B45: RPPTOU | C45: 9083404.78 | D45: 258531.9847 | E45: 0.02846201298
B46: RPPULO | C46: 10289.26997 | D46: 292.7600016 | E46: 0.028452942
B47: Grand Total | C47: 10276024.97 | D47: 292399.1244
B50: RPPTIERED | C50: =SUM(C20:C21)-C44 -> -3321.897843 | D50: =C50/SUM(C20:C21) -> -0.002817533854
B51: RPPTOU | C51: =SUM(C23:C25)-C45 -> 36719.88659 | D51: =C51/SUM(C23:C25) -> 0.004026248317
B52: RPPULO | C52: =SUM(C27:C30)-C46 -> 0.019903313 | D52: =C52/SUM(C27:C30) -> 1.934371881e-06
A58: Global Adjustment - Actual
A59: IESO GA Reconciliation.xlsm
A60: ga_actual | B60: year
A61: month | B61: 2024
A62: 202402 | B62: 6.631999969
A64: Class A kWh
A65: Redshift Class A Report.xlsm
A66: Year | B66: 2024
A68: Class A | B68: Value
A69: kWh
A70: 202402 | B70: 3711006.98
A72: IESO Class B
A73: IESO Invoice Reconciliation.xlsm
A74: chargetype | B74: 148
A76: Sum of chargeamount | B76: year
A77: month | B77: 2024
A78: 202402 | B78: 1093924.51

Sheet I5 Input Rev 02 Init (hidden)
A1: Reverse IESO Posted
A5: =Admin!B11 -> 202402
A6: RPP Revenue Prices | B6: kWh Volumes | C6: $ RPP Settlement
A7: RPPTiered_1 | B7: 974523.47 | C7: -12689.04
A8: RPPTiered_2 | B8: 383046.7 | C8: -13414.5
A9: RPPTOU_MID | B9: 1920185 | C9: -59871.81
A10: RPPTOU_OFF | B10: 6435672.94 | C10: 24580.81
A11: RPPTOU_ON | B11: 1946400.9 | C11: -177470.81
A12: Grand Total | B12: 11659829.01 | C12: -238865.35

Sheet I6 Input 03 Trueup Sett (hidden)
A1: Date: | B1: =Admin!B8+2 -> 202403 | C1: Trueup | K1: ="Data for 1st True up of RPP Settlement based on Actual IESO Invoice" -> Data for 1st True up of RPP Settlement based on Actual IESO Invoice | P1: For Reconciliation
A3: Wholesale Electricty | B3: Year | C3: 2024 | E3: Rate | P3: Actual RPP Revenue and GA
A4: Redshift Wholesale Report.xlsm | B4: dateref | C4: 202403 | K4: Wholesale Volume data per IESO Power Bill: | L4: GA RPP/non-RPP Ratios | M4: GA Volumes | N4: Energy Volumes | P4: =B1 -> 202403
K5: AQEW | M5: =C10 -> 19932293.12 | N5: =+M5 -> 19932293.12 | P5: RPP Revenue Prices | Q5: RPP Rate | R5: Estimated RPP Energy Price | S5: GA actual IESO billed | T5: Total Commodity | U5: Difference | V5: kWh Volumes | W5: $ Estimated RPP Revenue | X5: $ Estimated RPP Energy | Y5: $ Estimated GA | Z5: $ Estimated RPP Settlement
B6: Wholesale | K6: Embedded Generation | M6: =SUM(C8:C9) -> 593810.27 | N6: =+M6 -> 593810.27 | P6: RPPT1 | Q6: =E20 -> 0.103000262 | R6: =E44 -> 0.02907088429 | S6: =$L$32 -> 0.08170999527 | T6: =R6+S6 -> 0.1107808796 | U6: =+Q6-T6 -> -0.007780617536 | V6: =M18 -> 896826.2329 | W6: =Q6*V6 -> 92373.33697 | X6: =R6*V6 -> 26071.53164 | Y6: =+V6*S6 -> 73279.66725 | Z6: =W6-X6-Y6 -> -6977.861914
B7: Source | C7: kWh | D7: Total Cost | K7: Class A customer Volumes for GA (TLF included) | M7: =-B70 -> -4203426.83 | P7: RPPT2 | Q7: =E21 -> 0.1250013468 | R7: =R6 -> 0.02907088429 | S7: =$L$32 -> 0.08170999527 | T7: =R7+S7 -> 0.1107808796 | U7: =+Q7-T7 -> 0.01422046726 | V7: =M19 -> 259988.1274 | W7: =Q7*V7 -> 32498.86609 | X7: =R7*V7 -> 7558.084769 | Y7: =+V7*S7 -> 21243.62866 | Z7: =W7-X7-Y7 -> 3697.152653
B8: FIT | C8: 560871.49 | D8: 14681.26 | E8: =D8/C8 -> 0.02617580009 | M8: =+M5+M6+M7 -> 16322676.56 | N8: =+N5+N6+N7 -> 20526103.39 | P8: RPPTOUMID | Q8: =E23 -> 0.1219992993 | R8: =E45 -> 0.02901666434 | S8: 0.08170999527 | T8: 0.1107266596 | U8: 0.01127263974 | V8: 1493373.111 | W8: 182190.4732 | X8: 43332.70631 | Y8: 122023.5099 | Z8: 16834.25708
B9: microFIT | C9: 32938.78 | D9: 860.75 | E9: =D9/C9 -> 0.0261318118 | P9: RPPTOUOFF | Q9: =E24 -> 0.08641240943 | R9: =R8 -> 0.02901666434 | S9: 0.08170999527 | T9: 0.1107266596 | U9: -0.02431425018 | V9: 5854770.469 | W9: 505924.8229 | X9: 169885.9095 | Y9: 478393.2673 | Z9: -142354.3539
B10: WHOLESALE | C10: 19932293.12 | D10: 573567.97 | E10: =D10/C10 -> 0.02877581453 | K10: Estimated Retail Volume Revenue Data (TLF Included) | L10: RPP/non-RPP Ratios | M10: GA Volumes | N10: Energy Volumes | P10: RPPTOUON | Q10: 0.181999884 | R10: =R9 -> 0.02901666434 | S10: 0.08170999527 | T10: 0.1107266596 | U10: 0.07127322439 | V10: 1556155.611 | W10: 283220.1406 | X10: 45154.44502 | Y10: 127153.4676 | Z10: 110912.228
B11: Grand Total | C11: 20526103.39 | D11: 589109.98 | K11: Estimated Retail Revenue Data (Net of Retail Billed/Unbilled) | M11: =+M15 -> 16322676.56 | N11: =+N15 -> 20526103.39 | P11: RPPULOMID | Q11: =E27 -> 0.1220138735 | R11: =E46 -> 0.02901748962 | S11: 0.08170999527 | T11: 0.1107274849 | U11: 0.01128638859 | V11: 1347.347831 | W11: 164.3951278 | X11: 39.0966517 | Y11: 110.0917849 | Z11: 15.20669119
P12: RPPULOOFF | Q12: =E28 -> 0.08701283312 | R12: =R11 -> 0.02901748962 | S12: 0.08170999527 | T12: 0.1107274849 | U12: -0.02371465177 | V12: 1391.042186 | W12: 121.0385216 | X12: 40.3645522 | Y12: 113.6620505 | Z12: -32.98808105
K13: Estimated RPP Sales Quantities | L13: =SUM(C20:C30)/(C35-B70) -> 0.6170053359 | M13: =M8*L13 -> 10071178.53 | N13: =M13 -> 10071178.53 | P13: RPPULOON | Q13: 0.2860037088 | R13: =R12 -> 0.02901748962 | S13: 0.08170999527 | T13: 0.1107274849 | U13: 0.1752762239 | V13: 726.1941141 | W13: 207.6942099 | X13: 21.07233017 | Y13: 59.33731763 | Z13: 127.2845621
A14: RPP Revenue Volume and Price Data | K14: Estimated non-RPP Sales Quantities | L14: =1-L13 -> 0.3829946641 | M14: =M8*L14 -> 6251498.026 | N14: =N8-N13 -> 10454924.86 | P14: RPPULOOVN | Q14: 0.0279980824 | R14: 0.02901748962 | S14: 0.08170999527 | T14: 0.1107274849 | U14: -0.08272940249 | V14: 6600.398856 | W14: 184.798511 | X14: 191.5270053 | Y14: 539.3185593 | Z14: -546.0470535
B15: bill_year | C15: 2024 | K15: Estimated Retail Revenue kWh Volumes | L15: =+L13+L14 -> 1 | M15: =+M13+M14 -> 16322676.56 | N15: =+N13+N14 -> 20526103.39 | V15: =SUM(V6:V14) -> 10071178.53 | W15: =SUM(W6:W14) -> 1096885.566 | X15: =SUM(X6:X14) -> 292294.7378 | Y15: =SUM(Y6:Y14) -> 822915.9504 | Z15: =SUM(Z6:Z14) -> -18325.12196
B16: bill_month | C16: 3 | Z16: =W15-X15-Y15-Z15 -> -1.709850039e-10
K17: Estimated RPP Revenue Volume and Price Data | L17: Actual % | M17: kWh Volumes
B18: Row Labels | C18: usagebilled | D18: amountbilled | E18: Rate | K18: RPPT1 | L18: =C20/SUM($C$20:$C$30) -> 0.08904878707 | M18: =$M$13*L18 -> 896826.2329
B19: RPPTIER | K19: RPPT2 | L19: =C21/SUM($C$20:$C$30) -> 0.0258150649 | M19: =$M$13*L19 -> 259988.1274
B20: RPPT1 | C20: 887089.6183 | D20: 91370.20591 | E20: 0.103000262 | K20: RPPTOUMID | L20: =C23/SUM($C$20:$C$30) -> 0.1482818626 | M20: 1493373.111 | P20: Actual RPP Revenue and GA
B21: RPPT2 | C21: 257165.5024 | D21: 32145.56523 | E21: 0.1250013468 | K21: RPPTOUOFF | L21: =C24/SUM($C$20:$C$30) -> 0.58133916 | M21: 5854770.469 | P21: =P4 -> 202403
B22: RPPTOU | K22: RPPTOUON | L22: 0.1545157407 | M22: 1556155.611 | P22: RPP Revenue Prices | Q22: RPP Rate | R22: Estimated RPP Energy Price | S22: GA actual IESO billed | T22: Total Commodity | U22: Difference | V22: kWh Volumes | W22: $ Estimated RPP Revenue | X22: $ Estimated RPP Energy | Y22: $ Estimated GA | Z22: $ Estimated RPP Settlement
B23: RPPTOUMID | C23: 1477159.939 | D23: 180213.4216 | E23: 0.1219992993 | K23: RPPULOMID | L23: =C27/SUM($C$20:$C$30) -> 0.0001337825386 | M23: 1347.347831 | P23: =P6 -> RPPT1 | Q23: =Q6 -> 0.103000262 | R23: =R6 -> 0.02907088429 | S23: 0.08170999527 | T23: =R23+S23 -> 0.1107808796 | U23: =+Q23-T23 -> -0.007780617536 | V23: =C20 -> 887089.6183 | W23: =Q23*V23 -> 91370.46312 | X23: =R23*V23 -> 25788.47964 | Y23: =+V23*S23 -> 72484.08851 | Z23: =W23-X23-Y23 -> -6902.10504
B24: RPPTOUOFF | C24: 5791206.713 | D24: 503835.1339 | E24: 0.08641240943 | K24: RPPULOOFF | L24: =C28/SUM($C$20:$C$30) -> 0.0001381210929 | M24: 1391.042186 | P24: =P7 -> RPPT2 | Q24: 0.1250013468 | R24: 0.02907088429 | S24: 0.08170999527 | T24: =R24+S24 -> 0.1107808796 | U24: =+Q24-T24 -> 0.01422046726 | V24: =C21 -> 257165.5024 | W24: =Q24*V24 -> 32146.03415 | X24: =R24*V24 -> 7476.028562 | Y24: =+V24*S24 -> 21012.99198 | Z24: =W24-X24-Y24 -> 3657.013606
B25: RPPTOUON | C25: 1539260.824 | D25: 280145.2574 | E25: 0.181999884 | K25: RPPULOON | L25: 7.210617026e-05 | M25: 726.1941141 | P25: RPPTOUMID | Q25: 0.1219992993 | R25: 0.02901666434 | S25: 0.08170999527 | T25: 0.1107266596 | U25: 0.01127263974 | V25: =C23 -> 1477159.939 | W25: 180212.4775 | X25: 42862.25412 | Y25: 120698.7316 | Z25: 16651.49182
B26: RPPULO | K26: RPPULOOVN | L26: 0.0006553750222 | M26: 6600.398856 | P26: RPPTOUOFF | Q26: 0.08641240943 | R26: 0.02901666434 | S26: 0.08170999527 | T26: 0.1107266596 | U26: -0.02431425018 | V26: =C24 -> 5791206.713 | W26: 500432.1256 | X26: 168041.5013 | Y26: 473199.4731 | Z26: -140808.8489
B27: RPPULOMID | C27: 1332.720018 | D27: 162.6100004 | E27: 0.1220138735 | L27: =SUM(L18:L26) -> 1 | M27: =SUM(M18:M26) -> 10071178.53 | P27: RPPTOUON | Q27: 0.181999884 | R27: 0.02901666434 | S27: 0.08170999527 | T27: 0.1107266596 | U27: 0.07127322439 | V27: 1539260.824 | W27: 280145.2915 | X27: 44664.21468 | Y27: 125772.9947 | Z27: 109708.0821
B28: RPPULOOFF | C28: 1375.939995 | D28: 119.7100007 | E28: 0.08701283312 | M28: =SUM(C20:C30) -> 9961838.307 | P28: RPPULOMID | Q28: 0.1220138735 | R28: 0.02901748962 | S28: 0.08170999527 | T28: 0.1107274849 | U28: 0.01128638859 | V28: =C27 -> 1332.720018 | W28: 162.6103316 | X28: 38.67218928 | Y28: 108.8965464 | Z28: 15.041596
B29: RPPULOON | C29: 718.310009 | D29: 205.4300034 | E29: 0.2860037088 | P29: RPPULOOFF | Q29: 0.08701283312 | R29: 0.02901748962 | S29: 0.08170999527 | T29: 0.1107274849 | U29: -0.02371465177 | V29: =C28 -> 1375.939995 | W29: 119.7244371 | X29: 39.92632451 | Y29: 112.4280504 | Z29: -32.62993783
B30: RPPULOOVN | C30: 6528.740002 | D30: 182.8000008 | E30: 0.0279980824 | P30: RPPULOON | Q30: 0.2860037088 | R30: 0.02901748962 | S30: 0.08170999527 | T30: 0.1107274849 | U30: 0.1752762239 | V30: 718.310009 | W30: 205.4393266 | X30: 20.84355323 | Y30: 58.69310744 | Z30: 125.902666
B31: RETAIL | K31: Global Adjustment | L31: per kWh | P31: RPPULOOVN | Q31: 0.0279980824 | R31: 0.02901748962 | S31: 0.08170999527 | T31: 0.1107274849 | U31: -0.08272940249 | V31: 6528.740002 | W31: 182.7922005 | X31: 189.4476452 | Y31: 533.4633147 | Z31: -540.1187594
B32: NSLS | C32: 3287943.839 | D32: 93817.81937 | E32: 0.0283364816 | K32: Class B - GA actual8 | L32: =B62/100 -> 0.08170999527 | N32: GA Posted Price | V32: =SUM(V23:V31) -> 9961838.307 | W32: =SUM(W23:W31) -> 1084976.958 | X32: =SUM(X23:X31) -> 289121.368 | Y32: =SUM(Y23:Y31) -> 813981.7609 | Z32: =SUM(Z23:Z31) -> -18126.17076
B33: INTERVAL | K33: Class B - GA actual IESO billed | L33: =+M33/M8 -> 0.08166417775 | M33: =B78 -> 1332977.96 | N33: GA Billed by IESO CT 148 | Z33: =W32-X32-Y32-Z32 -> 5.456968211e-11
B34: HOEP | C34: 7099110.091 | D34: 200093.8117 | E34: 0.02836963534
B35: Grand Total | C35: 20348892.24 | D35: 1382291.765 | M35: =$M$8*L32 -> 1333725.825 | Z35: =Z15-Z32 -> -198.9511948
M36: =$M$8*L33 -> 1332977.96
B37: UFE | C37: =C35-C11 -> -177211.1537 | D37: =C35/C11-1 -> -0.008633453235 | M37: =M35-M36 -> 747.8645077
A39: RPP COP Volume and Price Data
A40: ER COP Summary.xlsm | B40: bill_year | C40: 2024
B41: bill_month | C41: 3
B43: Row Labels | C43: usagebilled | D43: amountbilled | E43: Rate
B44: RPPTIERED | C44: 1155778.719 | D44: 33599.50941 | E44: =D44/C44 -> 0.02907088429
B45: RPPTOU | C45: 8852146.925 | D45: 256859.776 | E45: 0.02901666434
B46: RPPULO | C46: 9955.719877 | D46: 288.8899982 | E46: 0.02901748962
B47: Grand Total | C47: 10017881.36 | D47: 290748.1754
B50: RPPTIERED | C50: =SUM(C20:C21)-C44 -> -11523.59861 | D50: =C50/SUM(C20:C21) -> -0.01007082984
B51: RPPTOU | C51: =SUM(C23:C25)-C45 -> -44519.44884 | D51: =C51/SUM(C23:C25) -> -0.005054647118
B52: RPPULO | C52: =SUM(C27:C30)-C46 -> -0.009853711001 | D52: =C52/SUM(C27:C30) -> -9.897547214e-07
A58: Global Adjustment - Actual
A59: IESO GA Reconciliation.xlsm
A60: ga_actual | B60: year
A61: month | B61: 2024
A62: 202403 | B62: 8.170999527
A64: Class A kWh
A65: Redshift Class A Report.xlsm
A66: Year | B66: 2024
A68: Class A | B68: Value
A69: kWh
A70: 202403 | B70: 4203426.83
A72: IESO Class B
A73: IESO Invoice Reconciliation.xlsm
A74: chargetype | B74: 148
A76: Sum of chargeamount | B76: year
A77: month | B77: 2024
A78: 202403 | B78: 1332977.96

Sheet I7 Input Rev 03 Init (hidden)
A1: Reverse IESO Posted
A5: =Admin!B14 -> 202403
A6: RPP Revenue Prices | B6: kWh Volumes | C6: $ RPP Settlement
A7: RPPTiered_1 | B7: 868184.75 | C7: -9898.92
A8: RPPTiered_2 | B8: 397347.14 | C8: -12872.25
A9: RPPTOU_MID | B9: 4881500.02 | C9: 13199.85
A10: RPPTOU_OFF | B10: 1584910.99 | C10: -50200.59
A11: RPPTOU_ON | B11: 1668838.02 | C11: -152748.31
A12: RPPULO_MID | B12: 3186.876 | C12: 1.17
A13: RPPULO_OFF | B13: 1931.39 | C13: -386.38
A14: RPPULO_ON | B14: 3530.29 | C14: -120.92
A15: RPPULO_ULO | B15: 16062.874 | C15: 964.7
A16: Grand Total | B16: 9425492.35 | C16: -212061.65

Sheet I8 Input 04 Trueup Sett (hidden)
A1: Date: | B1: =Admin!B8+3 -> 202404 | C1: Trueup | K1: ="Data for 1st True up of RPP Settlement based on Actual IESO Invoice" -> Data for 1st True up of RPP Settlement based on Actual IESO Invoice | P1: For Reconciliation
A3: Wholesale Electricty | B3: Year | C3: 2024 | E3: Rate | P3: Actual RPP Revenue and GA
A4: Redshift Wholesale Report.xlsm | B4: dateref | C4: 202404 | K4: Wholesale Volume data per IESO Power Bill: | L4: GA RPP/non-RPP Ratios | M4: GA Volumes | N4: Energy Volumes | P4: =B1 -> 202404
K5: AQEW | M5: =C10 -> 18684142.71 | N5: =+M5 -> 18684142.71 | P5: RPP Revenue Prices | Q5: RPP Rate | R5: Estimated RPP Energy Price | S5: GA actual IESO billed | T5: Total Commodity | U5: Difference | V5: kWh Volumes | W5: $ Estimated RPP Revenue | X5: $ Estimated RPP Energy | Y5: $ Estimated GA | Z5: $ Estimated RPP Settlement
B6: Wholesale | K6: Embedded Generation | M6: =SUM(C8:C9) -> 617512.79 | N6: =+M6 -> 617512.79 | P6: RPPT1 | Q6: =E20 -> 0.103000245 | R6: =E44 -> 0.02896256824 | S6: =$L$32 -> 0.07427000046 | T6: =R6+S6 -> 0.1032325687 | U6: =+Q6-T6 -> -0.0002323237471 | V6: =M18 -> 863049.8441 | W6: =Q6*V6 -> 88894.34535 | X6: =R6*V6 -> 24996.14001 | Y6: =+V6*S6 -> 64098.71232 | Z6: =W6-X6-Y6 -> -200.5069737
B7: Source | C7: kWh | D7: Total Cost | K7: Class A customer Volumes for GA (TLF included) | M7: =-B70 -> -4410076.52 | P7: RPPT2 | Q7: =E21 -> 0.1250008087 | R7: =R6 -> 0.02896256824 | S7: =$L$32 -> 0.07427000046 | T7: =R7+S7 -> 0.1032325687 | U7: =+Q7-T7 -> 0.02176823997 | V7: =M19 -> 189424.1423 | W7: =Q7*V7 -> 23678.17097 | X7: =R7*V7 -> 5486.209648 | Y7: =+V7*S7 -> 14068.53114 | Z7: =W7-X7-Y7 -> 4123.430185
B8: FIT | C8: 584413.93 | D8: 13657.68 | E8: =D8/C8 -> 0.02336987416 | M8: =+M5+M6+M7 -> 14891578.98 | N8: =+N5+N6+N7 -> 19301655.5 | P8: RPPTOUMID | Q8: =E23 -> 0.1219983159 | R8: =E45 -> 0.02905668635 | S8: 0.07427000046 | T8: 0.1033266868 | U8: 0.01867162913 | V8: 1643262.64 | W8: 200475.2747 | X8: 47747.76713 | Y8: 122045.117 | Z8: 30682.39058
B9: microFIT | C9: 33098.86 | D9: 767.81 | E9: =D9/C9 -> 0.02319747568 | P9: RPPTOUOFF | Q9: =E24 -> 0.08443290167 | R9: =R8 -> 0.02905668635 | S9: 0.07427000046 | T9: 0.1033266868 | U9: -0.01889378514 | V9: 5189403.318 | W9: 438156.3801 | X9: 150786.8646 | Y9: 385416.9868 | Z9: -98047.47127
B10: WHOLESALE | C10: 18684142.71 | D10: 549955.76 | E10: =D10/C10 -> 0.02943435878 | K10: Estimated Retail Volume Revenue Data (TLF Included) | L10: RPP/non-RPP Ratios | M10: GA Volumes | N10: Energy Volumes | P10: RPPTOUON | Q10: 0.181996535 | R10: =R9 -> 0.02905668635 | S10: 0.07427000046 | T10: 0.1033266868 | U10: 0.07866984822 | V10: 1681363.548 | W10: 306002.3399 | X10: 48854.85326 | Y10: 124874.8715 | Z10: 132272.6151
B11: Grand Total | C11: 19301655.5 | D11: 564381.25 | K11: Estimated Retail Revenue Data (Net of Retail Billed/Unbilled) | M11: =+M15 -> 14891578.98 | N11: =+N15 -> 19301655.5 | P11: RPPULOMID | Q11: =E27 -> 0.1220044354 | R11: =E46 -> 0.02905202259 | S11: 0.07427000046 | T11: 0.103322023 | U11: 0.01868241237 | V11: 1492.207791 | W11: 182.0559691 | X11: 43.35165447 | Y11: 110.8262733 | Z11: 27.8780413
P12: RPPULOOFF | Q12: =E28 -> 0.08700237159 | R12: =R11 -> 0.02905202259 | S12: 0.07427000046 | T12: 0.103322023 | U12: -0.01631965146 | V12: 1129.979087 | W12: 98.31086044 | X12: 32.82817797 | Y12: 83.92354733 | Z12: -18.44086486
K13: Estimated RPP Sales Quantities | L13: =SUM(C20:C30)/(C35-B70) -> 0.643092914 | M13: =M8*L13 -> 9576668.921 | N13: =M13 -> 9576668.921 | P13: RPPULOON | Q13: 0.2860230927 | R13: =R12 -> 0.02905202259 | S13: 0.07427000046 | T13: 0.103322023 | U13: 0.1827010696 | V13: 777.6772194 | W13: 222.4336434 | X13: 22.59309615 | Y13: 57.75808744 | Z13: 142.0824598
A14: RPP Revenue Volume and Price Data | K14: Estimated non-RPP Sales Quantities | L14: =1-L13 -> 0.356907086 | M14: =M8*L14 -> 5314910.059 | N14: =N8-N13 -> 9724986.579 | P14: RPPULOOVN | Q14: 0.02800218246 | R14: 0.02905202259 | S14: 0.07427000046 | T14: 0.103322023 | U14: -0.07531984058 | V14: 6765.564191 | W14: 189.4505629 | X14: 196.5533237 | Y14: 502.4784556 | Z14: -509.5812163
B15: bill_year | C15: 2024 | K15: Estimated Retail Revenue kWh Volumes | L15: =+L13+L14 -> 1 | M15: =+M13+M14 -> 14891578.98 | N15: =+N13+N14 -> 19301655.5 | V15: =SUM(V6:V14) -> 9576668.921 | W15: =SUM(W6:W14) -> 1057898.762 | X15: =SUM(X6:X14) -> 278167.1608 | Y15: =SUM(Y6:Y14) -> 711259.2051 | Z15: =SUM(Z6:Z14) -> 68472.39609
B16: bill_month | C16: 4 | Z16: =W15-X15-Y15-Z15 -> 0
K17: Estimated RPP Revenue Volume and Price Data | L17: Actual % | M17: kWh Volumes
B18: Row Labels | C18: usagebilled | D18: amountbilled | E18: Rate | K18: RPPT1 | L18: =C20/SUM($C$20:$C$30) -> 0.09012004605 | M18: =$M$13*L18 -> 863049.8441
B19: RPPTIER | K19: RPPT2 | L19: =C21/SUM($C$20:$C$30) -> 0.01977975263 | M19: =$M$13*L19 -> 189424.1423
B20: RPPT1 | C20: 811159.6647 | D20: 83549.64416 | E20: =D20/C20 -> 0.103000245 | K20: RPPTOUMID | L20: =C23/SUM($C$20:$C$30) -> 0.1715902109 | M20: 1643262.64 | P20: Actual RPP Revenue and GA
B21: RPPT2 | C21: 178035.1677 | D21: 22254.53994 | E21: =D21/C21 -> 0.1250008087 | K21: RPPTOUOFF | L21: =C24/SUM($C$20:$C$30) -> 0.5418797873 | M21: 5189403.318 | P21: =P4 -> 202404
B22: RPPTOU | K22: RPPTOUON | L22: 0.1755687246 | M22: 1681363.548 | P22: RPP Revenue Prices | Q22: RPP Rate | R22: Estimated RPP Energy Price | S22: GA actual IESO billed | T22: Total Commodity | U22: Difference | V22: kWh Volumes | W22: $ Estimated RPP Revenue | X22: $ Estimated RPP Energy | Y22: $ Estimated GA | Z22: $ Estimated RPP Settlement
B23: RPPTOUMID | C23: 1544462.792 | D23: 188421.8597 | E23: 0.1219983159 | K23: RPPULOMID | L23: =C27/SUM($C$20:$C$30) -> 0.0001558169969 | M23: 1492.207791 | P23: =P6 -> RPPT1 | Q23: =Q6 -> 0.103000245 | R23: =R6 -> 0.02896256824 | S23: 0.07427000046 | T23: =R23+S23 -> 0.1032325687 | U23: =+Q23-T23 -> -0.0002323237471 | V23: =C20 -> 811159.6647 | W23: =Q23*V23 -> 83549.64416 | X23: =R23*V23 -> 23493.26714 | Y23: =+V23*S23 -> 60244.82867 | Z23: =W23-X23-Y23 -> -188.4516528
B24: RPPTOUOFF | C24: 4877394.607 | D24: 411812.5793 | E24: 0.08443290167 | K24: RPPULOOFF | L24: =C28/SUM($C$20:$C$30) -> 0.0001179929156 | M24: 1129.979087 | P24: =P7 -> RPPT2 | Q24: 0.1250008087 | R24: 0.02896256824 | S24: 0.07427000046 | T24: =R24+S24 -> 0.1032325687 | U24: =+Q24-T24 -> 0.02176823997 | V24: =C21 -> 178035.1677 | W24: =Q24*V24 -> 22254.53994 | X24: =R24*V24 -> 5156.355695 | Y24: =+V24*S24 -> 13222.67199 | Z24: =W24-X24-Y24 -> 3875.512254
B25: RPPTOUON | C25: 1580272.914 | D25: 287604.1947 | E25: 0.181996535 | K25: RPPULOON | L25: 8.120539885e-05 | M25: 777.6772194 | P25: RPPTOUMID | Q25: 0.1219983159 | R25: 0.02905668635 | S25: 0.07427000046 | T25: 0.1033266868 | U25: 0.01867162913 | V25: =C23 -> 1544462.792 | W25: 188421.8597 | X25: 44876.97094 | Y25: 114707.2523 | Z25: 28837.63647
B26: RPPULO | K26: RPPULOOVN | L26: 0.0007064632021 | M26: 6765.564191 | P26: RPPTOUOFF | Q26: 0.08443290167 | R26: 0.02905668635 | S26: 0.07427000046 | T26: 0.1033266868 | U26: -0.01889378514 | V26: =C24 -> 4877394.607 | W26: 411812.5793 | X26: 141720.9253 | Y26: 362244.0997 | Z26: -92152.44572
B27: RPPULOMID | C27: 1402.489995 | D27: 171.11 | E27: 0.1220044354 | L27: =SUM(L18:L26) -> 1 | M27: =SUM(M18:M26) -> 9576668.921 | P27: RPPTOUON | Q27: 0.181996535 | R27: 0.02905668635 | S27: 0.07427000046 | T27: 0.1033266868 | U27: 0.07866984822 | V27: 1580272.914 | W27: 287604.1947 | X27: 45917.49441 | Y27: 117366.87 | Z27: 124319.8303
B28: RPPULOOFF | C28: 1062.040001 | D28: 92.39999883 | E28: 0.08700237159 | P28: RPPULOMID | Q28: 0.1220044354 | R28: 0.02905202259 | S28: 0.07427000046 | T28: 0.103322023 | U28: 0.01868241237 | V28: =C27 -> 1402.489995 | W28: 171.11 | X28: 40.74517102 | Y28: 104.1629326 | Z28: 26.20189644
B29: RPPULOON | C29: 730.9200005 | D29: 209.059999 | E29: 0.2860230927 | M29: =SUM(C20:C30) -> 9000879.386 | P29: RPPULOOFF | Q29: 0.08700237159 | R29: 0.02905202259 | S29: 0.07427000046 | T29: 0.103322023 | U29: -0.01631965146 | V29: =C28 -> 1062.040001 | W29: 92.39999883 | X29: 30.85441011 | Y29: 78.87771138 | Z29: -17.33212266
B30: RPPULOOVN | C30: 6358.790072 | D30: 178.0599999 | E30: 0.02800218246 | P30: RPPULOON | Q30: 0.2860230927 | R30: 0.02905202259 | S30: 0.07427000046 | T30: 0.103322023 | U30: 0.1827010696 | V30: 730.9200005 | W30: 209.059999 | X30: 21.23470437 | Y30: 54.28542877 | Z30: 133.5398659
B31: RETAIL | K31: Global Adjustment | L31: per kWh | P31: RPPULOOVN | Q31: 0.02800218246 | R31: 0.02905202259 | S31: 0.07427000046 | T31: 0.103322023 | U31: -0.07531984058 | V31: 6358.790072 | W31: 178.0599999 | X31: 184.7357128 | Y31: 472.2673416 | Z31: -478.9430545
B32: NSLS | C32: 3168808.431 | D32: 92679.90863 | E32: 0.02924755808 | K32: Class B - GA actual8 | L32: =B62/100 -> 0.07427000046 | N32: GA Posted Price | V32: =SUM(V23:V31) -> 9000879.386 | W32: =SUM(W23:W31) -> 994293.4478 | X32: =SUM(X23:X31) -> 261442.5835 | Y32: =SUM(Y23:Y31) -> 668495.3161 | Z32: =SUM(Z23:Z31) -> 64355.54821
B33: INTERVAL | K33: Class B - GA actual IESO billed | L33: =+M33/M8 -> 0.07424661223 | M33: =B78 -> 1105649.29 | N33: GA Billed by IESO CT 148 | Z33: =W32-X32-Y32-Z32 -> 1.964508556e-10
B34: HOEP | C34: 6236623.445 | D34: 185005.8194 | E34: 0.02966442035
B35: Grand Total | C35: 18406311.26 | D35: 1271979.176 | M35: =$M$8*L32 -> 1105997.578 | Z35: =Z15-Z32 -> 4116.847877
M36: =$M$8*L33 -> 1105649.29
B37: UFE | C37: =C35-C11 -> -895344.2382 | D37: =C35/C11-1 -> -0.04638691423 | M37: =M35-M36 -> 348.2876614
A39: RPP COP Volume and Price Data
A40: ER COP Summary.xlsm | B40: bill_year | C40: 2024
B41: bill_month | C41: 4
B43: Row Labels | C43: usagebilled | D43: amountbilled | E43: Rate
B44: RPPTIERED | C44: 988131.893 | D44: 28618.83738 | E44: =D44/C44 -> 0.02896256824
B45: RPPTOU | C45: 7780167.061 | D45: 226065.874 | E45: 0.02905668635
B46: RPPULO | C46: 9554.240137 | D46: 277.5700003 | E46: 0.02905202259
B47: Grand Total | C47: 8777853.194 | D47: 254962.2814
B50: RPPTIERED | C50: =SUM(C20:C21)-C44 -> 1062.939378 | D50: =C50/SUM(C20:C21) -> 0.001074550071
B51: RPPTOU | C51: =SUM(C23:C25)-C45 -> 221963.2522 | D51: =C51/SUM(C23:C25) -> 0.02773802019
B52: RPPULO | C52: =SUM(C27:C30)-C46 -> -6.801800191e-05 | D52: =C52/SUM(C27:C30) -> -7.119143063e-09
A58: Global Adjustment - Actual
A59: IESO GA Reconciliation.xlsm
A60: ga_actual | B60: year
A61: month | B61: 2024
A62: 202404 | B62: 7.427000046
A64: Class A kWh
A65: Redshift Class A Report.xlsm
A66: Year | B66: 2024
A68: Class A | B68: Value
A69: kWh
A70: 202404 | B70: 4410076.52
A72: IESO Class B
A73: IESO Invoice Reconciliation.xlsm
A74: chargetype | B74: 148
A76: Sum of chargeamount | B76: year
A77: month | B77: 2024
A78: 202404 | B78: 1105649.29

Sheet I9 Input Rev 04 Init (hidden)
A1: Reverse IESO Posted
A5: =Admin!B17 -> 202404
A6: RPP Revenue Prices | B6: kWh Volumes | C6: $ RPP Settlement
A7: RPPTiered_1 | B7: 923981.693 | C7: 22288.19
A8: RPPTiered_2 | B8: 281537.385 | C8: 3053.34
A9: RPPTOU_MID | B9: 5436992.958 | C9: 223837.41
A10: RPPTOU_OFF | B10: 1420716 | C10: 8292.8
A11: RPPTOU_ON | B11: 1462568.02 | C11: -77265.7
A12: RPPULO_MID | B12: 845.608 | C12: 53.79
A13: RPPULO_OFF | B13: 341.91 | C13: -130.29
A14: RPPULO_ON | B14: 761.13 | C14: 8.33
A15: RPPULO_ULO | B15: 4435.804 | C15: 683.66
A16: Grand Total | B16: 9532180.508 | C16: 180821.53

Sheet I10 Input 05 Trueup Sett (hidden)
A1: Date: | B1: =Admin!B8+4 -> 202405 | C1: Trueup | K1: ="Data for 1st True up of RPP Settlement based on Actual IESO Invoice" -> Data for 1st True up of RPP Settlement based on Actual IESO Invoice | P1: For Reconciliation
A3: Wholesale Electricty | B3: Year | C3: 2024 | E3: Rate | P3: Actual RPP Revenue and GA
A4: Redshift Wholesale Report.xlsm | B4: dateref | C4: 202405 | K4: Wholesale Volume data per IESO Power Bill: | L4: GA RPP/non-RPP Ratios | M4: GA Volumes | N4: Energy Volumes | P4: =B1 -> 202405
K5: AQEW | M5: =C10 -> 18084156.15 | N5: =+M5 -> 18084156.15 | P5: RPP Revenue Prices | Q5: RPP Rate | R5: Estimated RPP Energy Price | S5: GA actual IESO billed | T5: Total Commodity | U5: Difference | V5: kWh Volumes | W5: $ Estimated RPP Revenue | X5: $ Estimated RPP Energy | Y5: $ Estimated GA | Z5: $ Estimated RPP Settlement
B6: Wholesale | K6: Embedded Generation | M6: =SUM(C8:C9) -> 829732.23 | N6: =+M6 -> 829732.23 | P6: RPPT1 | Q6: =E20 -> 0.1029996709 | R6: =E44 -> 0.02850046409 | S6: =$L$32 -> 0.07763000011 | T6: =R6+S6 -> 0.1061304642 | U6: =+Q6-T6 -> -0.003130793261 | V6: =M18 -> 673138.2391 | W6: =Q6*V6 -> 69333.01713 | X6: =R6*V6 -> 19184.75221 | Y6: =+V6*S6 -> 52255.72158 | Z6: =W6-X6-Y6 -> -2107.456663
B7: Source | C7: kWh | D7: Total Cost | K7: Class A customer Volumes for GA (TLF included) | M7: =-B70 -> -4467581.64 | P7: RPPT2 | Q7: =E21 -> 0.1250004855 | R7: =R6 -> 0.02850046409 | S7: =$L$32 -> 0.07763000011 | T7: =R7+S7 -> 0.1061304642 | U7: =+Q7-T7 -> 0.01887002132 | V7: =M19 -> 174872.016 | W7: =Q7*V7 -> 21859.0869 | X7: =R7*V7 -> 4983.933611 | Y7: =+V7*S7 -> 13575.31462 | Z7: =W7-X7-Y7 -> 3299.83867
B8: FIT | C8: 785219.87 | D8: 24536.8 | E8: =D8/C8 -> 0.03124831775 | M8: =+M5+M6+M7 -> 14446306.74 | N8: =+N5+N6+N7 -> 18913888.38 | P8: RPPTOUMID | Q8: =E23 -> 0.1220008736 | R8: =E45 -> 0.02868007028 | S8: 0.07763000011 | T8: 0.1063100704 | U8: 0.01569080321 | V8: 1456857.54 | W8: 177737.8926 | X8: 41782.77662 | Y8: 113095.851 | Z8: 22859.26497
B9: microFIT | C9: 44512.36 | D9: 1392.34 | E9: =D9/C9 -> 0.03127985126 | P9: RPPTOUOFF | Q9: =E24 -> 0.08700003978 | R9: =R8 -> 0.02868007028 | S9: 0.07763000011 | T9: 0.1063100704 | U9: -0.01931003061 | V9: 4514634.437 | W9: 392773.3757 | X9: 129480.0329 | Y9: 350471.0719 | Z9: -87177.72916
B10: WHOLESALE | C10: 18084156.15 | D10: 512964.14 | E10: =D10/C10 -> 0.02836538989 | K10: Estimated Retail Volume Revenue Data (TLF Included) | L10: RPP/non-RPP Ratios | M10: GA Volumes | N10: Energy Volumes | P10: RPPTOUON | Q10: 0.1819999 | R10: =R9 -> 0.02868007028 | S10: 0.07763000011 | T10: 0.1063100704 | U10: 0.0756898296 | V10: 1478775.084 | W10: 269136.9175 | X10: 42411.37334 | Y10: 114797.31 | Z10: 111928.2342
B11: Grand Total | C11: 18913888.38 | D11: 538893.28 | K11: Estimated Retail Revenue Data (Net of Retail Billed/Unbilled) | M11: =+M15 -> 14446306.74 | N11: =+N15 -> 18913888.38 | P11: RPPULOMID | Q11: =E27 -> 0.121996673 | R11: =E46 -> 0.02867780849 | S11: 0.07763000011 | T11: 0.1063078086 | U11: 0.01568886439 | V11: 1462.853369 | W11: 178.4632441 | X11: 41.95142876 | Y11: 113.5613072 | Z11: 22.95050813
P12: RPPULOOFF | Q12: =E28 -> 0.08699418352 | R12: =R11 -> 0.02867780849 | S12: 0.07763000011 | T12: 0.1063078086 | U12: -0.01931362509 | V12: 1193.420357 | W12: 103.8206295 | X12: 34.22468043 | Y12: 92.64522241 | Z12: -23.04927334
K13: Estimated RPP Sales Quantities | L13: =SUM(C20:C30)/(C35-B70) -> 0.5750504461 | M13: =M8*L13 -> 8307355.136 | N13: =M13 -> 8307355.136 | P13: RPPULOON | Q13: 0.2860009972 | R13: =R12 -> 0.02867780849 | S13: 0.07763000011 | T13: 0.1063078086 | U13: 0.1796931886 | V13: 813.0115918 | W13: 232.522126 | X13: 23.31539073 | Y13: 63.11408997 | Z13: 146.0926453
A14: RPP Revenue Volume and Price Data | K14: Estimated non-RPP Sales Quantities | L14: =1-L13 -> 0.4249495539 | M14: =M8*L14 -> 6138951.604 | N14: =N8-N13 -> 10606533.24 | P14: RPPULOOVN | Q14: 0.02799989122 | R14: 0.02867780849 | S14: 0.07763000011 | T14: 0.1063078086 | U14: -0.07830791739 | V14: 5608.533501 | W14: 157.0383279 | X14: 160.8404497 | Y14: 435.3904563 | Z14: -439.1925781
B15: bill_year | C15: 2024 | K15: Estimated Retail Revenue kWh Volumes | L15: =+L13+L14 -> 1 | M15: =+M13+M14 -> 14446306.74 | N15: =+N13+N14 -> 18913888.38 | V15: =SUM(V6:V14) -> 8307355.136 | W15: =SUM(W6:W14) -> 931512.1341 | X15: =SUM(X6:X14) -> 238103.2007 | Y15: =SUM(Y6:Y14) -> 644899.9801 | Z15: =SUM(Z6:Z14) -> 48508.95327
B16: bill_month | C16: 5 | Z16: =W15-X15-Y15-Z15 -> 9.458744898e-11
K17: Estimated RPP Revenue Volume and Price Data | L17: Actual % | M17: kWh Volumes
B18: Row Labels | C18: usagebilled | D18: amountbilled | E18: Rate | K18: RPPT1 | L18: =C20/SUM($C$20:$C$30) -> 0.08102918777 | M18: =$M$13*L18 -> 673138.2391
B19: RPPTIER | K19: RPPT2 | L19: =C21/SUM($C$20:$C$30) -> 0.02105026366 | M19: =$M$13*L19 -> 174872.016
B20: RPPT1 | C20: 664186.6969 | D20: 68411.01122 | E20: =D20/C20 -> 0.1029996709 | K20: RPPTOUMID | L20: =C23/SUM($C$20:$C$30) -> 0.1753695991 | M20: 1456857.54 | P20: Actual RPP Revenue and GA
B21: RPPT2 | C21: 172546.5289 | D21: 21568.39989 | E21: =D21/C21 -> 0.1250004855 | K21: RPPTOUOFF | L21: =C24/SUM($C$20:$C$30) -> 0.5434502755 | M21: 4514634.437 | P21: =P4 -> 202405
B22: RPPTOU | K22: RPPTOUON | L22: 0.1780079292 | M22: 1478775.084 | P22: RPP Revenue Prices | Q22: RPP Rate | R22: Estimated RPP Energy Price | S22: GA actual IESO billed | T22: Total Commodity | U22: Difference | V22: kWh Volumes | W22: $ Estimated RPP Revenue | X22: $ Estimated RPP Energy | Y22: $ Estimated GA | Z22: $ Estimated RPP Settlement
B23: RPPTOUMID | C23: 1437483.924 | D23: 175374.2945 | E23: 0.1220008736 | K23: RPPULOMID | L23: =C27/SUM($C$20:$C$30) -> 0.0001760913485 | M23: 1462.853369 | P23: =P6 -> RPPT1 | Q23: =Q6 -> 0.1029996709 | R23: =R6 -> 0.02850046409 | S23: 0.07763000011 | T23: =R23+S23 -> 0.1061304642 | U23: =+Q23-T23 -> -0.003130793261 | V23: =C20 -> 664186.6969 | W23: =Q23*V23 -> 68411.01122 | X23: =R23*V23 -> 18929.6291 | Y23: =+V23*S23 -> 51560.81336 | Z23: =W23-X23-Y23 -> -2079.431235
B24: RPPTOUOFF | C24: 4454597.823 | D24: 387550.1878 | E24: 0.08700003978 | K24: RPPULOOFF | L24: =C28/SUM($C$20:$C$30) -> 0.0001436582808 | M24: 1193.420357 | P24: =P7 -> RPPT2 | Q24: 0.1250004855 | R24: 0.02850046409 | S24: 0.07763000011 | T24: =R24+S24 -> 0.1061304642 | U24: =+Q24-T24 -> 0.01887002132 | V24: =C21 -> 172546.5289 | W24: =Q24*V24 -> 21568.39989 | X24: =R24*V24 -> 4917.656152 | Y24: =+V24*S24 -> 13394.78706 | Z24: =W24-X24-Y24 -> 3255.95668
B25: RPPTOUON | C25: 1459110.004 | D25: 265557.8748 | E25: 0.1819999 | K25: RPPULOON | L25: 9.786647839e-05 | M25: 813.0115918 | P25: RPPTOUMID | Q25: 0.1220008736 | R25: 0.02868007028 | S25: 0.07763000011 | T25: 0.1063100704 | U25: 0.01569080321 | V25: =C23 -> 1437483.924 | W25: 175374.2945 | X25: 41227.13995 | Y25: 111591.8772 | Z25: 22555.27737
B26: RPPULO | K26: RPPULOOVN | L26: 0.0006751286552 | M26: 5608.533501 | P26: RPPTOUOFF | Q26: 0.08700003978 | R26: 0.02868007028 | S26: 0.07763000011 | T26: 0.1063100704 | U26: -0.01931003061 | V26: =C24 -> 4454597.823 | W26: 387550.1878 | X26: 127758.1786 | Y26: 345810.4295 | Z26: -86018.4203
B27: RPPULOMID | C27: 1443.400019 | D27: 176.0900001 | E27: 0.121996673 | L27: =SUM(L18:L26) -> 1 | M27: =SUM(M18:M26) -> 8307355.136 | P27: RPPTOUON | Q27: 0.1819999 | R27: 0.02868007028 | S27: 0.07763000011 | T27: 0.1063100704 | U27: 0.0756898296 | V27: 1459110.004 | W27: 265557.8748 | X27: 41847.37745 | Y27: 113270.7098 | Z27: 110439.7876
B28: RPPULOOFF | C28: 1177.549987 | D28: 102.4399997 | E28: 0.08699418352 | P28: RPPULOMID | Q28: 0.121996673 | R28: 0.02867780849 | S28: 0.07763000011 | T28: 0.1063078086 | U28: 0.01568886439 | V28: =C27 -> 1443.400019 | W28: 176.0900001 | X28: 41.39354931 | Y28: 112.0511436 | Z28: 22.64530716
B29: RPPULOON | C29: 802.1999826 | D29: 229.429995 | E29: 0.2860009972 | P29: RPPULOOFF | Q29: 0.08699418352 | R29: 0.02867780849 | S29: 0.07763000011 | T29: 0.1063078086 | U29: -0.01931362509 | V29: =C28 -> 1177.549987 | W29: 102.4399997 | X29: 33.76955301 | Y29: 91.41320561 | Z29: -22.74275897
B30: RPPULOOVN | C30: 5533.949973 | D30: 154.9499973 | E30: 0.02799989122 | P30: RPPULOON | Q30: 0.2860009972 | R30: 0.02867780849 | S30: 0.07763000011 | T30: 0.1063078086 | U30: 0.1796931886 | V30: 802.1999826 | W30: 229.429995 | X30: 23.00533747 | Y30: 62.27478474 | Z30: 144.1498728
B31: RETAIL | K31: Global Adjustment | L31: per kWh | P31: RPPULOOVN | Q31: 0.02799989122 | R31: 0.02867780849 | S31: 0.07763000011 | T31: 0.1063078086 | U31: -0.07830791739 | V31: 5533.949973 | W31: 154.9499973 | X31: 158.7015575 | Y31: 429.6005371 | Z31: -433.3520973
B32: NSLS | C32: 3472517.317 | D32: 98502.84991 | E32: 0.02836640999 | K32: Class B - GA actual8 | L32: =B62/100 -> 0.07763000011 | N32: GA Posted Price | V32: =SUM(V23:V31) -> 8196882.077 | W32: =SUM(W23:W31) -> 919124.6782 | X32: =SUM(X23:X31) -> 234936.8513 | Y32: =SUM(Y23:Y31) -> 636323.9565 | Z32: =SUM(Z23:Z31) -> 47863.8704
B33: INTERVAL | K33: Class B - GA actual IESO billed | L33: =+M33/M8 -> 0.07763442035 | M33: =B78 -> 1121530.65 | N33: GA Billed by IESO CT 148 | Z33: =W32-X32-Y32-Z32 -> 7.275957614e-11
B34: HOEP | C34: 7052378.782 | D34: 199489.9385 | E34: 0.02828690072
B35: Grand Total | C35: 18721778.17 | D35: 1217117.467 | M35: =$M$8*L32 -> 1121466.794 | Z35: =Z15-Z32 -> 645.0828661
M36: =$M$8*L33 -> 1121530.65
B37: UFE | C37: =C35-C11 -> -192110.205 | D37: =C35/C11-1 -> -0.01015709732 | M37: =M35-M36 -> -63.85612055
A39: RPP COP Volume and Price Data
A40: ER COP Summary.xlsm | B40: bill_year | C40: 2024
B41: bill_month | C41: 5
B43: Row Labels | C43: usagebilled | D43: amountbilled | E43: Rate
B44: RPPTIERED | C44: 839004.5683 | D44: 23912.01957 | E44: =D44/C44 -> 0.02850046409
B45: RPPTOU | C45: 7353264.054 | D45: 210892.1298 | E45: 0.02868007028
B46: RPPULO | C46: 8957.100142 | D46: 256.8700025 | E46: 0.02867780849
B47: Grand Total | C47: 8201225.722 | D47: 235061.0194
B50: RPPTIERED | C50: =SUM(C20:C21)-C44 -> -2271.342436 | D50: =C50/SUM(C20:C21) -> -0.002714535967
B51: RPPTOU | C51: =SUM(C23:C25)-C45 -> -2072.302985 | D51: =C51/SUM(C23:C25) -> -0.0002819002763
B52: RPPULO | C52: =SUM(C27:C30)-C46 -> -0.0001802539991 | D52: =C52/SUM(C27:C30) -> -2.012414731e-08
A58: Global Adjustment - Actual
A59: IESO GA Reconciliation.xlsm
A60: ga_actual | B60: year
A61: month | B61: 2024
A62: 202405 | B62: 7.763000011
A64: Class A kWh
A65: Redshift Class A Report.xlsm
A66: Year | B66: 2024
A68: Class A | B68: Value
A69: kWh
A70: 202405 | B70: 4467581.64
A72: IESO Class B
A73: IESO Invoice Reconciliation.xlsm
A74: chargetype | B74: 148
A76: Sum of chargeamount | B76: year
A77: month | B77: 2024
A78: 202405 | B78: 1121530.65

Sheet I11 Input Rev 05 Init (hidden)
A1: Reverse IESO Posted
A5: =Admin!B20 -> 202405
A6: RPP Revenue Prices | B6: kWh Volumes | C6: $ RPP Settlement
A7: RPPTiered_1 | B7: 935479.57 | C7: -6554.3
A8: RPPTiered_2 | B8: 220028.27 | C8: -5041.91
A9: RPPTOU_MID | B9: 4931851.087 | C9: 66856.58
A10: RPPTOU_OFF | B10: 1610069.62 | C10: -41831.52
A11: RPPTOU_ON | B11: 1625403.91 | C11: -147731.06
A12: RPPULO_MID | B12: 731.448 | C12: 14.33
A13: RPPULO_OFF | B13: 401.44 | C13: -141.34
A14: RPPULO_ON | B14: 850.86 | C14: -27.4
A15: RPPULO_ULO | B15: 4531.565 | C15: 450.18
A16: Grand Total | B16: 9329347.77 | C16: -134006.44

Sheet I12 Input 06 Trueup Sett (hidden)
A1: Date: | B1: =Admin!B8+5 -> 202406 | C1: Trueup | K1: ="Data for 1st True up of RPP Settlement based on Actual IESO Invoice" -> Data for 1st True up of RPP Settlement based on Actual IESO Invoice | P1: For Reconciliation
A3: Wholesale Electricty | B3: Year | C3: 2024 | E3: Rate | P3: Actual RPP Revenue and GA
A4: Redshift Wholesale Report.xlsm | B4: dateref | C4: 202406 | K4: Wholesale Volume data per IESO Power Bill: | L4: GA RPP/non-RPP Ratios | M4: GA Volumes | N4: Energy Volumes | P4: =B1 -> 202406
K5: AQEW | M5: =C10 -> 19164697.81 | N5: =+M5 -> 19164697.81 | P5: RPP Revenue Prices | Q5: RPP Rate | R5: Estimated RPP Energy Price | S5: GA actual IESO billed | T5: Total Commodity | U5: Difference | V5: kWh Volumes | W5: $ Estimated RPP Revenue | X5: $ Estimated RPP Energy | Y5: $ Estimated GA | Z5: $ Estimated RPP Settlement
B6: Wholesale | K6: Embedded Generation | M6: =SUM(C8:C9) -> 801624.47 | N6: =+M6 -> 801624.47 | P6: RPPT1 | Q6: =E20 -> 0.1030002532 | R6: =E44 -> 0.03185342507 | S6: =$L$32 -> 0.07840000153 | T6: =R6+S6 -> 0.1102534266 | U6: =+Q6-T6 -> -0.007253173371 | V6: =M18 -> 668497.2754 | W6: =Q6*V6 -> 68855.38865 | X6: =R6*V6 -> 21293.92787 | Y6: =+V6*S6 -> 52410.18742 | Z6: =W6-X6-Y6 -> -4848.726637
B7: Source | C7: kWh | D7: Total Cost | K7: Class A customer Volumes for GA (TLF included) | M7: =-B70 -> -4219281.34 | P7: RPPT2 | Q7: =E21 -> 0.1250019425 | R7: =R6 -> 0.03185342507 | S7: =$L$32 -> 0.07840000153 | T7: =R7+S7 -> 0.1102534266 | U7: =+Q7-T7 -> 0.01474851595 | V7: =M19 -> 180883.8147 | W7: =Q7*V7 -> 22610.82821 | X7: =R7*V7 -> 5761.769039 | Y7: =+V7*S7 -> 14181.29135 | Z7: =W7-X7-Y7 -> 2667.767826
B8: FIT | C8: 760532.76 | D8: 26459.57 | E8: =D8/C8 -> 0.03479083531 | M8: =+M5+M6+M7 -> 15747040.94 | N8: =+N5+N6+N7 -> 19966322.28 | P8: RPPTOUMID | Q8: =E23 -> 0.1220003967 | R8: =E45 -> 0.03215891357 | S8: 0.07840000153 | T8: 0.1105589151 | U8: 0.01144148164 | V8: 1563092.319 | W8: 190697.8831 | X8: 50267.35079 | Y8: 122546.4402 | Z8: 17884.09207
B9: microFIT | C9: 41091.71 | D9: 1436.6 | E9: =D9/C9 -> 0.034960823 | P9: RPPTOUOFF | Q9: =E24 -> 0.08700003021 | R9: =R8 -> 0.03215891357 | S9: 0.07840000153 | T9: 0.1105589151 | U9: -0.02355888488 | V9: 5161803.021 | W9: 449077.0188 | X9: 165997.9772 | Y9: 404685.3648 | Z9: -121606.3232
B10: WHOLESALE | C10: 19164697.81 | D10: 608566.83 | E10: =D10/C10 -> 0.03175457479 | K10: Estimated Retail Volume Revenue Data (TLF Included) | L10: RPP/non-RPP Ratios | M10: GA Volumes | N10: Energy Volumes | P10: RPPTOUON | Q10: 0.1820004842 | R10: =R9 -> 0.03215891357 | S10: 0.07840000153 | T10: 0.1105589151 | U10: 0.07144156908 | V10: 1698149.507 | W10: 309064.0324 | X10: 54610.64321 | Y10: 133134.9239 | Z10: 121318.4653
B11: Grand Total | C11: 19966322.28 | D11: 636463 | K11: Estimated Retail Revenue Data (Net of Retail Billed/Unbilled) | M11: =+M15 -> 15747040.94 | N11: =+N15 -> 19966322.28 | P11: RPPULOMID | Q11: =E27 -> 0.1219968331 | R11: =E46 -> 0.03215430662 | S11: 0.07840000153 | T11: 0.1105543081 | U11: 0.011442525 | V11: 2292.109442 | W11: 279.6300932 | X11: 73.70118982 | Y11: 179.7013838 | Z11: 26.22751959
P12: RPPULOOFF | Q12: =E28 -> 0.08699433939 | R12: =R11 -> 0.03215430662 | S12: 0.07840000153 | T12: 0.1105543081 | U12: -0.02355996876 | V12: 1755.171914 | W12: 152.6900212 | X12: 56.43633591 | Y12: 137.6054808 | Z12: -41.35179546
K13: Estimated RPP Sales Quantities | L13: =SUM(C20:C30)/(C35-B70) -> 0.5896634297 | M13: =M8*L13 -> 9285454.168 | N13: =M13 -> 9285454.168 | P13: RPPULOON | Q13: 0.2859998086 | R13: =R12 -> 0.03215430662 | S13: 0.07840000153 | T13: 0.1105543081 | U13: 0.1754455005 | V13: 1254.478468 | W13: 358.7806019 | X13: 40.33688533 | Y13: 98.35111384 | Z13: 220.0926027
A14: RPP Revenue Volume and Price Data | K14: Estimated non-RPP Sales Quantities | L14: =1-L13 -> 0.4103365703 | M14: =M8*L14 -> 6461586.772 | N14: =N8-N13 -> 10680868.11 | P14: RPPULOOVN | Q14: 0.02800141807 | R14: 0.03215430662 | S14: 0.07840000153 | T14: 0.1105543081 | U14: -0.08255289008 | V14: 7726.471004 | W14: 216.3521448 | X14: 248.4393178 | Y14: 605.7553385 | Z14: -637.8425116
B15: bill_year | C15: 2024 | K15: Estimated Retail Revenue kWh Volumes | L15: =+L13+L14 -> 1 | M15: =+M13+M14 -> 15747040.94 | N15: =+N13+N14 -> 19966322.28 | V15: =SUM(V6:V14) -> 9285454.168 | W15: =SUM(W6:W14) -> 1041312.604 | X15: =SUM(X6:X14) -> 298350.5819 | Y15: =SUM(Y6:Y14) -> 727979.621 | Z15: =SUM(Z6:Z14) -> 14982.40119
B16: bill_month | C16: 6 | Z16: =W15-X15-Y15-Z15 -> 0
K17: Estimated RPP Revenue Volume and Price Data | L17: Actual % | M17: kWh Volumes
B18: Row Labels | C18: usagebilled | D18: amountbilled | E18: Rate | K18: RPPT1 | L18: =C20/SUM($C$20:$C$30) -> 0.07199403102 | M18: =$M$13*L18 -> 668497.2754
B19: RPPTIER | K19: RPPT2 | L19: =C21/SUM($C$20:$C$30) -> 0.01948034113 | M19: =$M$13*L19 -> 180883.8147
B20: RPPT1 | C20: 661229.4842 | D20: 68106.80432 | E20: =D20/C20 -> 0.1030002532 | K20: RPPTOUMID | L20: =C23/SUM($C$20:$C$30) -> 0.1683377346 | M20: 1563092.319 | P20: Actual RPP Revenue and GA
B21: RPPT2 | C21: 178917.276 | D21: 22365.00705 | E21: =D21/C21 -> 0.1250019425 | K21: RPPTOUOFF | L21: =C24/SUM($C$20:$C$30) -> 0.5559020515 | M21: 5161803.021 | P21: =P4 -> 202406
B22: RPPTOU | K22: RPPTOUON | L22: 0.1828827622 | M22: 1698149.507 | P22: RPP Revenue Prices | Q22: RPP Rate | R22: Estimated RPP Energy Price | S22: GA actual IESO billed | T22: Total Commodity | U22: Difference | V22: kWh Volumes | W22: $ Estimated RPP Revenue | X22: $ Estimated RPP Energy | Y22: $ Estimated GA | Z22: $ Estimated RPP Settlement
B23: RPPTOUMID | C23: 1546098.64 | D23: 188624.6474 | E23: 0.1220003967 | K23: RPPULOMID | L23: =C27/SUM($C$20:$C$30) -> 0.0002468494702 | M23: 2292.109442 | P23: =P6 -> RPPT1 | Q23: =Q6 -> 0.1030002532 | R23: =R6 -> 0.03185342507 | S23: 0.07840000153 | T23: =R23+S23 -> 0.1102534266 | U23: =+Q23-T23 -> -0.007253173371 | V23: =C20 -> 661229.4842 | W23: =Q23*V23 -> 68106.80432 | X23: =R23*V23 -> 21062.42383 | Y23: =+V23*S23 -> 51840.39257 | Z23: =W23-X23-Y23 -> -4796.012087
B24: RPPTOUOFF | C24: 5105684.757 | D24: 444194.7281 | E24: 0.08700003021 | K24: RPPULOOFF | L24: =C28/SUM($C$20:$C$30) -> 0.0001890238089 | M24: 1755.171914 | P24: =P7 -> RPPT2 | Q24: 0.1250019425 | R24: 0.03185342507 | S24: 0.07840000153 | T24: =R24+S24 -> 0.1102534266 | U24: =+Q24-T24 -> 0.01474851595 | V24: =C21 -> 178917.276 | W24: =Q24*V24 -> 22365.00705 | X24: =R24*V24 -> 5699.128044 | Y24: =+V24*S24 -> 14027.11471 | Z24: =W24-X24-Y24 -> 2638.764298
B25: RPPTOUON | C25: 1679687.508 | D25: 305703.9396 | E25: 0.1820004842 | K25: RPPULOON | L25: 0.0001351014658 | M25: 1254.478468 | P25: RPPTOUMID | Q25: 0.1220003967 | R25: 0.03215891357 | S25: 0.07840000153 | T25: 0.1105589151 | U25: 0.01144148164 | V25: =C23 -> 1546098.64 | W25: 188624.6474 | X25: 49720.85251 | Y25: 121214.1357 | Z25: 17689.65919
B26: RPPULO | K26: RPPULOOVN | L26: 0.0008321048022 | M26: 7726.471004 | P26: RPPTOUOFF | Q26: 0.08700003021 | R26: 0.03215891357 | S26: 0.07840000153 | T26: 0.1105589151 | U26: -0.02355888488 | V26: =C24 -> 5105684.757 | W26: 444194.7281 | X26: 164193.2748 | Y26: 400285.6928 | Z26: -120284.2395
B27: RPPULOMID | C27: 2267.190009 | D27: 276.5900013 | E27: 0.1219968331 | L27: =SUM(L18:L26) -> 1 | M27: =SUM(M18:M26) -> 9285454.168 | P27: RPPTOUON | Q27: 0.1820004842 | R27: 0.03215891357 | S27: 0.07840000153 | T27: 0.1105589151 | U27: 0.07144156908 | V27: 1679687.508 | W27: 305703.9396 | X27: 54016.92538 | Y27: 131687.5032 | Z27: 119999.5111
B28: RPPULOOFF | C28: 1736.089977 | D28: 151.0300007 | E28: 0.08699433939 | P28: RPPULOMID | Q28: 0.1219968331 | R28: 0.03215430662 | S28: 0.07840000153 | T28: 0.1105543081 | U28: 0.011442525 | V28: =C27 -> 2267.190009 | W28: 276.5900013 | X28: 72.89992274 | Y28: 177.7477002 | Z28: 25.94237836
B29: RPPULOON | C29: 1240.839987 | D29: 354.8799989 | E29: 0.2859998086 | P29: RPPULOOFF | Q29: 0.08699433939 | R29: 0.03215430662 | S29: 0.07840000153 | T29: 0.1105543081 | U29: -0.02355996876 | V29: =C28 -> 1736.089977 | W29: 151.0300007 | X29: 55.82276945 | Y29: 136.1094569 | Z29: -40.90222562
B30: RPPULOOVN | C30: 7642.470096 | D30: 214.0000002 | E30: 0.02800141807 | P30: RPPULOON | Q30: 0.2859998086 | R30: 0.03215430662 | S30: 0.07840000153 | T30: 0.1105543081 | U30: 0.1754455005 | V30: 1240.839987 | W30: 354.8799989 | X30: 39.89834942 | Y30: 97.28185689 | Z30: 217.6997926
B31: RETAIL | K31: Global Adjustment | L31: per kWh | P31: RPPULOOVN | Q31: 0.02800141807 | R31: 0.03215430662 | S31: 0.07840000153 | T31: 0.1105543081 | U31: -0.08255289008 | V31: 7642.470096 | W31: 214.0000002 | X31: 245.7383268 | Y31: 599.1696672 | Z31: -630.9079938
B32: NSLS | C32: 3816032.589 | D32: 119944.1917 | E32: 0.03143164765 | K32: Class B - GA actual8 | L32: =B62/100 -> 0.07840000153 | N32: GA Posted Price | V32: =SUM(V23:V31) -> 9184504.255 | W32: =SUM(W23:W31) -> 1029991.627 | X32: =SUM(X23:X31) -> 295106.9639 | Y32: =SUM(Y23:Y31) -> 720065.1476 | Z32: =SUM(Z23:Z31) -> 14819.51501
B33: INTERVAL | K33: Class B - GA actual IESO billed | L33: =+M33/M8 -> 0.07841784464 | M33: =B78 -> 1234849.01 | N33: GA Billed by IESO CT 148 | Z33: =W32-X32-Y32-Z32 -> -1.709850039e-10
B34: HOEP | C34: 6794586.226 | D34: 214485.1202 | E34: 0.03156706134
B35: Grand Total | C35: 19795123.07 | D35: 1364420.938 | M35: =$M$8*L32 -> 1234568.034 | Z35: =Z15-Z32 -> 162.8861745
M36: =$M$8*L33 -> 1234849.01
B37: UFE | C37: =C35-C11 -> -171199.2108 | D37: =C35/C11-1 -> -0.008574398848 | M37: =M35-M36 -> -280.9762759
A39: RPP COP Volume and Price Data
A40: ER COP Summary.xlsm | B40: bill_year | C40: 2024
B41: bill_month | C41: 6
B43: Row Labels | C43: usagebilled | D43: amountbilled | E43: Rate
B44: RPPTIERED | C44: 855916.6127 | D44: 27263.87569 | E44: =D44/C44 -> 0.03185342507
B45: RPPTOU | C45: 8334119.564 | D45: 268016.2307 | E45: 0.03215891357
B46: RPPULO | C46: 12886.60991 | D46: 414.3600063 | E46: 0.03215430662
B47: Grand Total | C47: 9202922.787 | D47: 295694.4664
B50: RPPTIERED | C50: =SUM(C20:C21)-C44 -> -15769.85249 | D50: =C50/SUM(C20:C21) -> -0.01877035446
B51: RPPTOU | C51: =SUM(C23:C25)-C45 -> -2648.659895 | D51: =C51/SUM(C23:C25) -> -0.0003179102376
B52: RPPULO | C52: =SUM(C27:C30)-C46 -> -0.019836999 | D52: =C52/SUM(C27:C30) -> -1.539352062e-06
A58: Global Adjustment - Actual
A59: IESO GA Reconciliation.xlsm
A60: ga_actual | B60: year
A61: month | B61: 2024
A62: 202406 | B62: 7.840000153
A64: Class A kWh
A65: Redshift Class A Report.xlsm
A66: Year | B66: 2024
A68: Class A | B68: Value
A69: kWh
A70: 202406 | B70: 4219281.34
A72: IESO Class B
A73: IESO Invoice Reconciliation.xlsm
A74: chargetype | B74: 148
A76: Sum of chargeamount | B76: year
A77: month | B77: 2024
A78: 202406 | B78: 1234849.01

Sheet I13 Input Rev 06 Init (hidden)
A1: Reverse IESO Posted
A5: =Admin!B23 -> 202406
A6: RPP Revenue Prices | B6: kWh Volumes | C6: $ RPP Settlement
A7: RPPTiered_1 | B7: 540087.38 | C7: -720.16
A8: RPPTiered_2 | B8: 142703.68 | C8: 2542.66
A9: RPPTOU_MID | B9: 3303080.18 | C9: -50161.97
A10: RPPTOU_OFF | B10: 1082041.213 | C10: 7988.34
A11: RPPTOU_ON | B11: 1117694.683 | C11: 31415.66
A12: RPPULO_MID | B12: 657.545 | C12: 3.97
A13: RPPULO_OFF | B13: 337.81 | C13: -30.72
A14: RPPULO_ON | B14: 654.95 | C14: -4.18
A15: RPPULO_ULO | B15: 3485.67 | C15: 50.86
A16: Grand Total | B16: 6190743.111 | C16: -8915.54

Sheet I14 Input 07 Trueup Sett (hidden)
A1: Date: | B1: =Admin!B8+6 -> 202407 | C1: Trueup | K1: ="Data for 1st True up of RPP Settlement based on Actual IESO Invoice" -> Data for 1st True up of RPP Settlement based on Actual IESO Invoice | P1: For Reconciliation
A3: Wholesale Electricty | B3: Year | C3: 2024 | E3: Rate | P3: Actual RPP Revenue and GA
A4: Redshift Wholesale Report.xlsm | B4: dateref | C4: 202407 | K4: Wholesale Volume data per IESO Power Bill: | L4: GA RPP/non-RPP Ratios | M4: GA Volumes | N4: Energy Volumes | P4: =B1 -> 202407
K5: AQEW | M5: =C10 -> 22113864.78 | N5: =+M5 -> 22113864.78 | P5: RPP Revenue Prices | Q5: RPP Rate | R5: Estimated RPP Energy Price | S5: GA actual IESO billed | T5: Total Commodity | U5: Difference | V5: kWh Volumes | W5: $ Estimated RPP Revenue | X5: $ Estimated RPP Energy | Y5: $ Estimated GA | Z5: $ Estimated RPP Settlement
B6: Wholesale | K6: Embedded Generation | M6: =SUM(C8:C9) -> 902808.96 | N6: =+M6 -> 902808.96 | P6: RPPT1 | Q6: =E20 -> 0.10299995 | R6: =E44 -> 0.03848943751 | S6: =$L$32 -> 0.06370999813 | T6: =R6+S6 -> 0.1021994356 | U6: =+Q6-T6 -> 0.0008005143419 | V6: =M18 -> 766307.8532 | W6: =Q6*V6 -> 78929.67056 | X6: =R6*V6 -> 29494.75823 | Y6: =+V6*S6 -> 48821.4719 | Z6: =W6-X6-Y6 -> 613.4404268
B7: Source | C7: kWh | D7: Total Cost | K7: Class A customer Volumes for GA (TLF included) | M7: =-B70 -> -4310552.25 | P7: RPPT2 | Q7: =E21 -> 0.125001337 | R7: =R6 -> 0.03848943751 | S7: =$L$32 -> 0.06370999813 | T7: =R7+S7 -> 0.1021994356 | U7: =+Q7-T7 -> 0.02280190134 | V7: =M19 -> 284054.7693 | W7: =Q7*V7 -> 35507.22595 | X7: =R7*V7 -> 10933.1083 | Y7: =+V7*S7 -> 18097.12882 | Z7: =W7-X7-Y7 -> 6476.988827
B8: FIT | C8: 857288.58 | D8: 33005.47 | E8: 0.04451510098 | M8: =+M5+M6+M7 -> 18706121.49 | N8: =+N5+N6+N7 -> 23016673.74 | P8: RPPTOUMID | Q8: =E23 -> 0.1220000442 | R8: =E45 -> 0.0388121518 | S8: 0.06370999813 | T8: 0.1025221499 | U8: 0.01947789422 | V8: 1987822.643 | W8: 242514.4503 | X8: 77151.6742 | Y8: 126644.1769 | Z8: 38718.59918
B9: microFIT | C9: 45520.38 | D9: 1759.85 | E9: 0.044393075 | P9: RPPTOUOFF | Q9: =E24 -> 0.08700009115 | R9: =R8 -> 0.0388121518 | S9: 0.06370999813 | T9: 0.1025221499 | U9: -0.01552205879 | V9: 6172972.132 | W9: 537049.1381 | X9: 239586.3315 | Y9: 393280.043 | Z9: -95817.23634
B10: WHOLESALE | C10: 22113864.78 | D10: 841945.01 | E10: 0.04397220668 | K10: Estimated Retail Volume Revenue Data (TLF Included) | L10: RPP/non-RPP Ratios | M10: GA Volumes | N10: Energy Volumes | P10: RPPTOUON | Q10: 0.1820002921 | R10: =R9 -> 0.0388121518 | S10: 0.06370999813 | T10: 0.1025221499 | U10: 0.07947814214 | V10: 2267636.765 | W10: 412710.5535 | X10: 88011.86234 | Y10: 144471.134 | Z10: 180227.5571
B11: Grand Total | C11: 23016673.74 | D11: 876710.33 | K11: Estimated Retail Revenue Data (Net of Retail Billed/Unbilled) | M11: =+M15 -> 18706121.49 | N11: =+N15 -> 23016673.74 | P11: RPPULOMID | Q11: =E27 -> 0.122002556 | R11: =E46 -> 0.03881900912 | S11: 0.06370999813 | T11: 0.1025290073 | U11: 0.01947354871 | V11: 2850.330617 | W11: 347.7476207 | X11: 110.6470102 | Y11: 181.5945583 | Z11: 55.50605213
P12: RPPULOOFF | Q12: =E28 -> 0.08699357604 | R12: =R11 -> 0.03881900912 | S12: 0.06370999813 | T12: 0.1025290073 | U12: -0.01553543121 | V12: 1972.546175 | W12: 171.5988457 | X12: 76.57228798 | Y12: 125.6709131 | Z12: -30.64435542
K13: Estimated RPP Sales Quantities | L13: =SUM(C20:C30)/(C35-B70) -> 0.6143570238 | M13: =M8*L13 -> 11492237.13 | N13: =M13 -> 11492237.13 | P13: RPPULOON | Q13: 0.2860031215 | R13: =R12 -> 0.03881900912 | S13: 0.06370999813 | T13: 0.1025290073 | U13: 0.1834741143 | V13: 1707.683807 | W13: 488.4028993 | X13: 66.29059328 | Y13: 108.7965321 | Z13: 313.3157739
A14: RPP Revenue Volume and Price Data | K14: Estimated non-RPP Sales Quantities | L14: =1-L13 -> 0.3856429762 | M14: =M8*L14 -> 7213884.364 | N14: =N8-N13 -> 11524436.61 | P14: RPPULOOVN | Q14: 0.02799941087 | R14: 0.03881900912 | S14: 0.06370999813 | T14: 0.1025290073 | U14: -0.07452959639 | V14: 6912.402576 | W14: 193.5431998 | X14: 268.3326187 | Y14: 440.3891552 | Z14: -515.178574
B15: bill_year | C15: 2024 | K15: Estimated Retail Revenue kWh Volumes | L15: =+L13+L14 -> 1 | M15: =+M13+M14 -> 18706121.49 | N15: =+N13+N14 -> 23016673.74 | V15: =SUM(V6:V14) -> 11492237.13 | W15: =SUM(W6:W14) -> 1307912.331 | X15: =SUM(X6:X14) -> 445699.5771 | Y15: =SUM(Y6:Y14) -> 732170.4058 | Z15: =SUM(Z6:Z14) -> 130042.3481
B16: bill_month | C16: 7 | Z16: =W15-X15-Y15-Z15 -> 0
K17: Estimated RPP Revenue Volume and Price Data | L17: Actual % | M17: kWh Volumes
B18: Row Labels | C18: usagebilled | D18: amountbilled | E18: Rate | K18: RPPT1 | L18: =C20/SUM($C$20:$C$30) -> 0.06668047699 | M18: =$M$13*L18 -> 766307.8532
B19: RPPTIER | K19: RPPT2 | L19: =C21/SUM($C$20:$C$30) -> 0.02471709957 | M19: =$M$13*L19 -> 284054.7693
B20: RPPT1 | C20: 761266.7776 | D20: 78410.44002 | E20: =D20/C20 -> 0.10299995 | K20: RPPTOUMID | L20: =C23/SUM($C$20:$C$30) -> 0.1729709039 | M20: 1987822.643 | P20: Actual RPP Revenue and GA
B21: RPPT2 | C21: 282186.1449 | D21: 35273.64539 | E21: =D21/C21 -> 0.125001337 | K21: RPPTOUOFF | L21: =C24/SUM($C$20:$C$30) -> 0.5371427742 | M21: 6172972.132 | P21: =P4 -> 202407
B22: RPPTOU | K22: RPPTOUON | L22: 0.1973190024 | M22: 2267636.765 | P22: RPP Revenue Prices | Q22: RPP Rate | R22: Estimated RPP Energy Price | S22: GA actual IESO billed | T22: Total Commodity | U22: Difference | V22: kWh Volumes | W22: $ Estimated RPP Revenue | X22: $ Estimated RPP Energy | Y22: $ Estimated GA | Z22: $ Estimated RPP Settlement
B23: RPPTOUMID | C23: 1974745.961 | D23: 240919.0945 | E23: 0.1220000442 | K23: RPPULOMID | L23: =C27/SUM($C$20:$C$30) -> 0.0002480222594 | M23: 2850.330617 | P23: =P6 -> RPPT1 | Q23: =Q6 -> 0.10299995 | R23: =R6 -> 0.03848943751 | S23: 0.06370999813 | T23: =R23+S23 -> 0.1021994356 | U23: =+Q23-T23 -> 0.0008005143419 | V23: =C20 -> 761266.7776 | W23: =Q23*V23 -> 78410.44002 | X23: =R23*V23 -> 29300.73007 | Y23: =+V23*S23 -> 48500.30498 | Z23: =W23-X23-Y23 -> 609.4049734
B24: RPPTOUOFF | C24: 6132363.884 | D24: 533516.2168 | E24: 0.08700009115 | K24: RPPULOOFF | L24: =C28/SUM($C$20:$C$30) -> 0.0001716416181 | M24: 1972.546175 | P24: =P7 -> RPPT2 | Q24: 0.125001337 | R24: 0.03848943751 | S24: 0.06370999813 | T24: =R24+S24 -> 0.1021994356 | U24: =+Q24-T24 -> 0.02280190134 | V24: =C21 -> 282186.1449 | W24: =Q24*V24 -> 35273.64539 | X24: =R24*V24 -> 10861.18599 | Y24: =+V24*S24 -> 17978.07876 | Z24: =W24-X24-Y24 -> 6434.380637
B25: RPPTOUON | C25: 2252719.354 | D25: 409995.5805 | E25: 0.1820002921 | K25: RPPULOON | L25: 0.0001485945502 | M25: 1707.683807 | P25: RPPTOUMID | Q25: 0.1220000442 | R25: 0.0388121518 | S25: 0.06370999813 | T25: 0.1025221499 | U25: 0.01947789422 | V25: =C23 -> 1974745.961 | W25: 240919.0945 | X25: 76644.14002 | Y25: 125811.0615 | Z25: 38463.89295
B26: RPPULO | K26: RPPULOOVN | L26: 0.0006014845065 | M26: 6912.402576 | P26: RPPTOUOFF | Q26: 0.08700009115 | R26: 0.0388121518 | S26: 0.06370999813 | T26: 0.1025221499 | U26: -0.01552205879 | V26: =C24 -> 6132363.884 | W26: 533516.2168 | X26: 238010.238 | Y26: 390692.8916 | Z26: -95186.91272
B27: RPPULOMID | C27: 2831.580017 | D27: 345.4599995 | E27: 0.122002556 | L27: =SUM(L18:L26) -> 1 | M27: =SUM(M18:M26) -> 11492237.13 | P27: RPPTOUON | Q27: 0.1820002921 | R27: 0.0388121518 | S27: 0.06370999813 | T27: 0.1025221499 | U27: 0.07947814214 | V27: 2252719.354 | W27: 409995.5805 | X27: 87432.88556 | Y27: 143520.7459 | Z27: 179041.9491
B28: RPPULOOFF | C28: 1959.569988 | D28: 170.4700007 | E28: 0.08699357604 | P28: RPPULOMID | Q28: 0.122002556 | R28: 0.03881900912 | S28: 0.06370999813 | T28: 0.1025290073 | U28: 0.01947354871 | V28: =C27 -> 2831.580017 | W28: 345.4599995 | X28: 109.9191305 | Y28: 180.3999576 | Z28: 55.1409114
B29: RPPULOON | C29: 1696.449988 | D29: 485.1899922 | E29: 0.2860031215 | P29: RPPULOOFF | Q29: 0.08699357604 | R29: 0.03881900912 | S29: 0.06370999813 | T29: 0.1025290073 | U29: -0.01553543121 | V29: =C28 -> 1959.569988 | W29: 170.4700007 | X29: 76.06856524 | Y29: 124.8442003 | Z29: -30.44276475
B30: RPPULOOVN | C30: 6866.930062 | D30: 192.2699962 | E30: 0.02799941087 | P30: RPPULOON | Q30: 0.2860031215 | R30: 0.03881900912 | S30: 0.06370999813 | T30: 0.1025290073 | U30: 0.1834741143 | V30: 1696.449988 | W30: 485.1899922 | X30: 65.85450758 | Y30: 108.0808256 | Z30: 311.254659
B31: RETAIL | K31: Global Adjustment | L31: per kWh | P31: RPPULOOVN | Q31: 0.02799941087 | R31: 0.03881900912 | S31: 0.06370999813 | T31: 0.1025290073 | U31: -0.07452959639 | V31: 6866.930062 | W31: 192.2699962 | X31: 266.5674207 | Y31: 437.4921014 | Z31: -511.789526
B32: NSLS | C32: 4363334.348 | D32: 162169.6645 | E32: 0.03716645382 | K32: Class B - GA actual8 | L32: =B62/100 -> 0.06370999813 | N32: GA Posted Price | V32: =SUM(V23:V31) -> 11416636.65 | W32: =SUM(W23:W31) -> 1299308.367 | X32: =SUM(X23:X31) -> 442767.5892 | Y32: =SUM(Y23:Y31) -> 727353.8998 | Z32: =SUM(Z23:Z31) -> 129186.8782
B33: INTERVAL | K33: Class B - GA actual IESO billed | L33: =+M33/M8 -> 0.06370185614 | M33: =B78 -> 1191614.66 | N33: GA Billed by IESO CT 148 | Z33: =W32-X32-Y32-Z32 -> 0
B34: HOEP | C34: 7113646.487 | D34: 263246.6493 | E34: 0.03700586609
B35: Grand Total | C35: 22893617.49 | D35: 1724724.681 | M35: =$M$8*L32 -> 1191766.965 | Z35: =Z15-Z32 -> 855.4699151
M36: =$M$8*L33 -> 1191614.66
B37: UFE | C37: =C35-C11 -> -123056.2536 | D37: =C35/C11-1 -> -0.005346396051 | M37: =M35-M36 -> 152.3051624
A39: RPP COP Volume and Price Data
A40: ER COP Summary.xlsm | B40: bill_year | C40: 2024
B41: bill_month | C41: 7
B43: Row Labels | C43: usagebilled | D43: amountbilled | E43: Rate
B44: RPPTIERED | C44: 1047533.042 | D44: 40318.95758 | E44: =D44/C44 -> 0.03848943751
B45: RPPTOU | C45: 10355897.19 | D45: 401934.6537 | E45: 0.0388121518
B46: RPPULO | C46: 13354.53981 | D46: 518.4100027 | E46: 0.03881900912
B47: Grand Total | C47: 11416784.77 | D47: 442772.0213
B50: RPPTIERED | C50: =SUM(C20:C21)-C44 -> -4080.119955 | D50: =C50/SUM(C20:C21) -> -0.003910209907
B51: RPPTOU | C51: =SUM(C23:C25)-C45 -> 3932.012417 | D51: =C51/SUM(C23:C25) -> 0.0003795441355
B52: RPPULO | C52: =SUM(C27:C30)-C46 -> -0.009753556 | D52: =C52/SUM(C27:C30) -> -7.303556141e-07
A58: Global Adjustment - Actual
A59: IESO GA Reconciliation.xlsm
A60: ga_actual | B60: year
A61: month | B61: 2024
A62: 202407 | B62: 6.370999813
A64: Class A kWh
A65: Redshift Class A Report.xlsm
A66: Year | B66: 2024
A68: Class A | B68: Value
A69: kWh
A70: 202407 | B70: 4310552.25
A72: IESO Class B
A73: IESO Invoice Reconciliation.xlsm
A74: chargetype | B74: 148
A76: Sum of chargeamount | B76: year
A77: month | B77: 2024
A78: 202407 | B78: 1191614.66

Sheet I15 Input Rev 07 Init (hidden)
A1: Reverse IESO Posted
A5: =Admin!B26 -> 202407
A6: RPP Revenue Prices | B6: kWh Volumes | C6: $ RPP Settlement
A7: RPPTiered_1 | B7: 382514.84 | C7: -201.57
A8: RPPTiered_2 | B8: 400513.52 | C8: -12712.37
A9: RPPTOU_MID | B9: 4270477.033 | C9: 78661
A10: RPPTOU_OFF | B10: 1309658.18 | C10: -22973.61
A11: RPPTOU_ON | B11: 1440704.41 | C11: -123468.39
A12: RPPULO_MID | B12: 1182.541 | C12: 31.87
A13: RPPULO_OFF | B13: 1417.61 | C13: -46.65
A14: RPPULO_ON | B14: 725.61 | C14: -248.14
A15: RPPULO_ULO | B15: 4942.512 | C15: 535.4
A16: Grand Total | B16: 7812136.256 | C16: -80422.46

Sheet I16 Input 08 Trueup Sett (hidden)
A1: Date: | B1: =Admin!B8+7 -> 202408 | C1: Trueup | K1: ="Data for 1st True up of RPP Settlement based on Actual IESO Invoice" -> Data for 1st True up of RPP Settlement based on Actual IESO Invoice | P1: For Reconciliation
A3: Wholesale Electricty | B3: Year | C3: 2024 | E3: Rate | P3: Actual RPP Revenue and GA
A4: Redshift Wholesale Report.xlsm | B4: dateref | C4: 202408 | K4: Wholesale Volume data per IESO Power Bill: | L4: GA RPP/non-RPP Ratios | M4: GA Volumes | N4: Energy Volumes | P4: =B1 -> 202408
K5: AQEW | M5: =C10 -> 20922163.18 | N5: =+M5 -> 20922163.18 | P5: RPP Revenue Prices | Q5: RPP Rate | R5: Estimated RPP Energy Price | S5: GA actual IESO billed | T5: Total Commodity | U5: Difference | V5: kWh Volumes | W5: $ Estimated RPP Revenue | X5: $ Estimated RPP Energy | Y5: $ Estimated GA | Z5: $ Estimated RPP Settlement
B6: Wholesale | K6: Embedded Generation | M6: =SUM(C8:C9) -> 740534.22 | N6: =+M6 -> 740534.22 | P6: RPPT1 | Q6: =E20 -> 0.1029998263 | R6: =E44 -> 0.03951304055 | S6: =$L$32 -> 0.06322999954 | T6: =R6+S6 -> 0.1027430401 | U6: =+Q6-T6 -> 0.0002567862209 | V6: =M18 -> 729268.2172 | W6: =Q6*V6 -> 75114.4997 | X6: =R6*V6 -> 28815.60463 | Y6: =+V6*S6 -> 46111.62904 | Z6: =W6-X6-Y6 -> 187.2660295
B7: Source | C7: kWh | D7: Total Cost | K7: Class A customer Volumes for GA (TLF included) | M7: =-B70 -> -4202619.37 | P7: RPPT2 | Q7: =E21 -> 0.1250012386 | R7: =R6 -> 0.03951304055 | S7: =$L$32 -> 0.06322999954 | T7: =R7+S7 -> 0.1027430401 | U7: =+Q7-T7 -> 0.02225819854 | V7: =M19 -> 219178.5044 | W7: =Q7*V7 -> 27397.58453 | X7: =R7*V7 -> 8660.409131 | Y7: =+V7*S7 -> 13858.65673 | Z7: =W7-X7-Y7 -> 4878.518666
B8: FIT | C8: 702800.11 | D8: 29757.12 | E8: =D8/C8 -> 0.04234080157 | M8: =+M5+M6+M7 -> 17460078.03 | N8: =+N5+N6+N7 -> 21662697.4 | P8: RPPTOUMID | Q8: =E23 -> 0.1220000855 | R8: =E45 -> 0.04016415479 | S8: 0.06322999954 | T8: 0.1033941543 | U8: 0.01860593111 | V8: 1700916.408 | W8: 207511.9471 | X8: 68315.8699 | Y8: 107548.9437 | Z8: 31647.13351
B9: microFIT | C9: 37734.11 | D9: 1620.48 | E9: =D9/C9 -> 0.04294469911 | P9: RPPTOUOFF | Q9: =E24 -> 0.08700011586 | R9: =R8 -> 0.04016415479 | S9: 0.06322999954 | T9: 0.1033941543 | U9: -0.01639403848 | V9: 5994393.937 | W9: 521512.967 | X9: 240759.766 | Y9: 379025.5259 | Z9: -98272.32484
B10: WHOLESALE | C10: 20922163.18 | D10: 807260.37 | E10: =D10/C10 -> 0.03858398212 | K10: Estimated Retail Volume Revenue Data (TLF Included) | L10: RPP/non-RPP Ratios | M10: GA Volumes | N10: Energy Volumes | P10: RPPTOUON | Q10: 0.1819999304 | R10: =R9 -> 0.04016415479 | S10: 0.06322999954 | T10: 0.1033941543 | U10: 0.07860577604 | V10: 1903641.987 | W10: 346462.7091 | X10: 76458.17144 | Y10: 120367.282 | Z10: 149637.2557
B11: Grand Total | C11: 21662697.4 | D11: 838637.97 | K11: Estimated Retail Revenue Data (Net of Retail Billed/Unbilled) | M11: =+M15 -> 17460078.03 | N11: =+N15 -> 21662697.4 | P11: RPPULOMID | Q11: =E27 -> 0.1220023952 | R11: =E46 -> 0.04016941824 | S11: 0.06322999954 | T11: 0.1033994178 | U11: 0.01860297742 | V11: 2543.851838 | W11: 310.3560173 | X11: 102.1850484 | Y11: 160.8477505 | Z11: 47.3232183
P12: RPPULOOFF | Q12: =E28 -> 0.08700266465 | R12: =R11 -> 0.04016941824 | S12: 0.06322999954 | T12: 0.1033994178 | U12: -0.01639675314 | V12: 2129.950874 | W12: 185.3114016 | X12: 85.55888749 | Y12: 134.6767928 | Z12: -34.92427868
K13: Estimated RPP Sales Quantities | L13: =SUM(C20:C30)/(C35-B70) -> 0.6048668069 | M13: =M8*L13 -> 10561021.65 | N13: =M13 -> 10561021.65 | P13: RPPULOON | Q13: 0.2859933807 | R13: =R12 -> 0.04016941824 | S13: 0.06322999954 | T13: 0.1033994178 | U13: 0.1825939629 | V13: 1529.135248 | W13: 437.3225591 | X13: 61.42447333 | Y13: 96.68722104 | Z13: 279.2108647
A14: RPP Revenue Volume and Price Data | K14: Estimated non-RPP Sales Quantities | L14: =1-L13 -> 0.3951331931 | M14: =M8*L14 -> 6899056.383 | N14: =N8-N13 -> 11101675.75 | P14: RPPULOOVN | Q14: 0.02800224992 | R14: 0.04016941824 | S14: 0.06322999954 | T14: 0.1033994178 | U14: -0.07539716787 | V14: 7419.655694 | W14: 207.7670531 | X14: 298.0432528 | Y14: 469.1448261 | Z14: -559.4210259
B15: bill_year | C15: 2024 | K15: Estimated Retail Revenue kWh Volumes | L15: =+L13+L14 -> 1 | M15: =+M13+M14 -> 17460078.03 | N15: =+N13+N14 -> 21662697.4 | V15: =SUM(V6:V14) -> 10561021.65 | W15: =SUM(W6:W14) -> 1179140.464 | X15: =SUM(X6:X14) -> 423557.0327 | Y15: =SUM(Y6:Y14) -> 667773.3939 | Z15: =SUM(Z6:Z14) -> 87810.03783
B16: bill_month | C16: 8 | Z16: =W15-X15-Y15-Z15 -> 0
K17: Estimated RPP Revenue Volume and Price Data | L17: Actual % | M17: kWh Volumes
B18: Row Labels | C18: usagebilled | D18: amountbilled | E18: Rate | K18: RPPT1 | L18: =C20/SUM($C$20:$C$30) -> 0.06905280962 | M18: =$M$13*L18 -> 729268.2172
B19: RPPTIER | K19: RPPT2 | L19: =C21/SUM($C$20:$C$30) -> 0.02075353235 | M19: =$M$13*L19 -> 219178.5044
B20: RPPT1 | C20: 732332.2854 | D20: 75430.0982 | E20: =D20/C20 -> 0.1029998263 | K20: RPPTOUMID | L20: =C23/SUM($C$20:$C$30) -> 0.1610560479 | M20: 1700916.408 | P20: Actual RPP Revenue and GA
B21: RPPT2 | C21: 220099.3972 | D21: 27512.69728 | E21: =D21/C21 -> 0.1250012386 | K21: RPPTOUOFF | L21: =C24/SUM($C$20:$C$30) -> 0.5675960279 | M21: 5994393.937 | P21: =P4 -> 202408
B22: RPPTOU | K22: RPPTOUON | L22: 0.1802516888 | M22: 1903641.987 | P22: RPP Revenue Prices | Q22: RPP Rate | R22: Estimated RPP Energy Price | S22: GA actual IESO billed | T22: Total Commodity | U22: Difference | V22: kWh Volumes | W22: $ Estimated RPP Revenue | X22: $ Estimated RPP Energy | Y22: $ Estimated GA | Z22: $ Estimated RPP Settlement
B23: RPPTOUMID | C23: 1708062.92 | D23: 208383.8222 | E23: 0.1220000855 | K23: RPPULOMID | L23: =C27/SUM($C$20:$C$30) -> 0.0002408717568 | M23: 2543.851838 | P23: =P6 -> RPPT1 | Q23: =Q6 -> 0.1029998263 | R23: =R6 -> 0.03951304055 | S23: 0.06322999954 | T23: =R23+S23 -> 0.1027430401 | U23: =+Q23-T23 -> 0.0002567862209 | V23: =C20 -> 732332.2854 | W23: =Q23*V23 -> 75430.0982 | X23: =R23*V23 -> 28936.67529 | Y23: =+V23*S23 -> 46305.37007 | Z23: =W23-X23-Y23 -> 188.05284
B24: RPPTOUOFF | C24: 6019579.776 | D24: 523704.138 | E24: 0.08700011586 | K24: RPPULOOFF | L24: =C28/SUM($C$20:$C$30) -> 0.0002016803814 | M24: 2129.950874 | P24: =P7 -> RPPT2 | Q24: 0.1250012386 | R24: 0.03951304055 | S24: 0.06322999954 | T24: =R24+S24 -> 0.1027430401 | U24: =+Q24-T24 -> 0.02225819854 | V24: =C21 -> 220099.3972 | W24: =Q24*V24 -> 27512.69728 | X24: =R24*V24 -> 8696.796408 | Y24: =+V24*S24 -> 13916.88479 | Z24: =W24-X24-Y24 -> 4899.016082
B25: RPPTOUON | C25: 1911640.264 | D25: 347918.3949 | E25: 0.1819999304 | K25: RPPULOON | L25: 0.0001447904662 | M25: 1529.135248 | P25: RPPTOUMID | Q25: 0.1220000855 | R25: 0.04016415479 | S25: 0.06322999954 | T25: 0.1033941543 | U25: 0.01860593111 | V25: =C23 -> 1708062.92 | W25: 208383.8222 | X25: 68602.9035 | Y25: 108000.8176 | Z25: 31780.10102
B26: RPPULO | K26: RPPULOOVN | L26: 0.0007025509408 | M26: 7419.655694 | P26: RPPTOUOFF | Q26: 0.08700011586 | R26: 0.04016415479 | S26: 0.06322999954 | T26: 0.1033941543 | U26: -0.01639403848 | V26: =C24 -> 6019579.776 | W26: 523704.138 | X26: 241771.3339 | Y26: 380618.0265 | Z26: -98685.22246
B27: RPPULOMID | C27: 2554.539998 | D27: 311.6599984 | E27: 0.1220023952 | L27: =SUM(L18:L26) -> 1 | M27: =SUM(M18:M26) -> 10561021.65 | P27: RPPTOUON | Q27: 0.1819999304 | R27: 0.04016415479 | S27: 0.06322999954 | T27: 0.1033941543 | U27: 0.07860577604 | V27: 1911640.264 | W27: 347918.3949 | X27: 76779.41546 | Y27: 120873.013 | Z27: 150265.9664
B28: RPPULOOFF | C28: 2138.900002 | D28: 186.0899996 | E28: 0.08700266465 | P28: RPPULOMID | Q28: 0.1220023952 | R28: 0.04016941824 | S28: 0.06322999954 | T28: 0.1033994178 | U28: 0.01860297742 | V28: =C27 -> 2554.539998 | W28: 311.6599984 | X28: 102.6143856 | Y28: 161.5235629 | Z28: 47.52204991
B29: RPPULOON | C29: 1535.56001 | D29: 439.1599985 | E29: 0.2859933807 | P29: RPPULOOFF | Q29: 0.08700266465 | R29: 0.04016941824 | S29: 0.06322999954 | T29: 0.1033994178 | U29: -0.01639675314 | V29: =C28 -> 2138.900002 | W29: 186.0899996 | X29: 85.91836877 | Y29: 135.2426462 | Z29: -35.07101532
B30: RPPULOOVN | C30: 7450.829864 | D30: 208.6399999 | E30: 0.02800224992 | P30: RPPULOON | Q30: 0.2859933807 | R30: 0.04016941824 | S30: 0.06322999954 | T30: 0.1033994178 | U30: 0.1825939629 | V30: 1535.56001 | W30: 439.1599985 | X30: 61.68255229 | Y30: 97.09345874 | Z30: 280.3839875
B31: RETAIL | K31: Global Adjustment | L31: per kWh | P31: RPPULOOVN | Q31: 0.02800224992 | R31: 0.04016941824 | S31: 0.06322999954 | T31: 0.1033994178 | U31: -0.07539716787 | V31: 7450.829864 | W31: 208.6399999 | X31: 299.2955011 | Y31: 471.1159689 | Z31: -561.77147
B32: NSLS | C32: 3955223.828 | D32: 149782.6618 | E32: 0.03786957915 | K32: Class B - GA actual8 | L32: =B62/100 -> 0.06322999954 | N32: GA Posted Price | V32: =SUM(V23:V31) -> 10605394.47 | W32: =SUM(W23:W31) -> 1184094.7 | X32: =SUM(X23:X31) -> 425336.6354 | Y32: =SUM(Y23:Y31) -> 670579.0876 | Z32: =SUM(Z23:Z31) -> 88178.97746
B33: INTERVAL | K33: Class B - GA actual IESO billed | L33: =+M33/M8 -> 0.06349434224 | M33: =B78 -> 1108616.17 | N33: GA Billed by IESO CT 148 | Z33: =W32-X32-Y32-Z32 -> 0
B34: HOEP | C34: 7175438.763 | D34: 260489.0106 | E34: 0.03630286861
B35: Grand Total | C35: 21736057.06 | D35: 1594366.373 | M35: =$M$8*L32 -> 1104000.726 | Z35: =Z15-Z32 -> -368.9396325
M36: =$M$8*L33 -> 1108616.17
B37: UFE | C37: =C35-C11 -> 73359.66286 | D37: =C35/C11-1 -> 0.003386450981 | M37: =M35-M36 -> -4615.444156
M38: =M37/M35 -> -0.004180653189
A39: RPP COP Volume and Price Data
A40: ER COP Summary.xlsm | B40: bill_year | C40: 2024
B41: bill_month | C41: 8
B43: Row Labels | C43: usagebilled | D43: amountbilled | E43: Rate
B44: RPPTIERED | C44: 1047292.282 | D44: 41381.70241 | E44: =D44/C44 -> 0.03951304055
B45: RPPTOU | C45: 9643366.438 | D45: 387317.6624 | E45: 0.04016415479
B46: RPPULO | C46: 13679.80999 | D46: 549.5100091 | E46: 0.04016941824
B47: Grand Total | C47: 10704338.53 | D47: 429248.8748
B50: RPPTIERED | C50: =SUM(C20:C21)-C44 -> -94860.59941 | D50: =C50/SUM(C20:C21) -> -0.0995983241
B51: RPPTOU | C51: =SUM(C23:C25)-C45 -> -4083.4785 | D51: =C51/SUM(C23:C25) -> -0.000423628865
B52: RPPULO | C52: =SUM(C27:C30)-C46 -> 0.019880348 | D52: =C52/SUM(C27:C30) -> 1.453259886e-06
A58: Global Adjustment - Actual
A59: IESO GA Reconciliation.xlsm
A60: ga_actual | B60: year
A61: month | B61: 2024
A62: 202408 | B62: 6.322999954
A64: Class A kWh
A65: Redshift Class A Report.xlsm
A66: Year | B66: 2024
A68: Class A | B68: Value
A69: kWh
A70: 202408 | B70: 4202619.37
A72: IESO Class B
A73: IESO Invoice Reconciliation.xlsm
A74: chargetype | B74: 148
A76: Sum of chargeamount | B76: year
A77: month | B77: 2024
A78: 202408 | B78: 1108616.17

Sheet I17 Input Rev 08 Init (hidden)
A1: Reverse IESO Posted
A5: =Admin!B29 -> 202408
A6: RPP Revenue Prices | B6: kWh Volumes | C6: $ RPP Settlement
A7: RPPTiered_1 | B7: 581336.19 | C7: -3874.84
A8: RPPTiered_2 | B8: 215996.21 | C8: -488.35
A9: RPPTOU_MID | B9: 4673226.625 | C9: 70800
A10: RPPTOU_OFF | B10: 1504704.65 | C10: -42999.13
A11: RPPTOU_ON | B11: 1716433.19 | C11: -181458.07
A12: RPPULO_MID | B12: 1498.207 | C12: 36.79
A13: RPPULO_OFF | B13: 1297.04 | C13: -429.83
A14: RPPULO_ON | B14: 2164.91 | C14: -77.81
A15: RPPULO_ULO | B15: 5250.175 | C15: 469.12
A16: Grand Total | B16: 8701907.197 | C16: -158022.12

Sheet I18 Input 09 Trueup Sett (hidden)
A1: Date: | B1: =Admin!B8+8 -> 202409 | C1: Trueup | K1: ="Data for 1st True up of RPP Settlement based on Actual IESO Invoice" -> Data for 1st True up of RPP Settlement based on Actual IESO Invoice | P1: For Reconciliation
A3: Wholesale Electricty | B3: Year | C3: 2024 | E3: Rate | P3: Actual RPP Revenue and GA
A4: Redshift Wholesale Report.xlsm | B4: dateref | C4: 202409 | K4: Wholesale Volume data per IESO Power Bill: | L4: GA RPP/non-RPP Ratios | M4: GA Volumes | N4: Energy Volumes | P4: =B1 -> 202409
K5: AQEW | M5: =C10 -> 18835595.33 | N5: =+M5 -> 18835595.33 | P5: RPP Revenue Prices | Q5: RPP Rate | R5: Estimated RPP Energy Price | S5: GA actual IESO billed | T5: Total Commodity | U5: Difference | V5: kWh Volumes | W5: $ Estimated RPP Revenue | X5: $ Estimated RPP Energy | Y5: $ Estimated GA | Z5: $ Estimated RPP Settlement
B6: Wholesale | K6: Embedded Generation | M6: =SUM(C8:C9) -> 656353.97 | N6: =+M6 -> 656353.97 | P6: RPPT1 | Q6: =E20 -> 0.1029999932 | R6: =E44 -> 0.03229151359 | S6: =$L$32 -> 0.07927999973 | T6: =R6+S6 -> 0.1115715133 | U6: =+Q6-T6 -> -0.008571520081 | V6: =M18 -> 632833.921 | W6: =Q6*V6 -> 65181.88959 | X6: =R6*V6 -> 20435.16516 | Y6: =+V6*S6 -> 50171.07309 | Z6: =W6-X6-Y6 -> -5424.348662
B7: Source | C7: kWh | D7: Total Cost | K7: Class A customer Volumes for GA (TLF included) | M7: =-B70 -> -4366990.74 | P7: RPPT2 | Q7: =E21 -> 0.1250021266 | R7: =R6 -> 0.03229151359 | S7: =$L$32 -> 0.07927999973 | T7: =R7+S7 -> 0.1115715133 | U7: =+Q7-T7 -> 0.01343061323 | V7: =M19 -> 155943.989 | W7: =Q7*V7 -> 19493.33025 | X7: =R7*V7 -> 5035.66744 | Y7: =+V7*S7 -> 12363.23941 | Z7: =W7-X7-Y7 -> 2094.423402
B8: FIT | C8: 622368.69 | D8: 20482.01 | E8: =D8/C8 -> 0.03290976929 | M8: =+M5+M6+M7 -> 15124958.56 | N8: =+N5+N6+N7 -> 19491949.3 | P8: RPPTOUMID | Q8: =E23 -> 0.1220004079 | R8: =E45 -> 0.03239339079 | S8: 0.07927999973 | T8: 0.1116733905 | U8: 0.01032701734 | V8: 1412553.33 | W8: 172332.0824 | X8: 45757.39204 | Y8: 111987.2276 | Z8: 14587.46274
B9: microFIT | C9: 33985.28 | D9: 1119.81 | E9: =D9/C9 -> 0.03294985358 | P9: RPPTOUOFF | Q9: =E24 -> 0.08699924917 | R9: =R8 -> 0.03239339079 | S9: 0.07927999973 | T9: 0.1116733905 | U9: -0.02467414136 | V9: 4938174.848 | W9: 429617.504 | X9: 159964.2276 | Y9: 391498.5006 | Z9: -121845.2242
B10: WHOLESALE | C10: 18835595.33 | D10: 604221.58 | E10: =D10/C10 -> 0.03207870892 | K10: Estimated Retail Volume Revenue Data (TLF Included) | L10: RPP/non-RPP Ratios | M10: GA Volumes | N10: Energy Volumes | P10: RPPTOUON | Q10: 0.1819985324 | R10: =R9 -> 0.03239339079 | S10: 0.07927999973 | T10: 0.1116733905 | U10: 0.07032514188 | V10: 1536763.359 | W10: 279688.676 | X10: 49780.97604 | Y10: 121834.5987 | Z10: 108073.1013
B11: Grand Total | C11: 19491949.3 | D11: 625823.4 | K11: Estimated Retail Revenue Data (Net of Retail Billed/Unbilled) | M11: =+M15 -> 15124958.56 | N11: =+N15 -> 19491949.3 | P11: RPPULOMID | Q11: =E27 -> 0.1219970551 | R11: =E46 -> 0.03238396831 | S11: 0.07927999973 | T11: 0.111663968 | U11: 0.01033308706 | V11: 2244.932496 | W11: 273.8751534 | X11: 72.69982281 | Y11: 177.9782477 | Z11: 23.19708293
P12: RPPULOOFF | Q12: =E28 -> 0.08699642746 | R12: =R11 -> 0.03238396831 | S12: 0.07927999973 | T12: 0.111663968 | U12: -0.02466754058 | V12: 1933.085681 | W12: 168.1715482 | X12: 62.60098544 | Y12: 153.2550323 | Z12: -47.68446949
K13: Estimated RPP Sales Quantities | L13: =SUM(C20:C30)/(C35-B70) -> 0.5744484326 | M13: =M8*L13 -> 8688508.738 | N13: =M13 -> 8688508.738 | P13: RPPULOON | Q13: 0.2859962328 | R13: =R12 -> 0.03238396831 | S13: 0.07927999973 | T13: 0.111663968 | U13: 0.1743322648 | V13: 1198.720107 | W13: 342.8294349 | X13: 38.81931397 | Y13: 95.03452978 | Z13: 208.9755911
A14: RPP Revenue Volume and Price Data | K14: Estimated non-RPP Sales Quantities | L14: =1-L13 -> 0.4255515674 | M14: =M8*L14 -> 6436449.822 | N14: =N8-N13 -> 10803440.56 | P14: RPPULOOVN | Q14: 0.02800198277 | R14: 0.03238396831 | S14: 0.07927999973 | T14: 0.111663968 | U14: -0.08366198528 | V14: 6862.552493 | W14: 192.1650767 | X14: 222.2366825 | Y14: 544.0631598 | Z14: -574.1347657
B15: bill_year | C15: 2024 | K15: Estimated Retail Revenue kWh Volumes | L15: =+L13+L14 -> 1 | M15: =+M13+M14 -> 15124958.56 | N15: =+N13+N14 -> 19491949.3 | V15: =SUM(V6:V14) -> 8688508.738 | W15: =SUM(W6:W14) -> 967290.5235 | X15: =SUM(X6:X14) -> 281369.7851 | Y15: =SUM(Y6:Y14) -> 688824.9704 | Z15: =SUM(Z6:Z14) -> -2904.232052
B16: bill_month | C16: 9 | Z16: =W15-X15-Y15-Z15 -> -2.901288099e-10
K17: Estimated RPP Revenue Volume and Price Data | L17: Actual % | M17: kWh Volumes
B18: Row Labels | C18: usagebilled | D18: amountbilled | E18: Rate | K18: RPPT1 | L18: =C20/SUM($C$20:$C$30) -> 0.07283573512 | M18: =$M$13*L18 -> 632833.921
B19: RPPTIER | K19: RPPT2 | L19: =C21/SUM($C$20:$C$30) -> 0.01794830318 | M19: =$M$13*L19 -> 155943.989
B20: RPPT1 | C20: 641972.239 | D20: 66123.13627 | E20: =D20/C20 -> 0.1029999932 | K20: RPPTOUMID | L20: =C23/SUM($C$20:$C$30) -> 0.1625771894 | M20: 1412553.33 | P20: Actual RPP Revenue and GA
B21: RPPT2 | C21: 158195.8685 | D21: 19774.81998 | E21: =D21/C21 -> 0.1250021266 | K21: RPPTOUOFF | L21: =C24/SUM($C$20:$C$30) -> 0.56835701 | M21: 4938174.848 | P21: =P4 -> 202409
B22: RPPTOU | K22: RPPTOUON | L22: 0.1768730867 | M22: 1536763.359 | P22: RPP Revenue Prices | Q22: RPP Rate | R22: Estimated RPP Energy Price | S22: GA actual IESO billed | T22: Total Commodity | U22: Difference | V22: kWh Volumes | W22: $ Estimated RPP Revenue | X22: $ Estimated RPP Energy | Y22: $ Estimated GA | Z22: $ Estimated RPP Settlement
B23: RPPTOUMID | C23: 1432951.038 | D23: 174820.6111 | E23: 0.1220004079 | K23: RPPULOMID | L23: =C27/SUM($C$20:$C$30) -> 0.0002583794945 | M23: 2244.932496 | P23: =P6 -> RPPT1 | Q23: =Q6 -> 0.1029999932 | R23: =R6 -> 0.03229151359 | S23: 0.07927999973 | T23: =R23+S23 -> 0.1115715133 | U23: =+Q23-T23 -> -0.008571520081 | V23: =C20 -> 641972.239 | W23: =Q23*V23 -> 66123.13627 | X23: =R23*V23 -> 20730.25528 | Y23: =+V23*S23 -> 50895.55893 | Z23: =W23-X23-Y23 -> -5502.677938
B24: RPPTOUOFF | C24: 5009483.623 | D24: 435821.3139 | E24: 0.08699924917 | K24: RPPULOOFF | L24: =C28/SUM($C$20:$C$30) -> 0.0002224876258 | M24: 1933.085681 | P24: =P7 -> RPPT2 | Q24: 0.1250021266 | R24: 0.03229151359 | S24: 0.07927999973 | T24: =R24+S24 -> 0.1115715133 | U24: =+Q24-T24 -> 0.01343061323 | V24: =C21 -> 158195.8685 | W24: =Q24*V24 -> 19774.81998 | X24: =R24*V24 -> 5108.384038 | Y24: =+V24*S24 -> 12541.76841 | Z24: =W24-X24-Y24 -> 2124.667525
B25: RPPTOUON | C25: 1558954.698 | D25: 283727.4671 | E25: 0.1819985324 | K25: RPPULOON | L25: 0.0001379661509 | M25: 1198.720107 | P25: RPPTOUMID | Q25: 0.1220004079 | R25: 0.03239339079 | S25: 0.07927999973 | T25: 0.1116733905 | U25: 0.01032701734 | V25: =C23 -> 1432951.038 | W25: 174820.6111 | X25: 46418.14296 | Y25: 113604.3579 | Z25: 14798.11022
B26: RPPULO | K26: RPPULOOVN | L26: 0.0007898423885 | M26: 6862.552493 | P26: RPPTOUOFF | Q26: 0.08699924917 | R26: 0.03239339079 | S26: 0.07927999973 | T26: 0.1116733905 | U26: -0.02467414136 | V26: =C24 -> 5009483.623 | W26: 435821.3139 | X26: 162274.1607 | Y26: 397151.8603 | Z26: -123604.707
B27: RPPULOMID | C27: 2277.350017 | D27: 277.8299955 | E27: 0.1219970551 | L27: =SUM(L18:L26) -> 1 | M27: =SUM(M18:M26) -> 8688508.738 | P27: RPPTOUON | Q27: 0.1819985324 | R27: 0.03239339079 | S27: 0.07927999973 | T27: 0.1116733905 | U27: 0.07032514188 | V27: 1558954.698 | W27: 283727.4671 | X27: 50499.82876 | Y27: 123593.928 | Z27: 109633.7103
B28: RPPULOOFF | C28: 1961.000037 | D28: 170.5999975 | E28: 0.08699642746 | P28: RPPULOMID | Q28: 0.1219970551 | R28: 0.03238396831 | S28: 0.07927999973 | T28: 0.111663968 | U28: 0.01033308706 | V28: =C27 -> 2277.350017 | W28: 277.8299955 | X28: 73.74963078 | Y28: 180.5483087 | Z28: 23.53205599
B29: RPPULOON | C29: 1216.029997 | D29: 347.7799981 | E29: 0.2859962328 | P29: RPPULOOFF | Q29: 0.08699642746 | R29: 0.03238396831 | S29: 0.07927999973 | T29: 0.111663968 | U29: -0.02466754058 | V29: =C28 -> 1961.000037 | W29: 170.5999975 | X29: 63.50496307 | Y29: 155.4680824 | Z29: -48.37304801
B30: RPPULOOVN | C30: 6961.649878 | D30: 194.9399999 | E30: 0.02800198277 | P30: RPPULOON | Q30: 0.2859962328 | R30: 0.03238396831 | S30: 0.07927999973 | T30: 0.111663968 | U30: 0.1743322648 | V30: 1216.029997 | W30: 347.7799981 | X30: 39.37987689 | Y30: 96.40685784 | Z30: 211.9932634
B31: RETAIL | K31: Global Adjustment | L31: per kWh | P31: RPPULOOVN | Q31: 0.02800198277 | R31: 0.03238396831 | S31: 0.07927999973 | T31: 0.111663968 | U31: -0.08366198528 | V31: 6961.649878 | W31: 194.9399999 | X31: 225.445849 | Y31: 551.9196005 | Z31: -582.4254496
B32: NSLS | C32: 3663024.565 | D32: 115964.386 | E32: 0.03165809674 | K32: Class B - GA actual8 | L32: =B62/100 -> 0.07927999973 | N32: GA Posted Price | V32: =SUM(V23:V31) -> 8813973.496 | W32: =SUM(W23:W31) -> 981258.4984 | X32: =SUM(X23:X31) -> 285432.852 | Y32: =SUM(Y23:Y31) -> 698771.8164 | Z32: =SUM(Z23:Z31) -> -2946.170063
B33: INTERVAL | K33: Class B - GA actual IESO billed | L33: =+M33/M8 -> 0.07933046463 | M33: =B78 -> 1199869.99 | N33: GA Billed by IESO CT 148 | Z33: =W32-X32-Y32-Z32 -> 4.138200893e-11
B34: HOEP | C34: 7233360.328 | D34: 229429.6702 | E34: 0.03171826921
B35: Grand Total | C35: 19710358.39 | D35: 1326652.555 | M35: =$M$8*L32 -> 1199106.711 | Z35: =Z15-Z32 -> 41.93801081
M36: =$M$8*L33 -> 1199869.99
B37: UFE | C37: =C35-C11 -> 218409.0886 | D37: =C35/C11-1 -> 0.01120509218 | M37: =M35-M36 -> -763.279402
A39: RPP COP Volume and Price Data
A40: ER COP Summary.xlsm | B40: bill_year | C40: 2024
B41: bill_month | C41: 9
B43: Row Labels | C43: usagebilled | D43: amountbilled | E43: Rate
B44: RPPTIERED | C44: 916963.0442 | D44: 29610.12461 | E44: =D44/C44 -> 0.03229151359
B45: RPPTOU | C45: 8004250.846 | D45: 259284.8256 | E45: 0.03239339079
B46: RPPULO | C46: 12416.02009 | D46: 402.0800013 | E46: 0.03238396831
B47: Grand Total | C47: 8933629.91 | D47: 289297.0303
B50: RPPTIERED | C50: =SUM(C20:C21)-C44 -> -116794.9368 | D50: =C50/SUM(C20:C21) -> -0.1459629991
B51: RPPTOU | C51: =SUM(C23:C25)-C45 -> -2861.486918 | D51: =C51/SUM(C23:C25) -> -0.0003576237563
B52: RPPULO | C52: =SUM(C27:C30)-C46 -> 0.009835038001 | D52: =C52/SUM(C27:C30) -> 7.921242182e-07
A58: Global Adjustment - Actual
A59: IESO GA Reconciliation.xlsm
A60: ga_actual | B60: year
A61: month | B61: 2024
A62: 202409 | B62: 7.927999973
A64: Class A kWh
A65: Redshift Class A Report.xlsm
A66: Year | B66: 2024
A68: Class A | B68: Value
A69: kWh
A70: 202409 | B70: 4366990.74
A72: IESO Class B
A73: IESO Invoice Reconciliation.xlsm
A74: chargetype | B74: 148
A76: Sum of chargeamount | B76: year
A77: month | B77: 2024
A78: 202409 | B78: 1199869.99

Sheet I19 Input Rev 09 Init (hidden)
A1: Reverse IESO Posted
A5: =Admin!B32 -> 202409
A6: RPP Revenue Prices | B6: kWh Volumes | C6: $ RPP Settlement
A7: RPPTiered_1 | B7: 510931.885 | C7: 19328.57
A8: RPPTiered_2 | B8: 153570.707 | C8: 5341.3
A9: RPPTOU_MID | B9: 4175010.456 | C9: 223888.65
A10: RPPTOU_OFF | B10: 1184270.329 | C10: 20107.83
A11: RPPTOU_ON | B11: 1325394.94 | C11: -47624.53
A12: RPPULO_MID | B12: 1492.382 | C12: 71.34
A13: RPPULO_OFF | B13: 1071.41 | C13: -134.97
A14: RPPULO_ON | B14: 1782.388 | C14: 34.57
A15: RPPULO_ULO | B15: 5198.693 | C15: 686.17
A16: Grand Total | B16: 7358723.19 | C16: 221698.93

Sheet I20 Input 10 Trueup Sett (hidden)
A1: Date: | B1: =Admin!B8+9 -> 202410 | C1: Trueup | K1: ="Data for 1st True up of RPP Settlement based on Actual IESO Invoice" -> Data for 1st True up of RPP Settlement based on Actual IESO Invoice | P1: For Reconciliation
A3: Wholesale Electricty | B3: Year | C3: 2024 | E3: Rate | P3: Actual RPP Revenue and GA
A4: Redshift Wholesale Report.xlsm | B4: dateref | C4: 202410 | K4: Wholesale Volume data per IESO Power Bill: | L4: GA RPP/non-RPP Ratios | M4: GA Volumes | N4: Energy Volumes | P4: =B1 -> 202410
K5: AQEW | M5: =C10 -> 18686502.37 | N5: =+M5 -> 18686502.37 | P5: RPP Revenue Prices | Q5: RPP Rate | R5: Estimated RPP Energy Price | S5: GA actual IESO billed | T5: Total Commodity | U5: Difference | V5: kWh Volumes | W5: $ Estimated RPP Revenue | X5: $ Estimated RPP Energy | Y5: $ Estimated GA | Z5: $ Estimated RPP Settlement
B6: Wholesale | K6: Embedded Generation | M6: =SUM(C8:C9) -> 545185.44 | N6: =+M6 -> 545185.44 | P6: RPPT1 | Q6: =E20 -> 0.1029996771 | R6: =E44 -> 0.03431460433 | S6: =$L$32 -> 0.07484000206 | T6: =R6+S6 -> 0.1091546064 | U6: =+Q6-T6 -> -0.006154929277 | V6: =M18 -> 678415.1564 | W6: =Q6*V6 -> 69876.54205 | X6: =R6*V6 -> 23279.54766 | Y6: =+V6*S6 -> 50772.5917 | Z6: =W6-X6-Y6 -> -4175.597308
B7: Source | C7: kWh | D7: Total Cost | K7: Class A customer Volumes for GA (TLF included) | M7: =-B70 -> -4425258.13 | P7: RPPT2 | Q7: =E21 -> 0.1250003567 | R7: =R6 -> 0.03431460433 | S7: =$L$32 -> 0.07484000206 | T7: =R7+S7 -> 0.1091546064 | U7: =+Q7-T7 -> 0.01584575027 | V7: =M19 -> 333402.3126 | W7: =Q7*V7 -> 41675.40799 | X7: =R7*V7 -> 11440.56844 | Y7: =+V7*S7 -> 24951.82976 | Z7: =W7-X7-Y7 -> 5283.009784
B8: FIT | C8: 516112.75 | D8: 17425.37 | E8: =D8/C8 -> 0.03376271948 | M8: =+M5+M6+M7 -> 14806429.68 | N8: =+N5+N6+N7 -> 19231687.81 | P8: RPPTOUMID | Q8: =E23 -> 0.1219996204 | R8: =E45 -> 0.03405860114 | S8: 0.07484000206 | T8: 0.1088986032 | U8: 0.01310101721 | V8: 1500228.144 | W8: 183027.2641 | X8: 51095.67197 | Y8: 112277.0774 | Z8: 19654.51473
B9: microFIT | C9: 29072.69 | D9: 988.29 | E9: =D9/C9 -> 0.0339937584 | P9: RPPTOUOFF | Q9: =E24 -> 0.08699125833 | R9: =R8 -> 0.03405860114 | S9: 0.07484000206 | T9: 0.1088986032 | U9: -0.02190734487 | V9: 4670292.446 | W9: 406274.6166 | X9: 159063.6276 | Y9: 349524.6963 | Z9: -102313.7073
B10: WHOLESALE | C10: 18686502.37 | D10: 636684.34 | E10: =D10/C10 -> 0.03407188394 | K10: Estimated Retail Volume Revenue Data (TLF Included) | L10: RPP/non-RPP Ratios | M10: GA Volumes | N10: Energy Volumes | P10: RPPTOUON | Q10: 0.1819828817 | R10: =R9 -> 0.03405860114 | S10: 0.07484000206 | T10: 0.1088986032 | U10: 0.07308427849 | V10: 1476088.433 | W10: 268622.8266 | X10: 50273.50718 | Y10: 110470.4613 | Z10: 107878.8581
B11: Grand Total | C11: 19231687.81 | D11: 655098 | K11: Estimated Retail Revenue Data (Net of Retail Billed/Unbilled) | M11: =+M15 -> 14806429.68 | N11: =+N15 -> 19231687.81 | P11: RPPULOMID | Q11: =E27 -> 0.1220007397 | R11: =E46 -> 0.03405482437 | S11: 0.07484000206 | T11: 0.1088948264 | U11: 0.01310591328 | V11: 1887.580186 | W11: 230.2861789 | X11: 64.28121171 | Y11: 141.266505 | Z11: 24.73846223
P12: RPPULOOFF | Q12: =E28 -> 0.08699490355 | R12: =R11 -> 0.03405482437 | S12: 0.07484000206 | T12: 0.1088948264 | U12: -0.02189992287 | V12: 1523.484537 | W12: 132.5353903 | X12: 51.88199833 | Y12: 114.0175859 | Z12: -33.36419386
K13: Estimated RPP Sales Quantities | L13: =SUM(C20:C30)/(C35-B70) -> 0.5856038598 | M13: =M8*L13 -> 8670702.371 | N13: =M13 -> 8670702.371 | P13: RPPULOON | Q13: 0.2859862942 | R13: =R12 -> 0.03405482437 | S13: 0.07484000206 | T13: 0.1088948264 | U13: 0.1770914678 | V13: 993.0902024 | W13: 284.0101868 | X13: 33.81951242 | Y13: 74.3228728 | Z13: 175.8678016
A14: RPP Revenue Volume and Price Data | K14: Estimated non-RPP Sales Quantities | L14: =1-L13 -> 0.4143961402 | M14: =M8*L14 -> 6135727.309 | N14: =N8-N13 -> 10560985.44 | P14: RPPULOOVN | Q14: 0.02799983056 | R14: 0.03405482437 | S14: 0.07484000206 | T14: 0.1088948264 | U14: -0.08089499587 | V14: 7871.724488 | W14: 220.4069519 | X14: 268.0701949 | Y14: 589.1198769 | Z14: -636.7831199
B15: bill_year | C15: 2024 | K15: Estimated Retail Revenue kWh Volumes | L15: =+L13+L14 -> 1 | M15: =+M13+M14 -> 14806429.68 | N15: =+N13+N14 -> 19231687.81 | V15: =SUM(V6:V14) -> 8670702.371 | W15: =SUM(W6:W14) -> 970343.8961 | X15: =SUM(X6:X14) -> 295570.9758 | Y15: =SUM(Y6:Y14) -> 648915.3833 | Z15: =SUM(Z6:Z14) -> 25857.53696
B16: bill_month | C16: 10 | Z16: =W15-X15-Y15-Z15 -> -5.09317033e-11
K17: Estimated RPP Revenue Volume and Price Data | L17: Actual % | M17: kWh Volumes
B18: Row Labels | C18: usagebilled | D18: amountbilled | E18: Rate | K18: RPPT1 | L18: =C20/SUM($C$20:$C$30) -> 0.07824223775 | M18: =$M$13*L18 -> 678415.1564
B19: RPPTIER | K19: RPPT2 | L19: =C21/SUM($C$20:$C$30) -> 0.03845159231 | M19: =$M$13*L19 -> 333402.3126
B20: RPPT1 | C20: 670914.1944 | D20: 69103.94539 | E20: =D20/C20 -> 0.1029996771 | K20: RPPTOUMID | L20: =C23/SUM($C$20:$C$30) -> 0.1730226779 | M20: 1500228.144 | P20: Actual RPP Revenue and GA
B21: RPPT2 | C21: 329716.0181 | D21: 41214.61986 | E21: =D21/C21 -> 0.1250003567 | K21: RPPTOUOFF | L21: =C24/SUM($C$20:$C$30) -> 0.5386290806 | M21: 4670292.446 | P21: =P4 -> 202410
B22: RPPTOU | K22: RPPTOUON | L22: 0.1702386231 | M22: 1476088.433 | P22: RPP Revenue Prices | Q22: RPP Rate | R22: Estimated RPP Energy Price | S22: GA actual IESO billed | T22: Total Commodity | U22: Difference | V22: kWh Volumes | W22: $ Estimated RPP Revenue | X22: $ Estimated RPP Energy | Y22: $ Estimated GA | Z22: $ Estimated RPP Settlement
B23: RPPTOUMID | C23: 1483640.728 | D23: 181003.6056 | E23: 0.1219996204 | K23: RPPULOMID | L23: =C27/SUM($C$20:$C$30) -> 0.0002176963417 | M23: 1887.580186 | P23: =P6 -> RPPT1 | Q23: =Q6 -> 0.1029996771 | R23: =R6 -> 0.03431460433 | S23: 0.07484000206 | T23: =R23+S23 -> 0.1091546064 | U23: =+Q23-T23 -> -0.006154929277 | V23: =C20 -> 670914.1944 | W23: =Q23*V23 -> 69103.94539 | X23: =R23*V23 -> 23022.15512 | Y23: =+V23*S23 -> 50211.21969 | Z23: =W23-X23-Y23 -> -4129.429418
B24: RPPTOUOFF | C24: 4618654.911 | D24: 401782.6025 | E24: 0.08699125833 | K24: RPPULOOFF | L24: =C28/SUM($C$20:$C$30) -> 0.0001757048589 | M24: 1523.484537 | P24: =P7 -> RPPT2 | Q24: 0.1250003567 | R24: 0.03431460433 | S24: 0.07484000206 | T24: =R24+S24 -> 0.1091546064 | U24: =+Q24-T24 -> 0.01584575027 | V24: =C21 -> 329716.0181 | W24: =Q24*V24 -> 41214.61986 | X24: =R24*V24 -> 11314.0747 | Y24: =+V24*S24 -> 24675.94747 | Z24: =W24-X24-Y24 -> 5224.597682
B25: RPPTOUON | C25: 1459767.92 | D25: 265652.7726 | E25: 0.1819828817 | K25: RPPULOON | L25: 0.0001145339974 | M25: 993.0902024 | P25: RPPTOUMID | Q25: 0.1219996204 | R25: 0.03405860114 | S25: 0.07484000206 | T25: 0.1088986032 | U25: 0.01310101721 | V25: =C23 -> 1483640.728 | W25: 181003.6056 | X25: 50530.72779 | Y25: 111035.6751 | Z25: 19437.20271
B26: RPPULO | K26: RPPULOOVN | L26: 0.0009078531533 | M26: 7871.724488 | P26: RPPTOUOFF | Q26: 0.08699125833 | R26: 0.03405860114 | S26: 0.07484000206 | T26: 0.1088986032 | U26: -0.02190734487 | V26: =C24 -> 4618654.911 | W26: 401782.6025 | X26: 157304.9254 | Y26: 345660.1431 | Z26: -101182.466
B27: RPPULOMID | C27: 1866.709975 | D27: 227.7399978 | E27: 0.1220007397 | L27: =SUM(L18:L26) -> 1 | M27: =SUM(M18:M26) -> 8670702.371 | P27: RPPTOUON | Q27: 0.1819828817 | R27: 0.03405860114 | S27: 0.07484000206 | T27: 0.1088986032 | U27: 0.07308427849 | V27: 1459767.92 | W27: 265652.7726 | X27: 49717.65334 | Y27: 109249.0341 | Z27: 106686.0852
B28: RPPULOOFF | C28: 1506.639984 | D28: 131.0700001 | E28: 0.08699490355 | P28: RPPULOMID | Q28: 0.1220007397 | R28: 0.03405482437 | S28: 0.07484000206 | T28: 0.1088948264 | U28: 0.01310591328 | V28: =C27 -> 1866.709975 | W28: 227.7399978 | X28: 63.57048035 | Y28: 139.7045784 | Z28: 24.46493906
B29: RPPULOON | C29: 982.1100057 | D29: 280.870001 | E29: 0.2859862942 | P29: RPPULOOFF | Q29: 0.08699490355 | R29: 0.03405482437 | S29: 0.07484000206 | T29: 0.1088948264 | U29: -0.02189992287 | V29: =C28 -> 1506.639984 | W29: 131.0700001 | X29: 51.30836005 | Y29: 112.7569395 | Z29: -32.99529946
B30: RPPULOOVN | C30: 7784.690014 | D30: 217.9700014 | E30: 0.02799983056 | P30: RPPULOON | Q30: 0.2859862942 | R30: 0.03405482437 | S30: 0.07484000206 | T30: 0.1088948264 | U30: 0.1770914678 | V30: 982.1100057 | W30: 280.870001 | X30: 33.44558375 | Y30: 73.50111485 | Z30: 173.9233024
B31: RETAIL | K31: Global Adjustment | L31: per kWh | P31: RPPULOOVN | Q31: 0.02799983056 | R31: 0.03405482437 | S31: 0.07484000206 | T31: 0.1088948264 | U31: -0.08089499587 | V31: 7784.690014 | W31: 217.9700014 | X31: 265.1062512 | Y31: 582.6062167 | Z31: -629.7424665
B32: NSLS | C32: 3439552.737 | D32: 116543.0224 | E32: 0.03388319101 | K32: Class B - GA actual8 | L32: =B62/100 -> 0.07484000206 | N32: GA Posted Price | V32: =SUM(V23:V31) -> 8574833.921 | W32: =SUM(W23:W31) -> 959615.196 | X32: =SUM(X23:X31) -> 292302.9671 | Y32: =SUM(Y23:Y31) -> 641740.5883 | Z32: =SUM(Z23:Z31) -> 25571.64063
B33: INTERVAL | K33: Class B - GA actual IESO billed | L33: =+M33/M8 -> 0.07448102708 | M33: =B78 -> 1102798.09 | N33: GA Billed by IESO CT 148 | Z33: =W32-X32-Y32-Z32 -> -4.365574569e-11
B34: HOEP | C34: 7053592.446 | D34: 240665.3509 | E34: 0.03411954302
B35: Grand Total | C35: 19067979.11 | D35: 1316823.569 | M35: =$M$8*L32 -> 1108113.228 | Z35: =Z15-Z32 -> 285.8963285
M36: =$M$8*L33 -> 1102798.09
B37: UFE | C37: =C35-C11 -> -163708.7048 | D37: =C35/C11-1 -> -0.008512446041 | M37: =M35-M36 -> 5315.137752
A39: RPP COP Volume and Price Data
A40: ER COP Summary.xlsm | B40: bill_year | C40: 2024
B41: bill_month | C41: 10
B43: Row Labels | C43: usagebilled | D43: amountbilled | E43: Rate
B44: RPPTIERED | C44: 1005508.393 | D44: 34503.62264 | E44: =D44/C44 -> 0.03431460433
B45: RPPTOU | C45: 7573600.678 | D45: 257946.2447 | E45: 0.03405860114
B46: RPPULO | C46: 12140.1301 | D46: 413.4299982 | E46: 0.03405482437
B47: Grand Total | C47: 8591249.2 | D47: 292863.2973
B50: RPPTIERED | C50: =SUM(C20:C21)-C44 -> -4878.180089 | D50: =C50/SUM(C20:C21) -> -0.004875107735
B51: RPPTOU | C51: =SUM(C23:C25)-C45 -> -11537.11874 | D51: =C51/SUM(C23:C25) -> -0.001525657468
B52: RPPULO | C52: =SUM(C27:C30)-C46 -> 0.019883256 | D52: =C52/SUM(C27:C30) -> 1.63780975e-06
A58: Global Adjustment - Actual
A59: IESO GA Reconciliation.xlsm
A60: ga_actual | B60: year
A61: month | B61: 2024
A62: 202410 | B62: 7.484000206
A64: Class A kWh
A65: Redshift Class A Report.xlsm
A66: Year | B66: 2024
A68: Class A | B68: Value
A69: kWh
A70: 202410 | B70: 4425258.13
A72: IESO Class B
A73: IESO Invoice Reconciliation.xlsm
A74: chargetype | B74: 148
A76: Sum of chargeamount | B76: year
A77: month | B77: 2024
A78: 202410 | B78: 1102798.09

Sheet I21 Input Rev 10 Init (hidden)
A1: Reverse IESO Posted
A5: =Admin!B35 -> 202410
A6: RPP Revenue Prices | B6: kWh Volumes | C6: $ RPP Settlement
A7: RPPTiered_1 | B7: 483705.55 | C7: -10504.3
A8: RPPTiered_2 | B8: 119259.99 | C8: -5148.5
A9: RPPTOU_MID | B9: 3754092.09 | C9: -33494.25
A10: RPPTOU_OFF | B10: 1072945.57 | C10: -43798.43
A11: RPPTOU_ON | B11: 1167082.23 | C11: -110059.74
A12: RPPULO_MID | B12: 1478.35 | C12: -7.25
A13: RPPULO_OFF | B13: 916.74 | C13: -165.42
A14: RPPULO_ON | B14: 1716.84 | C14: -69.34
A15: RPPULO_ULO | B15: 5248.217 | C15: 296.67
A16: Grand Total | B16: 6606445.577 | C16: -202950.56

Sheet I22 Input 11 Trueup Sett (hidden)
A1: Date: | B1: =Admin!B8+10 -> 202411 | C1: Trueup | K1: ="Data for 1st True up of RPP Settlement based on Actual IESO Invoice" -> Data for 1st True up of RPP Settlement based on Actual IESO Invoice | P1: For Reconciliation
A3: Wholesale Electricty | B3: Year | C3: 2024 | E3: Rate | P3: Actual RPP Revenue and GA
A4: Redshift Wholesale Report.xlsm | B4: dateref | C4: 202411 | K4: Wholesale Volume data per IESO Power Bill: | L4: GA RPP/non-RPP Ratios | M4: GA Volumes | N4: Energy Volumes | P4: =B1 -> 202411
K5: AQEW | M5: =C10 -> 19327515.93 | N5: =+M5 -> 19327515.93 | P5: RPP Revenue Prices | Q5: RPP Rate | R5: Estimated RPP Energy Price | S5: GA actual IESO billed | T5: Total Commodity | U5: Difference | V5: kWh Volumes | W5: $ Estimated RPP Revenue | X5: $ Estimated RPP Energy | Y5: $ Estimated GA | Z5: $ Estimated RPP Settlement
B6: Wholesale | K6: Embedded Generation | M6: =SUM(C8:C9) -> 270815.85 | N6: =+M6 -> 270815.85 | P6: RPPT1 | Q6: =E20 -> 0.09299997748 | R6: =E44 -> 0.03091537416 | S6: =$L$32 -> 0.08904000282 | T6: =R6+S6 -> 0.119955377 | U6: =+Q6-T6 -> -0.0269553995 | V6: =M18 -> 847940.8551 | W6: =Q6*V6 -> 78858.48043 | X6: =R6*V6 -> 26214.4088 | Y6: =+V6*S6 -> 75500.65613 | Z6: =W6-X6-Y6 -> -22856.5845
B7: Source | C7: kWh | D7: Total Cost | K7: Class A customer Volumes for GA (TLF included) | M7: =-B70 -> -4118531.33 | P7: RPPT2 | Q7: =E21 -> 0.1100004791 | R7: =R6 -> 0.03091537416 | S7: =$L$32 -> 0.08904000282 | T7: =R7+S7 -> 0.119955377 | U7: =+Q7-T7 -> -0.009954897851 | V7: =M19 -> 297788.5807 | W7: =Q7*V7 -> 32756.88655 | X7: =R7*V7 -> 9206.245391 | Y7: =+V7*S7 -> 26515.09606 | Z7: =W7-X7-Y7 -> -2964.454902
B8: FIT | C8: 254384.64 | D8: 8157.33 | E8: =D8/C8 -> 0.03206691253 | M8: =+M5+M6+M7 -> 15479800.45 | N8: =+N5+N6+N7 -> 19598331.78 | P8: RPPTOUMID | Q8: =E23 -> 0.1219997437 | R8: =E45 -> 0.0308028215 | S8: 0.08904000282 | T8: 0.1198428243 | U8: 0.002156919421 | V8: 1525013.359 | W8: 186051.239 | X8: 46974.71428 | Y8: 135787.1938 | Z8: 3289.330932
B9: microFIT | C9: 16431.21 | D9: 526.16 | E9: =D9/C9 -> 0.03202198743 | P9: RPPTOUOFF | Q9: =E24 -> 0.07600579345 | R9: =R8 -> 0.0308028215 | S9: 0.08904000282 | T9: 0.1198428243 | U9: -0.04383703087 | V9: 5120469.656 | W9: 389185.3591 | X9: 157724.9128 | Y9: 455926.6327 | Z9: -224466.1864
B10: WHOLESALE | C10: 19327515.93 | D10: 591718.79 | E10: =D10/C10 -> 0.03061535648 | K10: Estimated Retail Volume Revenue Data (TLF Included) | L10: RPP/non-RPP Ratios | M10: GA Volumes | N10: Energy Volumes | P10: RPPTOUON | Q10: 0.1580144894 | R10: =R9 -> 0.0308028215 | S10: 0.08904000282 | T10: 0.1198428243 | U10: 0.03817166509 | V10: 1594721.891 | W10: 251989.1653 | X10: 49121.93374 | Y10: 141994.0417 | Z10: 60873.18994
B11: Grand Total | C11: 19598331.78 | D11: 600402.28 | K11: Estimated Retail Revenue Data (Net of Retail Billed/Unbilled) | M11: =+M15 -> 15479800.45 | N11: =+N15 -> 19598331.78 | P11: RPPULOMID | Q11: =E27 -> 0.1220014355 | R11: =E46 -> 0.03079736407 | S11: 0.08904000282 | T11: 0.1198373669 | U11: 0.002164068577 | V11: 2589.610468 | W11: 315.9361945 | X11: 79.7531764 | Y11: 230.5789234 | Z11: 5.604094641
P12: RPPULOOFF | Q12: =E28 -> 0.07599902418 | R12: =R11 -> 0.03079736407 | S12: 0.08904000282 | T12: 0.1198373669 | U12: -0.04383834272 | V12: 2498.14033 | W12: 189.8562274 | X12: 76.93613725 | Y12: 222.4344221 | Z12: -109.514332
K13: Estimated RPP Sales Quantities | L13: =SUM(C20:C30)/(C35-B70) -> 0.6072746145 | M13: =M8*L13 -> 9400489.851 | N13: =M13 -> 9400489.851 | P13: RPPULOON | Q13: 0.2840029475 | R13: =R12 -> 0.03079736407 | S13: 0.08904000282 | T13: 0.1198373669 | U13: 0.1641655806 | V13: 1255.508698 | W13: 356.5681708 | X13: 38.66635846 | Y13: 111.790498 | Z13: 206.1113143
A14: RPP Revenue Volume and Price Data | K14: Estimated non-RPP Sales Quantities | L14: =1-L13 -> 0.3927253855 | M14: =M8*L14 -> 6079310.599 | N14: =N8-N13 -> 10197841.93 | P14: RPPULOOVN | Q14: 0.02799961391 | R14: 0.03079736407 | S14: 0.08904000282 | T14: 0.1198373669 | U14: -0.09183775298 | V14: 8212.249133 | W14: 229.9398051 | X14: 252.9156264 | Y14: 731.218686 | Z14: -754.1945073
B15: bill_year | C15: 2024 | K15: Estimated Retail Revenue kWh Volumes | L15: =+L13+L14 -> 1 | M15: =+M13+M14 -> 15479800.45 | N15: =+N13+N14 -> 19598331.78 | V15: =SUM(V6:V14) -> 9400489.851 | W15: =SUM(W6:W14) -> 939933.4308 | X15: =SUM(X6:X14) -> 289690.4863 | Y15: =SUM(Y6:Y14) -> 837019.6428 | Z15: =SUM(Z6:Z14) -> -186776.6984
B16: bill_month | C16: 11 | Z16: =W15-X15-Y15-Z15 -> 0
K17: Estimated RPP Revenue Volume and Price Data | L17: Actual % | M17: kWh Volumes
B18: Row Labels | C18: usagebilled | D18: amountbilled | E18: Rate | K18: RPPT1 | L18: =C20/SUM($C$20:$C$30) -> 0.09020177338 | M18: =$M$13*L18 -> 847940.8551
B19: RPPTIER | K19: RPPT2 | L19: =C21/SUM($C$20:$C$30) -> 0.03167798545 | M19: =$M$13*L19 -> 297788.5807
B20: RPPT1 | C20: 834960.9879 | D20: 77651.35307 | E20: =D20/C20 -> 0.09299997748 | K20: RPPTOUMID | L20: =C23/SUM($C$20:$C$30) -> 0.1622270098 | M20: 1525013.359 | P20: Actual RPP Revenue and GA
B21: RPPT2 | C21: 293230.1775 | D21: 32255.46003 | E21: =D21/C21 -> 0.1100004791 | K21: RPPTOUOFF | L21: =C24/SUM($C$20:$C$30) -> 0.5447024291 | M21: 5120469.656 | P21: =P4 -> 202411
B22: RPPTOU | K22: RPPTOUON | L22: 0.1696424246 | M22: 1594721.891 | P22: RPP Revenue Prices | Q22: RPP Rate | R22: Estimated RPP Energy Price | S22: GA actual IESO billed | T22: Total Commodity | U22: Difference | V22: kWh Volumes | W22: $ Estimated RPP Revenue | X22: $ Estimated RPP Energy | Y22: $ Estimated GA | Z22: $ Estimated RPP Settlement
B23: RPPTOUMID | C23: 1501669.194 | D23: 183203.2569 | E23: 0.1219997437 | K23: RPPULOMID | L23: =C27/SUM($C$20:$C$30) -> 0.0002754761198 | M23: 2589.610468 | P23: =P6 -> RPPT1 | Q23: =Q6 -> 0.09299997748 | R23: =R6 -> 0.03091537416 | S23: 0.08904000282 | T23: =R23+S23 -> 0.119955377 | U23: =+Q23-T23 -> -0.0269553995 | V23: =C20 -> 834960.9879 | W23: =Q23*V23 -> 77651.35307 | X23: =R23*V23 -> 25813.13135 | Y23: =+V23*S23 -> 74344.92872 | Z23: =W23-X23-Y23 -> -22506.707
B24: RPPTOUOFF | C24: 5042087.991 | D24: 383227.8984 | E24: 0.07600579345 | K24: RPPULOOFF | L24: =C28/SUM($C$20:$C$30) -> 0.0002657457611 | M24: 2498.14033 | P24: =P7 -> RPPT2 | Q24: 0.1100004791 | R24: 0.03091537416 | S24: 0.08904000282 | T24: =R24+S24 -> 0.119955377 | U24: =+Q24-T24 -> -0.009954897851 | V24: =C21 -> 293230.1775 | W24: =Q24*V24 -> 32255.46003 | X24: =R24*V24 -> 9065.320653 | Y24: =+V24*S24 -> 26109.21584 | Z24: =W24-X24-Y24 -> -2919.076464
B25: RPPTOUON | C25: 1570310.662 | D25: 248131.8374 | E25: 0.1580144894 | K25: RPPULOON | L25: 0.0001335577952 | M25: 1255.508698 | P25: RPPTOUMID | Q25: 0.1219997437 | R25: 0.0308028215 | S25: 0.08904000282 | T25: 0.1198428243 | U25: 0.002156919421 | V25: =C23 -> 1501669.194 | W25: 183203.2569 | X25: 46255.64814 | Y25: 133708.6293 | Z25: 3238.97945
B26: RPPULO | K26: RPPULOOVN | L26: 0.0008735980001 | M26: 8212.249133 | P26: RPPTOUOFF | Q26: 0.07600579345 | R26: 0.0308028215 | S26: 0.08904000282 | T26: 0.1198428243 | U26: -0.04383703087 | V26: =C24 -> 5042087.991 | W26: 383227.8984 | X26: 155310.5364 | Y26: 448947.5289 | Z26: -221030.1669
B27: RPPULOMID | C27: 2549.969968 | D27: 311.0999965 | E27: 0.1220014355 | L27: =SUM(L18:L26) -> 1 | M27: =SUM(M18:M26) -> 9400489.851 | P27: RPPTOUON | Q27: 0.1580144894 | R27: 0.0308028215 | S27: 0.08904000282 | T27: 0.1198428243 | U27: 0.03817166509 | V27: 1570310.662 | W27: 248131.8374 | X27: 48369.99901 | Y27: 139820.4658 | Z27: 59941.37267
B28: RPPULOOFF | C28: 2459.90001 | D28: 186.9500003 | E28: 0.07599902418 | P28: RPPULOMID | Q28: 0.1220014355 | R28: 0.03079736407 | S28: 0.08904000282 | T28: 0.1198373669 | U28: 0.002164068577 | V28: =C27 -> 2549.969968 | W28: 311.0999965 | X28: 78.53235347 | Y28: 227.0493331 | Z28: 5.518309879
B29: RPPULOON | C29: 1236.28998 | D29: 351.1099982 | E29: 0.2840029475 | P29: RPPULOOFF | Q29: 0.07599902418 | R29: 0.03079736407 | S29: 0.08904000282 | T29: 0.1198373669 | U29: -0.04383834272 | V29: =C28 -> 2459.90001 | W29: 186.9500003 | X29: 75.75843619 | Y29: 219.0295038 | Z29: -107.8379397
B30: RPPULOOVN | C30: 8086.540008 | D30: 226.4199981 | E30: 0.02799961391 | P30: RPPULOON | Q30: 0.2840029475 | R30: 0.03079736407 | S30: 0.08904000282 | T30: 0.1198373669 | U30: 0.1641655806 | V30: 1236.28998 | W30: 351.1099982 | X30: 38.0744726 | Y30: 110.0792633 | Z30: 202.9562623
B31: RETAIL | K31: Global Adjustment | L31: per kWh | P31: RPPULOOVN | Q31: 0.02799961391 | R31: 0.03079736407 | S31: 0.08904000282 | T31: 0.1198373669 | U31: -0.09183775298 | V31: 8086.540008 | W31: 226.4199981 | X31: 249.0441167 | Y31: 720.0255451 | Z31: -742.6496637
B32: NSLS | C32: 3297461.737 | D32: 100821.3423 | E32: 0.03057543965 | K32: Class B - GA actual8 | L32: =B62/100 -> 0.08904000282 | N32: GA Posted Price | V32: =SUM(V23:V31) -> 9256591.712 | W32: =SUM(W23:W31) -> 925545.3858 | X32: =SUM(X23:X31) -> 285256.0449 | Y32: =SUM(Y23:Y31) -> 824206.9522 | Z32: =SUM(Z23:Z31) -> -183917.6113
B33: INTERVAL | K33: Class B - GA actual IESO billed | L33: =+M33/M8 -> 0.08902321993 | M33: =B78 -> 1378061.68 | N33: GA Billed by IESO CT 148 | Z33: =W32-X32-Y32-Z32 -> 0
B34: HOEP | C34: 6807321.055 | D34: 206640.2603 | E34: 0.03035559197
B35: Grand Total | C35: 19361374.5 | D35: 1233006.988 | M35: =$M$8*L32 -> 1378321.476 | Z35: =Z15-Z32 -> -2859.087089
M36: =$M$8*L33 -> 1378061.68
B37: UFE | C37: =C35-C11 -> -236957.2757 | D37: =C35/C11-1 -> -0.012090686 | M37: =M35-M36 -> 259.7957656
A39: RPP COP Volume and Price Data
A40: ER COP Summary.xlsm | B40: bill_year | C40: 2024
B41: bill_month | C41: 11
B43: Row Labels | C43: usagebilled | D43: amountbilled | E43: Rate
B44: RPPTIERED | C44: 1128991.895 | D44: 34903.20685 | E44: =D44/C44 -> 0.03091537416
B45: RPPTOU | C45: 8129484.826 | D45: 250411.07 | E45: 0.0308028215
B46: RPPULO | C46: 14332.72007 | D46: 441.4099982 | E46: 0.03079736407
B47: Grand Total | C47: 9272809.441 | D47: 285755.6868
B50: RPPTIERED | C50: =SUM(C20:C21)-C44 -> -800.7294349 | D50: =C50/SUM(C20:C21) -> -0.0007097462376
B51: RPPTOU | C51: =SUM(C23:C25)-C45 -> -15416.97911 | D51: =C51/SUM(C23:C25) -> -0.001900030835
B52: RPPULO | C52: =SUM(C27:C30)-C46 -> -0.020106664 | D52: =C52/SUM(C27:C30) -> -1.402852502e-06
A58: Global Adjustment - Actual
A59: IESO GA Reconciliation.xlsm
A60: ga_actual | B60: year
A61: month | B61: 2024
A62: 202411 | B62: 8.904000282
A64: Class A kWh
A65: Redshift Class A Report.xlsm
A66: Year | B66: 2024
A68: Class A | B68: Value
A69: kWh
A70: 202411 | B70: 4118531.33
A72: IESO Class B
A73: IESO Invoice Reconciliation.xlsm
A74: chargetype | B74: 148
A76: Sum of chargeamount | B76: year
A77: month | B77: 2024
A78: 202411 | B78: 1378061.68

Sheet I23 Input Rev 11 Init (hidden)
A1: Reverse IESO Posted
A5: =Admin!B38 -> 202411
A6: RPP Revenue Prices | B6: kWh Volumes | C6: $ RPP Settlement
A7: RPPTiered_1 | B7: 545313.58 | C7: 17405.72
A8: RPPTiered_2 | B8: 267990.49 | C8: -1044.38
A9: RPPTOU_MID | B9: 3742319.34 | C9: 177252.32
A10: RPPTOU_OFF | B10: 1202568.82 | C10: 13351.56
A11: RPPTOU_ON | B11: 1183144.01 | C11: -53381.81
A12: RPPULO_MID | B12: 1224.58 | C12: 55.21
A13: RPPULO_OFF | B13: 798.25 | C13: -91.01
A14: RPPULO_ON | B14: 1517.25 | C14: 26.04
A15: RPPULO_ULO | B15: 6327.33 | C15: 729.14
A16: Grand Total | B16: 6951203.65 | C16: 154302.79

Sheet I24 Input 12 Trueup Sett (hidden)
A1: Date: | B1: =Admin!B8+11 -> 202412 | C1: Trueup | K1: ="Data for 1st True up of RPP Settlement based on Actual IESO Invoice" -> Data for 1st True up of RPP Settlement based on Actual IESO Invoice | P1: For Reconciliation
A3: Wholesale Electricty | B3: Year | C3: 2024 | E3: Rate | P3: Actual RPP Revenue and GA
A4: Redshift Wholesale Report.xlsm | B4: dateref | C4: 202412 | K4: Wholesale Volume data per IESO Power Bill: | L4: GA RPP/non-RPP Ratios | M4: GA Volumes | N4: Energy Volumes | P4: =B1 -> 202412
K5: AQEW | M5: =C10 -> 21295318.38 | N5: =+M5 -> 21295318.38 | P5: RPP Revenue Prices | Q5: RPP Rate | R5: Estimated RPP Energy Price | S5: GA actual IESO billed | T5: Total Commodity | U5: Difference | V5: kWh Volumes | W5: $ Estimated RPP Revenue | X5: $ Estimated RPP Energy | Y5: $ Estimated GA | Z5: $ Estimated RPP Settlement
B6: Wholesale | K6: Embedded Generation | M6: =SUM(C8:C9) -> 143085.49 | N6: =+M6 -> 143085.49 | P6: RPPT1 | Q6: =E20 -> 0.09299993548 | R6: =E44 -> 0.03974206793 | S6: =$L$32 -> 0.06177000046 | T6: =R6+S6 -> 0.1015120684 | U6: =+Q6-T6 -> -0.008512132912 | V6: =M18 -> 1011669.004 | W6: =Q6*V6 -> 94085.15213 | X6: =R6*V6 -> 40205.8183 | Y6: =+V6*S6 -> 62490.79486 | Z6: =W6-X6-Y6 -> -8611.461029
B7: Source | C7: kWh | D7: Total Cost | K7: Class A customer Volumes for GA (TLF included) | M7: =-B70 -> -2947570.22 | P7: RPPT2 | Q7: =E21 -> 0.1099992723 | R7: =R6 -> 0.03974206793 | S7: =$L$32 -> 0.06177000046 | T7: =R7+S7 -> 0.1015120684 | U7: =+Q7-T7 -> 0.008487203892 | V7: =M19 -> 459394.7693 | W7: =Q7*V7 -> 50533.09031 | X7: =R7*V7 -> 18257.29813 | Y7: =+V7*S7 -> 28376.81511 | Z7: =W7-X7-Y7 -> 3898.977074
B8: FIT | C8: 134235.59 | D8: 5579.11 | E8: =D8/C8 -> 0.04156207754 | M8: =+M5+M6+M7 -> 18490833.65 | N8: =+N5+N6+N7 -> 21438403.87 | P8: RPPTOUMID | Q8: =E23 -> 0.1220000646 | R8: =E45 -> 0.03980646753 | S8: 0.06177000046 | T8: 0.101576468 | U8: 0.02042359659 | V8: 1834868.526 | W8: 223854.0787 | X8: 73039.6344 | Y8: 113339.8297 | Z8: 37474.61457
B9: microFIT | C9: 8849.9 | D9: 368.1 | E9: =D9/C9 -> 0.04159369032 | P9: RPPTOUOFF | Q9: =E24 -> 0.07600041575 | R9: =R8 -> 0.03980646753 | S9: 0.06177000046 | T9: 0.101576468 | U9: -0.02557605224 | V9: 6941914.906 | W9: 527588.419 | X9: 276333.1103 | Y9: 428802.0869 | Z9: -177546.7783
B10: WHOLESALE | C10: 21295318.38 | D10: 844612.18 | E10: =D10/C10 -> 0.03966187145 | K10: Estimated Retail Volume Revenue Data (TLF Included) | L10: RPP/non-RPP Ratios | M10: GA Volumes | N10: Energy Volumes | P10: RPPTOUON | Q10: 0.1580011615 | R10: =R9 -> 0.03980646753 | S10: 0.06177000046 | T10: 0.101576468 | U10: 0.05642469352 | V10: 1853411.455 | W10: 292841.1627 | X10: 73777.76293 | Y10: 114485.2265 | Z10: 104578.1733
B11: Grand Total | C11: 21438403.87 | D11: 850559.39 | K11: Estimated Retail Revenue Data (Net of Retail Billed/Unbilled) | M11: =+M15 -> 18490833.65 | N11: =+N15 -> 21438403.87 | P11: RPPULOMID | Q11: =E27 -> 0.1219977038 | R11: =E46 -> 0.03980990901 | S11: 0.06177000046 | T11: 0.1015799095 | U11: 0.0204177943 | V11: 3248.52181 | W11: 396.3122015 | X11: 129.3233577 | Y11: 200.6611937 | Z11: 66.3276501
P12: RPPULOOFF | Q12: =E28 -> 0.07599798756 | R12: =R11 -> 0.03980990901 | S12: 0.06177000046 | T12: 0.1015799095 | U12: -0.02558192191 | V12: 3005.64249 | W12: 228.4227805 | X12: 119.654354 | Y12: 185.658538 | Z12: -76.89011146
K13: Estimated RPP Sales Quantities | L13: =SUM(C20:C30)/(C35-B70) -> 0.6554164673 | M13: =M8*L13 -> 12119196.87 | N13: =M13 -> 12119196.87 | P13: RPPULOON | Q13: 0.2840027534 | R13: =R12 -> 0.03980990901 | S13: 0.06177000046 | T13: 0.1015799095 | U13: 0.1824228439 | V13: 1499.991258 | W13: 426.0016472 | X13: 59.71451548 | Y13: 92.65446067 | Z13: 273.632671
A14: RPP Revenue Volume and Price Data | K14: Estimated non-RPP Sales Quantities | L14: =1-L13 -> 0.3445835327 | M14: =M8*L14 -> 6371636.781 | N14: =N8-N13 -> 9319207.001 | P14: RPPULOOVN | Q14: 0.02799920533 | R14: 0.03980990901 | S14: 0.06177000046 | T14: 0.1015799095 | U14: -0.07358070414 | V14: 10184.05171 | W14: 285.145355 | X14: 405.426172 | Y14: 629.0688789 | Z14: -749.3496959
B15: bill_year | C15: 2024 | K15: Estimated Retail Revenue kWh Volumes | L15: =+L13+L14 -> 1 | M15: =+M13+M14 -> 18490833.65 | N15: =+N13+N14 -> 21438403.87 | V15: =SUM(V6:V14) -> 12119196.87 | W15: =SUM(W6:W14) -> 1190237.785 | X15: =SUM(X6:X14) -> 482327.7425 | Y15: =SUM(Y6:Y14) -> 748602.7961 | Z15: =SUM(Z6:Z14) -> -40692.75386
B16: bill_month | C16: 12 | Z16: =W15-X15-Y15-Z15 -> -1.455191523e-10
K17: Estimated RPP Revenue Volume and Price Data | L17: Actual % | M17: kWh Volumes
B18: Row Labels | C18: usagebilled | D18: amountbilled | E18: Rate | K18: RPPT1 | L18: =C20/SUM($C$20:$C$30) -> 0.08347657154 | M18: =$M$13*L18 -> 1011669.004
B19: RPPTIER | K19: RPPT2 | L19: =C21/SUM($C$20:$C$30) -> 0.03790637072 | M19: =$M$13*L19 -> 459394.7693
B20: RPPT1 | C20: 990220.6504 | D20: 92090.4566 | E20: =D20/C20 -> 0.09299993548 | K20: RPPTOUMID | L20: =C23/SUM($C$20:$C$30) -> 0.1514018252 | M20: 1834868.526 | P20: Actual RPP Revenue and GA
B21: RPPT2 | C21: 449655.1592 | D21: 49461.74029 | E21: =D21/C21 -> 0.1099992723 | K21: RPPTOUOFF | L21: =C24/SUM($C$20:$C$30) -> 0.5728032131 | M21: 6941914.906 | P21: =P4 -> 202412
B22: RPPTOU | K22: RPPTOUON | L22: 0.1529318713 | M22: 1853411.455 | P22: RPP Revenue Prices | Q22: RPP Rate | R22: Estimated RPP Energy Price | S22: GA actual IESO billed | T22: Total Commodity | U22: Difference | V22: kWh Volumes | W22: $ Estimated RPP Revenue | X22: $ Estimated RPP Energy | Y22: $ Estimated GA | Z22: $ Estimated RPP Settlement
B23: RPPTOUMID | C23: 1795967.552 | D23: 219108.1573 | E23: 0.1220000646 | K23: RPPULOMID | L23: =C27/SUM($C$20:$C$30) -> 0.0002680476145 | M23: 3248.52181 | P23: =P6 -> RPPT1 | Q23: =Q6 -> 0.09299993548 | R23: =R6 -> 0.03974206793 | S23: 0.06177000046 | T23: =R23+S23 -> 0.1015120684 | U23: =+Q23-T23 -> -0.008512132912 | V23: =C20 -> 990220.6504 | W23: =Q23*V23 -> 92090.4566 | X23: =R23*V23 -> 39353.41636 | Y23: =+V23*S23 -> 61165.93003 | Z23: =W23-X23-Y23 -> -8428.889789
B24: RPPTOUOFF | C24: 6794739.647 | D24: 516403.0381 | E24: 0.07600041575 | K24: RPPULOOFF | L24: =C28/SUM($C$20:$C$30) -> 0.0002480067386 | M24: 3005.64249 | P24: =P7 -> RPPT2 | Q24: 0.1099992723 | R24: 0.03974206793 | S24: 0.06177000046 | T24: =R24+S24 -> 0.1015120684 | U24: =+Q24-T24 -> 0.008487203892 | V24: =C21 -> 449655.1592 | W24: =Q24*V24 -> 49461.74029 | X24: =R24*V24 -> 17870.22588 | Y24: =+V24*S24 -> 27775.19939 | Z24: =W24-X24-Y24 -> 3816.315017
B25: RPPTOUON | C25: 1814117.354 | D25: 286632.649 | E25: 0.1580011615 | K25: RPPULOON | L25: 0.0001237698565 | M25: 1499.991258 | P25: RPPTOUMID | Q25: 0.1220000646 | R25: 0.03980646753 | S25: 0.06177000046 | T25: 0.101576468 | U25: 0.02042359659 | V25: =C23 -> 1795967.552 | W25: 219108.1573 | X25: 71491.12405 | Y25: 110936.9165 | Z25: 36680.11677
B26: RPPULO | K26: RPPULOOVN | L26: 0.0008403239771 | M26: 10184.05171 | P26: RPPTOUOFF | Q26: 0.07600041575 | R26: 0.03980646753 | S26: 0.06177000046 | T26: 0.101576468 | U26: -0.02557605224 | V26: =C24 -> 6794739.647 | W26: 516403.0381 | X26: 270474.5832 | Y26: 419711.0711 | Z26: -173782.6162
B27: RPPULOMID | C27: 3179.65003 | D27: 387.9100024 | E27: 0.1219977038 | L27: =SUM(L18:L26) -> 1 | M27: =SUM(M18:M26) -> 12119196.87 | P27: RPPTOUON | Q27: 0.1580011615 | R27: 0.03980646753 | S27: 0.06177000046 | T27: 0.101576468 | U27: 0.05642469352 | V27: 1814117.354 | W27: 286632.649 | X27: 72213.60354 | Y27: 112058.0298 | Z27: 102361.0157
B28: RPPULOOFF | C28: 2941.919984 | D28: 223.5799983 | E28: 0.07599798756 | P28: RPPULOMID | Q28: 0.1219977038 | R28: 0.03980990901 | S28: 0.06177000046 | T28: 0.1015799095 | U28: 0.0204177943 | V28: =C27 -> 3179.65003 | W28: 387.9100024 | X28: 126.5815784 | Y28: 196.4069838 | Z28: 64.92144026
B29: RPPULOON | C29: 1468.190003 | D29: 416.9700033 | E29: 0.2840027534 | P29: RPPULOOFF | Q29: 0.07599798756 | R29: 0.03980990901 | S29: 0.06177000046 | T29: 0.1015799095 | U29: -0.02558192191 | V29: =C28 -> 2941.919984 | W29: 223.5799983 | X29: 117.1175669 | Y29: 181.7223987 | Z29: -75.25996729
B30: RPPULOOVN | C30: 9968.14004 | D30: 279.0999997 | E30: 0.02799920533 | P30: RPPULOON | Q30: 0.2840027534 | R30: 0.03980990901 | S30: 0.06177000046 | T30: 0.1015799095 | U30: 0.1824228439 | V30: 1468.190003 | W30: 416.9700033 | X30: 58.44851043 | Y30: 90.69009717 | Z30: 267.8313957
B31: RETAIL | K31: Global Adjustment | L31: per kWh | P31: RPPULOOVN | Q31: 0.02799920533 | R31: 0.03980990901 | S31: 0.06177000046 | T31: 0.1015799095 | U31: -0.07358070414 | V31: 9968.14004 | W31: 279.0999997 | X31: 396.830748 | Y31: 615.7320148 | Z31: -733.4627631
B32: NSLS | C32: 3172910.032 | D32: 125706.4071 | E32: 0.03961864844 | K32: Class B - GA actual8 | L32: =B62/100 -> 0.06177000046 | N32: GA Posted Price | V32: =SUM(V23:V31) -> 11862258.26 | W32: =SUM(W23:W31) -> 1165003.601 | X32: =SUM(X23:X31) -> 472101.9314 | Y32: =SUM(Y23:Y31) -> 732731.6983 | Z32: =SUM(Z23:Z31) -> -39830.02842
B33: INTERVAL | K33: Class B - GA actual IESO billed | L33: =+M33/M8 -> 0.06174418047 | M33: =B78 -> 1141701.37 | N33: GA Billed by IESO CT 148 | Z33: =W32-X32-Y32-Z32 -> 2.764863893e-10
B34: HOEP | C34: 6011212.154 | D34: 236495.6799 | E34: 0.03934242776
B35: Grand Total | C35: 21046380.45 | D35: 1527205.688 | M35: =$M$8*L32 -> 1142178.803 | Z35: =Z15-Z32 -> -862.725441
M36: =$M$8*L33 -> 1141701.37
B37: UFE | C37: =C35-C11 -> -392023.422 | D37: =C35/C11-1 -> -0.01828603586 | M37: =M35-M36 -> 477.4330249
A39: RPP COP Volume and Price Data
A40: ER COP Summary.xlsm | B40: bill_year | C40: 2024
B41: bill_month | C41: 12
B43: Row Labels | C43: usagebilled | D43: amountbilled | E43: Rate
B44: RPPTIERED | C44: 1440886.599 | D44: 57263.81311 | E44: =D44/C44 -> 0.03974206793
B45: RPPTOU | C45: 10403547.92 | D45: 414128.4925 | E45: 0.03980646753
B46: RPPULO | C46: 17557.94013 | D46: 698.9799989 | E46: 0.03980990901
B47: Grand Total | C47: 11861992.46 | D47: 472091.2856
B50: RPPTIERED | C50: =SUM(C20:C21)-C44 -> -1010.789561 | D50: =C50/SUM(C20:C21) -> -0.0007019977379
B51: RPPTOU | C51: =SUM(C23:C25)-C45 -> 1276.632045 | D51: =C51/SUM(C23:C25) -> 0.0001226961626
B52: RPPULO | C52: =SUM(C27:C30)-C46 -> -0.040071465 | D52: =C52/SUM(C27:C30) -> -2.282247015e-06
A58: Global Adjustment - Actual
A59: IESO GA Reconciliation.xlsm
A60: ga_actual | B60: year
A61: month | B61: 2024
A62: 202412 | B62: 6.177000046
A64: Class A kWh
A65: Redshift Class A Report.xlsm
A66: Year | B66: 2024
A68: Class A | B68: Value
A69: kWh
A70: 202412 | B70: 2947570.22
A72: IESO Class B
A73: IESO Invoice Reconciliation.xlsm
A74: chargetype | B74: 148
A76: Sum of chargeamount | B76: year
A77: month | B77: 2024
A78: 202412 | B78: 1141701.37

Sheet I25 Input Rev 12 Init (hidden)
A1: Reverse IESO Posted
A5: =Admin!B41 -> 202412
A6: RPP Revenue Prices | B6: kWh Volumes | C6: $ RPP Settlement
A7: RPPTiered_1 | B7: 800037.25 | C7: -742.15
A8: RPPTiered_2 | B8: 280965.3 | C8: -4724.22
A9: RPPTOU_MID | B9: 4813209.47 | C9: 76458.09
A10: RPPTOU_OFF | B10: 1434009.29 | C10: -59585.26
A11: RPPTOU_ON | B11: 1499632.74 | C11: -90527.52
A12: RPPULO_MID | B12: 2357.01 | C12: 59.56
A13: RPPULO_OFF | B13: 1184.58 | C13: -270.38
A14: RPPULO_ON | B14: 2443.31 | C14: -100.64
A15: RPPULO_ULO | B15: 7748.31 | C15: 421.19
A16: Grand Total | B16: 8841587.26 | C16: -79011.33

Sheet Rec1 1588 Commodity
A1: Lakefront Utilities Inc.
A2: =ProcessYear[Process Year]& " 1588 Commodity RSVA" -> 2024 1588 Commodity RSVA
A3: Commodity
B5: 4006-4055 | E5: 4705 | L5: 1588 | S5: Interest Calculation
B6: GL Revenue | C6: Unbilled | D6: Total Revenue | E6: Energy Cost (code 101) | F6: RPP GA (code 148) | G6: IESO RPP Settlement | H6: FIT/mFIT | I6: Misc | J6: IESO Code 118 - Energy Rebate | K6: Total Cost | L6: Variance | M6: Y.T.D. | N6: G.L. Balance | Q6: Variance Balance | R6: Interest Rate | S6: Interest Applied | T6: Interest
A7: Opening Balance | Q7: =[1]Reconciliation!$E$9 -> 576786.06 | T7: =[1]Reconciliation!$F$9 -> 46208.06
A8: January | D8: =-'I1a ER Summary'!AF5 -> -1795209.557 | E8: ='I1a ER Summary'!K5 -> 997395.03 | F8: ='I1a ER Summary'!E5 -> 551252.1243 | G8: ='I1a ER Summary'!F5 -> 265158.472 | H8: ='I1a ER Summary'!M5 -> 6332.29 | K8: =SUM(E8:J8) -> 1820137.916 | L8: =D8+K8 -> 24928.35939 | M8: =L8 -> 24928.35939 | N8: =N7+L8 -> 24928.35939 | Q8: =Q7+L8 -> 601714.4194 | R8: 0.0549 | S8: =Q7*(R8/12) -> 2638.796225 | T8: =T7+S8 -> 48846.85622
A9: February | D9: =-'I1a ER Summary'!AF6 -> -1411659.421 | E9: ='I1a ER Summary'!K6 -> 563195.17 | F9: ='I1a ER Summary'!E6 -> 691153.2268 | G9: ='I1a ER Summary'!F6 -> 160483.3497 | H9: ='I1a ER Summary'!M6 -> 10824.57 | K9: =SUM(E9:J9) -> 1425656.317 | L9: =D9+K9 -> 13996.89507 | M9: =M8+L9 -> 38925.25446 | N9: =N8+L9 -> 38925.25446 | Q9: =Q8+L9 -> 615711.3145 | R9: 0.0549 | S9: =Q8*(R9/12) -> 2752.843469 | T9: =T8+S9 -> 51599.69969
A10: March | D10: =-'I1a ER Summary'!AF7 -> -1382291.765 | E10: ='I1a ER Summary'!K7 -> 573567.97 | F10: ='I1a ER Summary'!E7 -> 822915.9504 | G10: ='I1a ER Summary'!F7 -> -18325.12196 | H10: ='I1a ER Summary'!M7 -> 15542.01 | K10: 1393700.808 | L10: 11409.04331 | M10: =M9+L10 -> 50334.29777 | N10: 50334.29777 | Q10: 627120.3578 | R10: 0.0549 | S10: 2816.879264 | T10: 54416.57896
A11: April | D11: =-'I1a ER Summary'!AF8 -> -1271979.176 | E11: ='I1a ER Summary'!K8 -> 549955.76 | F11: ='I1a ER Summary'!E8 -> 711259.2051 | G11: ='I1a ER Summary'!F8 -> 68472.39609 | H11: ='I1a ER Summary'!M8 -> 14425.49 | K11: 1344112.851 | L11: 72133.67537 | M11: 122467.9731 | N11: 122467.9731 | Q11: 699254.0331 | R11: 0.0549 | S11: 2869.075637 | T11: 57285.65459
A12: May | D12: =-'I1a ER Summary'!AF9 -> -1217117.467 | E12: ='I1a ER Summary'!K9 -> 512964.14 | F12: ='I1a ER Summary'!E9 -> 644899.9801 | G12: ='I1a ER Summary'!F9 -> 48508.95327 | H12: ='I1a ER Summary'!M9 -> 25929.14 | K12: 1232302.213 | L12: 15184.74681 | M12: 137652.72 | N12: 137652.72 | Q12: 714438.78 | R12: 0.0549 | S12: 3199.087202 | T12: 60484.7418
A13: June | D13: =-'I1a ER Summary'!AF10 -> -1364420.938 | E13: ='I1a ER Summary'!K10 -> 608566.83 | F13: ='I1a ER Summary'!E10 -> 727979.621 | G13: ='I1a ER Summary'!F10 -> 14982.40119 | H13: ='I1a ER Summary'!M10 -> 27896.17 | K13: 1379425.022 | L13: 15004.08373 | M13: 152656.8037 | N13: 152656.8037 | Q13: 729442.8637 | R13: 0.0549 | S13: 3268.557418 | T13: 63753.29921
A14: July | D14: =-'I1a ER Summary'!AF11 -> -1724724.681 | E14: ='I1a ER Summary'!K11 -> 841945.01 | F14: ='I1a ER Summary'!E11 -> 732170.4058 | G14: ='I1a ER Summary'!F11 -> 130042.3481 | H14: ='I1a ER Summary'!M11 -> 34765.32 | K14: 1738923.084 | L14: 14198.4029 | M14: 166855.2066 | N14: 166855.2066 | Q14: 743641.2666 | R14: 0.052 | S14: 3160.919076 | T14: 66914.21829
A15: August | D15: =-'I1a ER Summary'!AF12 -> -1594366.373 | E15: ='I1a ER Summary'!K12 -> 807260.37 | F15: ='I1a ER Summary'!E12 -> 667773.3939 | G15: ='I1a ER Summary'!F12 -> 87810.03783 | H15: ='I1a ER Summary'!M12 -> 31377.6 | K15: 1594221.402 | L15: -144.9711666 | M15: 166710.2354 | N15: 166710.2354 | Q15: 743496.2954 | R15: 0.052 | S15: 3222.445489 | T15: 70136.66378
A16: September | D16: =-'I1a ER Summary'!AF13 -> -1326652.555 | E16: ='I1a ER Summary'!K13 -> 604221.58 | F16: ='I1a ER Summary'!E13 -> 688824.9704 | G16: ='I1a ER Summary'!F13 -> -2904.232052 | H16: ='I1a ER Summary'!M13 -> 21601.82 | K16: 1311744.138 | L16: -14908.41628 | M16: 151801.8191 | N16: 151801.8191 | Q16: 728587.8791 | R16: 0.052 | S16: 3221.81728 | T16: 73358.48106
A17: October | D17: =-'I1a ER Summary'!AF14 -> -1316823.569 | E17: ='I1a ER Summary'!K14 -> 636684.34 | F17: ='I1a ER Summary'!E14 -> 648915.3833 | G17: ='I1a ER Summary'!F14 -> 25857.53696 | H17: ='I1a ER Summary'!M14 -> 18413.66 | K17: 1329870.92 | L17: 13047.35095 | M17: 164849.1701 | N17: 164849.1701 | Q17: 741635.2301 | R17: 0.04404 | S17: 2673.917516 | T17: 76032.39857
A18: November | D18: =-'I1a ER Summary'!AF15 -> -1233006.988 | E18: ='I1a ER Summary'!K15 -> 591718.79 | F18: ='I1a ER Summary'!E15 -> 837019.6428 | G18: ='I1a ER Summary'!F15 -> -186776.6984 | H18: ='I1a ER Summary'!M15 -> 8683.49 | K18: 1250645.224 | L18: 17638.23597 | M18: 182487.4061 | N18: 182487.4061 | Q18: 759273.4661 | R18: 0.04404 | S18: 2721.801294 | T18: 78754.19987
A19: December | D19: =-'I1a ER Summary'!AF16 -> -1527205.688 | E19: ='I1a ER Summary'!K16 -> 844612.18 | F19: ='I1a ER Summary'!E16 -> 748602.7961 | G19: ='I1a ER Summary'!F16 -> -40692.75386 | H19: ='I1a ER Summary'!M16 -> 5947.21 | K19: 1558469.432 | L19: 31263.74398 | M19: 213751.15 | N19: =N18+L19 -> 213751.15 | Q19: 790537.21 | R19: 0.04404 | S19: 2786.53362 | T19: 81540.73349
B20: =SUM(B8:B19) -> 0 | C20: =SUM(C8:C19) -> 0 | D20: -17165458.18 | E20: 8132087.17 | F20: 8472766.7 | G20: 552616.6889 | H20: 221738.77 | I20: 0 | J20: 0 | K20: 17379209.33 | L20: =SUM(L8:L19) -> 213751.15 | S20: =SUM(S8:S19) -> 35332.67349

Sheet Rec2 1589 Class B
A1: Lakefront Utilities Inc.
A2: =ProcessYear[Process Year]& " 1589 ClassB RSVA" -> 2024 1589 ClassB RSVA
A3: Global Adjustment Class B Only
B5: 4006-4055 | E5: 4707 | K5: 1589 | R5: Interest Calculation
B6: Revenue - Class B only | C6: Unbilled | D6: Total Revenue | E6: IESO Code 148 | F6: RPP GA (code 148) | G6: Class B GA (Code 148) | H6: Class B Deferral | I6: Misc | J6: Class B GA | K6: Variance | L6: Y.T.D. | M6: G.L. Balance | P6: Variance Balance | Q6: Interest Rate | R6: Interest Applied | S6: Interest
A7: Opening Balance | P7: =[1]Reconciliation!$K$9 -> 174683.17 | S7: =[1]Reconciliation!$L$9 -> -99313.38
A8: January | D8: -355921.03 | E8: ='I1a ER Summary'!Q5 -> 857975.93 | F8: =-'Rec1 1588 Commodity'!F8 -> -551252.1243 | G8: =E8+F8 -> 306723.8057 | J8: =SUM(G8:I8) -> 306723.8057 | K8: =D8+J8 -> -49197.22426 | L8: =K8 -> -49197.22426 | M8: =M7+K8 -> -49197.22426 | P8: =P7+K8 -> 125485.9457 | Q8: 0.0549 | R8: =P7*(Q8/12) -> 799.1755027 | S8: =S7+R8 -> -98514.2045
A9: February | D9: -510400.47 | E9: ='I1a ER Summary'!Q6 -> 1093924.51 | F9: =-'Rec1 1588 Commodity'!F9 -> -691153.2268 | G9: =E9+F9 -> 402771.2832 | J9: =SUM(G9:I9) -> 402771.2832 | K9: =D9+J9 -> -107629.1868 | L9: =L8+K9 -> -156826.4111 | M9: =M8+K9 -> -156826.4111 | P9: =P8+K9 -> 17856.75891 | Q9: 0.0549 | R9: =P8*(Q9/12) -> 574.0982018 | S9: =S8+R9 -> -97940.1063
A10: March | D10: -510519.91 | E10: ='I1a ER Summary'!Q7 -> 1332977.96 | F10: =-'Rec1 1588 Commodity'!F10 -> -822915.9504 | G10: 510062.0096 | J10: 510062.0096 | K10: -457.9003903 | L10: =L9+K10 -> -157284.3115 | M10: -157284.3115 | P10: 17398.85852 | Q10: 0.0549 | R10: 81.694672 | S10: -97858.41162
A11: April | D11: -501589.14 | E11: ='I1a ER Summary'!Q8 -> 1105649.29 | F11: =-'Rec1 1588 Commodity'!F11 -> -711259.2051 | G11: 394390.0849 | J11: 394390.0849 | K11: -107199.0551 | L11: -264483.3666 | M11: -264483.3666 | P11: -89800.19661 | Q11: 0.0549 | R11: 79.59977771 | S11: -97778.81185
A12: May | D12: -277587.95 | E12: ='I1a ER Summary'!Q9 -> 1121530.65 | F12: =-'Rec1 1588 Commodity'!F12 -> -644899.9801 | G12: 476630.6699 | J12: 476630.6699 | K12: 199042.7199 | L12: -65440.64674 | M12: -65440.64674 | P12: 109242.5233 | Q12: 0.0549 | R12: -410.8358995 | S12: -98189.64775
A13: June | D13: -291741.66 | E13: ='I1a ER Summary'!Q10 -> 1234849.01 | F13: =-'Rec1 1588 Commodity'!F13 -> -727979.621 | G13: 506869.389 | J13: 506869.389 | K13: 215127.729 | L13: 149687.0823 | M13: 149687.0823 | P13: 324370.2523 | Q13: 0.0549 | R13: 499.7845439 | S13: -97689.8632
A14: July | D14: -326033.4647 | E14: ='I1a ER Summary'!Q11 -> 1191614.66 | F14: =-'Rec1 1588 Commodity'!F14 -> -732170.4058 | G14: 459444.2542 | J14: 459444.2542 | K14: 133410.7895 | L14: 283097.8717 | M14: 283097.8717 | P14: 457781.0417 | Q14: 0.052 | R14: 1405.604427 | S14: -96284.25877
A15: August | D15: -366332.2953 | E15: ='I1a ER Summary'!Q12 -> 1108616.17 | F15: =-'Rec1 1588 Commodity'!F15 -> -667773.3939 | G15: 440842.7761 | J15: 440842.7761 | K15: 74510.48084 | L15: 357608.3526 | M15: 357608.3526 | P15: 532291.5226 | Q15: 0.052 | R15: 1983.717848 | S15: -94300.54093
A16: September | D16: -407811.28 | E16: ='I1a ER Summary'!Q13 -> 1199869.99 | F16: =-'Rec1 1588 Commodity'!F16 -> -688824.9704 | G16: 511045.0196 | J16: 511045.0196 | K16: 103233.7396 | L16: 460842.0922 | M16: 460842.0922 | P16: 635525.2622 | Q16: 0.052 | R16: 2306.596598 | S16: -91993.94433
A17: October | D17: -494772.39 | E17: ='I1a ER Summary'!Q14 -> 1102798.09 | F17: =-'Rec1 1588 Commodity'!F17 -> -648915.3833 | G17: 453882.7067 | J17: 453882.7067 | K17: -40889.68329 | L17: 419952.4089 | M17: 419952.4089 | P17: 594635.5789 | Q17: 0.04404 | R17: 2332.377712 | S17: -89661.56662
A18: November | D18: -459261.8618 | E18: ='I1a ER Summary'!Q15 -> 1378061.68 | F18: =-'Rec1 1588 Commodity'!F18 -> -837019.6428 | G18: 541042.0372 | J18: 541042.0372 | K18: 81780.17535 | L18: 501732.5843 | M18: 501732.5843 | P18: 676415.7543 | Q18: 0.04404 | R18: 2182.312575 | S18: -87479.25404
A19: December | D19: -494375.4782 | E19: ='I1a ER Summary'!Q16 -> 1141701.37 | F19: =-'Rec1 1588 Commodity'!F19 -> -748602.7961 | G19: 393098.5739 | J19: 393098.5739 | K19: -101276.9043 | L19: 400455.68 | M19: 400455.68 | P19: 575138.85 | Q19: 0.04404 | R19: 2482.445818 | S19: -84996.80822
B20: =SUM(B8:B19) -> 0 | C20: 0 | D20: -4996346.93 | E20: 13869569.31 | F20: -8472766.7 | G20: 5396802.61 | H20: 0 | I20: 0 | J20: 5396802.61 | K20: 400455.68 | R20: =SUM(R8:R19) -> 14316.57178
A22: Per GL
A23: Adjustments

Sheet Rec3 1589 Class A
A1: Lakefront Utilities Inc.
A2: 2023 1589 ClassA RSVA
A3: Global Adjustment Class A Only
B5: 4006-4055 | E5: 4707 | H5: 1588
B6: Revenue - Class A only | C6: Unbilled | D6: Total Revenue | E6: Class A GA | F6: Misc | G6: Total Cost | H6: Variance | I6: Y.T.D. | J6: G.L. Balance
A7: Opening Balance | J7: 0
A8: January | D8: =-E8 -> -352692.07 | E8: 352692.07 | G8: =SUM(E8:F8) -> 352692.07 | H8: =D8+G8 -> 0 | I8: =H8 -> 0 | J8: =J7+H8 -> 0
A9: February | D9: =-E9 -> -356932.39 | E9: 356932.39 | G9: =SUM(E9:F9) -> 356932.39 | H9: =D9+G9 -> 0 | I9: =I8+H9 -> 0 | J9: =J8+H9 -> 0
A10: March | D10: -431565.01 | E10: 431565.01 | G10: 431565.01 | H10: 0 | I10: =I9+H10 -> 0 | J10: 0
A11: April | D11: -421578.83 | E11: 421578.83 | G11: 421578.83 | H11: 0 | I11: 0 | J11: 0
A12: May | D12: -448738.87 | E12: 448738.87 | G12: 448738.87 | H12: 0 | I12: 0 | J12: 0
A13: June | D13: -515939.41 | E13: 515939.41 | G13: 515939.41 | H13: 0 | I13: 0 | J13: 0
A14: July | D14: -418890.78 | E14: 418890.78 | G14: 418890.78 | H14: 0 | I14: 0 | J14: 0
A15: August | D15: -402619.49 | E15: 402619.49 | G15: 402619.49 | H15: 0 | I15: 0 | J15: 0
A16: September | D16: -389212.75 | E16: 389212.75 | G16: 389212.75 | H16: 0 | I16: 0 | J16: 0
A17: October | D17: -521516.51 | E17: 521516.51 | G17: 521516.51 | H17: 0 | I17: 0 | J17: 0
A18: November | D18: -430140.51 | E18: 430140.51 | G18: 430140.51 | H18: 0 | I18: 0 | J18: 0
A19: December | D19: -391941.72 | E19: 391941.72 | G19: 391941.72 | H19: 0 | I19: 0 | J19: 0
B20: =SUM(B8:B19) -> 0 | C20: 0 | D20: -5081768.34 | E20: 5081768.34 | F20: 0 | G20: 5081768.34 | H20: 0 | I20: 0 | J20: 0

Sheet Rev1UFE
A1: Lakefront Utilities Inc.
A2: 2023 RSVA
A3: Unaccounted for Energy Summary For USoA 1588
C5: Total Energy Purchases | D5: Total Retail Sales | E5: Uaccounted for Energy | F5: UFE | G5: Total Energy Purchases | H5: Total Retail Sales | I5: UFE | J5: UFE | N5: Energy Purchases RPP and non-RPP | P5: RPP Settlement Amounts | T5: Energy Sales Revenue | V5: Energy Sales Volumes | X5: Energy Sales/kWh
B6: Version | C6: kWH | D6: kWh | E6: kWh | F6: % | G6: $ Amount | H6: $ Amount | I6: $ Amount | J6: % | K6: Revenue Per kWh | L6: UFE $ Cost per kWh | N6: Energy for RPP and non-RPP | O6: Final GA for RPP | P6: Initial Settlement | Q6: First True-Up | R6: Final True-Up | S6: RPP Settlement Amount | T6: RPP Sales | U6: Non-RPP Sales | V6: RPP kWh | W6: Non-RPP kWH | X6: RPP | Y6: Non-RPP
A7: January | B7: Final | C7: ='I1a ER Summary'!S5 -> 22824667.5 | D7: ='I1a ER Summary'!T5 -> 22536847.88 | E7: =+C7-D7 -> 287819.6178 | F7: =+E7/C7 -> 0.01261002456 | G7: =+N7+O7+S7 -> 1820137.916 | H7: =+T7+U7 -> 1795209.557 | I7: =+G7-H7 -> 24928.35939 | J7: =+I7/G7 -> 0.01369586292 | K7: =+H7/D7 -> 0.07965663904 | L7: =+I7/E7 -> 0.08661105029 | N7: ='I1a ER Summary'!O5 -> 1003727.32 | O7: ='I1a ER Summary'!E5 -> 551252.1243 | P7: 0 | Q7: 0 | R7: ='I1a ER Summary'!F5 -> 265158.472 | S7: =SUM(P7:R7) -> 265158.472 | T7: ='I1a ER Summary'!C5 -> 1340260.145 | U7: ='I1a ER Summary'!AH5 -> 454949.4122 | V7: ='I1a ER Summary'!AJ5 -> 12009943.26 | W7: ='I1a ER Summary'!AK5 -> 10711829.6 | X7: =+T7/V7 -> 0.1115958765 | Y7: 0.04247168124
A8: February | B8: Final | C8: ='I1a ER Summary'!S6 -> 20201440.65 | D8: ='I1a ER Summary'!T6 -> 20028272.16 | E8: =+C8-D8 -> 173168.4883 | F8: =+E8/C8 -> 0.008572086088 | G8: =+N8+O8+S8 -> 1425656.317 | H8: =+T8+U8 -> 1411659.421 | I8: =+G8-H8 -> 13996.89507 | J8: =+I8/G8 -> 0.009817860661 | K8: =+H8/D8 -> 0.07048333526 | L8: 0.08082818762 | N8: ='I1a ER Summary'!O6 -> 574019.74 | O8: ='I1a ER Summary'!E6 -> 691153.2268 | P8: 0 | Q8: 0 | R8: ='I1a ER Summary'!F6 -> 160483.3497 | S8: 160483.3497 | T8: ='I1a ER Summary'!C6 -> 1148099.695 | U8: ='I1a ER Summary'!AH6 -> 263559.7261 | V8: ='I1a ER Summary'!AJ6 -> 10418832.69 | W8: ='I1a ER Summary'!AK6 -> 9718849.18 | X8: 0.1101946571 | Y8: 0.0271184089
A9: March | B9: Final | C9: ='I1a ER Summary'!S7 -> 20526103.39 | D9: ='I1a ER Summary'!T7 -> 20348892.24 | E9: 177211.1537 | F9: 0.008633453235 | G9: 1393700.808 | H9: 1382291.765 | I9: 11409.04331 | J9: 0.008186149594 | K9: 0.06792958305 | L9: 0.06438106783 | N9: ='I1a ER Summary'!O7 -> 589109.98 | O9: ='I1a ER Summary'!E7 -> 822915.9504 | P9: 0 | Q9: 0 | R9: ='I1a ER Summary'!F7 -> -18325.12196 | S9: -18325.12196 | T9: ='I1a ER Summary'!C7 -> 1096885.566 | U9: ='I1a ER Summary'!AH7 -> 285406.1989 | V9: ='I1a ER Summary'!AJ7 -> 10071178.53 | W9: ='I1a ER Summary'!AK7 -> 10387053.93 | X9: 0.1089133275 | Y9: 0.02747710764
A10: April | B10: Final | C10: ='I1a ER Summary'!S8 -> 19301655.5 | D10: ='I1a ER Summary'!T8 -> 18406311.26 | E10: 895344.2382 | F10: 0.04638691423 | G10: 1344112.851 | H10: 1271979.176 | I10: 72133.67537 | J10: 0.05366638322 | K10: 0.06910559958 | L10: 0.08056529801 | N10: ='I1a ER Summary'!O8 -> 564381.25 | O10: ='I1a ER Summary'!E8 -> 711259.2051 | P10: 0 | Q10: 0 | R10: ='I1a ER Summary'!F8 -> 68472.39609 | S10: 68472.39609 | T10: ='I1a ER Summary'!C8 -> 1057898.762 | U10: ='I1a ER Summary'!AH8 -> 214080.4138 | V10: ='I1a ER Summary'!AJ8 -> 9576668.921 | W10: ='I1a ER Summary'!AK8 -> 9405431.876 | X10: 0.1104662561 | Y10: 0.02276135924
A11: May | B11: Final | C11: ='I1a ER Summary'!S9 -> 18913888.38 | D11: ='I1a ER Summary'!T9 -> 18721778.17 | E11: 192110.205 | F11: 0.01015709732 | G11: 1232302.213 | H11: 1217117.467 | I11: 15184.74681 | J11: 0.01232225882 | K11: 0.06501078344 | L11: 0.07904185419 | N11: ='I1a ER Summary'!O9 -> 538893.28 | O11: ='I1a ER Summary'!E9 -> 644899.9801 | P11: 0 | Q11: 0 | R11: ='I1a ER Summary'!F9 -> 48508.95327 | S11: 48508.95327 | T11: ='I1a ER Summary'!C9 -> 931512.1341 | U11: ='I1a ER Summary'!AH9 -> 285605.3325 | V11: ='I1a ER Summary'!AJ9 -> 8307355.136 | W11: ='I1a ER Summary'!AK9 -> 10524896.1 | X11: 0.1121310115 | Y11: 0.02713616646
A12: June | B12: Final | C12: ='I1a ER Summary'!S10 -> 19966322.28 | D12: ='I1a ER Summary'!T10 -> 19795123.07 | E12: 171199.2108 | F12: 0.008574398848 | G12: 1379425.022 | H12: 1364420.938 | I12: 15004.08373 | J12: 0.01087705637 | K12: 0.06892712582 | L12: 0.08764108003 | N12: ='I1a ER Summary'!O10 -> 636463 | O12: ='I1a ER Summary'!E10 -> 727979.621 | P12: 0 | Q12: 0 | R12: ='I1a ER Summary'!F10 -> 14982.40119 | S12: 14982.40119 | T12: ='I1a ER Summary'!C10 -> 1041312.604 | U12: ='I1a ER Summary'!AH10 -> 323108.3344 | V12: ='I1a ER Summary'!AJ10 -> 9285454.168 | W12: ='I1a ER Summary'!AK10 -> 10610618.81 | X12: 0.1121444988 | Y12: 0.03045141288
A13: July | B13: Final | C13: ='I1a ER Summary'!S11 -> 23016673.74 | D13: ='I1a ER Summary'!T11 -> 22893617.49 | E13: 123056.2536 | F13: 0.005346396051 | G13: 1738923.084 | H13: 1724724.681 | I13: 14198.4029 | J13: 0.008165055162 | K13: 0.07533648546 | L13: 0.1153814007 | N13: ='I1a ER Summary'!O11 -> 876710.33 | O13: ='I1a ER Summary'!E11 -> 732170.4058 | P13: 0 | Q13: 0 | R13: ='I1a ER Summary'!F11 -> 130042.3481 | S13: 130042.3481 | T13: ='I1a ER Summary'!C11 -> 1307912.331 | U13: ='I1a ER Summary'!AH11 -> 416812.35 | V13: ='I1a ER Summary'!AJ11 -> 11492237.13 | W13: ='I1a ER Summary'!AK11 -> 11476980.83 | X13: 0.1138083314 | Y13: 0.0363172472
A14: August | B14: Final | C14: ='I1a ER Summary'!S12 -> 21662697.4 | D14: ='I1a ER Summary'!T12 -> 21736057.06 | E14: -73359.66286 | F14: -0.003386450981 | G14: 1594221.402 | H14: 1594366.373 | I14: -144.9711666 | J14: -9.093540359e-05 | K14: 0.07335122319 | L14: 0.001976170022 | N14: ='I1a ER Summary'!O12 -> 838637.97 | O14: ='I1a ER Summary'!E12 -> 667773.3939 | P14: 0 | Q14: 0 | R14: ='I1a ER Summary'!F12 -> 87810.03783 | S14: 87810.03783 | T14: ='I1a ER Summary'!C12 -> 1179140.464 | U14: ='I1a ER Summary'!AH12 -> 415225.9084 | V14: ='I1a ER Summary'!AJ12 -> 10561021.65 | W14: ='I1a ER Summary'!AK12 -> 11130662.59 | X14: 0.111650227 | Y14: 0.03730468919
A15: September | B15: Final | C15: ='I1a ER Summary'!S13 -> 19491949.3 | D15: ='I1a ER Summary'!T13 -> 19710358.39 | E15: -218409.0886 | F15: -0.01120509218 | G15: 1311744.138 | H15: 1326652.555 | I15: -14908.41628 | J15: -0.01136533859 | K15: 0.06730737861 | L15: 0.06825913872 | N15: ='I1a ER Summary'!O13 -> 625823.4 | O15: ='I1a ER Summary'!E13 -> 688824.9704 | P15: 0 | Q15: 0 | R15: ='I1a ER Summary'!F13 -> -2904.232052 | S15: -2904.232052 | T15: ='I1a ER Summary'!C13 -> 967290.5235 | U15: ='I1a ER Summary'!AH13 -> 359362.0311 | V15: ='I1a ER Summary'!AJ13 -> 8688508.738 | W15: ='I1a ER Summary'!AK13 -> 10896384.89 | X15: 0.1113298671 | Y15: 0.03297993185
A16: October | B16: Final | C16: ='I1a ER Summary'!S14 -> 19231687.81 | D16: ='I1a ER Summary'!T14 -> 19067979.11 | E16: 163708.7048 | F16: 0.008512446041 | G16: 1329870.92 | H16: 1316823.569 | I16: 13047.35095 | J16: 0.009810990485 | K16: 0.06905941957 | L16: 0.07969857781 | N16: ='I1a ER Summary'!O14 -> 655098 | O16: ='I1a ER Summary'!E14 -> 648915.3833 | P16: 0 | Q16: 0 | R16: ='I1a ER Summary'!F14 -> 25857.53696 | S16: 25857.53696 | T16: ='I1a ER Summary'!C14 -> 970343.8961 | U16: ='I1a ER Summary'!AH14 -> 346479.6733 | V16: ='I1a ER Summary'!AJ14 -> 8670702.371 | W16: ='I1a ER Summary'!AK14 -> 10493145.18 | X16: 0.1119106451 | Y16: 0.03301962064
A17: November | B17: Final | C17: ='I1a ER Summary'!S15 -> 19598331.78 | D17: ='I1a ER Summary'!T15 -> 19361374.5 | E17: 236957.2757 | F17: 0.012090686 | G17: 1250645.224 | H17: 1233006.988 | I17: 17638.23597 | J17: 0.01410330894 | K17: 0.06368385613 | L17: 0.07443635533 | N17: ='I1a ER Summary'!O15 -> 600402.28 | O17: ='I1a ER Summary'!E15 -> 837019.6428 | P17: 0 | Q17: 0 | R17: ='I1a ER Summary'!F15 -> -186776.6984 | S17: -186776.6984 | T17: ='I1a ER Summary'!C15 -> 939933.4308 | U17: ='I1a ER Summary'!AH15 -> 293073.5577 | V17: ='I1a ER Summary'!AJ15 -> 9400489.851 | W17: ='I1a ER Summary'!AK15 -> 10104782.79 | X17: 0.09998770763 | Y17: 0.02900344953
A18: December | B18: Final | C18: ='I1a ER Summary'!S16 -> 21438403.87 | D18: ='I1a ER Summary'!T16 -> 21046380.45 | E18: 392023.422 | F18: 0.01828603586 | G18: 1558469.432 | H18: 1527205.688 | I18: 31263.74398 | J18: 0.02006054359 | K18: 0.07256381647 | L18: 0.0797496839 | N18: ='I1a ER Summary'!O16 -> 850559.39 | O18: ='I1a ER Summary'!E16 -> 748602.7961 | P18: 0 | Q18: 0 | R18: ='I1a ER Summary'!F16 -> -40692.75386 | S18: -40692.75386 | T18: ='I1a ER Summary'!C16 -> 1190237.785 | U18: ='I1a ER Summary'!AH16 -> 336967.9035 | V18: ='I1a ER Summary'!AJ16 -> 12119196.87 | W18: ='I1a ER Summary'!AK16 -> 9184122.186 | X18: 0.09821094563 | Y18: 0.03669026791
A19: Total | C19: =SUM(C7:C18) -> 246173821.6 | D19: =SUM(D7:D18) -> 243652991.8 | E19: =SUM(E7:E18) -> 2520829.818 | F19: 0.01024004016 | G19: =SUM(G7:G18) -> 17379209.33 | H19: =SUM(H7:H18) -> 17165458.18 | I19: =SUM(I7:I18) -> 213751.15 | J19: 0.0122992448 | K19: 0.07045043056 | L19: 0.08479396288 | N19: =SUM(N7:N18) -> 8353825.94 | O19: 8472766.7 | P19: 0 | Q19: 0 | R19: 552616.6889 | S19: 552616.6889 | T19: 11382095.66 | U19: 3626059.63 | V19: 120601589.3 | W19: 124644758 | X19: 0.09437765895 | Y19: 0.02909115224

Sheet Rev2 GA Purchases
A1: Lakefront Utilities Inc.
A2: 2024 RSVA
A3: Non-RPP Global Adjustment
C5: Non-RPP Class A GA | F5: Non-RPP Class B GA | I5: RPP Class B GA | L5: Total Class B GA | Q5: GA non-RPP Cost Amounts Booked
C6: Cost Amount | D6: kWh | E6: Avg Cost | F6: Cost Amount | G6: kWh | H6: Avg Cost | I6: Cost Amount | J6: kWh | K6: Avg Cost | L6: Cost Amount | M6: kWh | N6: Avg Cost | Q6: G/L 4707 | R6: True-Ups | S6: Total | T6: Difference
A7: January | B7: Final | C7: ='Rec3 1589 Class A'!G8 -> 352692.07 | D7: ='I1a ER Summary'!AN5 -> 4132236.61 | E7: =+C7/D7 -> 0.08535137343 | F7: ='Rec2 1589 Class B'!J8 -> 306723.8057 | G7: ='I1a ER Summary'!AK5 -> 10711829.6 | H7: =+F7/G7 -> 0.02863411922 | I7: ='Rec1 1588 Commodity'!F8 -> 551252.1243 | J7: ='I1a ER Summary'!AJ5 -> 12009943.26 | K7: =+I7/J7 -> 0.04589964436 | L7: =+F7+I7 -> 857975.93 | M7: 22721772.86 | N7: =+L7/M7 -> 0.03776007865 | Q7: 368354.797 | S7: =+Q7+R7 -> 368354.797 | T7: =+S7-F7 -> 61630.99123
A8: February | B8: Final | C8: ='Rec3 1589 Class A'!G9 -> 356932.39 | D8: ='I1a ER Summary'!AN6 -> 3711006.98 | E8: 0.09618208533 | F8: ='Rec2 1589 Class B'!J9 -> 402771.2832 | G8: ='I1a ER Summary'!AK6 -> 9718849.18 | H8: 0.04144228146 | I8: ='Rec1 1588 Commodity'!F9 -> 691153.2268 | J8: ='I1a ER Summary'!AJ6 -> 10418832.69 | K8: 0.06633691581 | L8: 1093924.51 | M8: 20137681.87 | N8: 0.05432226595 | Q8: 517400.4514 | S8: =+Q8+R8 -> 517400.4514 | T8: 114629.1682
A9: March | B9: Final | C9: ='Rec3 1589 Class A'!G10 -> 431565.01 | D9: ='I1a ER Summary'!AN7 -> 4203426.83 | E9: 0.1026698043 | F9: ='Rec2 1589 Class B'!J10 -> 510062.0096 | G9: ='I1a ER Summary'!AK7 -> 10387053.93 | H9: 0.0491055513 | I9: ='Rec1 1588 Commodity'!F10 -> 822915.9504 | J9: ='I1a ER Summary'!AJ7 -> 10071178.53 | K9: 0.08170999527 | L9: 1332977.96 | M9: 20458232.46 | N9: 0.06515606675 | Q9: 550805.5586 | S9: =+R9+Q9 -> 550805.5586 | T9: 40743.54899
A10: April | B10: Final | C10: ='Rec3 1589 Class A'!G11 -> 421578.83 | D10: ='I1a ER Summary'!AN8 -> 4410076.52 | E10: 0.09559444787 | F10: ='Rec2 1589 Class B'!J11 -> 394390.0849 | G10: ='I1a ER Summary'!AK8 -> 9405431.876 | H10: 0.04193216112 | I10: ='Rec1 1588 Commodity'!F11 -> 711259.2051 | J10: ='I1a ER Summary'!AJ8 -> 9576668.921 | K10: 0.07427000046 | L10: 1105649.29 | M10: 18982100.8 | N10: 0.0582469402 | Q10: 582775.4046 | S10: 582775.4046 | T10: 188385.3197
A11: May | B11: Final | C11: ='Rec3 1589 Class A'!G12 -> 448738.87 | D11: ='I1a ER Summary'!AN9 -> 4467581.64 | E11: 0.1004433508 | F11: ='Rec2 1589 Class B'!J12 -> 476630.6699 | G11: ='I1a ER Summary'!AK9 -> 10524896.1 | H11: 0.04528602139 | I11: ='Rec1 1588 Commodity'!F12 -> 644899.9801 | J11: ='I1a ER Summary'!AJ9 -> 8307355.136 | K11: 0.07763000011 | L11: 1121530.65 | M11: 18832251.23 | N11: 0.05955372175 | Q11: 606116.3272 | S11: 606116.3272 | T11: 129485.6573
A12: June | B12: Final | C12: ='Rec3 1589 Class A'!G13 -> 515939.41 | D12: ='I1a ER Summary'!AN10 -> 4219281.34 | E12: 0.122281348 | F12: ='Rec2 1589 Class B'!J13 -> 506869.389 | G12: ='I1a ER Summary'!AK10 -> 10610618.81 | H12: 0.04777001209 | I12: ='Rec1 1588 Commodity'!F13 -> 727979.621 | J12: ='I1a ER Summary'!AJ10 -> 9285454.168 | K12: 0.07840000153 | L12: 1234849.01 | M12: 19896072.98 | N12: 0.06206496182 | Q12: 513680.4991 | S12: 513680.4991 | T12: 6811.110076
A13: July | B13: Final | C13: ='Rec3 1589 Class A'!G14 -> 418890.78 | D13: ='I1a ER Summary'!AN11 -> 4310552.25 | E13: 0.09717798456 | F13: ='Rec2 1589 Class B'!J14 -> 459444.2542 | G13: ='I1a ER Summary'!AK11 -> 11476980.83 | H13: 0.0400318046 | I13: ='Rec1 1588 Commodity'!F14 -> 732170.4058 | J13: ='I1a ER Summary'!AJ11 -> 11492237.13 | K13: 0.06370999813 | L13: 1191614.66 | M13: 22969217.96 | N13: 0.05187876497 | Q13: 337855.3545 | S13: 337855.3545 | T13: -121588.8997
A14: August | B14: Final | C14: ='Rec3 1589 Class A'!G15 -> 402619.49 | D14: ='I1a ER Summary'!AN12 -> 4202619.37 | E14: 0.09580203548 | F14: ='Rec2 1589 Class B'!J15 -> 440842.7761 | G14: ='I1a ER Summary'!AK12 -> 11130662.59 | H14: 0.03960615754 | I14: ='Rec1 1588 Commodity'!F15 -> 667773.3939 | J14: ='I1a ER Summary'!AJ12 -> 10561021.65 | K14: 0.06322999954 | L14: 1108616.17 | M14: 21691684.24 | N14: 0.05110788807 | Q14: 484646.4102 | S14: 484646.4102 | T14: 43803.63411
A15: September | B15: Final | C15: ='Rec3 1589 Class A'!G16 -> 389212.75 | D15: ='I1a ER Summary'!AN13 -> 4366990.74 | E15: 0.08912607632 | F15: ='Rec2 1589 Class B'!J16 -> 511045.0196 | G15: ='I1a ER Summary'!AK13 -> 10896384.89 | H15: 0.04690041924 | I15: ='Rec1 1588 Commodity'!F16 -> 688824.9704 | J15: ='I1a ER Summary'!AJ13 -> 8688508.738 | K15: 0.07927999973 | L15: 1199869.99 | M15: 19584893.63 | N15: 0.06126507566 | Q15: 351972.6143 | S15: 351972.6143 | T15: -159072.4053
A16: October | B16: Final | C16: ='Rec3 1589 Class A'!G17 -> 521516.51 | D16: ='I1a ER Summary'!AN14 -> 4425258.13 | E16: 0.1178499637 | F16: ='Rec2 1589 Class B'!J17 -> 453882.7067 | G16: ='I1a ER Summary'!AK14 -> 10493145.18 | H16: 0.04325516313 | I16: ='Rec1 1588 Commodity'!F17 -> 648915.3833 | J16: ='I1a ER Summary'!AJ14 -> 8670702.371 | K16: 0.07484000206 | L16: 1102798.09 | M16: 19163847.55 | N16: 0.05754575572 | Q16: 508645.545 | S16: 508645.545 | T16: 54762.83829
A17: November | B17: Final | C17: ='Rec3 1589 Class A'!G18 -> 430140.51 | D17: ='I1a ER Summary'!AN15 -> 4118531.33 | E17: 0.1044402666 | F17: ='Rec2 1589 Class B'!J18 -> 541042.0372 | G17: ='I1a ER Summary'!AK15 -> 10104782.79 | H17: 0.0535431635 | I17: ='Rec1 1588 Commodity'!F18 -> 837019.6428 | J17: ='I1a ER Summary'!AJ15 -> 9400489.851 | K17: 0.08904000282 | L17: 1378061.68 | M17: 19505272.64 | N17: 0.07065072636 | Q17: 446213.3479 | S17: 446213.3479 | T17: -94828.68924
A18: December | B18: Final | C18: ='Rec3 1589 Class A'!G19 -> 391941.72 | D18: ='I1a ER Summary'!AN16 -> 2947570.22 | E18: 0.1329711222 | F18: ='Rec2 1589 Class B'!J19 -> 393098.5739 | G18: ='I1a ER Summary'!AK16 -> 9184122.186 | H18: 0.04280197562 | I18: ='Rec1 1588 Commodity'!F19 -> 748602.7961 | J18: ='I1a ER Summary'!AJ16 -> 12119196.87 | K18: 0.06177000046 | L18: 1141701.37 | M18: 21303319.05 | N18: 0.05359265226 | Q18: 408485.058 | S18: 408485.058 | T18: 15386.48414
C19: =SUM(C7:C18) -> 5081768.34 | D19: =SUM(D7:D18) -> 49515131.96 | E19: 0.1026306129 | F19: =SUM(F7:F18) -> 5396802.61 | G19: =SUM(G7:G18) -> 124644758 | H19: 0.04329746953 | I19: =SUM(I7:I18) -> 8472766.7 | J19: =SUM(J7:J18) -> 120601589.3 | K19: 0.07025418777 | L19: =SUM(L7:L18) -> 13869569.31 | M19: =SUM(M7:M18) -> 245246347.3 | N19: 0.05655362236 | Q19: =SUM(Q7:Q18) -> 5676951.368 | R19: =SUM(R7:R18) -> 0 | S19: =SUM(S7:S18) -> 5676951.368 | T19: =SUM(T7:T18) -> 280148.7578
C28: Non-RPP Class A GA | F28: Non-RPP Class B GA | I28: RPP Class B GA | L28: Total Class B GA | Q28: GA non-RPP Revenue Amounts Booked
C29: Revenue Amount | D29: kWh | E29: Avg Cost | F29: Revenue Amount | G29: kWh | H29: Avg Cost | J29: kWh | K29: Avg Cost | M29: kWh | N29: Avg Cost | Q29: Revenue Accounts | R29: unbilled | S29: Total | T29: Difference
A30: January | B30: Final | D30: =+D7 -> 4132236.61 | E30: =+C30/D30 -> 0 | H30: =+F30/G30 ->  | K30: =+I30/J30 ->  | M30: =+G30+J30 -> 0 | N30: =+L30/M30 ->  | S30: =+Q30+R30 -> 0 | T30: =+S30-F30 -> 0
A31: February | B31: Final | D31: 3711006.98 | E31: 0 | M31: 0 | S31: =+Q31+R31 -> 0 | T31: 0
A32: March | B32: Final | D32: 4203426.83 | E32: 0 | M32: 0 | S32: =+R32+Q32 -> 0 | T32: 0
A33: April | B33: Final | D33: 4410076.52 | E33: 0 | M33: 0 | S33: 0 | T33: 0
A34: May | B34: Final | D34: 4467581.64 | E34: 0 | M34: 0 | S34: 0 | T34: 0
A35: June | B35: Final | D35: 4219281.34 | E35: 0 | M35: 0 | S35: 0 | T35: 0
A36: July | B36: Final | D36: 4310552.25 | E36: 0 | M36: 0 | S36: 0 | T36: 0
A37: August | B37: Final | D37: 4202619.37 | E37: 0 | M37: 0 | S37: 0 | T37: 0
A38: September | B38: Final | D38: 4366990.74 | E38: 0 | M38: 0 | S38: 0 | T38: 0
A39: October | B39: Final | D39: 4425258.13 | E39: 0 | M39: 0 | S39: 0 | T39: 0
A40: November | B40: Final | D40: 4118531.33 | E40: 0 | M40: 0 | S40: 0 | T40: 0
A41: December | B41: Final | D41: 2947570.22 | E41: 0 | M41: 0 | S41: 0 | T41: 0
C42: =SUM(C30:C41) -> 0 | D42: =SUM(D30:D41) -> 49515131.96 | E42: 0 | F42: =SUM(F30:F41) -> 0 | G42: =SUM(G30:G41) -> 0 | J42: =SUM(J30:J41) -> 0 | M42: =SUM(M30:M41) -> 0 | Q42: =SUM(Q30:Q41) -> 0 | R42: =SUM(R30:R41) -> 0 | S42: =SUM(S30:S41) -> 0 | T42: =SUM(T30:T41) -> 0

Sheet Rev3 GA Analysis
F2: Consumption Data Excluding for Loss Factor (Data to agree with RRR as applicable)
F3: Year | H3: =ProcessYear[Process Year] -> 2024
F4: Total Metered excluding WMP | G4: C = A+B | H4: =H5+H6 -> 245246347.3 | I4: kWh | J4: 1
F5: RPP | G5: A | H5: ='Rev2 GA Purchases'!J19 -> 120601589.3 | I5: kWh | J5: 0.5303752085
F6: Non RPP | G6: B = D+E | H6: =H7+H8 -> 124644758 | I6: kWh | J6: 0.4696247915
F7: Non-RPP Class A | G7: D | H7: ='Rev2 GA Purchases'!D19 -> 49515131.96 | I7: kWh | J7: 0.1815554551
F8: Non-RPP Class B* | G8: E | H8: ='Rev2 GA Purchases'!G19-H7 -> 75129626.02 | I8: kWh | J8: 0.2880693364
F9: *Non-RPP Class B consumption reported in this table is not expected to directly agree with the Non-RPP Class B Including Loss Adjusted Billed Consumption in the GA Analysis of Expected Balance table below. The difference should be equal to the loss factor.
A12: Note 4 | B12: Analysis of Expected GA Amount
B13: Year | C13: =ProcessYear[Process Year] -> 2024 | T13: year | AV13: GA Rates per IESO website
B14: Calendar Month | C14: Non-RPP Class B Including Loss Factor Billed Consumption (kWh) | D14: Deduct Previous Month Unbilled Loss Adjusted Consumption (kWh) | E14: Add Current Month Unbilled Loss Adjusted Consumption (kWh) | F14: Non-RPP Class B Including Loss Adjusted Consumption, Adjusted for Unbilled (kWh) | G14: GA Rate Billed ($/kWh) | H14: $ Consumption at GA Rate Billed | I14: GA Actual Rate Paid ($/kWh) | J14: $ Consumption at Actual Rate Paid | K14: Expected GA Variance ($) | M14: Revenue per Continuity Schedule | N14: Difference | P14: Expense per Continuity Schedule | Q14: Difference | T14: 2024
C15: F | D15: G | E15: H | F15: I = F-G+H | G15: J | H15: K = I*J | I15: L | J15: M = I*L | K15: =M-K | N15: =H-M | Q15: =J-P | S15: month | T15: ga_first_estimate | U15: ga_second_estimate | V15: ga_actual
B16: January | C16: ='I1a ER Summary'!AP5 -> 6579592.988 | F16: =C16-D16+E16 -> 6579592.988 | G16: 0.05413000039 | H16: =F16*G16 -> 356153.371 | I16: ='I1a ER Summary'!BF5 -> 0.04589964436 | J16: =F16*I16 -> 302000.9781 | K16: =J16-H16 -> -54152.39285 | M16: ='Rec2 1589 Class B'!D8 -> -355921.03 | N16: =H16+M16 -> 232.3409894 | P16: ='Rec2 1589 Class B'!J8 -> 306723.8057 | Q16: =J16-P16 -> -4722.827601 | S16: 202401 | T16: 5.413000107 | U16: 5.010000229 | V16: 4.587999821 | X16: =G16-(T16/100) -> -6.776083653e-10
B17: February | C17: ='I1a ER Summary'!AP6 -> 6007842.2 | F17: =C17-D17+E17 -> 6007842.2 | G17: 0.08498000044 | H17: =F17*G17 -> 510546.4328 | I17: ='I1a ER Summary'!BF6 -> 0.06633691581 | J17: =F17*I17 -> 398541.7222 | K17: =J17-H17 -> -112004.7106 | M17: ='Rec2 1589 Class B'!D9 -> -510400.47 | N17: =H17+M17 -> 145.9627947 | P17: ='Rec2 1589 Class B'!J9 -> 402771.2832 | Q17: =J17-P17 -> -4229.560947 | S17: 202402 | T17: 8.498000145 | U17: 6.868000031 | V17: 6.631999969 | X17: =G17-(T17/100) -> -1.012742806e-09
B18: March | C18: ='I1a ER Summary'!AP7 -> 6183627.1 | F18: =C18-D18+E18 -> 6183627.1 | G18: 0.0836600131 | H18: =F18*G18 -> 517322.3242 | I18: ='I1a ER Summary'!BF7 -> 0.08166417775 | J18: =F18*I18 -> 504980.8226 | K18: -12341.50155 | M18: ='Rec2 1589 Class B'!D10 -> -510519.91 | N18: 6802.41416 | P18: ='Rec2 1589 Class B'!J10 -> 510062.0096 | Q18: -5081.186997 | S18: 202403 | T18: 8.366000175 | U18: 8.31000042 | V18: 8.170999527 | X18: 1.134667962e-08
B19: April | C19: ='I1a ER Summary'!AP8 -> 4995355.356 | F19: =C19-D19+E19 -> 4995355.356 | G19: 0.08497998221 | H19: =F19*G19 -> 424505.2093 | I19: ='I1a ER Summary'!BF8 -> 0.07424661223 | J19: =F19*I19 -> 370888.2121 | K19: -53616.99725 | M19: ='Rec2 1589 Class B'!D11 -> -501589.14 | N19: -77083.93067 | P19: ='Rec2 1589 Class B'!J11 -> 394390.0849 | Q19: =J19-P19 -> -23501.87279 | S19: 202404 | T19: 8.498000145 | U19: 6.90500021 | V19: 7.427000046 | X19: -1.923460646e-08
B20: May | C20: ='I1a ER Summary'!AP9 -> 6057314.458 | F20: 6057314.458 | G20: 0.04588142203 | H20: 277918.2011 | I20: ='I1a ER Summary'!BF9 -> 0.07763442035 | J20: =F20*I20 -> 470256.0969 | K20: =J20-H20 -> 192337.8958 | M20: ='Rec2 1589 Class B'!D12 -> -277587.95 | N20: 330.2510586 | P20: ='Rec2 1589 Class B'!J12 -> 476630.6699 | Q20: =J20-P20 -> -6374.572993 | S20: 202405 | T20: 4.587999821 | U20: 7.975999832 | V20: 7.763000011 | X20: 1.423826452e-06
B21: June | C21: ='I1a ER Summary'!AP10 -> 6391337.475 | F21: 6391337.475 | G21: 0.04589491411 | H21: 293329.8844 | I21: ='I1a ER Summary'!BF10 -> 0.07841784464 | J21: 501194.9091 | K21: 207865.0247 | M21: ='Rec2 1589 Class B'!D13 -> -291741.66 | N21: 1588.224441 | P21: ='Rec2 1589 Class B'!J13 -> 506869.389 | Q21: -5674.479891 | S21: 202406 | T21: 4.587999821 | U21: 7.429999828 | V21: 7.840000153 | X21: 1.491590212e-05
B22: July | C22: ='I1a ER Summary'!AP11 -> 7166428.584 | F22: 7166428.584 | G22: 0.04587219459 | H22: 328739.8066 | I22: ='I1a ER Summary'!BF11 -> 0.06370185614 | J22: 456514.8027 | K22: 127774.9961 | M22: ='Rec2 1589 Class B'!D14 -> -326033.4647 | N22: 2706.341823 | P22: ='Rec2 1589 Class B'!J14 -> 459444.2542 | Q22: -2929.451516 | S22: 202407 | T22: 4.587999821 | U22: 6.454999924 | V22: 6.370999813 | X22: -7.803613948e-06
B23: August | C23: ='I1a ER Summary'!AP12 -> 6928043.221 | F23: 6928043.221 | G23: 0.05541812816 | H23: 383939.1871 | I23: ='I1a ER Summary'!BF12 -> 0.06349434224 | J23: 439891.5473 | K23: 55952.36025 | M23: ='Rec2 1589 Class B'!D15 -> -366332.2953 | N23: 17606.89183 | P23: ='Rec2 1589 Class B'!J15 -> 440842.7761 | Q23: -951.2287674 | S23: 202408 | T23: 5.552000046 | U23: 5.375 | V23: 6.322999954 | X23: -0.000101872302
B24: September | C24: ='I1a ER Summary'!AP13 -> 6529394.152 | F24: 6529394.152 | G24: 0.06735219148 | H24: 439769.0052 | I24: ='I1a ER Summary'!BF13 -> 0.07933046463 | J24: 517979.8718 | K24: 78210.86663 | M24: ='Rec2 1589 Class B'!D16 -> -407811.28 | N24: 31957.7252 | P24: ='Rec2 1589 Class B'!J16 -> 511045.0196 | Q24: 6934.852226 | S24: 202409 | T24: 6.75 | U24: 8.668999672 | V24: 7.927999973 | X24: -0.0001478085197
B25: October | C25: ='I1a ER Summary'!AP14 -> 6067887.054 | F25: 6067887.054 | G25: 0.08164615527 | H25: 495419.6485 | I25: ='I1a ER Summary'!BF14 -> 0.07448102708 | J25: 451942.46 | K25: -43477.18855 | M25: ='Rec2 1589 Class B'!D17 -> -494772.39 | N25: 647.2585454 | P25: ='Rec2 1589 Class B'!J17 -> 453882.7067 | Q25: -1940.246715 | S25: 202410 | T25: 8.170999527 | U25: 6.478000164 | V25: 7.484000206 | X25: -6.384000202e-05
B26: November | C26: ='I1a ER Summary'!AP15 -> 5986251.462 | F26: 5986251.462 | G26: 0.07666120601 | H26: 458913.2566 | I26: ='I1a ER Summary'!BF15 -> 0.08902321993 | J26: 532915.3805 | K26: 74002.12391 | M26: ='Rec2 1589 Class B'!D18 -> -459261.8618 | N26: -348.6052433 | P26: ='Rec2 1589 Class B'!J18 -> 541042.0372 | Q26: -8126.656687 | S26: 202411 | T26: 7.679999828 | U26: 8.947999954 | V26: 8.904000282 | X26: -0.0001387922703
B27: December | C27: ='I1a ER Summary'!AP16 -> 6236551.966 | F27: 6236551.966 | G27: 0.07918698938 | H27: 493853.7743 | I27: ='I1a ER Summary'!BF16 -> 0.06174418047 | J27: 385070.7901 | K27: -108782.9842 | M27: ='Rec2 1589 Class B'!D19 -> -494375.4782 | N27: -521.7039096 | P27: ='Rec2 1589 Class B'!J19 -> 393098.5739 | Q27: -8027.783769 | S27: 202412 | T27: 7.927999973 | U27: 5.27699995 | V27: 6.177000046 | X27: -9.301035466e-05
B29: Net Change in Expected GA Balance in the Year (i.e. Transactions in the Year) | C29: =SUM(C16:C27) -> 75129626.02 | D29: 0 | E29: 0 | F29: =SUM(F16:F27) -> 75129626.02 | H29: =SUM(H16:H27) -> 4980410.101 | J29: =SUM(J16:J27) -> 5332177.594 | K29: =SUM(K16:K27) -> 351767.4925 | M29: =SUM(M16:M28) -> -4996346.93 | N29: =SUM(N16:N28) -> -15936.82898 | P29: =SUM(P16:P28) -> 5396802.61 | Q29: =SUM(Q16:Q28) -> -64625.01645
C36: Annual Non-RPP Class B Wholesale kWh * | D36: Annual Non-RPP Class B Retail billed kWh | E36: Annual Unaccounted for Energy Loss kWh | F36: Weighted Average GA Actual Rate Paid ($/kWh)** | G36: Expected GA Volume Variance ($)
C37: O | D37: P | E37: Q=O-P | F37: R | G37: P= Q*R
C38: =(Rev1UFE!C19-H7)*'Rev3 GA Analysis '!H8/(H5+H8) -> 75485628.5 | D38: =F29 -> 75129626.02 | E38: =C38-D38 -> 356002.4835 | F38: =H29/F29 -> 0.06629089435 | G38: =E38*F38 -> 23599.72302 | I38: =D38/C38 -> 0.9952838376
C39: *Equal to (AQEW - Class A + embedded generation kWh)*(Non-RPP Class B retail kwh/Total retail Class B kWh)
C40: **Equal to annual Non-RPP Class B $ GA paid (i.e. non-RPP portion of CT 148 on IESO invoice) divided by Non-RPP Class B Wholesale kWh (as quantified in column O in the table above)
F41: Total Expected GA Variance | G41: =K29+G38 -> 375367.2155
A48: Note 5 | B48: Reconciling Items
B50: Item | C50: Applicability of Reconciling Item (Y/N) | D50: Amount (Quantify if it is a significant reconciling item) | E50: Explanation
A51: Net Change in Principal Balance in the GL (i.e. Transactions in the Year) | D51: =M29+P29 -> 400455.68
A52: 1a | B52: Remove impacts to GA from prior year RPP Settlement true up process that are booked in current year | C52: N
A53: 1b | B53: Add impacts to GA from current year RPP Settlement true up process that are booked in subsequent year | C53: N
A54: 2a | B54: Remove prior year end unbilled to actual revenue differences | C54: N
A55: 2b | B55: Add current year end unbilled to actual revenue differences | C55: N
A56: 3a | B56: Remove difference between prior year accrual to forecast from long term load transfers | C56: N
A57: 3b | B57: Add difference between current year accrual to forecast from long term load transfers | C57: N
A58: 4 | B58: Remove GA balances pertaining to Class A customers | C58: N
A59: 5 | B59: Significant prior period billing adjustments included in current year GL balance but would not be included in the billing consumption used in the GA Analysis | C59: N
A60: 6 | B60: Differences in GA IESO posted rate and rate charged on IESO invoice | C60: N
A61: 7 | D61: 0
A62: 9
A63: 10
A64: Note 6 | B64: Adjusted Net Change in Principal Balance in the GL | D64: =SUM(D51:D63) -> 400455.68
B65: Net Change in Expected GA Balance in the Year Per Analysis | D65: =G41 -> 375367.2155
B66: Unresolved Difference | D66: =D64-D65 -> 25088.46445
B67: Unresolved Difference as % of Expected GA Payments to IESO | D67: =IF(ISERROR(D66/J29),0,D66/J29) -> 0.004705106686 | E67: =IF(AND(D67<0.01,D67>-0.01),"","Unresolved differences of greater than + or - 1% should be explained") -> 
A70: Note 7 | B70: Summary of GA (if multiple years requested for disposition)
B72: Year | C72: Annual Net Change in Expected GA Balance from GA Analysis (cell K59) | D72: Net Change in Principal Balance in the GL (cell D65) | E72: Reconciling Items (sum of cells D66 to D78) | F72: Adjusted Net Change in Principal Balance in the GL | G72: Unresolved Difference | H72: Payments to IESO (cell J59) | I72: Unresolved Difference as % of Expected GA Payments to IESO
B73: 2024 | C73: =G41 -> 375367.2155 | D73: =D51 -> 400455.68 | E73: =SUM(D52:D63) -> 0 | F73: =SUM(D73:E73) -> 400455.68 | G73: =F73-C73 -> 25088.46445 | H73: =J29 -> 5332177.594 | I73: =IF(ISERROR(G73/H73),0,G73/H73) -> 0.004705106686
F74: =SUM(D74:E74) -> 0 | G74: =F74-C74 -> 0 | I74: =IF(ISERROR(G74/H74),0,G74/H74) -> 0
F75: =SUM(D75:E75) -> 0 | G75: =F75-C75 -> 0 | I75: =IF(ISERROR(G75/H75),0,G75/H75) -> 0
F76: =SUM(D76:E76) -> 0 | G76: =F76-C76 -> 0 | I76: =IF(ISERROR(G76/H76),0,G76/H76) -> 0
B77: Cumulative Balance | C77: =SUM(C73:C76) -> 375367.2155 | D77: 400455.68 | E77: 0 | F77: 400455.68 | G77: =SUM(G73:G76) -> 25088.46445 | H77: 5332177.594 | I77: N/A
B80: Additional Notes and Comments
B95: Account 1588 Reasonability Test
C97: Account 1588 - RSVA Power | F97: Account 4705 - Power Purchased | G97: Account 1588 as % of Account 4705
B98: Year | C98: Transactions1 | D98: Principal Adjustments1 | E98: Total Activity in Calendar Year
B99: 2024 | D99: ='Rec1 1588 Commodity'!L20 -> 213751.15 | E99: =SUM(C99:D99) -> 213751.15 | F99: ='Rec1 1588 Commodity'!K20 -> 17379209.33 | G99: =IFERROR(E99/F99,0) -> 0.0122992448
B102: Notes
B103: 1) The transactions should equal the "Transaction" column in the DVA Continuity Schedule. This is also expected to equal the transactions in the general ledger (excluding transactions relating to the removal of approved disposition amounts as that is shown in a separate column in the DVA Continuity Schedule)
B104: 2) Principal adjustments should equal the "Principal Adjustments" column in the DVA Continuity Schedule. Principal adjustments adjust the transactions in the general ledger to the amount that should be requested for disposition.

Sheet UploadToPQ
A1: Year | B1: Order | C1: Month | D1: USoA | E1: Allocation | F1: Sub Allocation | G1: Amount
A2: =ProcessYear[Process Year] -> 2024 | B2: 1 | C2: 1 | D2: 1588 | E2: Revenue | F2: GL Revenue | G2: ='Rec1 1588 Commodity'!B8 -> 0
A3: =A2 -> 2024 | B3: 1 | C3: 2 | D3: 1588 | E3: Revenue | F3: GL Revenue | G3: ='Rec1 1588 Commodity'!B9 -> 0
A4: =A3 -> 2024 | B4: 1 | C4: 3 | D4: 1588 | E4: Revenue | F4: GL Revenue | G4: ='Rec1 1588 Commodity'!B10 -> 0
A5: 2024 | B5: 1 | C5: 4 | D5: 1588 | E5: Revenue | F5: GL Revenue | G5: ='Rec1 1588 Commodity'!B11 -> 0
A6: 2024 | B6: 1 | C6: 5 | D6: 1588 | E6: Revenue | F6: GL Revenue | G6: ='Rec1 1588 Commodity'!B12 -> 0
A7: 2024 | B7: 1 | C7: 6 | D7: 1588 | E7: Revenue | F7: GL Revenue | G7: ='Rec1 1588 Commodity'!B13 -> 0
A8: 2024 | B8: 1 | C8: 7 | D8: 1588 | E8: Revenue | F8: GL Revenue | G8: ='Rec1 1588 Commodity'!B14 -> 0
A9: 2024 | B9: 1 | C9: 8 | D9: 1588 | E9: Revenue | F9: GL Revenue | G9: ='Rec1 1588 Commodity'!B15 -> 0
A10: 2024 | B10: 1 | C10: 9 | D10: 1588 | E10: Revenue | F10: GL Revenue | G10: ='Rec1 1588 Commodity'!B16 -> 0
A11: 2024 | B11: 1 | C11: 10 | D11: 1588 | E11: Revenue | F11: GL Revenue | G11: ='Rec1 1588 Commodity'!B17 -> 0
A12: 2024 | B12: 1 | C12: 11 | D12: 1588 | E12: Revenue | F12: GL Revenue | G12: ='Rec1 1588 Commodity'!B18 -> 0
A13: 2024 | B13: 1 | C13: 12 | D13: 1588 | E13: Revenue | F13: GL Revenue | G13: ='Rec1 1588 Commodity'!B19 -> 0
A14: 2024 | B14: 2 | C14: 1 | D14: 1588 | E14: Revenue | F14: Unbilled | G14: ='Rec1 1588 Commodity'!C8 -> 0
A15: 2024 | B15: 2 | C15: 2 | D15: 1588 | E15: Revenue | F15: Unbilled | G15: ='Rec1 1588 Commodity'!C9 -> 0
A16: 2024 | B16: 2 | C16: 3 | D16: 1588 | E16: Revenue | F16: Unbilled | G16: ='Rec1 1588 Commodity'!C10 -> 0
A17: 2024 | B17: 2 | C17: 4 | D17: 1588 | E17: Revenue | F17: Unbilled | G17: ='Rec1 1588 Commodity'!C11 -> 0
A18: 2024 | B18: 2 | C18: 5 | D18: 1588 | E18: Revenue | F18: Unbilled | G18: ='Rec1 1588 Commodity'!C12 -> 0
A19: 2024 | B19: 2 | C19: 6 | D19: 1588 | E19: Revenue | F19: Unbilled | G19: ='Rec1 1588 Commodity'!C13 -> 0
A20: 2024 | B20: 2 | C20: 7 | D20: 1588 | E20: Revenue | F20: Unbilled | G20: ='Rec1 1588 Commodity'!C14 -> 0
A21: 2024 | B21: 2 | C21: 8 | D21: 1588 | E21: Revenue | F21: Unbilled | G21: ='Rec1 1588 Commodity'!C15 -> 0
A22: 2024 | B22: 2 | C22: 9 | D22: 1588 | E22: Revenue | F22: Unbilled | G22: ='Rec1 1588 Commodity'!C16 -> 0
A23: 2024 | B23: 2 | C23: 10 | D23: 1588 | E23: Revenue | F23: Unbilled | G23: ='Rec1 1588 Commodity'!C17 -> 0
A24: 2024 | B24: 2 | C24: 11 | D24: 1588 | E24: Revenue | F24: Unbilled | G24: ='Rec1 1588 Commodity'!C18 -> 0
A25: 2024 | B25: 2 | C25: 12 | D25: 1588 | E25: Revenue | F25: Unbilled | G25: ='Rec1 1588 Commodity'!C19 -> 0
A26: 2024 | B26: 3 | C26: 1 | D26: 1588 | E26: Cost of Power | F26: Energy Cost (code 101) | G26: ='Rec1 1588 Commodity'!E8 -> 997395.03
A27: 2024 | B27: 3 | C27: 2 | D27: 1588 | E27: Cost of Power | F27: Energy Cost (code 101) | G27: ='Rec1 1588 Commodity'!E9 -> 563195.17
A28: 2024 | B28: 3 | C28: 3 | D28: 1588 | E28: Cost of Power | F28: Energy Cost (code 101) | G28: ='Rec1 1588 Commodity'!E10 -> 573567.97
A29: 2024 | B29: 3 | C29: 4 | D29: 1588 | E29: Cost of Power | F29: Energy Cost (code 101) | G29: ='Rec1 1588 Commodity'!E11 -> 549955.76
A30: 2024 | B30: 3 | C30: 5 | D30: 1588 | E30: Cost of Power | F30: Energy Cost (code 101) | G30: ='Rec1 1588 Commodity'!E12 -> 512964.14
A31: 2024 | B31: 3 | C31: 6 | D31: 1588 | E31: Cost of Power | F31: Energy Cost (code 101) | G31: ='Rec1 1588 Commodity'!E13 -> 608566.83
A32: 2024 | B32: 3 | C32: 7 | D32: 1588 | E32: Cost of Power | F32: Energy Cost (code 101) | G32: ='Rec1 1588 Commodity'!E14 -> 841945.01
A33: 2024 | B33: 3 | C33: 8 | D33: 1588 | E33: Cost of Power | F33: Energy Cost (code 101) | G33: ='Rec1 1588 Commodity'!E15 -> 807260.37
A34: 2024 | B34: 3 | C34: 9 | D34: 1588 | E34: Cost of Power | F34: Energy Cost (code 101) | G34: ='Rec1 1588 Commodity'!E16 -> 604221.58
A35: 2024 | B35: 3 | C35: 10 | D35: 1588 | E35: Cost of Power | F35: Energy Cost (code 101) | G35: ='Rec1 1588 Commodity'!E17 -> 636684.34
A36: 2024 | B36: 3 | C36: 11 | D36: 1588 | E36: Cost of Power | F36: Energy Cost (code 101) | G36: ='Rec1 1588 Commodity'!E18 -> 591718.79
A37: 2024 | B37: 3 | C37: 12 | D37: 1588 | E37: Cost of Power | F37: Energy Cost (code 101) | G37: ='Rec1 1588 Commodity'!E19 -> 844612.18
A38: 2024 | B38: 4 | C38: 1 | D38: 1588 | E38: Cost of Power | F38: RPP GA (code 148) | G38: ='Rec1 1588 Commodity'!F8 -> 551252.1243
A39: 2024 | B39: 4 | C39: 2 | D39: 1588 | E39: Cost of Power | F39: RPP GA (code 148) | G39: ='Rec1 1588 Commodity'!F9 -> 691153.2268
A40: 2024 | B40: 4 | C40: 3 | D40: 1588 | E40: Cost of Power | F40: RPP GA (code 148) | G40: ='Rec1 1588 Commodity'!F10 -> 822915.9504
A41: 2024 | B41: 4 | C41: 4 | D41: 1588 | E41: Cost of Power | F41: RPP GA (code 148) | G41: ='Rec1 1588 Commodity'!F11 -> 711259.2051
A42: 2024 | B42: 4 | C42: 5 | D42: 1588 | E42: Cost of Power | F42: RPP GA (code 148) | G42: ='Rec1 1588 Commodity'!F12 -> 644899.9801
A43: 2024 | B43: 4 | C43: 6 | D43: 1588 | E43: Cost of Power | F43: RPP GA (code 148) | G43: ='Rec1 1588 Commodity'!F13 -> 727979.621
A44: 2024 | B44: 4 | C44: 7 | D44: 1588 | E44: Cost of Power | F44: RPP GA (code 148) | G44: ='Rec1 1588 Commodity'!F14 -> 732170.4058
A45: 2024 | B45: 4 | C45: 8 | D45: 1588 | E45: Cost of Power | F45: RPP GA (code 148) | G45: ='Rec1 1588 Commodity'!F15 -> 667773.3939
A46: 2024 | B46: 4 | C46: 9 | D46: 1588 | E46: Cost of Power | F46: RPP GA (code 148) | G46: ='Rec1 1588 Commodity'!F16 -> 688824.9704
A47: 2024 | B47: 4 | C47: 10 | D47: 1588 | E47: Cost of Power | F47: RPP GA (code 148) | G47: ='Rec1 1588 Commodity'!F17 -> 648915.3833
A48: 2024 | B48: 4 | C48: 11 | D48: 1588 | E48: Cost of Power | F48: RPP GA (code 148) | G48: ='Rec1 1588 Commodity'!F18 -> 837019.6428
A49: 2024 | B49: 4 | C49: 12 | D49: 1588 | E49: Cost of Power | F49: RPP GA (code 148) | G49: ='Rec1 1588 Commodity'!F19 -> 748602.7961
A50: 2024 | B50: 5 | C50: 1 | D50: 1588 | E50: Cost of Power | F50: IESO RPP Settlement | G50: ='Rec1 1588 Commodity'!G8 -> 265158.472
A51: 2024 | B51: 5 | C51: 2 | D51: 1588 | E51: Cost of Power | F51: IESO RPP Settlement | G51: ='Rec1 1588 Commodity'!G9 -> 160483.3497
A52: 2024 | B52: 5 | C52: 3 | D52: 1588 | E52: Cost of Power | F52: IESO RPP Settlement | G52: ='Rec1 1588 Commodity'!G10 -> -18325.12196
A53: 2024 | B53: 5 | C53: 4 | D53: 1588 | E53: Cost of Power | F53: IESO RPP Settlement | G53: ='Rec1 1588 Commodity'!G11 -> 68472.39609
A54: 2024 | B54: 5 | C54: 5 | D54: 1588 | E54: Cost of Power | F54: IESO RPP Settlement | G54: ='Rec1 1588 Commodity'!G12 -> 48508.95327
A55: 2024 | B55: 5 | C55: 6 | D55: 1588 | E55: Cost of Power | F55: IESO RPP Settlement | G55: ='Rec1 1588 Commodity'!G13 -> 14982.40119
A56: 2024 | B56: 5 | C56: 7 | D56: 1588 | E56: Cost of Power | F56: IESO RPP Settlement | G56: ='Rec1 1588 Commodity'!G14 -> 130042.3481
A57: 2024 | B57: 5 | C57: 8 | D57: 1588 | E57: Cost of Power | F57: IESO RPP Settlement | G57: ='Rec1 1588 Commodity'!G15 -> 87810.03783
A58: 2024 | B58: 5 | C58: 9 | D58: 1588 | E58: Cost of Power | F58: IESO RPP Settlement | G58: ='Rec1 1588 Commodity'!G16 -> -2904.232052
A59: 2024 | B59: 5 | C59: 10 | D59: 1588 | E59: Cost of Power | F59: IESO RPP Settlement | G59: ='Rec1 1588 Commodity'!G17 -> 25857.53696
A60: 2024 | B60: 5 | C60: 11 | D60: 1588 | E60: Cost of Power | F60: IESO RPP Settlement | G60: ='Rec1 1588 Commodity'!G18 -> -186776.6984
A61: 2024 | B61: 5 | C61: 12 | D61: 1588 | E61: Cost of Power | F61: IESO RPP Settlement | G61: ='Rec1 1588 Commodity'!G19 -> -40692.75386
A62: 2024 | B62: 6 | C62: 1 | D62: 1588 | E62: Cost of Power | F62: FIT/mFIT | G62: ='Rec1 1588 Commodity'!H8 -> 6332.29
A63: 2024 | B63: 6 | C63: 2 | D63: 1588 | E63: Cost of Power | F63: FIT/mFIT | G63: ='Rec1 1588 Commodity'!H9 -> 10824.57
A64: 2024 | B64: 6 | C64: 3 | D64: 1588 | E64: Cost of Power | F64: FIT/mFIT | G64: ='Rec1 1588 Commodity'!H10 -> 15542.01
A65: 2024 | B65: 6 | C65: 4 | D65: 1588 | E65: Cost of Power | F65: FIT/mFIT | G65: ='Rec1 1588 Commodity'!H11 -> 14425.49
A66: 2024 | B66: 6 | C66: 5 | D66: 1588 | E66: Cost of Power | F66: FIT/mFIT | G66: ='Rec1 1588 Commodity'!H12 -> 25929.14
A67: 2024 | B67: 6 | C67: 6 | D67: 1588 | E67: Cost of Power | F67: FIT/mFIT | G67: ='Rec1 1588 Commodity'!H13 -> 27896.17
A68: =A67 -> 2024 | B68: 6 | C68: 7 | D68: 1588 | E68: Cost of Power | F68: FIT/mFIT | G68: ='Rec1 1588 Commodity'!H14 -> 34765.32
A69: 2024 | B69: 6 | C69: 8 | D69: 1588 | E69: Cost of Power | F69: FIT/mFIT | G69: ='Rec1 1588 Commodity'!H15 -> 31377.6
A70: 2024 | B70: 6 | C70: 9 | D70: 1588 | E70: Cost of Power | F70: FIT/mFIT | G70: ='Rec1 1588 Commodity'!H16 -> 21601.82
A71: 2024 | B71: 6 | C71: 10 | D71: 1588 | E71: Cost of Power | F71: FIT/mFIT | G71: ='Rec1 1588 Commodity'!H17 -> 18413.66
A72: 2024 | B72: 6 | C72: 11 | D72: 1588 | E72: Cost of Power | F72: FIT/mFIT | G72: ='Rec1 1588 Commodity'!H18 -> 8683.49
A73: 2024 | B73: 6 | C73: 12 | D73: 1588 | E73: Cost of Power | F73: FIT/mFIT | G73: ='Rec1 1588 Commodity'!H19 -> 5947.21
A74: 2024 | B74: 3 | C74: 1 | D74: 1588 | E74: Variance | F74: Principal Variance | G74: ='Rec1 1588 Commodity'!L8 -> 24928.35939
A75: 2024 | B75: 3 | C75: 2 | D75: 1588 | E75: Variance | F75: Principal Variance | G75: ='Rec1 1588 Commodity'!L9 -> 13996.89507
A76: 2024 | B76: 3 | C76: 3 | D76: 1588 | E76: Variance | F76: Principal Variance | G76: ='Rec1 1588 Commodity'!L10 -> 11409.04331
A77: 2024 | B77: 3 | C77: 4 | D77: 1588 | E77: Variance | F77: Principal Variance | G77: ='Rec1 1588 Commodity'!L11 -> 72133.67537
A78: 2024 | B78: 3 | C78: 5 | D78: 1588 | E78: Variance | F78: Principal Variance | G78: ='Rec1 1588 Commodity'!L12 -> 15184.74681
A79: 2024 | B79: 3 | C79: 6 | D79: 1588 | E79: Variance | F79: Principal Variance | G79: ='Rec1 1588 Commodity'!L13 -> 15004.08373
A80: 2024 | B80: 3 | C80: 7 | D80: 1588 | E80: Variance | F80: Principal Variance | G80: ='Rec1 1588 Commodity'!L14 -> 14198.4029
A81: 2024 | B81: 3 | C81: 8 | D81: 1588 | E81: Variance | F81: Principal Variance | G81: ='Rec1 1588 Commodity'!L15 -> -144.9711666
A82: 2024 | B82: 3 | C82: 9 | D82: 1588 | E82: Variance | F82: Principal Variance | G82: ='Rec1 1588 Commodity'!L16 -> -14908.41628
A83: 2024 | B83: 3 | C83: 10 | D83: 1588 | E83: Variance | F83: Principal Variance | G83: ='Rec1 1588 Commodity'!L17 -> 13047.35095
A84: 2024 | B84: 3 | C84: 11 | D84: 1588 | E84: Variance | F84: Principal Variance | G84: ='Rec1 1588 Commodity'!L18 -> 17638.23597
A85: 2024 | B85: 3 | C85: 12 | D85: 1588 | E85: Variance | F85: Principal Variance | G85: ='Rec1 1588 Commodity'!L19 -> 31263.74398
A86: 2024 | B86: 1 | C86: 1 | D86: 1589 | E86: Revenue | F86: Revenue - Class B only | G86: ='Rec2 1589 Class B'!B8 -> 0
A87: 2024 | B87: 1 | C87: 2 | D87: 1589 | E87: Revenue | F87: Revenue - Class B only | G87: ='Rec2 1589 Class B'!B9 -> 0
A88: 2024 | B88: 1 | C88: 3 | D88: 1589 | E88: Revenue | F88: Revenue - Class B only | G88: ='Rec2 1589 Class B'!B10 -> 0
A89: 2024 | B89: 1 | C89: 4 | D89: 1589 | E89: Revenue | F89: Revenue - Class B only | G89: ='Rec2 1589 Class B'!B11 -> 0
A90: 2024 | B90: 1 | C90: 5 | D90: 1589 | E90: Revenue | F90: Revenue - Class B only | G90: ='Rec2 1589 Class B'!B12 -> 0
A91: 2024 | B91: 1 | C91: 6 | D91: 1589 | E91: Revenue | F91: Revenue - Class B only | G91: ='Rec2 1589 Class B'!B13 -> 0
A92: 2024 | B92: 1 | C92: 7 | D92: 1589 | E92: Revenue | F92: Revenue - Class B only | G92: ='Rec2 1589 Class B'!B14 -> 0
A93: 2024 | B93: 1 | C93: 8 | D93: 1589 | E93: Revenue | F93: Revenue - Class B only | G93: ='Rec2 1589 Class B'!B15 -> 0
A94: 2024 | B94: 1 | C94: 9 | D94: 1589 | E94: Revenue | F94: Revenue - Class B only | G94: ='Rec2 1589 Class B'!B16 -> 0
A95: 2024 | B95: 1 | C95: 10 | D95: 1589 | E95: Revenue | F95: Revenue - Class B only | G95: ='Rec2 1589 Class B'!B17 -> 0
A96: 2024 | B96: 1 | C96: 11 | D96: 1589 | E96: Revenue | F96: Revenue - Class B only | G96: ='Rec2 1589 Class B'!B18 -> 0
A97: 2024 | B97: 1 | C97: 12 | D97: 1589 | E97: Revenue | F97: Revenue - Class B only | G97: ='Rec2 1589 Class B'!B19 -> 0
A98: 2024 | B98: 2 | C98: 1 | D98: 1589 | E98: Revenue | F98: Unbilled | G98: ='Rec2 1589 Class B'!C8 -> 0
A99: 2024 | B99: 2 | C99: 2 | D99: 1589 | E99: Revenue | F99: Unbilled | G99: ='Rec2 1589 Class B'!C9 -> 0
A100: 2024 | B100: 2 | C100: 3 | D100: 1589 | E100: Revenue | F100: Unbilled | G100: ='Rec2 1589 Class B'!C10 -> 0
A101: 2024 | B101: 2 | C101: 4 | D101: 1589 | E101: Revenue | F101: Unbilled | G101: ='Rec2 1589 Class B'!C11 -> 0
A102: 2024 | B102: 2 | C102: 5 | D102: 1589 | E102: Revenue | F102: Unbilled | G102: ='Rec2 1589 Class B'!C12 -> 0
A103: 2024 | B103: 2 | C103: 6 | D103: 1589 | E103: Revenue | F103: Unbilled | G103: ='Rec2 1589 Class B'!C13 -> 0
A104: 2024 | B104: 2 | C104: 7 | D104: 1589 | E104: Revenue | F104: Unbilled | G104: ='Rec2 1589 Class B'!C14 -> 0
A105: 2024 | B105: 2 | C105: 8 | D105: 1589 | E105: Revenue | F105: Unbilled | G105: ='Rec2 1589 Class B'!C15 -> 0
A106: 2024 | B106: 2 | C106: 9 | D106: 1589 | E106: Revenue | F106: Unbilled | G106: ='Rec2 1589 Class B'!C16 -> 0
A107: 2024 | B107: 2 | C107: 10 | D107: 1589 | E107: Revenue | F107: Unbilled | G107: ='Rec2 1589 Class B'!C17 -> 0
A108: 2024 | B108: 2 | C108: 11 | D108: 1589 | E108: Revenue | F108: Unbilled | G108: ='Rec2 1589 Class B'!C18 -> 0
A109: 2024 | B109: 2 | C109: 12 | D109: 1589 | E109: Revenue | F109: Unbilled | G109: ='Rec2 1589 Class B'!C19 -> 0
A110: 2024 | B110: 3 | C110: 1 | D110: 1589 | E110: Cost of Power | F110: IESO Code 148 | G110: ='Rec2 1589 Class B'!E8 -> 857975.93
A111: 2024 | B111: 3 | C111: 2 | D111: 1589 | E111: Cost of Power | F111: IESO Code 148 | G111: ='Rec2 1589 Class B'!E9 -> 1093924.51
A112: 2024 | B112: 3 | C112: 3 | D112: 1589 | E112: Cost of Power | F112: IESO Code 148 | G112: ='Rec2 1589 Class B'!E10 -> 1332977.96
A113: 2024 | B113: 3 | C113: 4 | D113: 1589 | E113: Cost of Power | F113: IESO Code 148 | G113: ='Rec2 1589 Class B'!E11 -> 1105649.29
A114: 2024 | B114: 3 | C114: 5 | D114: 1589 | E114: Cost of Power | F114: IESO Code 148 | G114: ='Rec2 1589 Class B'!E12 -> 1121530.65
A115: 2024 | B115: 3 | C115: 6 | D115: 1589 | E115: Cost of Power | F115: IESO Code 148 | G115: ='Rec2 1589 Class B'!E13 -> 1234849.01
A116: 2024 | B116: 3 | C116: 7 | D116: 1589 | E116: Cost of Power | F116: IESO Code 148 | G116: ='Rec2 1589 Class B'!E14 -> 1191614.66
A117: 2024 | B117: 3 | C117: 8 | D117: 1589 | E117: Cost of Power | F117: IESO Code 148 | G117: ='Rec2 1589 Class B'!E15 -> 1108616.17
A118: 2024 | B118: 3 | C118: 9 | D118: 1589 | E118: Cost of Power | F118: IESO Code 148 | G118: ='Rec2 1589 Class B'!E16 -> 1199869.99
A119: 2024 | B119: 3 | C119: 10 | D119: 1589 | E119: Cost of Power | F119: IESO Code 148 | G119: ='Rec2 1589 Class B'!E17 -> 1102798.09
A120: 2024 | B120: 3 | C120: 11 | D120: 1589 | E120: Cost of Power | F120: IESO Code 148 | G120: ='Rec2 1589 Class B'!E18 -> 1378061.68
A121: 2024 | B121: 3 | C121: 12 | D121: 1589 | E121: Cost of Power | F121: IESO Code 148 | G121: ='Rec2 1589 Class B'!E19 -> 1141701.37
A122: 2024 | B122: 4 | C122: 1 | D122: 1589 | E122: Cost of Power | F122: RPP GA (code 148) | G122: ='Rec2 1589 Class B'!F8 -> -551252.1243
A123: 2024 | B123: 4 | C123: 2 | D123: 1589 | E123: Cost of Power | F123: RPP GA (code 148) | G123: ='Rec2 1589 Class B'!F9 -> -691153.2268
A124: 2024 | B124: 4 | C124: 3 | D124: 1589 | E124: Cost of Power | F124: RPP GA (code 148) | G124: ='Rec2 1589 Class B'!F10 -> -822915.9504
A125: 2024 | B125: 4 | C125: 4 | D125: 1589 | E125: Cost of Power | F125: RPP GA (code 148) | G125: ='Rec2 1589 Class B'!F11 -> -711259.2051
A126: 2024 | B126: 4 | C126: 5 | D126: 1589 | E126: Cost of Power | F126: RPP GA (code 148) | G126: ='Rec2 1589 Class B'!F12 -> -644899.9801
A127: 2024 | B127: 4 | C127: 6 | D127: 1589 | E127: Cost of Power | F127: RPP GA (code 148) | G127: ='Rec2 1589 Class B'!F13 -> -727979.621
A128: 2024 | B128: 4 | C128: 7 | D128: 1589 | E128: Cost of Power | F128: RPP GA (code 148) | G128: ='Rec2 1589 Class B'!F14 -> -732170.4058
A129: 2024 | B129: 4 | C129: 8 | D129: 1589 | E129: Cost of Power | F129: RPP GA (code 148) | G129: ='Rec2 1589 Class B'!F15 -> -667773.3939
A130: 2024 | B130: 4 | C130: 9 | D130: 1589 | E130: Cost of Power | F130: RPP GA (code 148) | G130: ='Rec2 1589 Class B'!F16 -> -688824.9704
A131: 2024 | B131: 4 | C131: 10 | D131: 1589 | E131: Cost of Power | F131: RPP GA (code 148) | G131: ='Rec2 1589 Class B'!F17 -> -648915.3833
A132: =A131 -> 2024 | B132: 4 | C132: 11 | D132: 1589 | E132: Cost of Power | F132: RPP GA (code 148) | G132: ='Rec2 1589 Class B'!F18 -> -837019.6428
A133: 2024 | B133: 4 | C133: 12 | D133: 1589 | E133: Cost of Power | F133: RPP GA (code 148) | G133: ='Rec2 1589 Class B'!F19 -> -748602.7961
A134: 2024 | B134: 5 | C134: 1 | D134: 1589 | E134: Cost of Power | F134: Class B Deferral | G134: ='Rec2 1589 Class B'!H8 -> 0
A135: 2024 | B135: 5 | C135: 2 | D135: 1589 | E135: Cost of Power | F135: Class B Deferral | G135: ='Rec2 1589 Class B'!H9 -> 0
A136: 2024 | B136: 5 | C136: 3 | D136: 1589 | E136: Cost of Power | F136: Class B Deferral | G136: ='Rec2 1589 Class B'!H10 -> 0
A137: 2024 | B137: 5 | C137: 4 | D137: 1589 | E137: Cost of Power | F137: Class B Deferral | G137: ='Rec2 1589 Class B'!H11 -> 0
A138: 2024 | B138: 5 | C138: 5 | D138: 1589 | E138: Cost of Power | F138: Class B Deferral | G138: ='Rec2 1589 Class B'!H12 -> 0
A139: 2024 | B139: 5 | C139: 6 | D139: 1589 | E139: Cost of Power | F139: Class B Deferral | G139: ='Rec2 1589 Class B'!H13 -> 0
A140: 2024 | B140: 5 | C140: 7 | D140: 1589 | E140: Cost of Power | F140: Class B Deferral | G140: ='Rec2 1589 Class B'!H14 -> 0
A141: 2024 | B141: 5 | C141: 8 | D141: 1589 | E141: Cost of Power | F141: Class B Deferral | G141: ='Rec2 1589 Class B'!H15 -> 0
A142: 2024 | B142: 5 | C142: 9 | D142: 1589 | E142: Cost of Power | F142: Class B Deferral | G142: ='Rec2 1589 Class B'!H16 -> 0
A143: 2024 | B143: 5 | C143: 10 | D143: 1589 | E143: Cost of Power | F143: Class B Deferral | G143: ='Rec2 1589 Class B'!H17 -> 0
A144: 2024 | B144: 5 | C144: 11 | D144: 1589 | E144: Cost of Power | F144: Class B Deferral | G144: ='Rec2 1589 Class B'!H18 -> 0
A145: 2024 | B145: 5 | C145: 12 | D145: 1589 | E145: Cost of Power | F145: Class B Deferral | G145: ='Rec2 1589 Class B'!H19 -> 0
A146: 2024 | B146: 6 | C146: 1 | D146: 1589 | E146: Cost of Power | F146: Misc | G146: ='Rec2 1589 Class B'!I8 -> 0
A147: 2024 | B147: 6 | C147: 2 | D147: 1589 | E147: Cost of Power | F147: Misc | G147: ='Rec2 1589 Class B'!I9 -> 0
A148: 2024 | B148: 6 | C148: 3 | D148: 1589 | E148: Cost of Power | F148: Misc | G148: ='Rec2 1589 Class B'!I10 -> 0
A149: 2024 | B149: 6 | C149: 4 | D149: 1589 | E149: Cost of Power | F149: Misc | G149: ='Rec2 1589 Class B'!I11 -> 0
A150: 2024 | B150: 6 | C150: 5 | D150: 1589 | E150: Cost of Power | F150: Misc | G150: ='Rec2 1589 Class B'!I12 -> 0
A151: 2024 | B151: 6 | C151: 6 | D151: 1589 | E151: Cost of Power | F151: Misc | G151: ='Rec2 1589 Class B'!I13 -> 0
A152: 2024 | B152: 6 | C152: 7 | D152: 1589 | E152: Cost of Power | F152: Misc | G152: ='Rec2 1589 Class B'!I14 -> 0
A153: 2024 | B153: 6 | C153: 8 | D153: 1589 | E153: Cost of Power | F153: Misc | G153: ='Rec2 1589 Class B'!I15 -> 0
A154: 2024 | B154: 6 | C154: 9 | D154: 1589 | E154: Cost of Power | F154: Misc | G154: ='Rec2 1589 Class B'!I16 -> 0
A155: 2024 | B155: 6 | C155: 10 | D155: 1589 | E155: Cost of Power | F155: Misc | G155: ='Rec2 1589 Class B'!I17 -> 0
A156: 2024 | B156: 6 | C156: 11 | D156: 1589 | E156: Cost of Power | F156: Misc | G156: ='Rec2 1589 Class B'!I18 -> 0
A157: 2024 | B157: 6 | C157: 12 | D157: 1589 | E157: Cost of Power | F157: Misc | G157: ='Rec2 1589 Class B'!I19 -> 0
A158: 2024 | B158: 3 | C158: 1 | D158: 1589 | E158: Variance | F158: Principal Variance | G158: ='Rec2 1589 Class B'!K8 -> -49197.22426
A159: 2024 | B159: 3 | C159: 2 | D159: 1589 | E159: Variance | F159: Principal Variance | G159: ='Rec2 1589 Class B'!K9 -> -107629.1868
A160: 2024 | B160: 3 | C160: 3 | D160: 1589 | E160: Variance | F160: Principal Variance | G160: ='Rec2 1589 Class B'!K10 -> -457.9003903
A161: 2024 | B161: 3 | C161: 4 | D161: 1589 | E161: Variance | F161: Principal Variance | G161: ='Rec2 1589 Class B'!K11 -> -107199.0551
A162: 2024 | B162: 3 | C162: 5 | D162: 1589 | E162: Variance | F162: Principal Variance | G162: ='Rec2 1589 Class B'!K12 -> 199042.7199
A163: 2024 | B163: 3 | C163: 6 | D163: 1589 | E163: Variance | F163: Principal Variance | G163: ='Rec2 1589 Class B'!K13 -> 215127.729
A164: 2024 | B164: 3 | C164: 7 | D164: 1589 | E164: Variance | F164: Principal Variance | G164: ='Rec2 1589 Class B'!K14 -> 133410.7895
A165: 2024 | B165: 3 | C165: 8 | D165: 1589 | E165: Variance | F165: Principal Variance | G165: ='Rec2 1589 Class B'!K15 -> 74510.48084
A166: 2024 | B166: 3 | C166: 9 | D166: 1589 | E166: Variance | F166: Principal Variance | G166: ='Rec2 1589 Class B'!K16 -> 103233.7396
A167: 2024 | B167: 3 | C167: 10 | D167: 1589 | E167: Variance | F167: Principal Variance | G167: ='Rec2 1589 Class B'!K17 -> -40889.68329
A168: 2024 | B168: 3 | C168: 11 | D168: 1589 | E168: Variance | F168: Principal Variance | G168: ='Rec2 1589 Class B'!K18 -> 81780.17535
A169: 2024 | B169: 3 | C169: 12 | D169: 1589 | E169: Variance | F169: Principal Variance | G169: ='Rec2 1589 Class B'!K19 -> -101276.9043

Sheet UploadToPQ2
A1: Year | B1: Month | C1: Order | D1: CalcDescription | E1: Attribute | F1: Amount
A2: =ProcessYear[Process Year] -> 2024 | B2: 1 | C2: 1 | D2: Analysis of Expected GA Amount | E2: NonRppkWh | F2: ='Rev3 GA Analysis '!F16 -> 6579592.988
A3: =A2 -> 2024 | B3: 2 | C3: 1 | D3: Analysis of Expected GA Amount | E3: NonRppkWh | F3: ='Rev3 GA Analysis '!F17 -> 6007842.2
A4: =A3 -> 2024 | B4: 3 | C4: 1 | D4: Analysis of Expected GA Amount | E4: NonRppkWh | F4: ='Rev3 GA Analysis '!F18 -> 6183627.1
A5: 2024 | B5: 4 | C5: 1 | D5: Analysis of Expected GA Amount | E5: NonRppkWh | F5: ='Rev3 GA Analysis '!F19 -> 4995355.356
A6: 2024 | B6: 5 | C6: 1 | D6: Analysis of Expected GA Amount | E6: NonRppkWh | F6: ='Rev3 GA Analysis '!F20 -> 6057314.458
A7: 2024 | B7: 6 | C7: 1 | D7: Analysis of Expected GA Amount | E7: NonRppkWh | F7: ='Rev3 GA Analysis '!F21 -> 6391337.475
A8: 2024 | B8: 7 | C8: 1 | D8: Analysis of Expected GA Amount | E8: NonRppkWh | F8: ='Rev3 GA Analysis '!F22 -> 7166428.584
A9: 2024 | B9: 8 | C9: 1 | D9: Analysis of Expected GA Amount | E9: NonRppkWh | F9: ='Rev3 GA Analysis '!F23 -> 6928043.221
A10: 2024 | B10: 9 | C10: 1 | D10: Analysis of Expected GA Amount | E10: NonRppkWh | F10: ='Rev3 GA Analysis '!F24 -> 6529394.152
A11: 2024 | B11: 10 | C11: 1 | D11: Analysis of Expected GA Amount | E11: NonRppkWh | F11: ='Rev3 GA Analysis '!F25 -> 6067887.054
A12: 2024 | B12: 11 | C12: 1 | D12: Analysis of Expected GA Amount | E12: NonRppkWh | F12: ='Rev3 GA Analysis '!F26 -> 5986251.462
A13: 2024 | B13: 12 | C13: 1 | D13: Analysis of Expected GA Amount | E13: NonRppkWh | F13: ='Rev3 GA Analysis '!F27 -> 6236551.966
A14: 2024 | B14: 1 | C14: 2 | D14: Analysis of Expected GA Amount | E14: GABilled | F14: ='Rev3 GA Analysis '!G16 -> 0.05413000039
A15: 2024 | B15: 2 | C15: 2 | D15: Analysis of Expected GA Amount | E15: GABilled | F15: ='Rev3 GA Analysis '!G17 -> 0.08498000044
A16: 2024 | B16: 3 | C16: 2 | D16: Analysis of Expected GA Amount | E16: GABilled | F16: ='Rev3 GA Analysis '!G18 -> 0.0836600131
A17: 2024 | B17: 4 | C17: 2 | D17: Analysis of Expected GA Amount | E17: GABilled | F17: ='Rev3 GA Analysis '!G19 -> 0.08497998221
A18: 2024 | B18: 5 | C18: 2 | D18: Analysis of Expected GA Amount | E18: GABilled | F18: ='Rev3 GA Analysis '!G20 -> 0.04588142203
A19: 2024 | B19: 6 | C19: 2 | D19: Analysis of Expected GA Amount | E19: GABilled | F19: ='Rev3 GA Analysis '!G21 -> 0.04589491411
A20: 2024 | B20: 7 | C20: 2 | D20: Analysis of Expected GA Amount | E20: GABilled | F20: ='Rev3 GA Analysis '!G22 -> 0.04587219459
A21: 2024 | B21: 8 | C21: 2 | D21: Analysis of Expected GA Amount | E21: GABilled | F21: ='Rev3 GA Analysis '!G23 -> 0.05541812816
A22: 2024 | B22: 9 | C22: 2 | D22: Analysis of Expected GA Amount | E22: GABilled | F22: ='Rev3 GA Analysis '!G24 -> 0.06735219148
A23: 2024 | B23: 10 | C23: 2 | D23: Analysis of Expected GA Amount | E23: GABilled | F23: ='Rev3 GA Analysis '!G25 -> 0.08164615527
A24: 2024 | B24: 11 | C24: 2 | D24: Analysis of Expected GA Amount | E24: GABilled | F24: ='Rev3 GA Analysis '!G26 -> 0.07666120601
A25: 2024 | B25: 12 | C25: 2 | D25: Analysis of Expected GA Amount | E25: GABilled | F25: ='Rev3 GA Analysis '!G27 -> 0.07918698938
A26: 2024 | B26: 1 | C26: 3 | D26: Analysis of Expected GA Amount | E26: ConsAtGABilled | F26: ='Rev3 GA Analysis '!H16 -> 356153.371
A27: 2024 | B27: 2 | C27: 3 | D27: Analysis of Expected GA Amount | E27: ConsAtGABilled | F27: ='Rev3 GA Analysis '!H17 -> 510546.4328
A28: 2024 | B28: 3 | C28: 3 | D28: Analysis of Expected GA Amount | E28: ConsAtGABilled | F28: ='Rev3 GA Analysis '!H18 -> 517322.3242
A29: 2024 | B29: 4 | C29: 3 | D29: Analysis of Expected GA Amount | E29: ConsAtGABilled | F29: ='Rev3 GA Analysis '!H19 -> 424505.2093
A30: 2024 | B30: 5 | C30: 3 | D30: Analysis of Expected GA Amount | E30: ConsAtGABilled | F30: ='Rev3 GA Analysis '!H20 -> 277918.2011
A31: 2024 | B31: 6 | C31: 3 | D31: Analysis of Expected GA Amount | E31: ConsAtGABilled | F31: ='Rev3 GA Analysis '!H21 -> 293329.8844
A32: 2024 | B32: 7 | C32: 3 | D32: Analysis of Expected GA Amount | E32: ConsAtGABilled | F32: ='Rev3 GA Analysis '!H22 -> 328739.8066
A33: 2024 | B33: 8 | C33: 3 | D33: Analysis of Expected GA Amount | E33: ConsAtGABilled | F33: ='Rev3 GA Analysis '!H23 -> 383939.1871
A34: 2024 | B34: 9 | C34: 3 | D34: Analysis of Expected GA Amount | E34: ConsAtGABilled | F34: ='Rev3 GA Analysis '!H24 -> 439769.0052
A35: 2024 | B35: 10 | C35: 3 | D35: Analysis of Expected GA Amount | E35: ConsAtGABilled | F35: ='Rev3 GA Analysis '!H25 -> 495419.6485
A36: 2024 | B36: 11 | C36: 3 | D36: Analysis of Expected GA Amount | E36: ConsAtGABilled | F36: ='Rev3 GA Analysis '!H26 -> 458913.2566
A37: 2024 | B37: 12 | C37: 3 | D37: Analysis of Expected GA Amount | E37: ConsAtGABilled | F37: ='Rev3 GA Analysis '!H27 -> 493853.7743
A38: 2024 | B38: 1 | C38: 4 | D38: Analysis of Expected GA Amount | E38: GAActual | F38: ='Rev3 GA Analysis '!I16 -> 0.04589964436
A39: 2024 | B39: 2 | C39: 4 | D39: Analysis of Expected GA Amount | E39: GAActual | F39: ='Rev3 GA Analysis '!I17 -> 0.06633691581
A40: 2024 | B40: 3 | C40: 4 | D40: Analysis of Expected GA Amount | E40: GAActual | F40: ='Rev3 GA Analysis '!I18 -> 0.08166417775
A41: 2024 | B41: 4 | C41: 4 | D41: Analysis of Expected GA Amount | E41: GAActual | F41: ='Rev3 GA Analysis '!I19 -> 0.07424661223
A42: 2024 | B42: 5 | C42: 4 | D42: Analysis of Expected GA Amount | E42: GAActual | F42: ='Rev3 GA Analysis '!I20 -> 0.07763442035
A43: 2024 | B43: 6 | C43: 4 | D43: Analysis of Expected GA Amount | E43: GAActual | F43: ='Rev3 GA Analysis '!I21 -> 0.07841784464
A44: 2024 | B44: 7 | C44: 4 | D44: Analysis of Expected GA Amount | E44: GAActual | F44: ='Rev3 GA Analysis '!I22 -> 0.06370185614
A45: 2024 | B45: 8 | C45: 4 | D45: Analysis of Expected GA Amount | E45: GAActual | F45: ='Rev3 GA Analysis '!I23 -> 0.06349434224
A46: 2024 | B46: 9 | C46: 4 | D46: Analysis of Expected GA Amount | E46: GAActual | F46: ='Rev3 GA Analysis '!I24 -> 0.07933046463
A47: 2024 | B47: 10 | C47: 4 | D47: Analysis of Expected GA Amount | E47: GAActual | F47: ='Rev3 GA Analysis '!I25 -> 0.07448102708
A48: 2024 | B48: 11 | C48: 4 | D48: Analysis of Expected GA Amount | E48: GAActual | F48: ='Rev3 GA Analysis '!I26 -> 0.08902321993
A49: 2024 | B49: 12 | C49: 4 | D49: Analysis of Expected GA Amount | E49: GAActual | F49: ='Rev3 GA Analysis '!I27 -> 0.06174418047
A50: 2024 | B50: 1 | C50: 5 | D50: Analysis of Expected GA Amount | E50: ConsAtGAActual | F50: ='Rev3 GA Analysis '!J16 -> 302000.9781
A51: 2024 | B51: 2 | C51: 5 | D51: Analysis of Expected GA Amount | E51: ConsAtGAActual | F51: ='Rev3 GA Analysis '!J17 -> 398541.7222
A52: 2024 | B52: 3 | C52: 5 | D52: Analysis of Expected GA Amount | E52: ConsAtGAActual | F52: ='Rev3 GA Analysis '!J18 -> 504980.8226
A53: 2024 | B53: 4 | C53: 5 | D53: Analysis of Expected GA Amount | E53: ConsAtGAActual | F53: ='Rev3 GA Analysis '!J19 -> 370888.2121
A54: 2024 | B54: 5 | C54: 5 | D54: Analysis of Expected GA Amount | E54: ConsAtGAActual | F54: ='Rev3 GA Analysis '!J20 -> 470256.0969
A55: 2024 | B55: 6 | C55: 5 | D55: Analysis of Expected GA Amount | E55: ConsAtGAActual | F55: ='Rev3 GA Analysis '!J21 -> 501194.9091
A56: 2024 | B56: 7 | C56: 5 | D56: Analysis of Expected GA Amount | E56: ConsAtGAActual | F56: ='Rev3 GA Analysis '!J22 -> 456514.8027
A57: 2024 | B57: 8 | C57: 5 | D57: Analysis of Expected GA Amount | E57: ConsAtGAActual | F57: ='Rev3 GA Analysis '!J23 -> 439891.5473
A58: 2024 | B58: 9 | C58: 5 | D58: Analysis of Expected GA Amount | E58: ConsAtGAActual | F58: ='Rev3 GA Analysis '!J24 -> 517979.8718
A59: 2024 | B59: 10 | C59: 5 | D59: Analysis of Expected GA Amount | E59: ConsAtGAActual | F59: ='Rev3 GA Analysis '!J25 -> 451942.46
A60: 2024 | B60: 11 | C60: 5 | D60: Analysis of Expected GA Amount | E60: ConsAtGAActual | F60: ='Rev3 GA Analysis '!J26 -> 532915.3805
A61: 2024 | B61: 12 | C61: 5 | D61: Analysis of Expected GA Amount | E61: ConsAtGAActual | F61: ='Rev3 GA Analysis '!J27 -> 385070.7901
A62: 2024 | B62: 1 | C62: 6 | D62: Analysis of Expected GA Amount | E62: ExpectedGAVar | F62: ='Rev3 GA Analysis '!K16 -> -54152.39285
A63: 2024 | B63: 2 | C63: 6 | D63: Analysis of Expected GA Amount | E63: ExpectedGAVar | F63: ='Rev3 GA Analysis '!K17 -> -112004.7106
A64: 2024 | B64: 3 | C64: 6 | D64: Analysis of Expected GA Amount | E64: ExpectedGAVar | F64: ='Rev3 GA Analysis '!K18 -> -12341.50155
A65: 2024 | B65: 4 | C65: 6 | D65: Analysis of Expected GA Amount | E65: ExpectedGAVar | F65: ='Rev3 GA Analysis '!K19 -> -53616.99725
A66: 2024 | B66: 5 | C66: 6 | D66: Analysis of Expected GA Amount | E66: ExpectedGAVar | F66: ='Rev3 GA Analysis '!K20 -> 192337.8958
A67: 2024 | B67: 6 | C67: 6 | D67: Analysis of Expected GA Amount | E67: ExpectedGAVar | F67: ='Rev3 GA Analysis '!K21 -> 207865.0247
A68: =A67 -> 2024 | B68: 7 | C68: 6 | D68: Analysis of Expected GA Amount | E68: ExpectedGAVar | F68: ='Rev3 GA Analysis '!K22 -> 127774.9961
A69: 2024 | B69: 8 | C69: 6 | D69: Analysis of Expected GA Amount | E69: ExpectedGAVar | F69: ='Rev3 GA Analysis '!K23 -> 55952.36025
A70: 2024 | B70: 9 | C70: 6 | D70: Analysis of Expected GA Amount | E70: ExpectedGAVar | F70: ='Rev3 GA Analysis '!K24 -> 78210.86663
A71: 2024 | B71: 10 | C71: 6 | D71: Analysis of Expected GA Amount | E71: ExpectedGAVar | F71: ='Rev3 GA Analysis '!K25 -> -43477.18855
A72: 2024 | B72: 11 | C72: 6 | D72: Analysis of Expected GA Amount | E72: ExpectedGAVar | F72: ='Rev3 GA Analysis '!K26 -> 74002.12391
A73: 2024 | B73: 12 | C73: 6 | D73: Analysis of Expected GA Amount | E73: ExpectedGAVar | F73: ='Rev3 GA Analysis '!K27 -> -108782.9842
A74: 2024 | B74: 1 | C74: 7 | D74: Analysis of Expected GA Amount | E74: RevPerContSch | F74: ='Rev3 GA Analysis '!M16 -> -355921.03
A75: 2024 | B75: 2 | C75: 7 | D75: Analysis of Expected GA Amount | E75: RevPerContSch | F75: ='Rev3 GA Analysis '!M17 -> -510400.47
A76: 2024 | B76: 3 | C76: 7 | D76: Analysis of Expected GA Amount | E76: RevPerContSch | F76: ='Rev3 GA Analysis '!M18 -> -510519.91
A77: 2024 | B77: 4 | C77: 7 | D77: Analysis of Expected GA Amount | E77: RevPerContSch | F77: ='Rev3 GA Analysis '!M19 -> -501589.14
A78: 2024 | B78: 5 | C78: 7 | D78: Analysis of Expected GA Amount | E78: RevPerContSch | F78: ='Rev3 GA Analysis '!M20 -> -277587.95
A79: 2024 | B79: 6 | C79: 7 | D79: Analysis of Expected GA Amount | E79: RevPerContSch | F79: ='Rev3 GA Analysis '!M21 -> -291741.66
A80: 2024 | B80: 7 | C80: 7 | D80: Analysis of Expected GA Amount | E80: RevPerContSch | F80: ='Rev3 GA Analysis '!M22 -> -326033.4647
A81: 2024 | B81: 8 | C81: 7 | D81: Analysis of Expected GA Amount | E81: RevPerContSch | F81: ='Rev3 GA Analysis '!M23 -> -366332.2953
A82: 2024 | B82: 9 | C82: 7 | D82: Analysis of Expected GA Amount | E82: RevPerContSch | F82: ='Rev3 GA Analysis '!M24 -> -407811.28
A83: 2024 | B83: 10 | C83: 7 | D83: Analysis of Expected GA Amount | E83: RevPerContSch | F83: ='Rev3 GA Analysis '!M25 -> -494772.39
A84: 2024 | B84: 11 | C84: 7 | D84: Analysis of Expected GA Amount | E84: RevPerContSch | F84: ='Rev3 GA Analysis '!M26 -> -459261.8618
A85: 2024 | B85: 12 | C85: 7 | D85: Analysis of Expected GA Amount | E85: RevPerContSch | F85: ='Rev3 GA Analysis '!M27 -> -494375.4782
A86: 2024 | B86: 1 | C86: 8 | D86: Analysis of Expected GA Amount | E86: RevDiff | F86: ='Rev3 GA Analysis '!M16 -> -355921.03
A87: 2024 | B87: 2 | C87: 8 | D87: Analysis of Expected GA Amount | E87: RevDiff | F87: ='Rev3 GA Analysis '!M17 -> -510400.47
A88: 2024 | B88: 3 | C88: 8 | D88: Analysis of Expected GA Amount | E88: RevDiff | F88: ='Rev3 GA Analysis '!M18 -> -510519.91
A89: 2024 | B89: 4 | C89: 8 | D89: Analysis of Expected GA Amount | E89: RevDiff | F89: ='Rev3 GA Analysis '!M19 -> -501589.14
A90: 2024 | B90: 5 | C90: 8 | D90: Analysis of Expected GA Amount | E90: RevDiff | F90: ='Rev3 GA Analysis '!M20 -> -277587.95
A91: 2024 | B91: 6 | C91: 8 | D91: Analysis of Expected GA Amount | E91: RevDiff | F91: ='Rev3 GA Analysis '!M21 -> -291741.66
A92: 2024 | B92: 7 | C92: 8 | D92: Analysis of Expected GA Amount | E92: RevDiff | F92: ='Rev3 GA Analysis '!M22 -> -326033.4647
A93: 2024 | B93: 8 | C93: 8 | D93: Analysis of Expected GA Amount | E93: RevDiff | F93: ='Rev3 GA Analysis '!M23 -> -366332.2953
A94: 2024 | B94: 9 | C94: 8 | D94: Analysis of Expected GA Amount | E94: RevDiff | F94: ='Rev3 GA Analysis '!M24 -> -407811.28
A95: 2024 | B95: 10 | C95: 8 | D95: Analysis of Expected GA Amount | E95: RevDiff | F95: ='Rev3 GA Analysis '!M25 -> -494772.39
A96: 2024 | B96: 11 | C96: 8 | D96: Analysis of Expected GA Amount | E96: RevDiff | F96: ='Rev3 GA Analysis '!M26 -> -459261.8618
A97: 2024 | B97: 12 | C97: 8 | D97: Analysis of Expected GA Amount | E97: RevDiff | F97: ='Rev3 GA Analysis '!M27 -> -494375.4782
A98: 2024 | B98: 1 | C98: 9 | D98: Analysis of Expected GA Amount | E98: ExpPerContSch | F98: ='Rev3 GA Analysis '!P16 -> 306723.8057
A99: 2024 | B99: 2 | C99: 9 | D99: Analysis of Expected GA Amount | E99: ExpPerContSch | F99: ='Rev3 GA Analysis '!P17 -> 402771.2832
A100: 2024 | B100: 3 | C100: 9 | D100: Analysis of Expected GA Amount | E100: ExpPerContSch | F100: ='Rev3 GA Analysis '!P18 -> 510062.0096
A101: 2024 | B101: 4 | C101: 9 | D101: Analysis of Expected GA Amount | E101: ExpPerContSch | F101: ='Rev3 GA Analysis '!P19 -> 394390.0849
A102: 2024 | B102: 5 | C102: 9 | D102: Analysis of Expected GA Amount | E102: ExpPerContSch | F102: ='Rev3 GA Analysis '!P20 -> 476630.6699
A103: 2024 | B103: 6 | C103: 9 | D103: Analysis of Expected GA Amount | E103: ExpPerContSch | F103: ='Rev3 GA Analysis '!P21 -> 506869.389
A104: 2024 | B104: 7 | C104: 9 | D104: Analysis of Expected GA Amount | E104: ExpPerContSch | F104: ='Rev3 GA Analysis '!P22 -> 459444.2542
A105: 2024 | B105: 8 | C105: 9 | D105: Analysis of Expected GA Amount | E105: ExpPerContSch | F105: ='Rev3 GA Analysis '!P23 -> 440842.7761
A106: 2024 | B106: 9 | C106: 9 | D106: Analysis of Expected GA Amount | E106: ExpPerContSch | F106: ='Rev3 GA Analysis '!P24 -> 511045.0196
A107: 2024 | B107: 10 | C107: 9 | D107: Analysis of Expected GA Amount | E107: ExpPerContSch | F107: ='Rev3 GA Analysis '!P25 -> 453882.7067
A108: 2024 | B108: 11 | C108: 9 | D108: Analysis of Expected GA Amount | E108: ExpPerContSch | F108: ='Rev3 GA Analysis '!P26 -> 541042.0372
A109: 2024 | B109: 12 | C109: 9 | D109: Analysis of Expected GA Amount | E109: ExpPerContSch | F109: ='Rev3 GA Analysis '!P27 -> 393098.5739
A110: 2024 | B110: 1 | C110: 10 | D110: Analysis of Expected GA Amount | E110: ExpDiff | F110: ='Rev3 GA Analysis '!Q16 -> -4722.827601
A111: 2024 | B111: 2 | C111: 10 | D111: Analysis of Expected GA Amount | E111: ExpDiff | F111: ='Rev3 GA Analysis '!Q17 -> -4229.560947
A112: 2024 | B112: 3 | C112: 10 | D112: Analysis of Expected GA Amount | E112: ExpDiff | F112: ='Rev3 GA Analysis '!Q18 -> -5081.186997
A113: 2024 | B113: 4 | C113: 10 | D113: Analysis of Expected GA Amount | E113: ExpDiff | F113: ='Rev3 GA Analysis '!Q19 -> -23501.87279
A114: 2024 | B114: 5 | C114: 10 | D114: Analysis of Expected GA Amount | E114: ExpDiff | F114: ='Rev3 GA Analysis '!Q20 -> -6374.572993
A115: 2024 | B115: 6 | C115: 10 | D115: Analysis of Expected GA Amount | E115: ExpDiff | F115: ='Rev3 GA Analysis '!Q21 -> -5674.479891
A116: 2024 | B116: 7 | C116: 10 | D116: Analysis of Expected GA Amount | E116: ExpDiff | F116: ='Rev3 GA Analysis '!Q22 -> -2929.451516
A117: 2024 | B117: 8 | C117: 10 | D117: Analysis of Expected GA Amount | E117: ExpDiff | F117: ='Rev3 GA Analysis '!Q23 -> -951.2287674
A118: 2024 | B118: 9 | C118: 10 | D118: Analysis of Expected GA Amount | E118: ExpDiff | F118: ='Rev3 GA Analysis '!Q24 -> 6934.852226
A119: 2024 | B119: 10 | C119: 10 | D119: Analysis of Expected GA Amount | E119: ExpDiff | F119: ='Rev3 GA Analysis '!Q25 -> -1940.246715
A120: 2024 | B120: 11 | C120: 10 | D120: Analysis of Expected GA Amount | E120: ExpDiff | F120: ='Rev3 GA Analysis '!Q26 -> -8126.656687
A121: 2024 | B121: 12 | C121: 10 | D121: Analysis of Expected GA Amount | E121: ExpDiff | F121: ='Rev3 GA Analysis '!Q27 -> -8027.783769
A122: 2024 | B122: 0 | C122: 11 | D122: Analysis of Expected GA Amount | E122: Total Metered excluding WMP | F122: ='Rev3 GA Analysis '!H4 -> 245246347.3
A123: 2024 | B123: 0 | C123: 12 | D123: Analysis of Expected GA Amount | E123: RPP | F123: ='Rev3 GA Analysis '!H5 -> 120601589.3
A124: 2024 | B124: 0 | C124: 13 | D124: Analysis of Expected GA Amount | E124: Non RPP | F124: ='Rev3 GA Analysis '!H6 -> 124644758
A125: 2024 | B125: 0 | C125: 14 | D125: Analysis of Expected GA Amount | E125: Non-RPP Class A | F125: ='Rev3 GA Analysis '!H7 -> 49515131.96
A126: 2024 | B126: 0 | C126: 15 | D126: Analysis of Expected GA Amount | E126: Non-RPP Class B | F126: ='Rev3 GA Analysis '!H8 -> 75129626.02
A127: 2024 | B127: 0 | C127: 16 | D127: Analysis of Expected GA Amount | E127: NonRppkWh | F127: ='Rev3 GA Analysis '!F29 -> 75129626.02
A128: 2024 | B128: 0 | C128: 17 | D128: Analysis of Expected GA Amount | E128: WtAvgGABilled | F128: ='Rev3 GA Analysis '!G29 -> 0
A129: 2024 | B129: 0 | C129: 18 | D129: Analysis of Expected GA Amount | E129: ConsAtGABilled | F129: ='Rev3 GA Analysis '!H29 -> 4980410.101
A130: 2024 | B130: 0 | C130: 19 | D130: Analysis of Expected GA Amount | E130: WtAvgGAActual | F130: ='Rev3 GA Analysis '!I29 -> 0
A131: 2024 | B131: 0 | C131: 20 | D131: Analysis of Expected GA Amount | E131: ConsAtGAActual | F131: ='Rev3 GA Analysis '!J29 -> 5332177.594
A132: =A131 -> 2024 | B132: 0 | C132: 21 | D132: Analysis of Expected GA Amount | E132: ExpectedGAVar | F132: ='Rev3 GA Analysis '!K29 -> 351767.4925
A133: 2024 | B133: 0 | C133: 22 | D133: Analysis of Expected GA Amount | E133: RevPerContSch | F133: ='Rev3 GA Analysis '!M29 -> -4996346.93
A134: 2024 | B134: 0 | C134: 23 | D134: Analysis of Expected GA Amount | E134: RevDiff | F134: ='Rev3 GA Analysis '!N29 -> -15936.82898
A135: 2024 | B135: 0 | C135: 24 | D135: Analysis of Expected GA Amount | E135: ExpPerContSch | F135: ='Rev3 GA Analysis '!P29 -> 5396802.61
A136: 2024 | B136: 0 | C136: 25 | D136: Analysis of Expected GA Amount | E136: ExpDiff | F136: ='Rev3 GA Analysis '!Q29 -> -64625.01645
A137: 2024 | B137: 0 | C137: 26 | D137: Analysis of Expected GA Amount | E137: NonRPPWhslkWh | F137: ='Rev3 GA Analysis '!C38 -> 75485628.5
A138: 2024 | B138: 0 | C138: 27 | D138: Analysis of Expected GA Amount | E138: NonRPPRevkWh | F138: ='Rev3 GA Analysis '!D38 -> 75129626.02
A139: 2024 | B139: 0 | C139: 28 | D139: Analysis of Expected GA Amount | E139: NonRPPUFE | F139: ='Rev3 GA Analysis '!E38 -> 356002.4835
A140: 2024 | B140: 0 | C140: 29 | D140: Analysis of Expected GA Amount | E140: WtAvgGABilled | F140: ='Rev3 GA Analysis '!F38 -> 0.06629089435
A141: 2024 | B141: 0 | C141: 30 | D141: Analysis of Expected GA Amount | E141: UFEExpectedGAVar | F141: ='Rev3 GA Analysis '!G38 -> 23599.72302
A142: 2024 | B142: 0 | C142: 31 | D142: Analysis of Expected GA Amount | E142: TotExpectedGAVar | F142: ='Rev3 GA Analysis '!G41 -> 375367.2155
A143: 2024 | B143: 0 | C143: 32 | D143: Analysis of Expected GA Amount | E143: Chg1589PrinBal | F143: ='Rev3 GA Analysis '!D64 -> 400455.68
A144: 2024 | B144: 0 | C144: 33 | D144: Analysis of Expected GA Amount | E144: NetChgExpectedGAVar | F144: ='Rev3 GA Analysis '!D65 -> 375367.2155
A145: 2024 | B145: 0 | C145: 34 | D145: Analysis of Expected GA Amount | E145: UnresolvedDiff$ | F145: ='Rev3 GA Analysis '!D66 -> 25088.46445
A146: 2024 | B146: 0 | C146: 35 | D146: Analysis of Expected GA Amount | E146: ConsAtGAActual | F146: =F131 -> 5332177.594
A147: 2024 | B147: 0 | C147: 36 | D147: Analysis of Expected GA Amount | E147: UnresolvedDiff% | F147: ='Rev3 GA Analysis '!D67 -> 0.004705106686
A148: 2024 | B148: 0 | C148: 37 | D148: Account 1588 Reasonability Test | E148: 1588Principle | F148: ='Rev3 GA Analysis '!D99 -> 213751.15
A149: 2024 | B149: 0 | C149: 38 | D149: Account 1588 Reasonability Test | E149: 4705PowerPurchased | F149: ='Rev3 GA Analysis '!F99 -> 17379209.33
A150: 2024 | B150: 0 | C150: 39 | D150: Account 1588 Reasonability Test | E150: 1588%4705 | F150: ='Rev3 GA Analysis '!G99 -> 0.0122992448

Sheet Sheet1
